Workbook

Sheet US Dash 06-Jul (hidden)
A1: CS Dashboard | B1: 2012-07-06
B2: On Boarding
B3: Tier 1 | D3: Tier 2 | F3: Tier 3 | H3: Tier 4 | J3: Totals | N3: Row Labels | O3: Sum of Num Hours | P3: Sum of Sold Price
A4: CSM | B4: Accounts1 | C4: Seats1 | D4: Accounts2 | E4: Seats2 | F4: Accounts3 | G4: Seats3 | H4: Accounts4 | I4: Seats4 | J4: Total Acounts | K4: Total Seats | N4: Alex Gorman | O4: 224.25 | P4: 30267
A5: Roni Feldsher | B5: 3 | C5: 515 | H5: 1 | I5: 3 | J5: =SUM(B5,D5,F5,H5) -> 4 | K5: 518 | N5: G.I.Teh | O5: 97 | P5: 12850
A6: G.I. The | B6: 3 | C6: 175 | D6: 2 | E6: 55 | F6: 4 | G6: 29 | J6: 9 | K6: 259 | N6: Josh Santos | O6: 95 | P6: 12150
A7: Josh Santos | B7: 1 | C7: 50 | D7: 11 | E7: 294 | F7: 6 | G7: 47 | J7: 18 | K7: 391 | N7: Patrick Smith | O7: 216.25 | P7: 23833
A8: Patrick Smith | B8: 4 | C8: 200 | D8: 73 | E8: 1461 | F8: 71 | G8: 515 | H8: 2 | I8: 2 | J8: 150 | K8: 2178 | N8: Rami Cohen | O8: 8 | P8: 1000
A9: Alex Gorman | B9: 3 | C9: 190 | D9: 14 | E9: 281 | F9: 8 | G9: 54 | H9: 1 | I9: 3 | J9: 26 | K9: 528 | N9: Rob Sidhu | O9: 40 | P9: 5735
A10: Rob Sidhu | D10: 4 | E10: 76 | F10: 6 | G10: 32 | H10: 7 | I10: 15 | J10: =SUM(B10,D10,F10,H10) -> 17 | K10: =SUM(C10,E10,G10,I10) -> 123 | N10: Roni Feldsher | O10: 114 | P10: 15300
A11: Total | B11: =SUBTOTAL(109,Table711[Accounts1]) -> 14 | C11: =SUBTOTAL(109,Table711[Seats1]) -> 1130 | D11: =SUBTOTAL(109,Table711[Accounts2]) -> 104 | E11: =SUBTOTAL(109,Table711[Seats2]) -> 2167 | F11: =SUBTOTAL(109,Table711[Accounts3]) -> 95 | G11: =SUBTOTAL(109,Table711[Seats3]) -> 677 | H11: =SUBTOTAL(109,Table711[Accounts4]) -> 11 | I11: =SUBTOTAL(109,Table711[Seats4]) -> 23 | J11: =SUBTOTAL(109,Table711[Total Acounts]) -> 224 | K11: =SUBTOTAL(109,Table711[Total Seats]) -> 3997 | N11: Grand Total | O11: 794.5 | P11: 101135
B13: On Going
B14: Tier 1 | D14: Tier 2 | F14: Tier 3 | H14: Tier 4 | J14: Totals
A15: CSM | B15: Accounts1 | C15: Seats1 | D15: Accounts2 | E15: Seats2 | F15: Accounts3 | G15: Seats3 | H15: Accounts4 | I15: Seats4 | J15: Total Acounts | K15: Total Seats
A16: Roni Feldsher | B16: 15 | C16: 1901 | D16: 9 | E16: 239 | F16: 1 | G16: 8 | H16: 6 | I16: 13 | J16: =SUM(B16,D16,F16,H16) -> 31 | K16: 2161
A17: G.I. The | B17: 3 | C17: 190 | D17: 6 | E17: 127 | F17: 3 | G17: 19 | J17: 12 | K17: 336
A18: Josh Santos | B18: 14 | C18: 968 | D18: 92 | E18: 2068 | F18: 65 | G18: 459 | H18: 37 | I18: 65 | J18: 208 | K18: 3560
A19: Patrick Smith | B19: 8 | C19: 819 | D19: 17 | E19: 377 | F19: 6 | G19: 40 | H19: 1 | I19: 3 | J19: 32 | K19: 1239
A20: Alex Gorman | D20: 14 | E20: 292 | F20: 11 | G20: 65 | H20: 6 | I20: 11 | J20: 31 | K20: 368
A21: Rob Sidhu | D21: 5 | E21: 102 | F21: 49 | G21: 288 | H21: 95 | I21: 157 | J21: =SUM(B21,D21,F21,H21) -> 149 | K21: =SUM(C21,E21,G21,I21) -> 547
A22: Total | B22: =SUBTOTAL(109,Table7912[Accounts1]) -> 40 | C22: =SUBTOTAL(109,Table7912[Seats1]) -> 3878 | D22: =SUBTOTAL(109,Table7912[Accounts2]) -> 143 | E22: =SUBTOTAL(109,Table7912[Seats2]) -> 3205 | F22: =SUBTOTAL(109,Table7912[Accounts3]) -> 135 | G22: =SUBTOTAL(109,Table7912[Seats3]) -> 879 | H22: =SUBTOTAL(109,Table7912[Accounts4]) -> 145 | I22: =SUBTOTAL(109,Table7912[Seats4]) -> 249 | J22: =SUBTOTAL(109,Table7912[Total Acounts]) -> 463 | K22: =SUBTOTAL(109,Table7912[Total Seats]) -> 8211
B24: Customer Retention
B25: Tier 1 | D25: Tier 2 | F25: Tier 3 | H25: Tier 4 | J25: Totals
A26: CSM | B26: Accounts1 | C26: Seats1 | D26: Accounts2 | E26: Seats2 | F26: Accounts3 | G26: Seats3 | H26: Accounts4 | I26: Seats4 | J26: Total Acounts | K26: Total Seats
A27: Roni Feldsher | B27: 2 | C27: 277 | D27: 3 | E27: 113 | H27: 9 | I27: 17 | J27: =SUM(B27,D27,F27,H27) -> 14 | K27: 407
A28: G.I. The | D28: 2 | E28: 30 | J28: 2 | K28: 30
A29: Josh Santos | B29: 8 | C29: 525 | D29: 12 | E29: 311 | F29: 50 | G29: 331 | H29: 103 | I29: 165 | J29: 173 | K29: 1332
A30: Patrick Smith | D30: 5 | E30: 94 | F30: 7 | G30: 46 | J30: 12 | K30: 140
A31: Alex Gorman | D31: 1 | E31: 19 | F31: 2 | G31: 16 | H31: 2 | I31: 5 | J31: 5 | K31: 40
A32: Rob Sidhu | D32: 4 | E32: 88 | F32: 18 | G32: 98 | H32: 134 | I32: 201 | J32: =SUM(B32,D32,F32,H32) -> 156 | K32: =SUM(C32,E32,G32,I32) -> 387
A33: Total | B33: =SUBTOTAL(109,Table791013[Accounts1]) -> 10 | C33: =SUBTOTAL(109,Table791013[Seats1]) -> 802 | D33: =SUBTOTAL(109,Table791013[Accounts2]) -> 27 | E33: =SUBTOTAL(109,Table791013[Seats2]) -> 655 | F33: =SUBTOTAL(109,Table791013[Accounts3]) -> 77 | G33: =SUBTOTAL(109,Table791013[Seats3]) -> 491 | H33: =SUBTOTAL(109,Table791013[Accounts4]) -> 248 | I33: =SUBTOTAL(109,Table791013[Seats4]) -> 388 | J33: =SUBTOTAL(109,Table791013[Total Acounts]) -> 362 | K33: =SUBTOTAL(109,Table791013[Total Seats]) -> 2336

Sheet EMEA Dash 06-Jul (hidden)
A1: CS Dashboard | B1: 2012-07-06
B2: On Boarding
B3: Tier 1 | D3: Tier 2 | F3: Tier 3 | H3: Tier 4 | J3: Totals
A4: CSM | B4: Accounts1 | C4: Seats1 | D4: Accounts2 | E4: Seats2 | F4: Accounts3 | G4: Seats3 | H4: Accounts4 | I4: Seats4 | J4: Total Acounts | K4: Total Seats
A5: David Goulden | B5: 3 | C5: 269 | D5: 4 | E5: 83 | F5: 6 | G5: 36 | H5: 14 | I5: 27 | J5: =SUM(B5,D5,F5,H5) -> 27 | K5: =SUM(C5,E5,G5,I5) -> 415
A6: Tal Noga | B6: 2 | C6: 275 | D6: 3 | E6: 70 | F6: 8 | G6: 56 | H6: 8 | I6: 14 | J6: 21 | K6: 415
A7: Eran Fishov | D7: 2 | E7: 40 | F7: 5 | G7: 35 | H7: 9 | I7: 15 | J7: 16 | K7: 90
A8: Evgeni Haikin | D8: 5 | E8: 88 | F8: 5 | G8: 33 | H8: 8 | I8: 17 | J8: 18 | K8: 138
A9: Noam Sayada | H9: 1 | I9: 1 | J9: 1 | K9: 1
A10: Rami Cohen | J10: =SUM(B10,D10,F10,H10) -> 0 | K10: =SUM(C10,E10,G10,I10) -> 0
A11: Total | B11: =SUBTOTAL(109,Table7[Accounts1]) -> 5 | C11: =SUBTOTAL(109,Table7[Seats1]) -> 544 | D11: =SUBTOTAL(109,Table7[Accounts2]) -> 14 | E11: =SUBTOTAL(109,Table7[Seats2]) -> 281 | F11: =SUBTOTAL(109,Table7[Accounts3]) -> 24 | G11: =SUBTOTAL(109,Table7[Seats3]) -> 160 | H11: =SUBTOTAL(109,Table7[Accounts4]) -> 40 | I11: =SUBTOTAL(109,Table7[Seats4]) -> 74 | J11: =SUBTOTAL(109,Table7[Total Acounts]) -> 83 | K11: =SUBTOTAL(109,Table7[Total Seats]) -> 1059
B13: On Going
B14: Tier 1 | D14: Tier 2 | F14: Tier 3 | H14: Tier 4 | J14: Totals
A15: CSM | B15: Accounts1 | C15: Seats1 | D15: Accounts2 | E15: Seats2 | F15: Accounts3 | G15: Seats3 | H15: Accounts4 | I15: Seats4 | J15: Total Acounts | K15: Total Seats
A16: David Goulden | B16: 7 | C16: 991 | D16: 10 | E16: 242 | F16: 13 | G16: 88 | H16: 7 | I16: 16 | J16: =SUM(B16,D16,F16,H16) -> 37 | K16: =SUM(C16,E16,G16,I16) -> 1337
A17: Tal Noga | B17: 7 | C17: 578 | D17: 27 | E17: 605 | F17: 20 | G17: 147 | H17: 20 | I17: 32 | J17: 74 | K17: 1362
A18: Eran Fishov | B18: 9 | C18: 731 | D18: 18 | E18: 409 | F18: 26 | G18: 174 | H18: 21 | I18: 32 | J18: 74 | K18: 1346
A19: Evgeni Haikin | B19: 3 | C19: 272 | D19: 14 | E19: 336 | F19: 8 | G19: 52 | H19: 8 | I19: 12 | J19: 33 | K19: 672
A20: Noam Sayada | D20: 1 | E20: 30 | J20: 1 | K20: 30
A21: Rami Cohen | B21: 9 | C21: 1365 | D21: 12 | E21: 264 | F21: 6 | G21: 42 | H21: 2 | I21: 5 | J21: =SUM(B21,D21,F21,H21) -> 29 | K21: =SUM(C21,E21,G21,I21) -> 1676
A22: Total | B22: =SUBTOTAL(109,Table79[Accounts1]) -> 35 | C22: =SUBTOTAL(109,Table79[Seats1]) -> 3937 | D22: =SUBTOTAL(109,Table79[Accounts2]) -> 82 | E22: =SUBTOTAL(109,Table79[Seats2]) -> 1886 | F22: =SUBTOTAL(109,Table79[Accounts3]) -> 73 | G22: =SUBTOTAL(109,Table79[Seats3]) -> 503 | H22: =SUBTOTAL(109,Table79[Accounts4]) -> 58 | I22: =SUBTOTAL(109,Table79[Seats4]) -> 97 | J22: =SUBTOTAL(109,Table79[Total Acounts]) -> 248 | K22: =SUBTOTAL(109,Table79[Total Seats]) -> 6423
B24: Customer Retention
B25: Tier 1 | D25: Tier 2 | F25: Tier 3 | H25: Tier 4 | J25: Totals
A26: CSM | B26: Accounts1 | C26: Seats1 | D26: Accounts2 | E26: Seats2 | F26: Accounts3 | G26: Seats3 | H26: Accounts4 | I26: Seats4 | J26: Total Acounts | K26: Total Seats
A27: David Goulden | B27: 2 | C27: 100 | D27: 3 | E27: 40 | F27: 5 | G27: 43 | H27: 12 | I27: 19 | J27: =SUM(B27,D27,F27,H27) -> 22 | K27: =SUM(C27,E27,G27,I27) -> 202
A28: Tal Noga | D28: 6 | E28: 93 | F28: 9 | G28: 66 | H28: 37 | I28: 57 | J28: 52 | K28: 216
A29: Eran Fishov | D29: 3 | E29: 39 | F29: 14 | G29: 90 | H29: 21 | I29: 34 | J29: 38 | K29: 163
A30: Evgeni Haikin | B30: 1 | C30: 62 | D30: 4 | E30: 100 | F30: 4 | G30: 27 | H30: 14 | I30: 22 | J30: 23 | K30: 211
A31: Noam Sayada | J31: 0 | K31: 0
A32: Rami Cohen | B32: 1 | C32: 50 | D32: 1 | E32: 19 | F32: 5 | G32: 41 | H32: 1 | I32: 1 | J32: =SUM(B32,D32,F32,H32) -> 8 | K32: =SUM(C32,E32,G32,I32) -> 111
A33: Total | B33: =SUBTOTAL(109,Table7910[Accounts1]) -> 4 | C33: =SUBTOTAL(109,Table7910[Seats1]) -> 212 | D33: =SUBTOTAL(109,Table7910[Accounts2]) -> 17 | E33: =SUBTOTAL(109,Table7910[Seats2]) -> 291 | F33: =SUBTOTAL(109,Table7910[Accounts3]) -> 37 | G33: =SUBTOTAL(109,Table7910[Seats3]) -> 267 | H33: =SUBTOTAL(109,Table7910[Accounts4]) -> 85 | I33: =SUBTOTAL(109,Table7910[Seats4]) -> 133 | J33: =SUBTOTAL(109,Table7910[Total Acounts]) -> 143 | K33: =SUBTOTAL(109,Table7910[Total Seats]) -> 903

Sheet PS Dash 1
A1: Package | B1: (All) | E1: Project Type | F1: (Multiple Items)
A2: PS Hours Committed | E2: PS Hours Delivered | I2: PS Commitments to Deliver
A3: Month Sold | B3: Hours Committed | C3: $ Sold | E3: Month Delivered | F3: Hours Delivered | G3: Total Recognition | I3: Month | J3: Gap in Hours | K3: FTE | L3: $ To Deliver
A4: Mar | B4: 185 | C4: 22734 | E4: Mar | F4: 146.76 | G4: 7105.4864 | I4: =E4 -> Mar | J4: =B4-F4 -> 38.24 | K4: =Table2[[#This Row],[Gap in Hours]]/176 -> 0.2172727273 | L4: =C4-G4 -> 15628.5136
A5: Apr | B5: 377 | C5: 40791 | E5: Apr | F5: 146.78 | G5: 11272.4345 | I5: =E5 -> Apr | J5: =B5-F5 -> 230.22 | K5: =Table2[[#This Row],[Gap in Hours]]/176 -> 1.308068182 | L5: 29518.5655
A6: May | B6: 293.75 | C6: 39335 | E6: May | F6: 155.71 | G6: 18147.4439 | I6: May | J6: =B6-F6 -> 138.04 | K6: =Table2[[#This Row],[Gap in Hours]]/176 -> 0.7843181818 | L6: 21187.5561
A7: Jun | B7: 385.25 | C7: 48750 | E7: Jun | F7: 196.95 | G7: 17351.6681 | I7: =E7 -> Jun | J7: =B7-F7 -> 188.3 | K7: =Table2[[#This Row],[Gap in Hours]]/176 -> 1.069886364 | L7: 31398.3319
A8: Jul | B8: 487.5 | C8: 64408 | E8: Jul | F8: 230.48 | G8: 26607.9718 | I8: =E8 -> Jul | J8: =B8-F8 -> 257.02 | K8: =Table2[[#This Row],[Gap in Hours]]/176 -> 1.460340909 | L8: =C8-G8 -> 37800.0282
A9: Aug | B9: 79.4 | C9: 11700 | E9: Aug | F9: 56.9 | G9: 6518.8875 | I9: =E9 -> Aug | J9: =B9-F9 -> 22.5 | K9: =Table2[[#This Row],[Gap in Hours]]/176 -> 0.1278409091 | L9: =C9-G9 -> 5181.1125
A10: Grand Total | B10: 1807.9 | C10: 227718 | E10: Grand Total | F10: 933.58 | G10: 87003.8922 | I10: Grand Total | J10: =SUBTOTAL(109,Table2[Gap in Hours]) -> 874.32 | K10: =SUBTOTAL(109,Table2[FTE]) -> 4.967727273 | L10: =SUBTOTAL(109,Table2[$ To Deliver]) -> 140714.1078
A13: Summary Table | I13: Legend:
A14: Month | B14: Hours Committed | C14: Hours Delivered | D14: Mo Gap | E14: Cumulative Gap | F14: % (Gap/Comm) | I14: * | J14: PS Hours Sold: CS Packages Entered into Clarizen Int
A15: 2012-03-01 | B15: =B4 -> 185 | C15: =F4 -> 146.76 | D15: =Table1[[#This Row],[Hours Committed]]-Table1[[#This Row],[Hours Delivered]] -> 38.24 | E15: =SUM($D$15:D15) -> 38.24 | F15: =Table1[[#This Row],[Mo Gap]]/Table1[[#This Row],[Hours Committed]] -> 0.2067027027 | I15: * | J15: PS Hours Delivered: Time Tracking driven (Entered by CSM)
A16: 2012-04-01 | B16: 377 | C16: 146.78 | D16: =Table1[[#This Row],[Hours Committed]]-Table1[[#This Row],[Hours Delivered]] -> 230.22 | E16: =SUM($D$15:D16) -> 268.46 | F16: =Table1[[#This Row],[Mo Gap]]/Table1[[#This Row],[Hours Committed]] -> 0.61066313 | I16: * | J16: PS Gap Opening: The Diff between PS Sold / PS Delivered per Month
A17: 2012-05-01 | B17: 293.75 | C17: 155.71 | D17: =Table1[[#This Row],[Hours Committed]]-Table1[[#This Row],[Hours Delivered]] -> 138.04 | E17: =SUM($D$15:D17) -> 406.5 | F17: =Table1[[#This Row],[Mo Gap]]/Table1[[#This Row],[Hours Committed]] -> 0.4699234043 | I17: * | J17: Summary Table: Gathers inputs from the tables above
A18: 2012-06-01 | B18: 385.25 | C18: 196.95 | D18: =Table1[[#This Row],[Hours Committed]]-Table1[[#This Row],[Hours Delivered]] -> 188.3 | E18: =SUM($D$15:D18) -> 594.8 | F18: =Table1[[#This Row],[Mo Gap]]/Table1[[#This Row],[Hours Committed]] -> 0.4887735237
A19: 2012-07-01 | B19: 487.5 | C19: 230.48 | D19: =Table1[[#This Row],[Hours Committed]]-Table1[[#This Row],[Hours Delivered]] -> 257.02 | E19: =SUM($D$15:D19) -> 851.82 | F19: =Table1[[#This Row],[Mo Gap]]/Table1[[#This Row],[Hours Committed]] -> 0.5272205128 | I19: Last Refresh | J19: =NOW() -> 2012-08-09T17:36:38.150
A20: 2012-08-01 | B20: 79.4 | C20: 56.9 | D20: =Table1[[#This Row],[Hours Committed]]-Table1[[#This Row],[Hours Delivered]] -> 22.5 | E20: =SUM($D$15:D20) -> 874.32 | F20: =Table1[[#This Row],[Mo Gap]]/Table1[[#This Row],[Hours Committed]] -> 0.2833753149
A21: Total | B21: =SUBTOTAL(109,Table1[Hours Committed]) -> 1807.9 | C21: =SUBTOTAL(109,Table1[Hours Delivered]) -> 933.58 | D21: =SUBTOTAL(109,Table1[Mo Gap]) -> 874.32 | E21: =SUBTOTAL(104,Table1[Cumulative Gap]) -> 874.32 | F21: =Table1[[#Totals],[Mo Gap]]/Table1[[#Totals],[Hours Committed]] -> 0.4836108192
A43: Region | B43: (All) | E43: Project Type | F43: (Multiple Items)
A44: Created On | B44: (All) | E44: Reported Date | F44: (All)
A45: PS Hours Committed Per CSM | E45: PS Hours Delivered Per CSM | J45: PS Gap Opening Per CSM
A46: Row Labels | B46: Sum of Num Hours | C46: Sum of Sold Price | E46: Row Labels | F46: Sum of Duration | G46: Sum of Recognition | H46: Avg. Rate | J46: CSM | K46: Gap | L46: FTE | M46: Spare | N46: Velocity
A47: Alex Gorman | B47: 270.15 | C47: 36067 | E47: Alex Gorman | F47: 126.58 | G47: 14693.305 | H47: =IFERROR(G47/F47, 0) -> 116.0791989 | J47: =E47 -> Alex Gorman | K47: =B47-F47 -> 143.57 | L47: =Table24[[#This Row],[Gap]]/176 -> 0.8157386364 | M47: =C47-G47 -> 21373.695 | N47: =IFERROR(F47/B47,"") -> 0.4685545068
A48: David Goulden | B48: 103.5 | C48: 15400 | E48: David Goulden | F48: 91.25 | G48: 13330.8028 | H48: =IFERROR(G48/F48, 0) -> 146.0909896 | J48: David Goulden | K48: 12.25 | L48: =Table24[[#This Row],[Gap]]/176 -> 0.06960227273 | M48: 2069.1972 | N48: 0.8816425121
A49: Eran Fishov | B49: 260 | C49: 35755 | E49: Eran Fishov | F49: 101.6 | G49: 12007.4 | H49: 118.1830709 | J49: Eran Fishov | K49: 158.4 | L49: =Table24[[#This Row],[Gap]]/176 -> 0.9 | M49: 23747.6 | N49: 0.3907692308
A50: Evgeni Haikin | B50: 70 | C50: 7320 | E50: Evgeni Haikin | F50: 40 | G50: 3988 | H50: 99.7 | J50: Evgeni Haikin | K50: 30 | L50: =Table24[[#This Row],[Gap]]/176 -> 0.1704545455 | M50: 3332 | N50: 0.5714285714
A51: G.I.Teh | B51: 135 | C51: 17850 | E51: G.I.Teh | F51: 95 | G51: 8282.16 | H51: 87.18063158 | J51: G.I.Teh | K51: 40 | L51: =Table24[[#This Row],[Gap]]/176 -> 0.2272727273 | M51: 9567.84 | N51: 0.7037037037
A52: Josh Santos | B52: 98 | C52: 12150 | E52: Josh Santos | F52: 52 | G52: 5697.28 | H52: 109.5630769 | J52: Josh Santos | K52: 46 | L52: =Table24[[#This Row],[Gap]]/176 -> 0.2613636364 | M52: 6452.72 | N52: 0.5306122449
A53: Noam Sayada | B53: 84 | C53: 12700 | E53: Noam Sayada | F53: 19 | G53: 2930 | H53: 154.2105263 | J53: Noam Sayada | K53: 65 | L53: =Table24[[#This Row],[Gap]]/176 -> 0.3693181818 | M53: 9770 | N53: 0.2261904762
A54: Patrick Smith | B54: 215 | C54: 25433 | E54: Patrick Smith | F54: 45.75 | G54: 4428.965 | H54: 96.80797814 | J54: Patrick Smith | K54: 169.25 | L54: =Table24[[#This Row],[Gap]]/176 -> 0.9616477273 | M54: 21004.035 | N54: 0.2127906977
A55: Rami Cohen | B55: 20 | C55: 2500 | E55: Rami Cohen | F55: 64.5 | G55: 1833.33 | H55: 28.42372093 | J55: Rami Cohen | K55: -44.5 | L55: =Table24[[#This Row],[Gap]]/176 -> -0.2528409091 | M55: 666.67 | N55: 3.225
A56: Rob Sidhu | B56: 85 | C56: 12635 | E56: Rob Sidhu | F56: 27 | G56: 4095.89 | H56: 151.6996296 | J56: Rob Sidhu | K56: 58 | L56: =Table24[[#This Row],[Gap]]/176 -> 0.3295454545 | M56: 8539.11 | N56: =IFERROR(F56/B56,"") -> 0.3176470588
A57: Roni Feldsher | B57: 212 | C57: 29258 | E57: Roni Feldsher | F57: 76.3 | G57: 7481.5 | H57: 98.05373526 | J57: Roni Feldsher | K57: 135.7 | L57: =Table24[[#This Row],[Gap]]/176 -> 0.7710227273 | M57: 21776.5 | N57: 0.3599056604
A58: Tal Noga | B58: 239 | C58: 19850 | E58: Tal Noga | F58: 193.1 | G58: 7995.2594 | H58: 41.40476126 | J58: Tal Noga | K58: 45.9 | L58: =Table24[[#This Row],[Gap]]/176 -> 0.2607954545 | M58: 11854.7406 | N58: 0.8079497908
A59: Jonah Kadish | B59: 16.25 | C59: 800 | E59: Jonah Kadish | F59: 1.5 | G59: 240 | H59: 160 | J59: Jonah Kadish | K59: 14.75 | L59: =Table24[[#This Row],[Gap]]/176 -> 0.08380681818 | M59: 560 | N59: 0.09230769231
A60: Grand Total | B60: 1807.9 | C60: 227718 | E60: Grand Total | F60: 933.58 | G60: 87003.8922 | H60: 93.19382613 | J60: Grand Total | K60: =SUBTOTAL(109,Table24[Gap]) -> 874.32 | L60: =SUBTOTAL(109,Table24[FTE]) -> 4.967727273 | M60: =SUBTOTAL(109,Table24[Spare]) -> 140714.1078 | N60: =SUBTOTAL(101,Table24[Velocity]) -> 0.6760386266

Sheet TT Dash 1

Sheet TT Dash 2
A1: Projects Worked On (Selected Period)
B2: Column Labels
A3: Row Labels | C3: USA | D3: EMEA | E3: ROW | F3: Grand Total
A5: Orbit.uk
A6: Qoveo - 8h 1000$
A7: Bezeq-Int
A8: Flying Cargo Training - 5 hours
A9: Binding Site
A10: Indiana -Department of Child Services - 6h PS
A11: TechProse - 40h PS
A12: Lincoln Financial Group - 18h PS
A13: Kata
A14: Redhotminute
A15: College of Management
A16: MIG
A17: Kaltura
A18: Bazaarvoice Unlimited Hours
A19: Sondrel/Tier2/10h
A20: UnitedHealthcareNon-Billable Committed Hours
A21: JTS Onsite Training (in US office)
A22: Solazyme, Inc.Tier3
A23: Pristine Sun LLC Fixed 1 Hour Excel Report
A24: Crow Wing County Fixed 3 Hours
A25: Nexenta Systems - 1 Non-Billable Committed Hour
A26: PlatformOne - 2 Non-Billable Committed Hours
A27: PureDriven Tier1
A28: IOMEDIA Fixed Hours
A29: The Competition Authority Tier3
A30: Total Systems Development, Inc. Non-Billable Committed Hours
A31: EMD Serono Project Management Office Fixed Hours
A32: Edifice Information Management - 2 Non-Billable Committed Hour | G32: Sum of Duration | H32: Column Labels
A33: Aetna Non-Billable 3 Committed Hours | G33: Row Labels | H33: Grand Total
A34: Net Translators Implementation Program | G34: Grand Total
A35: International Business Systems Large
A36: Block Solutions Tier2
A37: Sony PlayStation PDIT:Large Package
A38: ADAC-ICS Excel Report (3h)
A39: Kata Vitec 13 h PS
A40: Aetna Consulting Small
A41: IO Media 10 h PS
A42: Heritage ArchitectureNon-Billable Committed Hours
A43: Tessera Global Services, Inc. Tier1
A44: Neenah Paper QS
A45: Simthetiq
A46: movento Schweiz AG:Medium Package
A47: OnStar EPM 2 h PS
A48: Envisiontel 3 h PS
A49: Medium QuickStart Professional Services -- Trinet
A50: Lattice Engines 1 day on site workshop
A51: Brainshark 1 h PS
A52: Capture Studio 2 h PS
A53: Gems Sensors and Controls 1 h PS
A54: TOR Excel Add-in Issue-Customer-Contact Report
A55: 511IT-Tactical:Small Package
A56: Brisbane Marketing Pty Ltd 6 h PS
A57: Molecular Imaging, Inc 3 h PS
A58: LTCP 1 h PS
A59: _ Fixed Hours (Arbor)
A60: Musician Institute 6 h PS
A61: Frito-Lay 3 h PS
A62: Strauss Water
A63: Wind River 5 h PS
A64: HealthTrust Purchasing Group:Large Package
A65: Joan Mitchell FoundationTP:Small Package
A66: Marketo - Professional Services Hours
A67: Affero 3 h PS
A68: BPL Global Medium
A69: HP Training Large
A70: Memorial Family of Services Large
A71: Defran Systems 1 h PS
A72: Affinity Solutions:Medium Package
A73: DPR Construction:Small Package
A74: Echo Global:Small Package
A75: Lexi-Comp Inc. 1 h PS
A76: Buxton Company 5 h PS
A77: FulCircle 1 h PS
A78: Soutthern Investments Pvt Ltd:Medium Package
A79: Eurotech Master 10 h PS
A80: Capital One Advisers Sp. z o.o. Tier3
A81: ADVA Optical Networking:Large Package
A82: Brainshark:Small Package
A83: Afinium Tier 2 QS
A84: Artemis
A85: Wijs 6 days on site
A86: School Improvement Network:Medium Package
A87: mindSHIFT 1 h PS
A88: Benefit Express:Medium Package
A89: Adobe:Medium Package
A90: Gard:Small Package
A91: Certain Software, Inc. 3 h PS
A92: KL Communications:Small Package
A93: ELC Online - - 58 h PS
A94: MyThings
A95: TechProse 10 h PS
A96: Agilent:Small Package
A97: VCE LLC 3 h PS
A98: Leadership S&D Q&A .75h
A99: Wijs 50 h PS
A100: Argus Group 1 h PS
A101: UNK project 20 h PS
A102: Bonnier - Television Group 1 h PS
A103: תדיראן טלקום שרותי תקשורת בישראל 5 h PS
A104: Crunchy Logistics 10 h PS
A105: SourceLink CI TT Excel Report
A106: Veracity Engineering - 24 hour QS
A107: Chicago Cubs Baseball Club, LLC 3 h PS
A108: Pristine Sun LLC 3 h PS
A109: FireRocket Concepts:Small Package
A110: HMS - 35h Success Package
A111: Fujitsu GBG GPMO 12 h PS
A112: Division of IT 3 h PS
A113: Unleashed Online Marketing 3 h PS
A114: BN Industries:Package Small Package
A115: Argus Group:Package Medium Package
A116: Echopass 15 h PS
A117: QTS:Package Large Package
A118: Mace Group:Medium Package
A119: TEMIS:Package Medium Package
A120: Boston Scientific Bay Area:Package Large Package
A121: Fourier Education systems:Package Small Package
A122: BETTERPLACE62:Package Large Package
A123: SHL:Package Small Package
A124: ARS Franche-Comté:Package Small Package
A125: PlayNetwork:Package Large Package
A126: OECD OCDE:Package Medium Package
A127: Websense: 1.5h PS Excel Add-in
A128: Non-Billable
A129: Protean Design Group:Package Medium Package
A130: Billable
A131: School District of Philadelphia 1h PS
A132: Non-Billable
A133: ContinuousHealth:Package Small Package
A134: Billable
A135: GETECH: 2h PS
A136: Billable
A137: Gems Sensors and Controls:Package Medium Package
A138: Billable
A139: Emagine: 1h PS
A140: Non-Billable
A141: QUALITY HEALTH STRATEGIES - PROJECT MANAGEMENT OFFICE SYSTEM 22 h PS
A142: Billable
A143: MOSAIC: 2h PS
A144: Non-Billable
A145: Marine Harvest:Package Small Package
A146: Billable
A147: CDPHE 4 h PS
A148: Non-Billable
A149: Clydeco: QS Package Large
A150: Billable
A151: Binding Site: QS Package Small
A152: Billable
A153: íncipy, s.a. 5 h PS
A154: Billable
A155: HP: QS Package Large
A156: Billable
A157: Mosaic Consulting Group: QS Package Medium
A158: Billable
A159: WayCarbon: 1h PS
A160: Non-Billable
A161: Twig:Package Medium Package
A162: Billable
A163: Market Fever Pty Ltd:Package Small Package
A164: Billable
A165: NCS: 1h PS
A166: Non-Billable
A167: ASCD:Package Large Package
A168: Billable
A169: ITW: QS Package Medium
A170: Billable
A171: Encore Capital Group: 40h PS
A172: Billable
A173: STAR Financial: QS Package Medium
A174: Billable
A175: Ness: 120h PS
A176: Billable
A177: Vinsolutions 8h PS - On-Site
A178: Billable
A179: SIGMA Groupe: 40h PS
A180: Billable
A181: VB Expertise QS S
A182: Billable
A183: NCS: 2h PS
A184: Non-Billable
A185: Institute of Internal Auditors: QS Package Small
A186: Billable
A187: Autodesk: QS Package Small
A188: Billable
A189: Box Client Services: QS Package Large
A190: Billable
A191: Nerd Whisperers: QS Package Small
A192: Billable
A193: TE Connectivity 6 h PS
A194: Billable
A195: Industrial Design Competence Center
A196: Non-Billable
A197: NCS: 1.4h PS
A198: Non-Billable
A199: WESTERN UNION BUSINESS SOLUTIONS13:Large Package
A200: Billable
A201: Grand Total

Sheet Package Type
A3: Row Labels | B3: Sum of Duration
A4: Fixed Hours
A5: Non-Billable | B5: 125.26
A6: Billable | B6: 377.26
A7: Package Medium
A8: Non-Billable | B8: 8
A9: Billable | B9: 153.14
A10: Package Small
A11: Billable | B11: 90.26
A12: Package Large
A13: Billable | B13: 179.66
A14: Grand Total | B14: 933.58

Sheet Users Total Time
A1: Project Type | B1: (Multiple Items)
A3: Row Labels | B3: Sum of Duration
A4: David Goulden | B4: 91.25
A5: Rami Cohen | B5: 64.5
A6: Roni Feldsher | B6: 76.3
A7: Tal Noga | B7: 193.1
A8: Josh Santos | B8: 52
A9: Eran Fishov | B9: 101.6
A10: Alex Gorman | B10: 126.58
A11: G.I.Teh | B11: 95
A12: Rob Sidhu | B12: 27
A13: Patrick Smith | B13: 45.75
A14: Evgeni Haikin | B14: 40
A15: Noam Sayada | B15: 19
A16: Jonah Kadish | B16: 1.5
A17: Grand Total | B17: 933.58
A23: Project Type | B23: (Multiple Items)
A25: Sum of Duration | B25: Column Labels
A26: Row Labels | B26: Billable | C26: Non-Billable | D26: Grand Total
A27: David Goulden | B27: 91.25 | D27: 91.25
A28: Eran Fishov | B28: 99.6 | C28: 2 | D28: 101.6
A29: Josh Santos | B29: 46.5 | C29: 5.5 | D29: 52
A30: Rami Cohen | B30: 40.5 | C30: 24 | D30: 64.5
A31: Roni Feldsher | B31: 72.3 | C31: 4 | D31: 76.3
A32: Tal Noga | B32: 144.08 | C32: 49.02 | D32: 193.1
A33: Alex Gorman | B33: 103.34 | C33: 23.24 | D33: 126.58
A34: G.I.Teh | B34: 90.5 | C34: 4.5 | D34: 95
A35: Rob Sidhu | B35: 27 | D35: 27
A36: Patrick Smith | B36: 27.75 | C36: 18 | D36: 45.75
A37: Evgeni Haikin | B37: 37 | C37: 3 | D37: 40
A38: Noam Sayada | B38: 19 | D38: 19
A39: Jonah Kadish | B39: 1.5 | D39: 1.5
A40: Grand Total | B40: 800.32 | C40: 133.26 | D40: 933.58

Sheet Committed
A1: Created On | B1: Num Hours | C1: Sold Price | D1: CSM | E1: Project | F1: Package | G1: PO Number | H1: Region | I1: Remaining Effort
A2: =IF('CLZ Pr'!C2 = "", "", 'CLZ Pr'!C2) -> 2012-03-01 | B2: ='CLZ Pr'!O2 -> 5 | C2: ='CLZ Pr'!H2 -> 800 | D2: ='CLZ Pr'!W2 -> Alex Gorman | E2: ='CLZ Pr'!B2 -> Solazyme, Inc.Tier3 | F2: ='CLZ Pr'!N2 -> Package Small | G2: ='CLZ Pr'!X2 -> 0 | H2: ='CLZ Pr'!E2 -> USA | I2: ='CLZ Pr'!U2 -> 4
A3: =IF('CLZ Pr'!C3 = "", "", 'CLZ Pr'!C3) -> 2012-03-01 | B3: ='CLZ Pr'!O3 -> 2 | C3: ='CLZ Pr'!H3 -> 0 | D3: ='CLZ Pr'!W3 -> G.I.Teh | E3: ='CLZ Pr'!B3 -> Heritage ArchitectureNon-Billable Committed Hours | F3: ='CLZ Pr'!N3 -> Fixed Hours | G3: ='CLZ Pr'!X3 -> 0 | H3: ='CLZ Pr'!E3 -> USA | I3: ='CLZ Pr'!U3 -> 0
A4: =IF('CLZ Pr'!C4 = "", "", 'CLZ Pr'!C4) -> 2012-03-06 | B4: ='CLZ Pr'!O4 -> 6 | C4: ='CLZ Pr'!H4 -> 0 | D4: ='CLZ Pr'!W4 -> Roni Feldsher | E4: ='CLZ Pr'!B4 -> UnitedHealthcareNon-Billable Committed Hours | F4: ='CLZ Pr'!N4 -> Fixed Hours | G4: ='CLZ Pr'!X4 -> 0 | H4: ='CLZ Pr'!E4 -> USA | I4: ='CLZ Pr'!U4 -> 6.42
A5: =IF('CLZ Pr'!C5 = "", "", 'CLZ Pr'!C5) -> 2012-03-08 | B5: ='CLZ Pr'!O5 -> 1.5 | C5: ='CLZ Pr'!H5 -> 167 | D5: ='CLZ Pr'!W5 -> Alex Gorman | E5: ='CLZ Pr'!B5 -> Pristine Sun LLC Fixed 1 Hour Excel Report | F5: ='CLZ Pr'!N5 -> Fixed Hours | G5: ='CLZ Pr'!X5 -> 0 | H5: ='CLZ Pr'!E5 -> USA | I5: ='CLZ Pr'!U5 -> 0
A6: =IF('CLZ Pr'!C6 = "", "", 'CLZ Pr'!C6) -> 2012-03-08 | B6: ='CLZ Pr'!O6 -> 8 | C6: ='CLZ Pr'!H6 -> 1000 | D6: ='CLZ Pr'!W6 -> Rami Cohen | E6: ='CLZ Pr'!B6 -> IOMEDIA Fixed Hours | F6: ='CLZ Pr'!N6 -> Fixed Hours | G6: ='CLZ Pr'!X6 -> 0 | H6: ='CLZ Pr'!E6 -> USA | I6: ='CLZ Pr'!U6 -> 0
A7: =IF('CLZ Pr'!C7 = "", "", 'CLZ Pr'!C7) -> 2012-03-11 | B7: ='CLZ Pr'!O7 -> 5 | C7: ='CLZ Pr'!H7 -> 800 | D7: ='CLZ Pr'!W7 -> Evgeni Haikin | E7: ='CLZ Pr'!B7 -> Capital One Advisers Sp. z o.o. Tier3 | F7: ='CLZ Pr'!N7 -> Package Small | G7: ='CLZ Pr'!X7 -> 0 | H7: ='CLZ Pr'!E7 -> EMEA | I7: ='CLZ Pr'!U7 -> 0
A8: =IF('CLZ Pr'!C8 = "", "", 'CLZ Pr'!C8) -> 2012-03-11 | B8: ='CLZ Pr'!O8 -> 5.5 | C8: ='CLZ Pr'!H8 -> 800 | D8: ='CLZ Pr'!W8 -> David Goulden | E8: ='CLZ Pr'!B8 -> The Competition Authority Tier3 | F8: ='CLZ Pr'!N8 -> Package Small | G8: ='CLZ Pr'!X8 -> 0 | H8: ='CLZ Pr'!E8 -> EMEA | I8: ='CLZ Pr'!U8 -> 2.5
A9: =IF('CLZ Pr'!C9 = "", "", 'CLZ Pr'!C9) -> 2012-03-12 | B9: ='CLZ Pr'!O9 -> 1 | C9: ='CLZ Pr'!H9 -> 0 | D9: ='CLZ Pr'!W9 -> Alex Gorman | E9: ='CLZ Pr'!B9 -> Nexenta Systems - 1 Non-Billable Committed Hour | F9: ='CLZ Pr'!N9 -> Fixed Hours | G9: ='CLZ Pr'!X9 -> 0 | H9: ='CLZ Pr'!E9 -> USA | I9: ='CLZ Pr'!U9 -> 0
A10: =IF('CLZ Pr'!C10 = "", "", 'CLZ Pr'!C10) -> 2012-03-13 | B10: ='CLZ Pr'!O10 -> 24 | C10: ='CLZ Pr'!H10 -> 3500 | D10: ='CLZ Pr'!W10 -> Alex Gorman | E10: ='CLZ Pr'!B10 -> HP Training Large | F10: ='CLZ Pr'!N10 -> Package Large | G10: ='CLZ Pr'!X10 -> 0 | H10: ='CLZ Pr'!E10 -> USA | I10: ='CLZ Pr'!U10 -> 9.08
A11: =IF('CLZ Pr'!C11 = "", "", 'CLZ Pr'!C11) -> 2012-03-13 | B11: ='CLZ Pr'!O11 -> 10 | C11: ='CLZ Pr'!H11 -> 0 | D11: ='CLZ Pr'!W11 -> Josh Santos | E11: ='CLZ Pr'!B11 -> Marketo - Professional Services Hours | F11: ='CLZ Pr'!N11 -> Fixed Hours | G11: ='CLZ Pr'!X11 -> 0 | H11: ='CLZ Pr'!E11 -> USA | I11: ='CLZ Pr'!U11 -> 8
A12: =IF('CLZ Pr'!C12 = "", "", 'CLZ Pr'!C12) -> 2012-03-14 | B12: ='CLZ Pr'!O12 -> 1 | C12: ='CLZ Pr'!H12 -> 167 | D12: ='CLZ Pr'!W12 -> Rob Sidhu | E12: ='CLZ Pr'!B12 -> _ Fixed Hours (Arbor) | F12: ='CLZ Pr'!N12 -> Fixed Hours | G12: ='CLZ Pr'!X12 -> 0 | H12: ='CLZ Pr'!E12 -> USA | I12: ='CLZ Pr'!U12 -> 0
A13: =IF('CLZ Pr'!C13 = "", "", 'CLZ Pr'!C13) -> 2012-03-14 | B13: ='CLZ Pr'!O13 -> 2 | C13: ='CLZ Pr'!H13 -> 0 | D13: ='CLZ Pr'!W13 -> Alex Gorman | E13: ='CLZ Pr'!B13 -> Edifice Information Management - 2 Non-Billable Committed Hour | F13: ='CLZ Pr'!N13 -> Fixed Hours | G13: ='CLZ Pr'!X13 -> 0 | H13: ='CLZ Pr'!E13 -> USA | I13: ='CLZ Pr'!U13 -> 0
A14: =IF('CLZ Pr'!C14 = "", "", 'CLZ Pr'!C14) -> 2012-03-14 | B14: ='CLZ Pr'!O14 -> 2 | C14: ='CLZ Pr'!H14 -> 0 | D14: ='CLZ Pr'!W14 -> Alex Gorman | E14: ='CLZ Pr'!B14 -> PlatformOne - 2 Non-Billable Committed Hours | F14: ='CLZ Pr'!N14 -> Fixed Hours | G14: ='CLZ Pr'!X14 -> 0 | H14: ='CLZ Pr'!E14 -> USA | I14: ='CLZ Pr'!U14 -> 0.58
A15: =IF('CLZ Pr'!C15 = "", "", 'CLZ Pr'!C15) -> 2012-03-16 | B15: ='CLZ Pr'!O15 -> 10 | C15: ='CLZ Pr'!H15 -> 1500 | D15: ='CLZ Pr'!W15 -> David Goulden | E15: ='CLZ Pr'!B15 -> Block Solutions Tier2 | F15: ='CLZ Pr'!N15 -> Package Medium | G15: ='CLZ Pr'!X15 -> N-X-45021 | H15: ='CLZ Pr'!E15 -> EMEA | I15: ='CLZ Pr'!U15 -> 0
A16: =IF('CLZ Pr'!C16 = "", "", 'CLZ Pr'!C16) -> 2012-03-16 | B16: ='CLZ Pr'!O16 -> 24 | C16: ='CLZ Pr'!H16 -> 3500 | D16: ='CLZ Pr'!W16 -> Josh Santos | E16: ='CLZ Pr'!B16 -> PureDriven Tier1 | F16: ='CLZ Pr'!N16 -> Package Large | G16: ='CLZ Pr'!X16 -> 0 | H16: ='CLZ Pr'!E16 -> USA | I16: ='CLZ Pr'!U16 -> 9
A17: =IF('CLZ Pr'!C17 = "", "", 'CLZ Pr'!C17) -> 2012-03-20 | B17: ='CLZ Pr'!O17 -> 10 | C17: ='CLZ Pr'!H17 -> 1000 | D17: ='CLZ Pr'!W17 -> Alex Gorman | E17: ='CLZ Pr'!B17 -> BPL Global Medium | F17: ='CLZ Pr'!N17 -> Package Medium | G17: ='CLZ Pr'!X17 -> 0 | H17: ='CLZ Pr'!E17 -> USA | I17: ='CLZ Pr'!U17 -> 3
A18: =IF('CLZ Pr'!C18 = "", "", 'CLZ Pr'!C18) -> 2012-03-22 | B18: ='CLZ Pr'!O18 -> 1 | C18: ='CLZ Pr'!H18 -> 0 | D18: ='CLZ Pr'!W18 -> Alex Gorman | E18: ='CLZ Pr'!B18 -> Total Systems Development, Inc. Non-Billable Committed Hours | F18: ='CLZ Pr'!N18 -> Fixed Hours | G18: ='CLZ Pr'!X18 -> 0 | H18: ='CLZ Pr'!E18 -> USA | I18: ='CLZ Pr'!U18 -> 0
A19: =IF('CLZ Pr'!C19 = "", "", 'CLZ Pr'!C19) -> 2012-03-23 | B19: ='CLZ Pr'!O19 -> 10 | C19: ='CLZ Pr'!H19 -> 1500 | D19: ='CLZ Pr'!W19 -> Evgeni Haikin | E19: ='CLZ Pr'!B19 -> OECD OCDE Tier2 | F19: ='CLZ Pr'!N19 -> Package Medium | G19: ='CLZ Pr'!X19 -> 0 | H19: ='CLZ Pr'!E19 -> EMEA | I19: ='CLZ Pr'!U19 -> 10
A20: =IF('CLZ Pr'!C20 = "", "", 'CLZ Pr'!C20) -> 2012-03-26 | B20: ='CLZ Pr'!O20 -> 3 | C20: ='CLZ Pr'!H20 -> 500 | D20: ='CLZ Pr'!W20 -> Josh Santos | E20: ='CLZ Pr'!B20 -> EMD Serono Project Management Office Fixed Hours | F20: ='CLZ Pr'!N20 -> Fixed Hours | G20: ='CLZ Pr'!X20 -> 0 | H20: ='CLZ Pr'!E20 -> USA | I20: ='CLZ Pr'!U20 -> 0
A21: =IF('CLZ Pr'!C21 = "", "", 'CLZ Pr'!C21) -> 2012-03-27 | B21: ='CLZ Pr'!O21 -> 3 | C21: ='CLZ Pr'!H21 -> 500 | D21: ='CLZ Pr'!W21 -> David Goulden | E21: ='CLZ Pr'!B21 -> ADAC-ICS Excel Report (3h) | F21: ='CLZ Pr'!N21 -> Fixed Hours | G21: ='CLZ Pr'!X21 -> 0 | H21: ='CLZ Pr'!E21 -> EMEA | I21: ='CLZ Pr'!U21 -> 0
A22: =IF('CLZ Pr'!C22 = "", "", 'CLZ Pr'!C22) -> 2012-03-28 | B22: ='CLZ Pr'!O22 -> 24 | C22: ='CLZ Pr'!H22 -> 3500 | D22: ='CLZ Pr'!W22 -> G.I.Teh | E22: ='CLZ Pr'!B22 -> Tessera Global Services, Inc. Tier1 | F22: ='CLZ Pr'!N22 -> Package Large | G22: ='CLZ Pr'!X22 -> 0 | H22: ='CLZ Pr'!E22 -> USA | I22: ='CLZ Pr'!U22 -> 4
A23: =IF('CLZ Pr'!C23 = "", "", 'CLZ Pr'!C23) -> 2012-03-28 | B23: ='CLZ Pr'!O23 -> 24 | C23: ='CLZ Pr'!H23 -> 3500 | D23: ='CLZ Pr'!W23 -> Alex Gorman | E23: ='CLZ Pr'!B23 -> Memorial Family of Services Large | F23: ='CLZ Pr'!N23 -> Package Large | G23: ='CLZ Pr'!X23 -> 0 | H23: ='CLZ Pr'!E23 -> USA | I23: ='CLZ Pr'!U23 -> 21
A24: =IF('CLZ Pr'!C24 = "", "", 'CLZ Pr'!C24) -> 2012-03-28 | B24: ='CLZ Pr'!O24 -> 3 | C24: ='CLZ Pr'!H24 -> 0 | D24: ='CLZ Pr'!W24 -> Alex Gorman | E24: ='CLZ Pr'!B24 -> Aetna Non-Billable 3 Committed Hours | F24: ='CLZ Pr'!N24 -> Fixed Hours | G24: ='CLZ Pr'!X24 -> 0 | H24: ='CLZ Pr'!E24 -> USA | I24: ='CLZ Pr'!U24 -> 2
A25: =IF('CLZ Pr'!C25 = "", "", 'CLZ Pr'!C25) -> 2012-04-02 | B25: ='CLZ Pr'!O25 -> 120 | C25: ='CLZ Pr'!H25 -> 8500 | D25: ='CLZ Pr'!W25 -> Tal Noga | E25: ='CLZ Pr'!B25 -> Net Translators Implementation Program | F25: ='CLZ Pr'!N25 -> Fixed Hours | G25: ='CLZ Pr'!X25 -> 0 | H25: ='CLZ Pr'!E25 -> EMEA | I25: ='CLZ Pr'!U25 -> 59.58
A26: =IF('CLZ Pr'!C26 = "", "", 'CLZ Pr'!C26) -> 2012-04-03 | B26: ='CLZ Pr'!O26 -> 5 | C26: ='CLZ Pr'!H26 -> 800 | D26: ='CLZ Pr'!W26 -> Alex Gorman | E26: ='CLZ Pr'!B26 -> Aetna Consulting Small | F26: ='CLZ Pr'!N26 -> Package Small | G26: ='CLZ Pr'!X26 -> 0 | H26: ='CLZ Pr'!E26 -> USA | I26: ='CLZ Pr'!U26 -> 2
A27: =IF('CLZ Pr'!C27 = "", "", 'CLZ Pr'!C27) -> 2012-04-03 | B27: ='CLZ Pr'!O27 -> 24 | C27: ='CLZ Pr'!H27 -> 3500 | D27: ='CLZ Pr'!W27 -> Alex Gorman | E27: ='CLZ Pr'!B27 -> International Business Systems Large | F27: ='CLZ Pr'!N27 -> Package Large | G27: ='CLZ Pr'!X27 -> 0 | H27: ='CLZ Pr'!E27 -> USA | I27: ='CLZ Pr'!U27 -> 22
A28: =IF('CLZ Pr'!C28 = "", "", 'CLZ Pr'!C28) -> 2012-04-04 | B28: ='CLZ Pr'!O28 -> 24 | C28: ='CLZ Pr'!H28 -> 3500 | D28: ='CLZ Pr'!W28 -> Roni Feldsher | E28: ='CLZ Pr'!B28 -> Sony PlayStation PDIT:Large Package | F28: ='CLZ Pr'!N28 -> Package Large | G28: ='CLZ Pr'!X28 -> 0 | H28: ='CLZ Pr'!E28 -> USA | I28: ='CLZ Pr'!U28 -> 5
A29: =IF('CLZ Pr'!C29 = "", "", 'CLZ Pr'!C29) -> 2012-04-05 | B29: ='CLZ Pr'!O29 -> 5 | C29: ='CLZ Pr'!H29 -> 800 | D29: ='CLZ Pr'!W29 -> G.I.Teh | E29: ='CLZ Pr'!B29 -> Neenah Paper QS | F29: ='CLZ Pr'!N29 -> Package Small | G29: ='CLZ Pr'!X29 -> 0 | H29: ='CLZ Pr'!E29 -> USA | I29: ='CLZ Pr'!U29 -> 3
A30: =IF('CLZ Pr'!C30 = "", "", 'CLZ Pr'!C30) -> 2012-04-05 | B30: ='CLZ Pr'!O30 -> 1 | C30: ='CLZ Pr'!H30 -> 0 | D30: ='CLZ Pr'!W30 -> G.I.Teh | E30: ='CLZ Pr'!B30 -> Simthetiq | F30: ='CLZ Pr'!N30 -> Fixed Hours | G30: ='CLZ Pr'!X30 -> 0 | H30: ='CLZ Pr'!E30 -> USA | I30: ='CLZ Pr'!U30 -> 0
A31: =IF('CLZ Pr'!C31 = "", "", 'CLZ Pr'!C31) -> 2012-04-13 | B31: ='CLZ Pr'!O31 -> 10 | C31: ='CLZ Pr'!H31 -> 1500 | D31: ='CLZ Pr'!W31 -> Roni Feldsher | E31: ='CLZ Pr'!B31 -> IO Media 10 h PS | F31: ='CLZ Pr'!N31 -> Fixed Hours | G31: ='CLZ Pr'!X31 -> 0 | H31: ='CLZ Pr'!E31 -> USA | I31: ='CLZ Pr'!U31 -> 0
A32: =IF('CLZ Pr'!C32 = "", "", 'CLZ Pr'!C32) -> 2012-04-16 | B32: ='CLZ Pr'!O32 -> 10 | C32: ='CLZ Pr'!H32 -> 1500 | D32: ='CLZ Pr'!W32 -> Eran Fishov | E32: ='CLZ Pr'!B32 -> movento Schweiz AG:Medium Package | F32: ='CLZ Pr'!N32 -> Package Medium | G32: ='CLZ Pr'!X32 -> 0 | H32: ='CLZ Pr'!E32 -> EMEA | I32: ='CLZ Pr'!U32 -> 4.7
A33: =IF('CLZ Pr'!C33 = "", "", 'CLZ Pr'!C33) -> 2012-04-16 | B33: ='CLZ Pr'!O33 -> 13 | C33: ='CLZ Pr'!H33 -> 1170 | D33: ='CLZ Pr'!W33 -> Eran Fishov | E33: ='CLZ Pr'!B33 -> Kata Vitec 13 h PS | F33: ='CLZ Pr'!N33 -> Fixed Hours | G33: ='CLZ Pr'!X33 -> 0 | H33: ='CLZ Pr'!E33 -> EMEA | I33: ='CLZ Pr'!U33 -> 9
A34: =IF('CLZ Pr'!C34 = "", "", 'CLZ Pr'!C34) -> 2012-04-16 | B34: ='CLZ Pr'!O34 -> 2 | C34: ='CLZ Pr'!H34 -> 0 | D34: ='CLZ Pr'!W34 -> Josh Santos | E34: ='CLZ Pr'!B34 -> OnStar EPM 2 h PS | F34: ='CLZ Pr'!N34 -> Fixed Hours | G34: ='CLZ Pr'!X34 -> 0 | H34: ='CLZ Pr'!E34 -> USA | I34: ='CLZ Pr'!U34 -> 0.5
A35: =IF('CLZ Pr'!C35 = "", "", 'CLZ Pr'!C35) -> 2012-04-16 | B35: ='CLZ Pr'!O35 -> 3 | C35: ='CLZ Pr'!H35 -> 500 | D35: ='CLZ Pr'!W35 -> Josh Santos | E35: ='CLZ Pr'!B35 -> Frito-Lay 3 h PS | F35: ='CLZ Pr'!N35 -> Fixed Hours | G35: ='CLZ Pr'!X35 -> 0 | H35: ='CLZ Pr'!E35 -> USA | I35: ='CLZ Pr'!U35 -> 2
A36: =IF('CLZ Pr'!C36 = "", "", 'CLZ Pr'!C36) -> 2012-04-16 | B36: ='CLZ Pr'!O36 -> 3 | C36: ='CLZ Pr'!H36 -> 500 | D36: ='CLZ Pr'!W36 -> Rob Sidhu | E36: ='CLZ Pr'!B36 -> Envisiontel 3 h PS | F36: ='CLZ Pr'!N36 -> Fixed Hours | G36: ='CLZ Pr'!X36 -> 0 | H36: ='CLZ Pr'!E36 -> USA | I36: ='CLZ Pr'!U36 -> 2
A37: =IF('CLZ Pr'!C37 = "", "", 'CLZ Pr'!C37) -> 2012-04-17 | B37: ='CLZ Pr'!O37 -> 6 | C37: ='CLZ Pr'!H37 -> 800 | D37: ='CLZ Pr'!W37 -> G.I.Teh | E37: ='CLZ Pr'!B37 -> FirstEnergy Nuclear:Small Package | F37: ='CLZ Pr'!N37 -> Package Small | G37: ='CLZ Pr'!X37 -> 0 | H37: ='CLZ Pr'!E37 -> USA | I37: ='CLZ Pr'!U37 -> 5
A38: =IF('CLZ Pr'!C38 = "", "", 'CLZ Pr'!C38) -> 2012-04-17 | B38: ='CLZ Pr'!O38 -> 8 | C38: ='CLZ Pr'!H38 -> 1000 | D38: ='CLZ Pr'!W38 -> Roni Feldsher | E38: ='CLZ Pr'!B38 -> Lattice Engines 1 day on site workshop | F38: ='CLZ Pr'!N38 -> Fixed Hours | G38: ='CLZ Pr'!X38 -> 0 | H38: ='CLZ Pr'!E38 -> USA | I38: ='CLZ Pr'!U38 -> 0
A39: =IF('CLZ Pr'!C39 = "", "", 'CLZ Pr'!C39) -> 2012-04-17 | B39: ='CLZ Pr'!O39 -> 11 | C39: ='CLZ Pr'!H39 -> 1500 | D39: ='CLZ Pr'!W39 -> Josh Santos | E39: ='CLZ Pr'!B39 -> Adobe:Medium Package | F39: ='CLZ Pr'!N39 -> Package Medium | G39: ='CLZ Pr'!X39 -> 0 | H39: ='CLZ Pr'!E39 -> USA | I39: ='CLZ Pr'!U39 -> 4
A40: =IF('CLZ Pr'!C40 = "", "", 'CLZ Pr'!C40) -> 2012-04-18 | B40: ='CLZ Pr'!O40 -> 5 | C40: ='CLZ Pr'!H40 -> 800 | D40: ='CLZ Pr'!W40 -> Rob Sidhu | E40: ='CLZ Pr'!B40 -> Joan Mitchell FoundationTP:Small Package | F40: ='CLZ Pr'!N40 -> Package Small | G40: ='CLZ Pr'!X40 -> 0 | H40: ='CLZ Pr'!E40 -> USA | I40: ='CLZ Pr'!U40 -> 2.5
A41: =IF('CLZ Pr'!C41 = "", "", 'CLZ Pr'!C41) -> 2012-04-18 | B41: ='CLZ Pr'!O41 -> 2 | C41: ='CLZ Pr'!H41 -> 334 | D41: ='CLZ Pr'!W41 -> Rob Sidhu | E41: ='CLZ Pr'!B41 -> Capture Studio 2 h PS | F41: ='CLZ Pr'!N41 -> Fixed Hours | G41: ='CLZ Pr'!X41 -> 0 | H41: ='CLZ Pr'!E41 -> USA | I41: ='CLZ Pr'!U41 -> 0
A42: =IF('CLZ Pr'!C42 = "", "", 'CLZ Pr'!C42) -> 2012-04-18 | B42: ='CLZ Pr'!O42 -> 5 | C42: ='CLZ Pr'!H42 -> 800 | D42: ='CLZ Pr'!W42 -> Alex Gorman | E42: ='CLZ Pr'!B42 -> 511IT-Tactical:Small Package | F42: ='CLZ Pr'!N42 -> Package Small | G42: ='CLZ Pr'!X42 -> 0 | H42: ='CLZ Pr'!E42 -> USA | I42: ='CLZ Pr'!U42 -> 1
A43: =IF('CLZ Pr'!C43 = "", "", 'CLZ Pr'!C43) -> 2012-04-18 | B43: ='CLZ Pr'!O43 -> 1 | C43: ='CLZ Pr'!H43 -> 167 | D43: ='CLZ Pr'!W43 -> Rob Sidhu | E43: ='CLZ Pr'!B43 -> Sigma Thermal 1 h PS | F43: ='CLZ Pr'!N43 -> Fixed Hours | G43: ='CLZ Pr'!X43 -> 0 | H43: ='CLZ Pr'!E43 -> USA | I43: ='CLZ Pr'!U43 -> 1
A44: =IF('CLZ Pr'!C44 = "", "", 'CLZ Pr'!C44) -> 2012-04-18 | B44: ='CLZ Pr'!O44 -> 1 | C44: ='CLZ Pr'!H44 -> 0 | D44: ='CLZ Pr'!W44 -> Alex Gorman | E44: ='CLZ Pr'!B44 -> Brainshark 1 h PS | F44: ='CLZ Pr'!N44 -> Fixed Hours | G44: ='CLZ Pr'!X44 -> 0 | H44: ='CLZ Pr'!E44 -> USA | I44: ='CLZ Pr'!U44 -> 0
A45: =IF('CLZ Pr'!C45 = "", "", 'CLZ Pr'!C45) -> 2012-04-18 | B45: ='CLZ Pr'!O45 -> 1 | C45: ='CLZ Pr'!H45 -> 0 | D45: ='CLZ Pr'!W45 -> Rob Sidhu | E45: ='CLZ Pr'!B45 -> Summit Imaging 1 h PS | F45: ='CLZ Pr'!N45 -> Fixed Hours | G45: ='CLZ Pr'!X45 -> 0 | H45: ='CLZ Pr'!E45 -> USA | I45: ='CLZ Pr'!U45 -> 1
A46: =IF('CLZ Pr'!C46 = "", "", 'CLZ Pr'!C46) -> 2012-04-19 | B46: ='CLZ Pr'!O46 -> 6 | C46: ='CLZ Pr'!H46 -> 800 | D46: ='CLZ Pr'!W46 -> Josh Santos | E46: ='CLZ Pr'!B46 -> DPR Construction:Small Package | F46: ='CLZ Pr'!N46 -> Package Medium | G46: ='CLZ Pr'!X46 -> 0 | H46: ='CLZ Pr'!E46 -> USA | I46: ='CLZ Pr'!U46 -> 0
A47: =IF('CLZ Pr'!C47 = "", "", 'CLZ Pr'!C47) -> 2012-04-19 | B47: ='CLZ Pr'!O47 -> 10 | C47: ='CLZ Pr'!H47 -> 0 | D47: ='CLZ Pr'!W47 -> Patrick Smith | E47: ='CLZ Pr'!B47 -> Medium QuickStart Professional Services -- Trinet | F47: ='CLZ Pr'!N47 -> Fixed Hours | G47: ='CLZ Pr'!X47 -> 0 | H47: ='CLZ Pr'!E47 -> USA | I47: ='CLZ Pr'!U47 -> 3
A48: =IF('CLZ Pr'!C48 = "", "", 'CLZ Pr'!C48) -> 2012-04-19 | B48: ='CLZ Pr'!O48 -> 1 | C48: ='CLZ Pr'!H48 -> 0 | D48: ='CLZ Pr'!W48 -> Alex Gorman | E48: ='CLZ Pr'!B48 -> Gems Sensors and Controls 1 h PS | F48: ='CLZ Pr'!N48 -> Fixed Hours | G48: ='CLZ Pr'!X48 -> 0 | H48: ='CLZ Pr'!E48 -> USA | I48: ='CLZ Pr'!U48 -> 0
A49: =IF('CLZ Pr'!C49 = "", "", 'CLZ Pr'!C49) -> 2012-04-20 | B49: ='CLZ Pr'!O49 -> 1 | C49: ='CLZ Pr'!H49 -> 0 | D49: ='CLZ Pr'!W49 -> Alex Gorman | E49: ='CLZ Pr'!B49 -> TOR Excel Add-in Issue-Customer-Contact Report | F49: ='CLZ Pr'!N49 -> Fixed Hours | G49: ='CLZ Pr'!X49 -> 0 | H49: ='CLZ Pr'!E49 -> USA | I49: ='CLZ Pr'!U49 -> 0
A50: =IF('CLZ Pr'!C50 = "", "", 'CLZ Pr'!C50) -> 2012-04-24 | B50: ='CLZ Pr'!O50 -> 6 | C50: ='CLZ Pr'!H50 -> 0 | D50: ='CLZ Pr'!W50 -> Patrick Smith | E50: ='CLZ Pr'!B50 -> Musician Institute 6 h PS | F50: ='CLZ Pr'!N50 -> Fixed Hours | G50: ='CLZ Pr'!X50 -> 0 | H50: ='CLZ Pr'!E50 -> USA | I50: ='CLZ Pr'!U50 -> 3.5
A51: =IF('CLZ Pr'!C51 = "", "", 'CLZ Pr'!C51) -> 2012-04-24 | B51: ='CLZ Pr'!O51 -> 10 | C51: ='CLZ Pr'!H51 -> 1500 | D51: ='CLZ Pr'!W51 -> Patrick Smith | E51: ='CLZ Pr'!B51 -> TriNet:Medium Package | F51: ='CLZ Pr'!N51 -> Package Medium | G51: ='CLZ Pr'!X51 -> 0 | H51: ='CLZ Pr'!E51 -> USA | I51: ='CLZ Pr'!U51 -> 10
A52: =IF('CLZ Pr'!C52 = "", "", 'CLZ Pr'!C52) -> 2012-04-24 | B52: ='CLZ Pr'!O52 -> 6 | C52: ='CLZ Pr'!H52 -> 1000 | D52: ='CLZ Pr'!W52 -> Patrick Smith | E52: ='CLZ Pr'!B52 -> Brisbane Marketing Pty Ltd 6 h PS | F52: ='CLZ Pr'!N52 -> Fixed Hours | G52: ='CLZ Pr'!X52 -> 0 | H52: ='CLZ Pr'!E52 -> USA | I52: ='CLZ Pr'!U52 -> 2
A53: =IF('CLZ Pr'!C53 = "", "", 'CLZ Pr'!C53) -> 2012-04-24 | B53: ='CLZ Pr'!O53 -> 5 | C53: ='CLZ Pr'!H53 -> 500 | D53: ='CLZ Pr'!W53 -> Patrick Smith | E53: ='CLZ Pr'!B53 -> Wind River 5 h PS | F53: ='CLZ Pr'!N53 -> Fixed Hours | G53: ='CLZ Pr'!X53 -> 0 | H53: ='CLZ Pr'!E53 -> USA | I53: ='CLZ Pr'!U53 -> 0
A54: =IF('CLZ Pr'!C54 = "", "", 'CLZ Pr'!C54) -> 2012-04-24 | B54: ='CLZ Pr'!O54 -> 3 | C54: ='CLZ Pr'!H54 -> 500 | D54: ='CLZ Pr'!W54 -> Patrick Smith | E54: ='CLZ Pr'!B54 -> Molecular Imaging, Inc 3 h PS | F54: ='CLZ Pr'!N54 -> Fixed Hours | G54: ='CLZ Pr'!X54 -> 0 | H54: ='CLZ Pr'!E54 -> USA | I54: ='CLZ Pr'!U54 -> 1
A55: =IF('CLZ Pr'!C55 = "", "", 'CLZ Pr'!C55) -> 2012-04-24 | B55: ='CLZ Pr'!O55 -> 7 | C55: ='CLZ Pr'!H55 -> 1000 | D55: ='CLZ Pr'!W55 -> Patrick Smith | E55: ='CLZ Pr'!B55 -> Artemis | F55: ='CLZ Pr'!N55 -> Fixed Hours | G55: ='CLZ Pr'!X55 -> 0 | H55: ='CLZ Pr'!E55 -> USA | I55: ='CLZ Pr'!U55 -> 6
A56: =IF('CLZ Pr'!C56 = "", "", 'CLZ Pr'!C56) -> 2012-04-24 | B56: ='CLZ Pr'!O56 -> 1 | C56: ='CLZ Pr'!H56 -> 0 | D56: ='CLZ Pr'!W56 -> Patrick Smith | E56: ='CLZ Pr'!B56 -> LTCP 1 h PS | F56: ='CLZ Pr'!N56 -> Fixed Hours | G56: ='CLZ Pr'!X56 -> 0 | H56: ='CLZ Pr'!E56 -> USA | I56: ='CLZ Pr'!U56 -> 0
A57: =IF('CLZ Pr'!C57 = "", "", 'CLZ Pr'!C57) -> 2012-04-24 | B57: ='CLZ Pr'!O57 -> 10 | C57: ='CLZ Pr'!H57 -> 720 | D57: ='CLZ Pr'!W57 -> Evgeni Haikin | E57: ='CLZ Pr'!B57 -> Soutthern Investments Pvt Ltd:Medium Package | F57: ='CLZ Pr'!N57 -> Package Medium | G57: ='CLZ Pr'!X57 -> 0 | H57: ='CLZ Pr'!E57 -> EMEA | I57: ='CLZ Pr'!U57 -> 3
A58: =IF('CLZ Pr'!C58 = "", "", 'CLZ Pr'!C58) -> 2012-04-24 | B58: ='CLZ Pr'!O58 -> 3 | C58: ='CLZ Pr'!H58 -> 500 | D58: ='CLZ Pr'!W58 -> Patrick Smith | E58: ='CLZ Pr'!B58 -> Unleashed Online Marketing 3 h PS | F58: ='CLZ Pr'!N58 -> Fixed Hours | G58: ='CLZ Pr'!X58 -> 0 | H58: ='CLZ Pr'!E58 -> USA | I58: ='CLZ Pr'!U58 -> 0.5
A59: =IF('CLZ Pr'!C59 = "", "", 'CLZ Pr'!C59) -> 2012-04-24 | B59: ='CLZ Pr'!O59 -> 5 | C59: ='CLZ Pr'!H59 -> 800 | D59: ='CLZ Pr'!W59 -> Patrick Smith | E59: ='CLZ Pr'!B59 -> FireRocket Concepts:Small Package | F59: ='CLZ Pr'!N59 -> Package Small | G59: ='CLZ Pr'!X59 -> 0 | H59: ='CLZ Pr'!E59 -> USA | I59: ='CLZ Pr'!U59 -> 0
A60: =IF('CLZ Pr'!C60 = "", "", 'CLZ Pr'!C60) -> 2012-04-25 | B60: ='CLZ Pr'!O60 -> 3 | C60: ='CLZ Pr'!H60 -> 500 | D60: ='CLZ Pr'!W60 -> Rob Sidhu | E60: ='CLZ Pr'!B60 -> Affero 3 h PS | F60: ='CLZ Pr'!N60 -> Fixed Hours | G60: ='CLZ Pr'!X60 -> 0 | H60: ='CLZ Pr'!E60 -> USA | I60: ='CLZ Pr'!U60 -> 1
A61: =IF('CLZ Pr'!C61 = "", "", 'CLZ Pr'!C61) -> 2012-04-26 | B61: ='CLZ Pr'!O61 -> 24 | C61: ='CLZ Pr'!H61 -> 3000 | D61: ='CLZ Pr'!W61 -> Patrick Smith | E61: ='CLZ Pr'!B61 -> HealthTrust Purchasing Group:Large Package | F61: ='CLZ Pr'!N61 -> Package Large | G61: ='CLZ Pr'!X61 -> 0 | H61: ='CLZ Pr'!E61 -> USA | I61: ='CLZ Pr'!U61 -> 22.17
A62: =IF('CLZ Pr'!C62 = "", "", 'CLZ Pr'!C62) -> 2012-04-27 | B62: ='CLZ Pr'!O62 -> 5 | C62: ='CLZ Pr'!H62 -> 800 | D62: ='CLZ Pr'!W62 -> Roni Feldsher | E62: ='CLZ Pr'!B62 -> Buxton Company 5 h PS | F62: ='CLZ Pr'!N62 -> Fixed Hours | G62: ='CLZ Pr'!X62 -> 0 | H62: ='CLZ Pr'!E62 -> USA | I62: ='CLZ Pr'!U62 -> 3
A63: =IF('CLZ Pr'!C63 = "", "", 'CLZ Pr'!C63) -> 2012-04-28 | B63: ='CLZ Pr'!O63 -> 11 | C63: ='CLZ Pr'!H63 -> 1500 | D63: ='CLZ Pr'!W63 -> Rob Sidhu | E63: ='CLZ Pr'!B63 -> Affinity Solutions:Medium Package | F63: ='CLZ Pr'!N63 -> Package Medium | G63: ='CLZ Pr'!X63 -> 0 | H63: ='CLZ Pr'!E63 -> USA | I63: ='CLZ Pr'!U63 -> 2
A64: =IF('CLZ Pr'!C64 = "", "", 'CLZ Pr'!C64) -> 2012-05-01 | B64: ='CLZ Pr'!O64 -> 6 | C64: ='CLZ Pr'!H64 -> 800 | D64: ='CLZ Pr'!W64 -> Alex Gorman | E64: ='CLZ Pr'!B64 -> Echo Global:Small Package | F64: ='CLZ Pr'!N64 -> Package Small | G64: ='CLZ Pr'!X64 -> 0 | H64: ='CLZ Pr'!E64 -> USA | I64: ='CLZ Pr'!U64 -> 2
A65: =IF('CLZ Pr'!C65 = "", "", 'CLZ Pr'!C65) -> 2012-05-01 | B65: ='CLZ Pr'!O65 -> 1 | C65: ='CLZ Pr'!H65 -> 0 | D65: ='CLZ Pr'!W65 -> Josh Santos | E65: ='CLZ Pr'!B65 -> Defran Systems 1 h PS | F65: ='CLZ Pr'!N65 -> Fixed Hours | G65: ='CLZ Pr'!X65 -> 0 | H65: ='CLZ Pr'!E65 -> USA | I65: ='CLZ Pr'!U65 -> 0
A66: =IF('CLZ Pr'!C66 = "", "", 'CLZ Pr'!C66) -> 2012-05-08 | B66: ='CLZ Pr'!O66 -> 10 | C66: ='CLZ Pr'!H66 -> 0 | D66: ='CLZ Pr'!W66 -> Evgeni Haikin | E66: ='CLZ Pr'!B66 -> Eurotech Master 10 h PS | F66: ='CLZ Pr'!N66 -> Fixed Hours | G66: ='CLZ Pr'!X66 -> 0 | H66: ='CLZ Pr'!E66 -> EMEA | I66: ='CLZ Pr'!U66 -> 7
A67: =IF('CLZ Pr'!C67 = "", "", 'CLZ Pr'!C67) -> 2012-05-08 | B67: ='CLZ Pr'!O67 -> 1 | C67: ='CLZ Pr'!H67 -> 0 | D67: ='CLZ Pr'!W67 -> Alex Gorman | E67: ='CLZ Pr'!B67 -> Lexi-Comp Inc. 1 h PS | F67: ='CLZ Pr'!N67 -> Fixed Hours | G67: ='CLZ Pr'!X67 -> 0 | H67: ='CLZ Pr'!E67 -> USA | I67: ='CLZ Pr'!U67 -> 0
A68: =IF('CLZ Pr'!C68 = "", "", 'CLZ Pr'!C68) -> 2012-05-09 | B68: ='CLZ Pr'!O68 -> 1 | C68: ='CLZ Pr'!H68 -> 167 | D68: ='CLZ Pr'!W68 -> Rob Sidhu | E68: ='CLZ Pr'!B68 -> FulCircle 1 h PS | F68: ='CLZ Pr'!N68 -> Fixed Hours | G68: ='CLZ Pr'!X68 -> 0 | H68: ='CLZ Pr'!E68 -> USA | I68: ='CLZ Pr'!U68 -> 0
A69: =IF('CLZ Pr'!C69 = "", "", 'CLZ Pr'!C69) -> 2012-05-09 | B69: ='CLZ Pr'!O69 -> 6 | C69: ='CLZ Pr'!H69 -> 800 | D69: ='CLZ Pr'!W69 -> Alex Gorman | E69: ='CLZ Pr'!B69 -> Brainshark:Small Package | F69: ='CLZ Pr'!N69 -> Package Small | G69: ='CLZ Pr'!X69 -> 0 | H69: ='CLZ Pr'!E69 -> USA | I69: ='CLZ Pr'!U69 -> 2.4
A70: =IF('CLZ Pr'!C70 = "", "", 'CLZ Pr'!C70) -> 2012-05-09 | B70: ='CLZ Pr'!O70 -> 10 | C70: ='CLZ Pr'!H70 -> 1500 | D70: ='CLZ Pr'!W70 -> David Goulden | E70: ='CLZ Pr'!B70 -> Mace Group:Medium Package | F70: ='CLZ Pr'!N70 -> Package Medium | G70: ='CLZ Pr'!X70 -> 0 | H70: ='CLZ Pr'!E70 -> EMEA | I70: ='CLZ Pr'!U70 -> 6.5
A71: =IF('CLZ Pr'!C71 = "", "", 'CLZ Pr'!C71) -> 2012-05-10 | B71: ='CLZ Pr'!O71 -> 24 | C71: ='CLZ Pr'!H71 -> 3500 | D71: ='CLZ Pr'!W71 -> David Goulden | E71: ='CLZ Pr'!B71 -> ADVA Optical Networking:Large Package | F71: ='CLZ Pr'!N71 -> Package Large | G71: ='CLZ Pr'!X71 -> 0 | H71: ='CLZ Pr'!E71 -> EMEA | I71: ='CLZ Pr'!U71 -> 4
A72: =IF('CLZ Pr'!C72 = "", "", 'CLZ Pr'!C72) -> 2012-05-10 | B72: ='CLZ Pr'!O72 -> 48 | C72: ='CLZ Pr'!H72 -> 11585 | D72: ='CLZ Pr'!W72 -> Eran Fishov | E72: ='CLZ Pr'!B72 -> Wijs 6 days on site | F72: ='CLZ Pr'!N72 -> Fixed Hours | G72: ='CLZ Pr'!X72 -> 0 | H72: ='CLZ Pr'!E72 -> EMEA | I72: ='CLZ Pr'!U72 -> 0
A73: =IF('CLZ Pr'!C73 = "", "", 'CLZ Pr'!C73) -> 2012-05-10 | B73: ='CLZ Pr'!O73 -> 50 | C73: ='CLZ Pr'!H73 -> 7500 | D73: ='CLZ Pr'!W73 -> Eran Fishov | E73: ='CLZ Pr'!B73 -> Wijs 50 h PS | F73: ='CLZ Pr'!N73 -> Fixed Hours | G73: ='CLZ Pr'!X73 -> 0 | H73: ='CLZ Pr'!E73 -> EMEA | I73: ='CLZ Pr'!U73 -> 37
A74: =IF('CLZ Pr'!C74 = "", "", 'CLZ Pr'!C74) -> 2012-05-11 | B74: ='CLZ Pr'!O74 -> 11 | C74: ='CLZ Pr'!H74 -> 1500 | D74: ='CLZ Pr'!W74 -> Alex Gorman | E74: ='CLZ Pr'!B74 -> School Improvement Network:Medium Package | F74: ='CLZ Pr'!N74 -> Package Medium | G74: ='CLZ Pr'!X74 -> 0 | H74: ='CLZ Pr'!E74 -> USA | I74: ='CLZ Pr'!U74 -> 6
A75: =IF('CLZ Pr'!C75 = "", "", 'CLZ Pr'!C75) -> 2012-05-15 | B75: ='CLZ Pr'!O75 -> 11 | C75: ='CLZ Pr'!H75 -> 750 | D75: ='CLZ Pr'!W75 -> G.I.Teh | E75: ='CLZ Pr'!B75 -> Benefit Express:Medium Package | F75: ='CLZ Pr'!N75 -> Package Medium | G75: ='CLZ Pr'!X75 -> 0 | H75: ='CLZ Pr'!E75 -> USA | I75: ='CLZ Pr'!U75 -> 6.5
A76: =IF('CLZ Pr'!C76 = "", "", 'CLZ Pr'!C76) -> 2012-05-15 | B76: ='CLZ Pr'!O76 -> 2 | C76: ='CLZ Pr'!H76 -> 0 | D76: ='CLZ Pr'!W76 -> Patrick Smith | E76: ='CLZ Pr'!B76 -> Glemco, Inc. 2 h PS | F76: ='CLZ Pr'!N76 -> Fixed Hours | G76: ='CLZ Pr'!X76 -> 0 | H76: ='CLZ Pr'!E76 -> USA | I76: ='CLZ Pr'!U76 -> 2
A77: =IF('CLZ Pr'!C77 = "", "", 'CLZ Pr'!C77) -> 2012-05-16 | B77: ='CLZ Pr'!O77 -> 3 | C77: ='CLZ Pr'!H77 -> 0 | D77: ='CLZ Pr'!W77 -> Roni Feldsher | E77: ='CLZ Pr'!B77 -> VCE LLC 3 h PS | F77: ='CLZ Pr'!N77 -> Fixed Hours | G77: ='CLZ Pr'!X77 -> 0 | H77: ='CLZ Pr'!E77 -> USA | I77: ='CLZ Pr'!U77 -> 0
A78: =IF('CLZ Pr'!C78 = "", "", 'CLZ Pr'!C78) -> 2012-05-17 | B78: ='CLZ Pr'!O78 -> 1 | C78: ='CLZ Pr'!H78 -> 0 | D78: ='CLZ Pr'!W78 -> Alex Gorman | E78: ='CLZ Pr'!B78 -> mindSHIFT 1 h PS | F78: ='CLZ Pr'!N78 -> Fixed Hours | G78: ='CLZ Pr'!X78 -> 0 | H78: ='CLZ Pr'!E78 -> USA | I78: ='CLZ Pr'!U78 -> 0
A79: =IF('CLZ Pr'!C79 = "", "", 'CLZ Pr'!C79) -> 2012-05-17 | B79: ='CLZ Pr'!O79 -> 5 | C79: ='CLZ Pr'!H79 -> 833 | D79: ='CLZ Pr'!W79 -> Patrick Smith | E79: ='CLZ Pr'!B79 -> Versaterm 5 h PS | F79: ='CLZ Pr'!N79 -> Fixed Hours | G79: ='CLZ Pr'!X79 -> 0 | H79: ='CLZ Pr'!E79 -> USA | I79: ='CLZ Pr'!U79 -> 5
A80: =IF('CLZ Pr'!C80 = "", "", 'CLZ Pr'!C80) -> 2012-05-21 | B80: ='CLZ Pr'!O80 -> 1 | C80: ='CLZ Pr'!H80 -> 0 | D80: ='CLZ Pr'!W80 -> Patrick Smith | E80: ='CLZ Pr'!B80 -> Joyent 1 h PS | F80: ='CLZ Pr'!N80 -> Fixed Hours | G80: ='CLZ Pr'!X80 -> 0 | H80: ='CLZ Pr'!E80 -> USA | I80: ='CLZ Pr'!U80 -> 1
A81: =IF('CLZ Pr'!C81 = "", "", 'CLZ Pr'!C81) -> 2012-05-21 | B81: ='CLZ Pr'!O81 -> 3 | C81: ='CLZ Pr'!H81 -> 500 | D81: ='CLZ Pr'!W81 -> Patrick Smith | E81: ='CLZ Pr'!B81 -> Pristine Sun LLC 3 h PS | F81: ='CLZ Pr'!N81 -> Fixed Hours | G81: ='CLZ Pr'!X81 -> 0 | H81: ='CLZ Pr'!E81 -> USA | I81: ='CLZ Pr'!U81 -> 0
A82: =IF('CLZ Pr'!C82 = "", "", 'CLZ Pr'!C82) -> 2012-05-21 | B82: ='CLZ Pr'!O82 -> 6 | C82: ='CLZ Pr'!H82 -> 1000 | D82: ='CLZ Pr'!W82 -> Patrick Smith | E82: ='CLZ Pr'!B82 -> TE Connectivity 6 h PS | F82: ='CLZ Pr'!N82 -> Fixed Hours | G82: ='CLZ Pr'!X82 -> 0 | H82: ='CLZ Pr'!E82 -> USA | I82: ='CLZ Pr'!U82 -> 4
A83: =IF('CLZ Pr'!C83 = "", "", 'CLZ Pr'!C83) -> 2012-05-21 | B83: ='CLZ Pr'!O83 -> 3 | C83: ='CLZ Pr'!H83 -> 0 | D83: ='CLZ Pr'!W83 -> Patrick Smith | E83: ='CLZ Pr'!B83 -> Blue Label Mexico 3 h PS | F83: ='CLZ Pr'!N83 -> Fixed Hours | G83: ='CLZ Pr'!X83 -> 0 | H83: ='CLZ Pr'!E83 -> USA | I83: ='CLZ Pr'!U83 -> 3
A84: =IF('CLZ Pr'!C84 = "", "", 'CLZ Pr'!C84) -> 2012-05-21 | B84: ='CLZ Pr'!O84 -> 3 | C84: ='CLZ Pr'!H84 -> 500 | D84: ='CLZ Pr'!W84 -> Patrick Smith | E84: ='CLZ Pr'!B84 -> GHRS Company Limited 3 h PS | F84: ='CLZ Pr'!N84 -> Fixed Hours | G84: ='CLZ Pr'!X84 -> 0 | H84: ='CLZ Pr'!E84 -> USA | I84: ='CLZ Pr'!U84 -> 1.5
A85: =IF('CLZ Pr'!C85 = "", "", 'CLZ Pr'!C85) -> 2012-05-21 | B85: ='CLZ Pr'!O85 -> 1 | C85: ='CLZ Pr'!H85 -> 0 | D85: ='CLZ Pr'!W85 -> Patrick Smith | E85: ='CLZ Pr'!B85 -> Sanjel Corporation 1 h PS | F85: ='CLZ Pr'!N85 -> Fixed Hours | G85: ='CLZ Pr'!X85 -> 0 | H85: ='CLZ Pr'!E85 -> USA | I85: ='CLZ Pr'!U85 -> 1
A86: =IF('CLZ Pr'!C86 = "", "", 'CLZ Pr'!C86) -> 2012-05-21 | B86: ='CLZ Pr'!O86 -> 3 | C86: ='CLZ Pr'!H86 -> 0 | D86: ='CLZ Pr'!W86 -> Patrick Smith | E86: ='CLZ Pr'!B86 -> Division of IT 3 h PS | F86: ='CLZ Pr'!N86 -> Fixed Hours | G86: ='CLZ Pr'!X86 -> 0 | H86: ='CLZ Pr'!E86 -> USA | I86: ='CLZ Pr'!U86 -> 2
A87: =IF('CLZ Pr'!C87 = "", "", 'CLZ Pr'!C87) -> 2012-05-22 | B87: ='CLZ Pr'!O87 -> 5 | C87: ='CLZ Pr'!H87 -> 800 | D87: ='CLZ Pr'!W87 -> Rob Sidhu | E87: ='CLZ Pr'!B87 -> KL Communications:Small Package | F87: ='CLZ Pr'!N87 -> Package Small | G87: ='CLZ Pr'!X87 -> 0 | H87: ='CLZ Pr'!E87 -> USA | I87: ='CLZ Pr'!U87 -> 3
A88: =IF('CLZ Pr'!C88 = "", "", 'CLZ Pr'!C88) -> 2012-05-22 | B88: ='CLZ Pr'!O88 -> 1 | C88: ='CLZ Pr'!H88 -> 0 | D88: ='CLZ Pr'!W88 -> Rob Sidhu | E88: ='CLZ Pr'!B88 -> Bonnier - Television Group 1 h PS | F88: ='CLZ Pr'!N88 -> Fixed Hours | G88: ='CLZ Pr'!X88 -> 0 | H88: ='CLZ Pr'!E88 -> USA | I88: ='CLZ Pr'!U88 -> 0
A89: =IF('CLZ Pr'!C89 = "", "", 'CLZ Pr'!C89) -> 2012-05-23 | B89: ='CLZ Pr'!O89 -> 5 | C89: ='CLZ Pr'!H89 -> 800 | D89: ='CLZ Pr'!W89 -> Josh Santos | E89: ='CLZ Pr'!B89 -> Agilent:Small Package | F89: ='CLZ Pr'!N89 -> Package Small | G89: ='CLZ Pr'!X89 -> 0 | H89: ='CLZ Pr'!E89 -> USA | I89: ='CLZ Pr'!U89 -> 2
A90: =IF('CLZ Pr'!C90 = "", "", 'CLZ Pr'!C90) -> 2012-05-23 | B90: ='CLZ Pr'!O90 -> 6 | C90: ='CLZ Pr'!H90 -> 500 | D90: ='CLZ Pr'!W90 -> Tal Noga | E90: ='CLZ Pr'!B90 -> MyThings | F90: ='CLZ Pr'!N90 -> Package Small | G90: ='CLZ Pr'!X90 -> 0 | H90: ='CLZ Pr'!E90 -> EMEA | I90: ='CLZ Pr'!U90 -> 0
A91: =IF('CLZ Pr'!C91 = "", "", 'CLZ Pr'!C91) -> 2012-05-24 | B91: ='CLZ Pr'!O91 -> 24 | C91: ='CLZ Pr'!H91 -> 3500 | D91: ='CLZ Pr'!W91 -> G.I.Teh | E91: ='CLZ Pr'!B91 -> WESTERN UNION BUSINESS SOLUTIONS13:Large Package | F91: ='CLZ Pr'!N91 -> Package Large | G91: ='CLZ Pr'!X91 -> 0 | H91: ='CLZ Pr'!E91 -> USA | I91: ='CLZ Pr'!U91 -> 23
A92: =IF('CLZ Pr'!C92 = "", "", 'CLZ Pr'!C92) -> 2012-05-25 | B92: ='CLZ Pr'!O92 -> 1 | C92: ='CLZ Pr'!H92 -> 0 | D92: ='CLZ Pr'!W92 -> Rob Sidhu | E92: ='CLZ Pr'!B92 -> GTInnovatech 1 h PS | F92: ='CLZ Pr'!N92 -> Fixed Hours | G92: ='CLZ Pr'!X92 -> 0 | H92: ='CLZ Pr'!E92 -> USA | I92: ='CLZ Pr'!U92 -> 1
A93: =IF('CLZ Pr'!C93 = "", "", 'CLZ Pr'!C93) -> 2012-05-25 | B93: ='CLZ Pr'!O93 -> 3 | C93: ='CLZ Pr'!H93 -> 500 | D93: ='CLZ Pr'!W93 -> Patrick Smith | E93: ='CLZ Pr'!B93 -> Certain Software, Inc. 3 h PS | F93: ='CLZ Pr'!N93 -> Fixed Hours | G93: ='CLZ Pr'!X93 -> 0 | H93: ='CLZ Pr'!E93 -> USA | I93: ='CLZ Pr'!U93 -> 1
A94: =IF('CLZ Pr'!C94 = "", "", 'CLZ Pr'!C94) -> 2012-05-25 | B94: ='CLZ Pr'!O94 -> 1 | C94: ='CLZ Pr'!H94 -> 0 | D94: ='CLZ Pr'!W94 -> Patrick Smith | E94: ='CLZ Pr'!B94 -> ClairMail 1 h PS | F94: ='CLZ Pr'!N94 -> Fixed Hours | G94: ='CLZ Pr'!X94 -> 0 | H94: ='CLZ Pr'!E94 -> USA | I94: ='CLZ Pr'!U94 -> 1
A95: =IF('CLZ Pr'!C95 = "", "", 'CLZ Pr'!C95) -> 2012-05-25 | B95: ='CLZ Pr'!O95 -> 4 | C95: ='CLZ Pr'!H95 -> 0 | D95: ='CLZ Pr'!W95 -> Patrick Smith | E95: ='CLZ Pr'!B95 -> CDPHE 4 h PS | F95: ='CLZ Pr'!N95 -> Fixed Hours | G95: ='CLZ Pr'!X95 -> 0 | H95: ='CLZ Pr'!E95 -> USA | I95: ='CLZ Pr'!U95 -> 0.5
A96: =IF('CLZ Pr'!C96 = "", "", 'CLZ Pr'!C96) -> 2012-05-25 | B96: ='CLZ Pr'!O96 -> 1 | C96: ='CLZ Pr'!H96 -> 0 | D96: ='CLZ Pr'!W96 -> Patrick Smith | E96: ='CLZ Pr'!B96 -> Alphabet Energy 1 h PS | F96: ='CLZ Pr'!N96 -> Fixed Hours | G96: ='CLZ Pr'!X96 -> 0 | H96: ='CLZ Pr'!E96 -> USA | I96: ='CLZ Pr'!U96 -> 1
A97: =IF('CLZ Pr'!C97 = "", "", 'CLZ Pr'!C97) -> 2012-05-25 | B97: ='CLZ Pr'!O97 -> 1 | C97: ='CLZ Pr'!H97 -> 0 | D97: ='CLZ Pr'!W97 -> Patrick Smith | E97: ='CLZ Pr'!B97 -> RANMAN 1 h PS | F97: ='CLZ Pr'!N97 -> Fixed Hours | G97: ='CLZ Pr'!X97 -> 0 | H97: ='CLZ Pr'!E97 -> USA | I97: ='CLZ Pr'!U97 -> 1
A98: =IF('CLZ Pr'!C98 = "", "", 'CLZ Pr'!C98) -> 2012-05-25 | B98: ='CLZ Pr'!O98 -> 1 | C98: ='CLZ Pr'!H98 -> 0 | D98: ='CLZ Pr'!W98 -> Patrick Smith | E98: ='CLZ Pr'!B98 -> MIVIOT 1 h PS | F98: ='CLZ Pr'!N98 -> Fixed Hours | G98: ='CLZ Pr'!X98 -> 0 | H98: ='CLZ Pr'!E98 -> USA | I98: ='CLZ Pr'!U98 -> 1
A99: =IF('CLZ Pr'!C99 = "", "", 'CLZ Pr'!C99) -> 2012-05-25 | B99: ='CLZ Pr'!O99 -> 1 | C99: ='CLZ Pr'!H99 -> 0 | D99: ='CLZ Pr'!W99 -> Patrick Smith | E99: ='CLZ Pr'!B99 -> Wendys 1 h PS | F99: ='CLZ Pr'!N99 -> Fixed Hours | G99: ='CLZ Pr'!X99 -> 0 | H99: ='CLZ Pr'!E99 -> USA | I99: ='CLZ Pr'!U99 -> 1
A100: =IF('CLZ Pr'!C100 = "", "", 'CLZ Pr'!C100) -> 2012-05-25 | B100: ='CLZ Pr'!O100 -> 1 | C100: ='CLZ Pr'!H100 -> 0 | D100: ='CLZ Pr'!W100 -> Patrick Smith | E100: ='CLZ Pr'!B100 -> H&S Wholesalers, Inc 1 h PS | F100: ='CLZ Pr'!N100 -> Fixed Hours | G100: ='CLZ Pr'!X100 -> 0 | H100: ='CLZ Pr'!E100 -> USA | I100: ='CLZ Pr'!U100 -> 1
A101: =IF('CLZ Pr'!C101 = "", "", 'CLZ Pr'!C101) -> 2012-05-25 | B101: ='CLZ Pr'!O101 -> 1 | C101: ='CLZ Pr'!H101 -> 0 | D101: ='CLZ Pr'!W101 -> Patrick Smith | E101: ='CLZ Pr'!B101 -> Knowledge Factor 1 h PS | F101: ='CLZ Pr'!N101 -> Fixed Hours | G101: ='CLZ Pr'!X101 -> 0 | H101: ='CLZ Pr'!E101 -> USA | I101: ='CLZ Pr'!U101 -> 1
A102: =IF('CLZ Pr'!C102 = "", "", 'CLZ Pr'!C102) -> 2012-05-25 | B102: ='CLZ Pr'!O102 -> 1 | C102: ='CLZ Pr'!H102 -> 0 | D102: ='CLZ Pr'!W102 -> Patrick Smith | E102: ='CLZ Pr'!B102 -> Partner Energy, Inc. 1 h PS | F102: ='CLZ Pr'!N102 -> Fixed Hours | G102: ='CLZ Pr'!X102 -> 0 | H102: ='CLZ Pr'!E102 -> USA | I102: ='CLZ Pr'!U102 -> 0
A103: =IF('CLZ Pr'!C103 = "", "", 'CLZ Pr'!C103) -> 2012-05-25 | B103: ='CLZ Pr'!O103 -> 2 | C103: ='CLZ Pr'!H103 -> 0 | D103: ='CLZ Pr'!W103 -> Jonah Kadish | E103: ='CLZ Pr'!B103 -> CRMNow Pty Limited 2 h PS | F103: ='CLZ Pr'!N103 -> Fixed Hours | G103: ='CLZ Pr'!X103 -> 0 | H103: ='CLZ Pr'!E103 -> ROW | I103: ='CLZ Pr'!U103 -> 2
A104: =IF('CLZ Pr'!C104 = "", "", 'CLZ Pr'!C104) -> 2012-05-25 | B104: ='CLZ Pr'!O104 -> 1 | C104: ='CLZ Pr'!H104 -> 0 | D104: ='CLZ Pr'!W104 -> Patrick Smith | E104: ='CLZ Pr'!B104 -> RY Brothers 1 h PS | F104: ='CLZ Pr'!N104 -> Fixed Hours | G104: ='CLZ Pr'!X104 -> 0 | H104: ='CLZ Pr'!E104 -> USA | I104: ='CLZ Pr'!U104 -> 1
A105: =IF('CLZ Pr'!C105 = "", "", 'CLZ Pr'!C105) -> 2012-05-25 | B105: ='CLZ Pr'!O105 -> 1 | C105: ='CLZ Pr'!H105 -> 0 | D105: ='CLZ Pr'!W105 -> Patrick Smith | E105: ='CLZ Pr'!B105 -> Threewide 1 h PS | F105: ='CLZ Pr'!N105 -> Fixed Hours | G105: ='CLZ Pr'!X105 -> 0 | H105: ='CLZ Pr'!E105 -> USA | I105: ='CLZ Pr'!U105 -> 1
A106: =IF('CLZ Pr'!C106 = "", "", 'CLZ Pr'!C106) -> 2012-05-25 | B106: ='CLZ Pr'!O106 -> 1 | C106: ='CLZ Pr'!H106 -> 0 | D106: ='CLZ Pr'!W106 -> Patrick Smith | E106: ='CLZ Pr'!B106 -> MAAC 1 h PS | F106: ='CLZ Pr'!N106 -> Fixed Hours | G106: ='CLZ Pr'!X106 -> 0 | H106: ='CLZ Pr'!E106 -> USA | I106: ='CLZ Pr'!U106 -> 0
A107: =IF('CLZ Pr'!C107 = "", "", 'CLZ Pr'!C107) -> 2012-05-25 | B107: ='CLZ Pr'!O107 -> 1 | C107: ='CLZ Pr'!H107 -> 0 | D107: ='CLZ Pr'!W107 -> Jonah Kadish | E107: ='CLZ Pr'!B107 -> Datacom Christchurch 1 h PS | F107: ='CLZ Pr'!N107 -> Fixed Hours | G107: ='CLZ Pr'!X107 -> 0 | H107: ='CLZ Pr'!E107 -> ROW | I107: ='CLZ Pr'!U107 -> 1
A108: =IF('CLZ Pr'!C108 = "", "", 'CLZ Pr'!C108) -> 2012-05-25 | B108: ='CLZ Pr'!O108 -> 6 | C108: ='CLZ Pr'!H108 -> 0 | D108: ='CLZ Pr'!W108 -> Jonah Kadish | E108: ='CLZ Pr'!B108 -> Alpine Shire Council 6 h PS | F108: ='CLZ Pr'!N108 -> Fixed Hours | G108: ='CLZ Pr'!X108 -> 0 | H108: ='CLZ Pr'!E108 -> ROW | I108: ='CLZ Pr'!U108 -> 6
A109: =IF('CLZ Pr'!C109 = "", "", 'CLZ Pr'!C109) -> 2012-05-27 | B109: ='CLZ Pr'!O109 -> 4 | C109: ='CLZ Pr'!H109 -> 800 | D109: ='CLZ Pr'!W109 -> Eran Fishov | E109: ='CLZ Pr'!B109 -> Gard:Small Package | F109: ='CLZ Pr'!N109 -> Package Small | G109: ='CLZ Pr'!X109 -> 0 | H109: ='CLZ Pr'!E109 -> EMEA | I109: ='CLZ Pr'!U109 -> 0
A110: =IF('CLZ Pr'!C110 = "", "", 'CLZ Pr'!C110) -> 2012-05-29 | B110: ='CLZ Pr'!O110 -> 10 | C110: ='CLZ Pr'!H110 -> 1500 | D110: ='CLZ Pr'!W110 -> Roni Feldsher | E110: ='CLZ Pr'!B110 -> TechProse 10 h PS | F110: ='CLZ Pr'!N110 -> Fixed Hours | G110: ='CLZ Pr'!X110 -> 0 | H110: ='CLZ Pr'!E110 -> USA | I110: ='CLZ Pr'!U110 -> 3.2
A111: =IF('CLZ Pr'!C111 = "", "", 'CLZ Pr'!C111) -> 2012-05-31 | B111: ='CLZ Pr'!O111 -> 0.75 | C111: ='CLZ Pr'!H111 -> 0 | D111: ='CLZ Pr'!W111 -> Alex Gorman | E111: ='CLZ Pr'!B111 -> Leadership S&D Q&A .75h | F111: ='CLZ Pr'!N111 -> Fixed Hours | G111: ='CLZ Pr'!X111 -> 0 | H111: ='CLZ Pr'!E111 -> USA | I111: ='CLZ Pr'!U111 -> 0
A112: =IF('CLZ Pr'!C112 = "", "", 'CLZ Pr'!C112) -> 2012-06-01 | B112: ='CLZ Pr'!O112 -> 24 | C112: ='CLZ Pr'!H112 -> 3500 | D112: ='CLZ Pr'!W112 -> G.I.Teh | E112: ='CLZ Pr'!B112 -> Veracity Engineering - 24 hour QS | F112: ='CLZ Pr'!N112 -> Package Large | G112: ='CLZ Pr'!X112 -> 0 | H112: ='CLZ Pr'!E112 -> USA | I112: ='CLZ Pr'!U112 -> 10
A113: =IF('CLZ Pr'!C113 = "", "", 'CLZ Pr'!C113) -> 2012-06-01 | B113: ='CLZ Pr'!O113 -> 35 | C113: ='CLZ Pr'!H113 -> 0 | D113: ='CLZ Pr'!W113 -> Tal Noga | E113: ='CLZ Pr'!B113 -> HMS - 35h Success Package | F113: ='CLZ Pr'!N113 -> Fixed Hours | G113: ='CLZ Pr'!X113 -> 0 | H113: ='CLZ Pr'!E113 -> EMEA | I113: ='CLZ Pr'!U113 -> 0
A114: =IF('CLZ Pr'!C114 = "", "", 'CLZ Pr'!C114) -> 2012-06-04 | B114: ='CLZ Pr'!O114 -> 5 | C114: ='CLZ Pr'!H114 -> 800 | D114: ='CLZ Pr'!W114 -> Tal Noga | E114: ='CLZ Pr'!B114 -> תדיראן טלקום שרותי תקשורת בישראל 5 h PS | F114: ='CLZ Pr'!N114 -> Package Small | G114: ='CLZ Pr'!X114 -> 0 | H114: ='CLZ Pr'!E114 -> EMEA | I114: ='CLZ Pr'!U114 -> 2.31
A115: =IF('CLZ Pr'!C115 = "", "", 'CLZ Pr'!C115) -> 2012-06-04 | B115: ='CLZ Pr'!O115 -> 1 | C115: ='CLZ Pr'!H115 -> 0 | D115: ='CLZ Pr'!W115 -> Alex Gorman | E115: ='CLZ Pr'!B115 -> Argus Group 1 h PS | F115: ='CLZ Pr'!N115 -> Fixed Hours | G115: ='CLZ Pr'!X115 -> 0 | H115: ='CLZ Pr'!E115 -> USA | I115: ='CLZ Pr'!U115 -> 0
A116: =IF('CLZ Pr'!C116 = "", "", 'CLZ Pr'!C116) -> 2012-06-05 | B116: ='CLZ Pr'!O116 -> 10 | C116: ='CLZ Pr'!H116 -> 1500 | D116: ='CLZ Pr'!W116 -> Alex Gorman | E116: ='CLZ Pr'!B116 -> Crunchy Logistics 10 h PS | F116: ='CLZ Pr'!N116 -> Package Medium | G116: ='CLZ Pr'!X116 -> 0 | H116: ='CLZ Pr'!E116 -> USA | I116: ='CLZ Pr'!U116 -> 3.5
A117: =IF('CLZ Pr'!C117 = "", "", 'CLZ Pr'!C117) -> 2012-06-05 | B117: ='CLZ Pr'!O117 -> 20 | C117: ='CLZ Pr'!H117 -> 2000 | D117: ='CLZ Pr'!W117 -> Evgeni Haikin | E117: ='CLZ Pr'!B117 -> UNK project 20 h PS | F117: ='CLZ Pr'!N117 -> Package Large | G117: ='CLZ Pr'!X117 -> 0 | H117: ='CLZ Pr'!E117 -> EMEA | I117: ='CLZ Pr'!U117 -> 12
A118: =IF('CLZ Pr'!C118 = "", "", 'CLZ Pr'!C118) -> 2012-06-06 | B118: ='CLZ Pr'!O118 -> 5 | C118: ='CLZ Pr'!H118 -> 800 | D118: ='CLZ Pr'!W118 -> Evgeni Haikin | E118: ='CLZ Pr'!B118 -> íncipy, s.a. 5 h PS | F118: ='CLZ Pr'!N118 -> Package Small | G118: ='CLZ Pr'!X118 -> 0 | H118: ='CLZ Pr'!E118 -> EMEA | I118: ='CLZ Pr'!U118 -> 4
A119: =IF('CLZ Pr'!C119 = "", "", 'CLZ Pr'!C119) -> 2012-06-06 | B119: ='CLZ Pr'!O119 -> 6 | C119: ='CLZ Pr'!H119 -> 0 | D119: ='CLZ Pr'!W119 -> Patrick Smith | E119: ='CLZ Pr'!B119 -> adas 6 h PS | F119: ='CLZ Pr'!N119 -> Fixed Hours | G119: ='CLZ Pr'!X119 -> 0 | H119: ='CLZ Pr'!E119 -> USA | I119: ='CLZ Pr'!U119 -> 6
A120: =IF('CLZ Pr'!C120 = "", "", 'CLZ Pr'!C120) -> 2012-06-08 | B120: ='CLZ Pr'!O120 -> 2.25 | C120: ='CLZ Pr'!H120 -> 0 | D120: ='CLZ Pr'!W120 -> Jonah Kadish | E120: ='CLZ Pr'!B120 -> Energy Exemplar Global 2.25 h PS | F120: ='CLZ Pr'!N120 -> Fixed Hours | G120: ='CLZ Pr'!X120 -> 0 | H120: ='CLZ Pr'!E120 -> ROW | I120: ='CLZ Pr'!U120 -> 2.25
A121: =IF('CLZ Pr'!C121 = "", "", 'CLZ Pr'!C121) -> 2012-06-08 | B121: ='CLZ Pr'!O121 -> 22 | C121: ='CLZ Pr'!H121 -> 4900 | D121: ='CLZ Pr'!W121 -> Patrick Smith | E121: ='CLZ Pr'!B121 -> QUALITY HEALTH STRATEGIES - PROJECT MANAGEMENT OFFICE SYSTEM 22 h PS | F121: ='CLZ Pr'!N121 -> Fixed Hours | G121: ='CLZ Pr'!X121 -> 0 | H121: ='CLZ Pr'!E121 -> USA | I121: ='CLZ Pr'!U121 -> 14
A122: =IF('CLZ Pr'!C122 = "", "", 'CLZ Pr'!C122) -> 2012-06-08 | B122: ='CLZ Pr'!O122 -> 3 | C122: ='CLZ Pr'!H122 -> 0 | D122: ='CLZ Pr'!W122 -> Patrick Smith | E122: ='CLZ Pr'!B122 -> Chicago Cubs Baseball Club, LLC 3 h PS | F122: ='CLZ Pr'!N122 -> Fixed Hours | G122: ='CLZ Pr'!X122 -> 0 | H122: ='CLZ Pr'!E122 -> USA | I122: ='CLZ Pr'!U122 -> 0
A123: =IF('CLZ Pr'!C123 = "", "", 'CLZ Pr'!C123) -> 2012-06-08 | B123: ='CLZ Pr'!O123 -> 3 | C123: ='CLZ Pr'!H123 -> 500 | D123: ='CLZ Pr'!W123 -> Patrick Smith | E123: ='CLZ Pr'!B123 -> University of Texas at El Paso 3 h PS | F123: ='CLZ Pr'!N123 -> Fixed Hours | G123: ='CLZ Pr'!X123 -> 0 | H123: ='CLZ Pr'!E123 -> USA | I123: ='CLZ Pr'!U123 -> 0
A124: =IF('CLZ Pr'!C124 = "", "", 'CLZ Pr'!C124) -> 2012-06-08 | B124: ='CLZ Pr'!O124 -> 1 | C124: ='CLZ Pr'!H124 -> 0 | D124: ='CLZ Pr'!W124 -> Alex Gorman | E124: ='CLZ Pr'!B124 -> SourceLink CI TT Excel Report | F124: ='CLZ Pr'!N124 -> Fixed Hours | G124: ='CLZ Pr'!X124 -> 0 | H124: ='CLZ Pr'!E124 -> USA | I124: ='CLZ Pr'!U124 -> 0
A125: =IF('CLZ Pr'!C125 = "", "", 'CLZ Pr'!C125) -> 2012-06-11 | B125: ='CLZ Pr'!O125 -> 12 | C125: ='CLZ Pr'!H125 -> 2000 | D125: ='CLZ Pr'!W125 -> Patrick Smith | E125: ='CLZ Pr'!B125 -> Cleveland Clinic Florida 12 h PS | F125: ='CLZ Pr'!N125 -> Fixed Hours | G125: ='CLZ Pr'!X125 -> 0 | H125: ='CLZ Pr'!E125 -> USA | I125: ='CLZ Pr'!U125 -> 10.5
A126: =IF('CLZ Pr'!C126 = "", "", 'CLZ Pr'!C126) -> 2012-06-11 | B126: ='CLZ Pr'!O126 -> 3 | C126: ='CLZ Pr'!H126 -> 500 | D126: ='CLZ Pr'!W126 -> Patrick Smith | E126: ='CLZ Pr'!B126 -> Vector Security 3 h PS | F126: ='CLZ Pr'!N126 -> Fixed Hours | G126: ='CLZ Pr'!X126 -> 0 | H126: ='CLZ Pr'!E126 -> USA | I126: ='CLZ Pr'!U126 -> 0
A127: =IF('CLZ Pr'!C127 = "", "", 'CLZ Pr'!C127) -> 2012-06-12 | B127: ='CLZ Pr'!O127 -> 1 | C127: ='CLZ Pr'!H127 -> 0 | D127: ='CLZ Pr'!W127 -> Patrick Smith | E127: ='CLZ Pr'!B127 -> Nautilus7233 1 h PS | F127: ='CLZ Pr'!N127 -> Fixed Hours | G127: ='CLZ Pr'!X127 -> 0 | H127: ='CLZ Pr'!E127 -> USA | I127: ='CLZ Pr'!U127 -> 1
A128: =IF('CLZ Pr'!C128 = "", "", 'CLZ Pr'!C128) -> 2012-06-12 | B128: ='CLZ Pr'!O128 -> 1 | C128: ='CLZ Pr'!H128 -> 0 | D128: ='CLZ Pr'!W128 -> Patrick Smith | E128: ='CLZ Pr'!B128 -> Dubak Electrical Maintenance Corp 1 h PS | F128: ='CLZ Pr'!N128 -> Fixed Hours | G128: ='CLZ Pr'!X128 -> 0 | H128: ='CLZ Pr'!E128 -> USA | I128: ='CLZ Pr'!U128 -> 1
A129: =IF('CLZ Pr'!C129 = "", "", 'CLZ Pr'!C129) -> 2012-06-12 | B129: ='CLZ Pr'!O129 -> 3 | C129: ='CLZ Pr'!H129 -> 500 | D129: ='CLZ Pr'!W129 -> Patrick Smith | E129: ='CLZ Pr'!B129 -> ARCH Consultants ltd. 3 h PS | F129: ='CLZ Pr'!N129 -> Fixed Hours | G129: ='CLZ Pr'!X129 -> 0 | H129: ='CLZ Pr'!E129 -> USA | I129: ='CLZ Pr'!U129 -> 0
A130: =IF('CLZ Pr'!C130 = "", "", 'CLZ Pr'!C130) -> 2012-06-12 | B130: ='CLZ Pr'!O130 -> 3 | C130: ='CLZ Pr'!H130 -> 500 | D130: ='CLZ Pr'!W130 -> Patrick Smith | E130: ='CLZ Pr'!B130 -> ARCH Consultants ltd. 3 h PS | F130: ='CLZ Pr'!N130 -> Fixed Hours | G130: ='CLZ Pr'!X130 -> 0 | H130: ='CLZ Pr'!E130 -> USA | I130: ='CLZ Pr'!U130 -> 2
A131: =IF('CLZ Pr'!C131 = "", "", 'CLZ Pr'!C131) -> 2012-06-12 | B131: ='CLZ Pr'!O131 -> 1 | C131: ='CLZ Pr'!H131 -> 0 | D131: ='CLZ Pr'!W131 -> Patrick Smith | E131: ='CLZ Pr'!B131 -> Jomac Canada Inc 1 h PS | F131: ='CLZ Pr'!N131 -> Fixed Hours | G131: ='CLZ Pr'!X131 -> 0 | H131: ='CLZ Pr'!E131 -> USA | I131: ='CLZ Pr'!U131 -> 1
A132: =IF('CLZ Pr'!C132 = "", "", 'CLZ Pr'!C132) -> 2012-06-12 | B132: ='CLZ Pr'!O132 -> 2 | C132: ='CLZ Pr'!H132 -> 0 | D132: ='CLZ Pr'!W132 -> Patrick Smith | E132: ='CLZ Pr'!B132 -> Tidemark Consultants, Inc. 2 h PS | F132: ='CLZ Pr'!N132 -> Fixed Hours | G132: ='CLZ Pr'!X132 -> 0 | H132: ='CLZ Pr'!E132 -> USA | I132: ='CLZ Pr'!U132 -> 2
A133: =IF('CLZ Pr'!C133 = "", "", 'CLZ Pr'!C133) -> 2012-06-12 | B133: ='CLZ Pr'!O133 -> 1 | C133: ='CLZ Pr'!H133 -> 0 | D133: ='CLZ Pr'!W133 -> Patrick Smith | E133: ='CLZ Pr'!B133 -> Pristine Sun LLC 1 h PS | F133: ='CLZ Pr'!N133 -> Fixed Hours | G133: ='CLZ Pr'!X133 -> 0 | H133: ='CLZ Pr'!E133 -> USA | I133: ='CLZ Pr'!U133 -> 0
A134: =IF('CLZ Pr'!C134 = "", "", 'CLZ Pr'!C134) -> 2012-06-13 | B134: ='CLZ Pr'!O134 -> 1 | C134: ='CLZ Pr'!H134 -> 0 | D134: ='CLZ Pr'!W134 -> Patrick Smith | E134: ='CLZ Pr'!B134 -> University of Texas at El Paso 1 h PS | F134: ='CLZ Pr'!N134 -> Fixed Hours | G134: ='CLZ Pr'!X134 -> 0 | H134: ='CLZ Pr'!E134 -> USA | I134: ='CLZ Pr'!U134 -> 0
A135: =IF('CLZ Pr'!C135 = "", "", 'CLZ Pr'!C135) -> 2012-06-14 | B135: ='CLZ Pr'!O135 -> 12 | C135: ='CLZ Pr'!H135 -> 1500 | D135: ='CLZ Pr'!W135 -> Rami Cohen | E135: ='CLZ Pr'!B135 -> Fujitsu GBG GPMO 12 h PS | F135: ='CLZ Pr'!N135 -> Fixed Hours | G135: ='CLZ Pr'!X135 -> 0 | H135: ='CLZ Pr'!E135 -> EMEA | I135: ='CLZ Pr'!U135 -> 6.5
A136: =IF('CLZ Pr'!C136 = "", "", 'CLZ Pr'!C136) -> 2012-06-14 | B136: ='CLZ Pr'!O136 -> 5 | C136: ='CLZ Pr'!H136 -> 800 | D136: ='CLZ Pr'!W136 -> Rob Sidhu | E136: ='CLZ Pr'!B136 -> Brandywine Realty Trust:Package Small Package | F136: ='CLZ Pr'!N136 -> Package Small | G136: ='CLZ Pr'!X136 -> 0 | H136: ='CLZ Pr'!E136 -> USA | I136: ='CLZ Pr'!U136 -> 5
A137: =IF('CLZ Pr'!C137 = "", "", 'CLZ Pr'!C137) -> 2012-06-15 | B137: ='CLZ Pr'!O137 -> 5 | C137: ='CLZ Pr'!H137 -> 800 | D137: ='CLZ Pr'!W137 -> Eran Fishov | E137: ='CLZ Pr'!B137 -> NewHow | F137: ='CLZ Pr'!N137 -> Package Small | G137: ='CLZ Pr'!X137 -> 0 | H137: ='CLZ Pr'!E137 -> EMEA | I137: ='CLZ Pr'!U137 -> 6
A138: =IF('CLZ Pr'!C138 = "", "", 'CLZ Pr'!C138) -> 2012-06-15 | B138: ='CLZ Pr'!O138 -> 24 | C138: ='CLZ Pr'!H138 -> 3500 | D138: ='CLZ Pr'!W138 -> Roni Feldsher | E138: ='CLZ Pr'!B138 -> QTS:Package Large Package | F138: ='CLZ Pr'!N138 -> Package Large | G138: ='CLZ Pr'!X138 -> 0 | H138: ='CLZ Pr'!E138 -> USA | I138: ='CLZ Pr'!U138 -> 15
A139: =IF('CLZ Pr'!C139 = "", "", 'CLZ Pr'!C139) -> 2012-06-21 | B139: ='CLZ Pr'!O139 -> 5 | C139: ='CLZ Pr'!H139 -> 800 | D139: ='CLZ Pr'!W139 -> Alex Gorman | E139: ='CLZ Pr'!B139 -> BN Industries:Package Small Package | F139: ='CLZ Pr'!N139 -> Package Small | G139: ='CLZ Pr'!X139 -> 0 | H139: ='CLZ Pr'!E139 -> USA | I139: ='CLZ Pr'!U139 -> 0
A140: =IF('CLZ Pr'!C140 = "", "", 'CLZ Pr'!C140) -> 2012-06-21 | B140: ='CLZ Pr'!O140 -> 10 | C140: ='CLZ Pr'!H140 -> 1500 | D140: ='CLZ Pr'!W140 -> Tal Noga | E140: ='CLZ Pr'!B140 -> TEMIS:Package Medium Package | F140: ='CLZ Pr'!N140 -> Package Medium | G140: ='CLZ Pr'!X140 -> 0 | H140: ='CLZ Pr'!E140 -> EMEA | I140: ='CLZ Pr'!U140 -> 5
A141: =IF('CLZ Pr'!C141 = "", "", 'CLZ Pr'!C141) -> 2012-06-21 | B141: ='CLZ Pr'!O141 -> 5 | C141: ='CLZ Pr'!H141 -> 400 | D141: ='CLZ Pr'!W141 -> Tal Noga | E141: ='CLZ Pr'!B141 -> Fourier Education systems:Package Small Package | F141: ='CLZ Pr'!N141 -> Package Small | G141: ='CLZ Pr'!X141 -> 0 | H141: ='CLZ Pr'!E141 -> EMEA | I141: ='CLZ Pr'!U141 -> 2.88
A142: =IF('CLZ Pr'!C142 = "", "", 'CLZ Pr'!C142) -> 2012-06-22 | B142: ='CLZ Pr'!O142 -> 24 | C142: ='CLZ Pr'!H142 -> 3500 | D142: ='CLZ Pr'!W142 -> Alex Gorman | E142: ='CLZ Pr'!B142 -> ASCD:Package Large Package | F142: ='CLZ Pr'!N142 -> Package Large | G142: ='CLZ Pr'!X142 -> 0 | H142: ='CLZ Pr'!E142 -> USA | I142: ='CLZ Pr'!U142 -> 20.5
A143: =IF('CLZ Pr'!C143 = "", "", 'CLZ Pr'!C143) -> 2012-06-22 | B143: ='CLZ Pr'!O143 -> 15 | C143: ='CLZ Pr'!H143 -> 2250 | D143: ='CLZ Pr'!W143 -> Josh Santos | E143: ='CLZ Pr'!B143 -> Echopass 15 h PS | F143: ='CLZ Pr'!N143 -> Fixed Hours | G143: ='CLZ Pr'!X143 -> 0 | H143: ='CLZ Pr'!E143 -> USA | I143: ='CLZ Pr'!U143 -> 6.33
A144: =IF('CLZ Pr'!C144 = "", "", 'CLZ Pr'!C144) -> 2012-06-22 | B144: ='CLZ Pr'!O144 -> 10 | C144: ='CLZ Pr'!H144 -> 1500 | D144: ='CLZ Pr'!W144 -> Alex Gorman | E144: ='CLZ Pr'!B144 -> Argus Group:Package Medium Package | F144: ='CLZ Pr'!N144 -> Package Medium | G144: ='CLZ Pr'!X144 -> 0 | H144: ='CLZ Pr'!E144 -> USA | I144: ='CLZ Pr'!U144 -> 6.5
A145: =IF('CLZ Pr'!C145 = "", "", 'CLZ Pr'!C145) -> 2012-06-27 | B145: ='CLZ Pr'!O145 -> 10 | C145: ='CLZ Pr'!H145 -> 1500 | D145: ='CLZ Pr'!W145 -> Patrick Smith | E145: ='CLZ Pr'!B145 -> Green Bay Public Schools:Package Medium Package | F145: ='CLZ Pr'!N145 -> Package Medium | G145: ='CLZ Pr'!X145 -> 0 | H145: ='CLZ Pr'!E145 -> USA | I145: ='CLZ Pr'!U145 -> 10
A146: =IF('CLZ Pr'!C146 = "", "", 'CLZ Pr'!C146) -> 2012-06-27 | B146: ='CLZ Pr'!O146 -> 5 | C146: ='CLZ Pr'!H146 -> 800 | D146: ='CLZ Pr'!W146 -> Patrick Smith | E146: ='CLZ Pr'!B146 -> Marine Harvest:Package Small Package | F146: ='CLZ Pr'!N146 -> Package Small | G146: ='CLZ Pr'!X146 -> 0 | H146: ='CLZ Pr'!E146 -> USA | I146: ='CLZ Pr'!U146 -> 2.5
A147: =IF('CLZ Pr'!C147 = "", "", 'CLZ Pr'!C147) -> 2012-06-27 | B147: ='CLZ Pr'!O147 -> 5 | C147: ='CLZ Pr'!H147 -> 800 | D147: ='CLZ Pr'!W147 -> Noam Sayada | E147: ='CLZ Pr'!B147 -> ARS Franche-Comté:Package Small Package | F147: ='CLZ Pr'!N147 -> Package Small | G147: ='CLZ Pr'!X147 -> 0 | H147: ='CLZ Pr'!E147 -> EMEA | I147: ='CLZ Pr'!U147 -> 2
A148: =IF('CLZ Pr'!C148 = "", "", 'CLZ Pr'!C148) -> 2012-06-27 | B148: ='CLZ Pr'!O148 -> 24 | C148: ='CLZ Pr'!H148 -> 2500 | D148: ='CLZ Pr'!W148 -> Tal Noga | E148: ='CLZ Pr'!B148 -> BETTERPLACE62:Package Large Package | F148: ='CLZ Pr'!N148 -> Package Large | G148: ='CLZ Pr'!X148 -> N-X-57801 | H148: ='CLZ Pr'!E148 -> EMEA | I148: ='CLZ Pr'!U148 -> 16.15
A149: =IF('CLZ Pr'!C149 = "", "", 'CLZ Pr'!C149) -> 2012-06-29 | B149: ='CLZ Pr'!O149 -> 24 | C149: ='CLZ Pr'!H149 -> 3500 | D149: ='CLZ Pr'!W149 -> Roni Feldsher | E149: ='CLZ Pr'!B149 -> Boston Scientific Bay Area:Package Large Package | F149: ='CLZ Pr'!N149 -> Package Large | G149: ='CLZ Pr'!X149 -> 0 | H149: ='CLZ Pr'!E149 -> USA | I149: ='CLZ Pr'!U149 -> 15
A150: =IF('CLZ Pr'!C150 = "", "", 'CLZ Pr'!C150) -> 2012-06-29 | B150: ='CLZ Pr'!O150 -> 5 | C150: ='CLZ Pr'!H150 -> 800 | D150: ='CLZ Pr'!W150 -> Josh Santos | E150: ='CLZ Pr'!B150 -> ContinuousHealth:Package Small Package | F150: ='CLZ Pr'!N150 -> Package Small | G150: ='CLZ Pr'!X150 -> 0 | H150: ='CLZ Pr'!E150 -> USA | I150: ='CLZ Pr'!U150 -> 3
A151: =IF('CLZ Pr'!C151 = "", "", 'CLZ Pr'!C151) -> 2012-06-29 | B151: ='CLZ Pr'!O151 -> 3 | C151: ='CLZ Pr'!H151 -> 500 | D151: ='CLZ Pr'!W151 -> Patrick Smith | E151: ='CLZ Pr'!B151 -> PythonSafety 3h PS | F151: ='CLZ Pr'!N151 -> Fixed Hours | G151: ='CLZ Pr'!X151 -> 0 | H151: ='CLZ Pr'!E151 -> USA | I151: ='CLZ Pr'!U151 -> 3
A152: =IF('CLZ Pr'!C152 = "", "", 'CLZ Pr'!C152) -> 2012-06-29 | B152: ='CLZ Pr'!O152 -> 24 | C152: ='CLZ Pr'!H152 -> 3500 | D152: ='CLZ Pr'!W152 -> Alex Gorman | E152: ='CLZ Pr'!B152 -> PlayNetwork:Package Large Package | F152: ='CLZ Pr'!N152 -> Package Large | G152: ='CLZ Pr'!X152 -> N-X-58461 | H152: ='CLZ Pr'!E152 -> USA | I152: ='CLZ Pr'!U152 -> 6.01
A153: =IF('CLZ Pr'!C153 = "", "", 'CLZ Pr'!C153) -> 2012-06-29 | B153: ='CLZ Pr'!O153 -> 5 | C153: ='CLZ Pr'!H153 -> 800 | D153: ='CLZ Pr'!W153 -> Alex Gorman | E153: ='CLZ Pr'!B153 -> SHL:Package Small Package | F153: ='CLZ Pr'!N153 -> Package Small | G153: ='CLZ Pr'!X153 -> N-X-58441 | H153: ='CLZ Pr'!E153 -> USA | I153: ='CLZ Pr'!U153 -> 0.33
A154: =IF('CLZ Pr'!C154 = "", "", 'CLZ Pr'!C154) -> 2012-07-02 | B154: ='CLZ Pr'!O154 -> 8 | C154: ='CLZ Pr'!H154 -> 1500 | D154: ='CLZ Pr'!W154 -> Alex Gorman | E154: ='CLZ Pr'!B154 -> Vinsolutions 8h PS - On-Site | F154: ='CLZ Pr'!N154 -> Fixed Hours | G154: ='CLZ Pr'!X154 -> 0 | H154: ='CLZ Pr'!E154 -> USA | I154: ='CLZ Pr'!U154 -> 5
A155: =IF('CLZ Pr'!C155 = "", "", 'CLZ Pr'!C155) -> 2012-07-05 | B155: ='CLZ Pr'!O155 -> 10 | C155: ='CLZ Pr'!H155 -> 1500 | D155: ='CLZ Pr'!W155 -> David Goulden | E155: ='CLZ Pr'!B155 -> Twig:Package Medium Package | F155: ='CLZ Pr'!N155 -> Package Medium | G155: ='CLZ Pr'!X155 -> 0 | H155: ='CLZ Pr'!E155 -> EMEA | I155: ='CLZ Pr'!U155 -> 3
A156: =IF('CLZ Pr'!C156 = "", "", 'CLZ Pr'!C156) -> 2012-07-05 | B156: ='CLZ Pr'!O156 -> 5 | C156: ='CLZ Pr'!H156 -> 800 | D156: ='CLZ Pr'!W156 -> Eran Fishov | E156: ='CLZ Pr'!B156 -> BTG Electronics Design BV:Package Small Package | F156: ='CLZ Pr'!N156 -> Package Small | G156: ='CLZ Pr'!X156 -> N-X-57021 | H156: ='CLZ Pr'!E156 -> EMEA | I156: ='CLZ Pr'!U156 -> 5
A157: =IF('CLZ Pr'!C157 = "", "", 'CLZ Pr'!C157) -> 2012-07-05 | B157: ='CLZ Pr'!O157 -> 5 | C157: ='CLZ Pr'!H157 -> 800 | D157: ='CLZ Pr'!W157 -> Noam Sayada | E157: ='CLZ Pr'!B157 -> VB Expertise QS S | F157: ='CLZ Pr'!N157 -> Package Small | G157: ='CLZ Pr'!X157 -> 0 | H157: ='CLZ Pr'!E157 -> EMEA | I157: ='CLZ Pr'!U157 -> 3
A158: =IF('CLZ Pr'!C158 = "", "", 'CLZ Pr'!C158) -> 2012-07-05 | B158: ='CLZ Pr'!O158 -> 5 | C158: ='CLZ Pr'!H158 -> 800 | D158: ='CLZ Pr'!W158 -> Noam Sayada | E158: ='CLZ Pr'!B158 -> Strategos QS S | F158: ='CLZ Pr'!N158 -> Package Small | G158: ='CLZ Pr'!X158 -> 0 | H158: ='CLZ Pr'!E158 -> EMEA | I158: ='CLZ Pr'!U158 -> 5
A159: =IF('CLZ Pr'!C159 = "", "", 'CLZ Pr'!C159) -> 2012-07-05 | B159: ='CLZ Pr'!O159 -> 5 | C159: ='CLZ Pr'!H159 -> 800 | D159: ='CLZ Pr'!W159 -> Noam Sayada | E159: ='CLZ Pr'!B159 -> Kruger QS S | F159: ='CLZ Pr'!N159 -> Package Small | G159: ='CLZ Pr'!X159 -> 0 | H159: ='CLZ Pr'!E159 -> EMEA | I159: ='CLZ Pr'!U159 -> 5
A160: =IF('CLZ Pr'!C160 = "", "", 'CLZ Pr'!C160) -> 2012-07-05 | B160: ='CLZ Pr'!O160 -> 10 | C160: ='CLZ Pr'!H160 -> 1500 | D160: ='CLZ Pr'!W160 -> Josh Santos | E160: ='CLZ Pr'!B160 -> Protean Design Group:Package Medium Package | F160: ='CLZ Pr'!N160 -> Package Medium | G160: ='CLZ Pr'!X160 -> E-X-58422 | H160: ='CLZ Pr'!E160 -> USA | I160: ='CLZ Pr'!U160 -> 8
A161: =IF('CLZ Pr'!C161 = "", "", 'CLZ Pr'!C161) -> 2012-07-06 | B161: ='CLZ Pr'!O161 -> 10 | C161: ='CLZ Pr'!H161 -> 2150 | D161: ='CLZ Pr'!W161 -> Tal Noga | E161: ='CLZ Pr'!B161 -> OECD OCDE:Package Medium Package | F161: ='CLZ Pr'!N161 -> Package Medium | G161: ='CLZ Pr'!X161 -> N-X-45561 | H161: ='CLZ Pr'!E161 -> EMEA | I161: ='CLZ Pr'!U161 -> 8.75
A162: =IF('CLZ Pr'!C162 = "", "", 'CLZ Pr'!C162) -> 2012-07-06 | B162: ='CLZ Pr'!O162 -> 10 | C162: ='CLZ Pr'!H162 -> 1500 | D162: ='CLZ Pr'!W162 -> Alex Gorman | E162: ='CLZ Pr'!B162 -> Gems Sensors and Controls:Package Medium Package | F162: ='CLZ Pr'!N162 -> Package Medium | G162: ='CLZ Pr'!X162 -> X-59081 | H162: ='CLZ Pr'!E162 -> USA | I162: ='CLZ Pr'!U162 -> 5.33
A163: =IF('CLZ Pr'!C163 = "", "", 'CLZ Pr'!C163) -> 2012-07-09 | B163: ='CLZ Pr'!O163 -> 5 | C163: ='CLZ Pr'!H163 -> 800 | D163: ='CLZ Pr'!W163 -> Rob Sidhu | E163: ='CLZ Pr'!B163 -> Corp. Aceros Arequipa S.A.:Package Small Package | F163: ='CLZ Pr'!N163 -> Package Small | G163: ='CLZ Pr'!X163 -> N-X-53902 | H163: ='CLZ Pr'!E163 -> USA | I163: ='CLZ Pr'!U163 -> 5
A164: =IF('CLZ Pr'!C164 = "", "", 'CLZ Pr'!C164) -> 2012-07-09 | B164: ='CLZ Pr'!O164 -> 1 | C164: ='CLZ Pr'!H164 -> 0 | D164: ='CLZ Pr'!W164 -> Alex Gorman | E164: ='CLZ Pr'!B164 -> School District of Philadelphia 1h PS | F164: ='CLZ Pr'!N164 -> Fixed Hours | G164: ='CLZ Pr'!X164 -> N-45101 | H164: ='CLZ Pr'!E164 -> USA | I164: ='CLZ Pr'!U164 -> 0
A165: =IF('CLZ Pr'!C165 = "", "", 'CLZ Pr'!C165) -> 2012-07-10 | B165: ='CLZ Pr'!O165 -> 5 | C165: ='CLZ Pr'!H165 -> 800 | D165: ='CLZ Pr'!W165 -> Jonah Kadish | E165: ='CLZ Pr'!B165 -> Market Fever Pty Ltd:Package Small Package | F165: ='CLZ Pr'!N165 -> Package Small | G165: ='CLZ Pr'!X165 -> N-X-52961 | H165: ='CLZ Pr'!E165 -> ROW | I165: ='CLZ Pr'!U165 -> 5
A166: =IF('CLZ Pr'!C166 = "", "", 'CLZ Pr'!C166) -> 2012-07-10 | B166: ='CLZ Pr'!O166 -> 10 | C166: ='CLZ Pr'!H166 -> 1500 | D166: ='CLZ Pr'!W166 -> David Goulden | E166: ='CLZ Pr'!B166 -> Bazy Trading and Contracting Co. Ltd: QS Package Medium | F166: ='CLZ Pr'!N166 -> Package Medium | G166: ='CLZ Pr'!X166 -> X-59183 | H166: ='CLZ Pr'!E166 -> EMEA | I166: ='CLZ Pr'!U166 -> 10
A167: =IF('CLZ Pr'!C167 = "", "", 'CLZ Pr'!C167) -> 2012-07-10 | B167: ='CLZ Pr'!O167 -> 1.5 | C167: ='CLZ Pr'!H167 -> 0 | D167: ='CLZ Pr'!W167 -> Alex Gorman | E167: ='CLZ Pr'!B167 -> Websense: 1.5h PS Excel Add-in | F167: ='CLZ Pr'!N167 -> Fixed Hours | G167: ='CLZ Pr'!X167 -> E-40861 | H167: ='CLZ Pr'!E167 -> USA | I167: ='CLZ Pr'!U167 -> 0
A168: =IF('CLZ Pr'!C168 = "", "", 'CLZ Pr'!C168) -> 2012-07-12 | B168: ='CLZ Pr'!O168 -> 2 | C168: ='CLZ Pr'!H168 -> 300 | D168: ='CLZ Pr'!W168 -> David Goulden | E168: ='CLZ Pr'!B168 -> GETECH: 2h PS | F168: ='CLZ Pr'!N168 -> Fixed Hours | G168: ='CLZ Pr'!X168 -> X-12345 | H168: ='CLZ Pr'!E168 -> EMEA | I168: ='CLZ Pr'!U168 -> 0
A169: =IF('CLZ Pr'!C169 = "", "", 'CLZ Pr'!C169) -> 2012-07-13 | B169: ='CLZ Pr'!O169 -> 1 | C169: ='CLZ Pr'!H169 -> 0 | D169: ='CLZ Pr'!W169 -> Josh Santos | E169: ='CLZ Pr'!B169 -> Emagine: 1h PS | F169: ='CLZ Pr'!N169 -> Fixed Hours | G169: ='CLZ Pr'!X169 -> X-12345 | H169: ='CLZ Pr'!E169 -> USA | I169: ='CLZ Pr'!U169 -> 0
A170: =IF('CLZ Pr'!C170 = "", "", 'CLZ Pr'!C170) -> 2012-07-14 | B170: ='CLZ Pr'!O170 -> 2 | C170: ='CLZ Pr'!H170 -> 0 | D170: ='CLZ Pr'!W170 -> Josh Santos | E170: ='CLZ Pr'!B170 -> MOSAIC: 2h PS | F170: ='CLZ Pr'!N170 -> Fixed Hours | G170: ='CLZ Pr'!X170 -> N-34401 | H170: ='CLZ Pr'!E170 -> USA | I170: ='CLZ Pr'!U170 -> 0
A171: =IF('CLZ Pr'!C171 = "", "", 'CLZ Pr'!C171) -> 2012-07-16 | B171: ='CLZ Pr'!O171 -> 10 | C171: ='CLZ Pr'!H171 -> 1500 | D171: ='CLZ Pr'!W171 -> Evgeni Haikin | E171: ='CLZ Pr'!B171 -> trustcapstroy: QS Package Medium | F171: ='CLZ Pr'!N171 -> Package Medium | G171: ='CLZ Pr'!X171 -> N-X-59641 | H171: ='CLZ Pr'!E171 -> EMEA | I171: ='CLZ Pr'!U171 -> 10
A172: =IF('CLZ Pr'!C172 = "", "", 'CLZ Pr'!C172) -> 2012-07-16 | B172: ='CLZ Pr'!O172 -> 24 | C172: ='CLZ Pr'!H172 -> 3500 | D172: ='CLZ Pr'!W172 -> David Goulden | E172: ='CLZ Pr'!B172 -> Clydeco: QS Package Large | F172: ='CLZ Pr'!N172 -> Package Large | G172: ='CLZ Pr'!X172 -> N-X-59361 | H172: ='CLZ Pr'!E172 -> EMEA | I172: ='CLZ Pr'!U172 -> 1.5
A173: =IF('CLZ Pr'!C173 = "", "", 'CLZ Pr'!C173) -> 2012-07-17 | B173: ='CLZ Pr'!O173 -> 5 | C173: ='CLZ Pr'!H173 -> 800 | D173: ='CLZ Pr'!W173 -> Eran Fishov | E173: ='CLZ Pr'!B173 -> Binding Site: QS Package Small | F173: ='CLZ Pr'!N173 -> Package Small | G173: ='CLZ Pr'!X173 -> PS-X-51781 | H173: ='CLZ Pr'!E173 -> EMEA | I173: ='CLZ Pr'!U173 -> 3
A174: =IF('CLZ Pr'!C174 = "", "", 'CLZ Pr'!C174) -> 2012-07-17 | B174: ='CLZ Pr'!O174 -> 10 | C174: ='CLZ Pr'!H174 -> 1500 | D174: ='CLZ Pr'!W174 -> Rob Sidhu | E174: ='CLZ Pr'!B174 -> Mosaic Consulting Group: QS Package Medium | F174: ='CLZ Pr'!N174 -> Package Medium | G174: ='CLZ Pr'!X174 -> N-X-59862 | H174: ='CLZ Pr'!E174 -> USA | I174: ='CLZ Pr'!U174 -> 4.25
A175: =IF('CLZ Pr'!C175 = "", "", 'CLZ Pr'!C175) -> 2012-07-18 | B175: ='CLZ Pr'!O175 -> 24 | C175: ='CLZ Pr'!H175 -> 3500 | D175: ='CLZ Pr'!W175 -> G.I.Teh | E175: ='CLZ Pr'!B175 -> HP: QS Package Large | F175: ='CLZ Pr'!N175 -> Package Large | G175: ='CLZ Pr'!X175 -> N-X-60041 | H175: ='CLZ Pr'!E175 -> USA | I175: ='CLZ Pr'!U175 -> 21
A176: =IF('CLZ Pr'!C176 = "", "", 'CLZ Pr'!C176) -> 2012-07-19 | B176: ='CLZ Pr'!O176 -> 1 | C176: ='CLZ Pr'!H176 -> 0 | D176: ='CLZ Pr'!W176 -> G.I.Teh | E176: ='CLZ Pr'!B176 -> WayCarbon: 1h PS | F176: ='CLZ Pr'!N176 -> Fixed Hours | G176: ='CLZ Pr'!X176 -> X-12345 | H176: ='CLZ Pr'!E176 -> USA | I176: ='CLZ Pr'!U176 -> 0.5
A177: =IF('CLZ Pr'!C177 = "", "", 'CLZ Pr'!C177) -> 2012-07-20 | B177: ='CLZ Pr'!O177 -> 13 | C177: ='CLZ Pr'!H177 -> 1500 | D177: ='CLZ Pr'!W177 -> G.I.Teh | E177: ='CLZ Pr'!B177 -> ITW: QS Package Medium | F177: ='CLZ Pr'!N177 -> Package Medium | G177: ='CLZ Pr'!X177 -> X-12345 | H177: ='CLZ Pr'!E177 -> USA | I177: ='CLZ Pr'!U177 -> 5.5
A178: =IF('CLZ Pr'!C178 = "", "", 'CLZ Pr'!C178) -> 2012-07-24 | B178: ='CLZ Pr'!O178 -> 1 | C178: ='CLZ Pr'!H178 -> 0 | D178: ='CLZ Pr'!W178 -> Alex Gorman | E178: ='CLZ Pr'!B178 -> NCS: 1h PS | F178: ='CLZ Pr'!N178 -> Fixed Hours | G178: ='CLZ Pr'!X178 -> 0 | H178: ='CLZ Pr'!E178 -> USA | I178: ='CLZ Pr'!U178 -> 0
A179: =IF('CLZ Pr'!C179 = "", "", 'CLZ Pr'!C179) -> 2012-07-24 | B179: ='CLZ Pr'!O179 -> 10 | C179: ='CLZ Pr'!H179 -> 1125 | D179: ='CLZ Pr'!W179 -> Roni Feldsher | E179: ='CLZ Pr'!B179 -> VCE LLC: QS Package Medium | F179: ='CLZ Pr'!N179 -> Package Medium | G179: ='CLZ Pr'!X179 -> X-60483 | H179: ='CLZ Pr'!E179 -> USA | I179: ='CLZ Pr'!U179 -> 10
A180: =IF('CLZ Pr'!C180 = "", "", 'CLZ Pr'!C180) -> 2012-07-25 | B180: ='CLZ Pr'!O180 -> 5 | C180: ='CLZ Pr'!H180 -> 800 | D180: ='CLZ Pr'!W180 -> Patrick Smith | E180: ='CLZ Pr'!B180 -> Autodesk: QS Package Small | F180: ='CLZ Pr'!N180 -> Package Small | G180: ='CLZ Pr'!X180 -> X-60603 | H180: ='CLZ Pr'!E180 -> USA | I180: ='CLZ Pr'!U180 -> 3
A181: =IF('CLZ Pr'!C181 = "", "", 'CLZ Pr'!C181) -> 2012-07-25 | B181: ='CLZ Pr'!O181 -> 24 | C181: ='CLZ Pr'!H181 -> 3500 | D181: ='CLZ Pr'!W181 -> Alex Gorman | E181: ='CLZ Pr'!B181 -> BBVA NY: QS Package Large | F181: ='CLZ Pr'!N181 -> Package Large | G181: ='CLZ Pr'!X181 -> X-60604 | H181: ='CLZ Pr'!E181 -> USA | I181: ='CLZ Pr'!U181 -> 24
A182: =IF('CLZ Pr'!C182 = "", "", 'CLZ Pr'!C182) -> 2012-07-26 | B182: ='CLZ Pr'!O182 -> 120 | C182: ='CLZ Pr'!H182 -> 10800 | D182: ='CLZ Pr'!W182 -> Eran Fishov | E182: ='CLZ Pr'!B182 -> Ness: 120h PS | F182: ='CLZ Pr'!N182 -> Fixed Hours | G182: ='CLZ Pr'!X182 -> N-X-60482 | H182: ='CLZ Pr'!E182 -> EMEA | I182: ='CLZ Pr'!U182 -> 107
A183: =IF('CLZ Pr'!C183 = "", "", 'CLZ Pr'!C183) -> 2012-07-27 | B183: ='CLZ Pr'!O183 -> 24 | C183: ='CLZ Pr'!H183 -> 3500 | D183: ='CLZ Pr'!W183 -> Tal Noga | E183: ='CLZ Pr'!B183 -> GreenPointGlobal: QS Package Large | F183: ='CLZ Pr'!N183 -> Package Large | G183: ='CLZ Pr'!X183 -> N-X-57981 | H183: ='CLZ Pr'!E183 -> EMEA | I183: ='CLZ Pr'!U183 -> 24
A184: =IF('CLZ Pr'!C184 = "", "", 'CLZ Pr'!C184) -> 2012-07-27 | B184: ='CLZ Pr'!O184 -> 10 | C184: ='CLZ Pr'!H184 -> 1500 | D184: ='CLZ Pr'!W184 -> Rob Sidhu | E184: ='CLZ Pr'!B184 -> STAR Financial: QS Package Medium | F184: ='CLZ Pr'!N184 -> Package Medium | G184: ='CLZ Pr'!X184 -> X-60902 | H184: ='CLZ Pr'!E184 -> USA | I184: ='CLZ Pr'!U184 -> 9
A185: =IF('CLZ Pr'!C185 = "", "", 'CLZ Pr'!C185) -> 2012-07-28 | B185: ='CLZ Pr'!O185 -> 40 | C185: ='CLZ Pr'!H185 -> 5833 | D185: ='CLZ Pr'!W185 -> Roni Feldsher | E185: ='CLZ Pr'!B185 -> Encore Capital Group: 40h PS | F185: ='CLZ Pr'!N185 -> Fixed Hours | G185: ='CLZ Pr'!X185 -> N-X-60941 | H185: ='CLZ Pr'!E185 -> USA | I185: ='CLZ Pr'!U185 -> 32
A186: =IF('CLZ Pr'!C186 = "", "", 'CLZ Pr'!C186) -> 2012-07-30 | B186: ='CLZ Pr'!O186 -> 40 | C186: ='CLZ Pr'!H186 -> 6000 | D186: ='CLZ Pr'!W186 -> Noam Sayada | E186: ='CLZ Pr'!B186 -> SIGMA Groupe: 40h PS | F186: ='CLZ Pr'!N186 -> Fixed Hours | G186: ='CLZ Pr'!X186 -> N-X-51602 | H186: ='CLZ Pr'!E186 -> EMEA | I186: ='CLZ Pr'!U186 -> 29
A187: =IF('CLZ Pr'!C187 = "", "", 'CLZ Pr'!C187) -> 2012-07-30 | B187: ='CLZ Pr'!O187 -> 24 | C187: ='CLZ Pr'!H187 -> 3500 | D187: ='CLZ Pr'!W187 -> Noam Sayada | E187: ='CLZ Pr'!B187 -> Teylium: QS Package Large | F187: ='CLZ Pr'!N187 -> Package Large | G187: ='CLZ Pr'!X187 -> N-X-60484 | H187: ='CLZ Pr'!E187 -> EMEA | I187: ='CLZ Pr'!U187 -> 24
A188: =IF('CLZ Pr'!C188 = "", "", 'CLZ Pr'!C188) -> 2012-07-31 | B188: ='CLZ Pr'!O188 -> 5 | C188: ='CLZ Pr'!H188 -> 800 | D188: ='CLZ Pr'!W188 -> Rob Sidhu | E188: ='CLZ Pr'!B188 -> Institute of Internal Auditors: QS Package Small | F188: ='CLZ Pr'!N188 -> Package Small | G188: ='CLZ Pr'!X188 -> N-X-61104 | H188: ='CLZ Pr'!E188 -> USA | I188: ='CLZ Pr'!U188 -> 4
A189: =IF('CLZ Pr'!C189 = "", "", 'CLZ Pr'!C189) -> 2012-07-31 | B189: ='CLZ Pr'!O189 -> 2 | C189: ='CLZ Pr'!H189 -> 0 | D189: ='CLZ Pr'!W189 -> Alex Gorman | E189: ='CLZ Pr'!B189 -> NCS: 2h PS | F189: ='CLZ Pr'!N189 -> Fixed Hours | G189: ='CLZ Pr'!X189 -> X-61101 | H189: ='CLZ Pr'!E189 -> USA | I189: ='CLZ Pr'!U189 -> 0
A190: =IF('CLZ Pr'!C190 = "", "", 'CLZ Pr'!C190) -> 2012-08-01 | B190: ='CLZ Pr'!O190 -> 24 | C190: ='CLZ Pr'!H190 -> 3500 | D190: ='CLZ Pr'!W190 -> Roni Feldsher | E190: ='CLZ Pr'!B190 -> Box Client Services: QS Package Large | F190: ='CLZ Pr'!N190 -> Package Large | G190: ='CLZ Pr'!X190 -> N-X-61109 | H190: ='CLZ Pr'!E190 -> USA | I190: ='CLZ Pr'!U190 -> 22.5
A191: =IF('CLZ Pr'!C191 = "", "", 'CLZ Pr'!C191) -> 2012-08-01 | B191: ='CLZ Pr'!O191 -> 5 | C191: ='CLZ Pr'!H191 -> 800 | D191: ='CLZ Pr'!W191 -> Alex Gorman | E191: ='CLZ Pr'!B191 -> XPLANE corp: QS Package Small | F191: ='CLZ Pr'!N191 -> Package Small | G191: ='CLZ Pr'!X191 -> N-X-61031 | H191: ='CLZ Pr'!E191 -> USA | I191: ='CLZ Pr'!U191 -> 5
A192: =IF('CLZ Pr'!C192 = "", "", 'CLZ Pr'!C192) -> 2012-08-01 | B192: ='CLZ Pr'!O192 -> 24 | C192: ='CLZ Pr'!H192 -> 3500 | D192: ='CLZ Pr'!W192 -> Roni Feldsher | E192: ='CLZ Pr'!B192 -> Shuffle Master: QS Package Large | F192: ='CLZ Pr'!N192 -> Package Large | G192: ='CLZ Pr'!X192 -> N-X-60741 | H192: ='CLZ Pr'!E192 -> USA | I192: ='CLZ Pr'!U192 -> 24
A193: =IF('CLZ Pr'!C193 = "", "", 'CLZ Pr'!C193) -> 2012-08-01 | B193: ='CLZ Pr'!O193 -> 10 | C193: ='CLZ Pr'!H193 -> 1500 | D193: ='CLZ Pr'!W193 -> Rob Sidhu | E193: ='CLZ Pr'!B193 -> Wieck Media: QS Package Medium | F193: ='CLZ Pr'!N193 -> Package Medium | G193: ='CLZ Pr'!X193 -> N-X-61029 | H193: ='CLZ Pr'!E193 -> USA | I193: ='CLZ Pr'!U193 -> 10
A194: =IF('CLZ Pr'!C194 = "", "", 'CLZ Pr'!C194) -> 2012-08-01 | B194: ='CLZ Pr'!O194 -> 5 | C194: ='CLZ Pr'!H194 -> 800 | D194: ='CLZ Pr'!W194 -> Patrick Smith | E194: ='CLZ Pr'!B194 -> RUTGERS UNIVERSITY31: QS Package Small | F194: ='CLZ Pr'!N194 -> Package Small | G194: ='CLZ Pr'!X194 -> N-X-60301 | H194: ='CLZ Pr'!E194 -> USA | I194: ='CLZ Pr'!U194 -> 5
A195: =IF('CLZ Pr'!C195 = "", "", 'CLZ Pr'!C195) -> 2012-08-02 | B195: ='CLZ Pr'!O195 -> 5 | C195: ='CLZ Pr'!H195 -> 800 | D195: ='CLZ Pr'!W195 -> Rob Sidhu | E195: ='CLZ Pr'!B195 -> Nerd Whisperers: QS Package Small | F195: ='CLZ Pr'!N195 -> Package Small | G195: ='CLZ Pr'!X195 -> X-61241 | H195: ='CLZ Pr'!E195 -> USA | I195: ='CLZ Pr'!U195 -> 4.25
A196: =IF('CLZ Pr'!C196 = "", "", 'CLZ Pr'!C196) -> 2012-08-03 | B196: ='CLZ Pr'!O196 -> 5 | C196: ='CLZ Pr'!H196 -> 800 | D196: ='CLZ Pr'!W196 -> David Goulden | E196: ='CLZ Pr'!B196 -> Eqstra: QS Package Small | F196: ='CLZ Pr'!N196 -> Package Small | G196: ='CLZ Pr'!X196 -> N-X-61281 | H196: ='CLZ Pr'!E196 -> EMEA | I196: ='CLZ Pr'!U196 -> 5
A197: =IF('CLZ Pr'!C197 = "", "", 'CLZ Pr'!C197) -> 2012-08-09 | B197: ='CLZ Pr'!O197 -> 1.4 | C197: ='CLZ Pr'!H197 -> 0 | D197: ='CLZ Pr'!W197 -> Alex Gorman | E197: ='CLZ Pr'!B197 -> NCS: 1.4h PS | F197: ='CLZ Pr'!N197 -> Fixed Hours | G197: ='CLZ Pr'!X197 -> X-61101 | H197: ='CLZ Pr'!E197 -> USA | I197: ='CLZ Pr'!U197 -> 0
A198: =IF('CLZ Pr'!C198 = "", "", 'CLZ Pr'!C198) ->  | B198: ='CLZ Pr'!O198 -> 0 | C198: ='CLZ Pr'!H198 -> 0 | D198: ='CLZ Pr'!W198 -> 0 | E198: ='CLZ Pr'!B198 -> 0 | F198: ='CLZ Pr'!N198 -> 0 | G198: ='CLZ Pr'!X198 -> 0 | H198: ='CLZ Pr'!E198 -> 0 | I198: ='CLZ Pr'!U198 -> 0
A199: =IF('CLZ Pr'!C199 = "", "", 'CLZ Pr'!C199) ->  | B199: ='CLZ Pr'!O199 -> 0 | C199: ='CLZ Pr'!H199 -> 0 | D199: ='CLZ Pr'!W199 -> 0 | E199: ='CLZ Pr'!B199 -> 0 | F199: ='CLZ Pr'!N199 -> 0 | G199: ='CLZ Pr'!X199 -> 0 | H199: ='CLZ Pr'!E199 -> 0 | I199: ='CLZ Pr'!U199 -> 0
A200: =IF('CLZ Pr'!C200 = "", "", 'CLZ Pr'!C200) ->  | B200: ='CLZ Pr'!O200 -> 0 | C200: ='CLZ Pr'!H200 -> 0 | D200: ='CLZ Pr'!W200 -> 0 | E200: ='CLZ Pr'!B200 -> 0 | F200: ='CLZ Pr'!N200 -> 0 | G200: ='CLZ Pr'!X200 -> 0 | H200: ='CLZ Pr'!E200 -> 0 | I200: ='CLZ Pr'!U200 -> 0
... 5403 more rows

Sheet Delivered
A1: Work Item.ID | B1: Reproter name | C1: Duration | D1: Duration.Unit | E1: Project Name | F1: Project Type | G1: Project ID | H1: Package Type | I1: CS Region | J1: CS Category | K1: Billable | L1: Reported Date | M1: Recognition | N1: PO Number | O1: Remainig
A2: =T('CLZ TT'!A2) -> P-182883 | B2: =T('CLZ TT'!D2) -> Patrick Smith | C2: =IF(LEN(A2) > 0, 'CLZ TT'!E2, "") -> 3.5 | D2: =T('CLZ TT'!F2) -> Hours | E2: =IFERROR(VLOOKUP('CLZ TT'!A2,'CLZ WI'!$A$1:$E$100000,3,FALSE),"") -> Brisbane Marketing Pty Ltd 6 h PS | F2: =IFERROR(VLOOKUP('CLZ TT'!A2,'CLZ WI'!$A$1:$E$100000,4,FALSE),"") -> CS Project | G2: =IFERROR(VLOOKUP('CLZ TT'!A2,'CLZ WI'!$A$1:$K$100000,5,FALSE),"") -> P-182883 | H2: =IFERROR(VLOOKUP(G2,'CLZ WI'!$A$1:$K$100000,6,FALSE),"") -> Fixed Hours | I2: =IFERROR(VLOOKUP(G2,'CLZ WI'!$A$1:$K$100000,7,FALSE),"") -> USA | J2: =T('CLZ TT'!I2) ->  | K2: =IF(IFERROR(VLOOKUP('CLZ TT'!A2,'CLZ WI'!$A$1:$L$100000,12,FALSE),"")=TRUE, "Billable", IF(IFERROR(VLOOKUP('CLZ TT'!A2,'CLZ WI'!$A$1:$L$100000,12,FALSE),"")=FALSE, "Non-Billable", "")) -> Billable | L2: =IF('CLZ TT'!G2="","",'CLZ TT'!G2) -> 2012-03-01 | M2: =IFERROR(VLOOKUP(G2,'CLZ Pr'!$A$1:$X$100000,12,FALSE)*C2,"") -> 583.345 | N2: =IFERROR(VLOOKUP(G2,'CLZ Pr'!$A$1:$X$100000,24,FALSE), "") -> 0 | O2: =IFERROR(VLOOKUP(G2,'CLZ Pr'!$A$1:$X$100000,21,FALSE), "") -> 2
A3: =T('CLZ TT'!A3) -> P-148213 | B3: =T('CLZ TT'!D3) -> Josh Santos | C3: =IF(LEN(A3) > 0, 'CLZ TT'!E3, "") -> 4 | D3: =T('CLZ TT'!F3) -> Hours | E3: =IFERROR(VLOOKUP('CLZ TT'!A3,'CLZ WI'!$A$1:$E$100000,3,FALSE),"") -> JTS Onsite Training (in US office) | F3: =IFERROR(VLOOKUP('CLZ TT'!A3,'CLZ WI'!$A$1:$E$100000,4,FALSE),"") -> CS Project | G3: =IFERROR(VLOOKUP('CLZ TT'!A3,'CLZ WI'!$A$1:$K$100000,5,FALSE),"") -> P-148213 | H3: =IFERROR(VLOOKUP(G3,'CLZ WI'!$A$1:$K$100000,6,FALSE),"") -> Fixed Hours | I3: =IFERROR(VLOOKUP(G3,'CLZ WI'!$A$1:$K$100000,7,FALSE),"") -> USA | J3: =T('CLZ TT'!I3) ->  | K3: =IF(IFERROR(VLOOKUP('CLZ TT'!A3,'CLZ WI'!$A$1:$L$100000,12,FALSE),"")=TRUE, "Billable", IF(IFERROR(VLOOKUP('CLZ TT'!A3,'CLZ WI'!$A$1:$L$100000,12,FALSE),"")=FALSE, "Non-Billable", "")) -> Billable | L3: =IF('CLZ TT'!G3="","",'CLZ TT'!G3) -> 2012-03-01 | M3: =IFERROR(VLOOKUP(G3,'CLZ Pr'!$A$1:$X$100000,12,FALSE)*C3,"") ->  | N3: =IFERROR(VLOOKUP(G3,'CLZ Pr'!$A$1:$X$100000,24,FALSE), "") ->  | O3: =IFERROR(VLOOKUP(G3,'CLZ Pr'!$A$1:$X$100000,21,FALSE), "") -> 
A4: =T('CLZ TT'!A4) -> T-294653 | B4: =T('CLZ TT'!D4) -> Tal Noga | C4: =IF(LEN(A4) > 0, 'CLZ TT'!E4, "") -> 2 | D4: =T('CLZ TT'!F4) -> Hours | E4: =IFERROR(VLOOKUP('CLZ TT'!A4,'CLZ WI'!$A$1:$E$100000,3,FALSE),"") -> Qoveo - 8h 1000$ | F4: =IFERROR(VLOOKUP('CLZ TT'!A4,'CLZ WI'!$A$1:$E$100000,4,FALSE),"") -> CS Project | G4: =IFERROR(VLOOKUP('CLZ TT'!A4,'CLZ WI'!$A$1:$K$100000,5,FALSE),"") -> P-114863 | H4: =IFERROR(VLOOKUP(G4,'CLZ WI'!$A$1:$K$100000,6,FALSE),"") -> Fixed Hours | I4: =IFERROR(VLOOKUP(G4,'CLZ WI'!$A$1:$K$100000,7,FALSE),"") -> EMEA | J4: =T('CLZ TT'!I4) ->  | K4: =IF(IFERROR(VLOOKUP('CLZ TT'!A4,'CLZ WI'!$A$1:$L$100000,12,FALSE),"")=TRUE, "Billable", IF(IFERROR(VLOOKUP('CLZ TT'!A4,'CLZ WI'!$A$1:$L$100000,12,FALSE),"")=FALSE, "Non-Billable", "")) -> Billable | L4: =IF('CLZ TT'!G4="","",'CLZ TT'!G4) -> 2012-03-01 | M4: =IFERROR(VLOOKUP(G4,'CLZ Pr'!$A$1:$X$100000,12,FALSE)*C4,"") ->  | N4: =IFERROR(VLOOKUP(G4,'CLZ Pr'!$A$1:$X$100000,24,FALSE), "") ->  | O4: =IFERROR(VLOOKUP(G4,'CLZ Pr'!$A$1:$X$100000,21,FALSE), "") -> 
A5: =T('CLZ TT'!A5) -> T-78151 | B5: =T('CLZ TT'!D5) -> Rami Cohen | C5: =IF(LEN(A5) > 0, 'CLZ TT'!E5, "") -> 1 | D5: =T('CLZ TT'!F5) -> Hours | E5: =IFERROR(VLOOKUP('CLZ TT'!A5,'CLZ WI'!$A$1:$E$100000,3,FALSE),"") -> Orbit.uk | F5: =IFERROR(VLOOKUP('CLZ TT'!A5,'CLZ WI'!$A$1:$E$100000,4,FALSE),"") -> CS Project | G5: =IFERROR(VLOOKUP('CLZ TT'!A5,'CLZ WI'!$A$1:$K$100000,5,FALSE),"") -> P-25770 | H5: =IFERROR(VLOOKUP(G5,'CLZ WI'!$A$1:$K$100000,6,FALSE),"") -> Fixed Hours | I5: =IFERROR(VLOOKUP(G5,'CLZ WI'!$A$1:$K$100000,7,FALSE),"") -> EMEA | J5: =T('CLZ TT'!I5) -> Customization | K5: =IF(IFERROR(VLOOKUP('CLZ TT'!A5,'CLZ WI'!$A$1:$L$100000,12,FALSE),"")=TRUE, "Billable", IF(IFERROR(VLOOKUP('CLZ TT'!A5,'CLZ WI'!$A$1:$L$100000,12,FALSE),"")=FALSE, "Non-Billable", "")) -> Billable | L5: =IF('CLZ TT'!G5="","",'CLZ TT'!G5) -> 2012-03-01 | M5: =IFERROR(VLOOKUP(G5,'CLZ Pr'!$A$1:$X$100000,12,FALSE)*C5,"") ->  | N5: =IFERROR(VLOOKUP(G5,'CLZ Pr'!$A$1:$X$100000,24,FALSE), "") ->  | O5: =IFERROR(VLOOKUP(G5,'CLZ Pr'!$A$1:$X$100000,21,FALSE), "") -> 
A6: =T('CLZ TT'!A6) -> T-310042 | B6: =T('CLZ TT'!D6) -> Rami Cohen | C6: =IF(LEN(A6) > 0, 'CLZ TT'!E6, "") -> 4 | D6: =T('CLZ TT'!F6) -> Hours | E6: =IFERROR(VLOOKUP('CLZ TT'!A6,'CLZ WI'!$A$1:$E$100000,3,FALSE),"") -> MIG | F6: =IFERROR(VLOOKUP('CLZ TT'!A6,'CLZ WI'!$A$1:$E$100000,4,FALSE),"") -> CS Project | G6: =IFERROR(VLOOKUP('CLZ TT'!A6,'CLZ WI'!$A$1:$K$100000,5,FALSE),"") -> P-122349 | H6: =IFERROR(VLOOKUP(G6,'CLZ WI'!$A$1:$K$100000,6,FALSE),"") -> Fixed Hours | I6: =IFERROR(VLOOKUP(G6,'CLZ WI'!$A$1:$K$100000,7,FALSE),"") -> EMEA | J6: =T('CLZ TT'!I6) ->  | K6: =IF(IFERROR(VLOOKUP('CLZ TT'!A6,'CLZ WI'!$A$1:$L$100000,12,FALSE),"")=TRUE, "Billable", IF(IFERROR(VLOOKUP('CLZ TT'!A6,'CLZ WI'!$A$1:$L$100000,12,FALSE),"")=FALSE, "Non-Billable", "")) -> Billable | L6: =IF('CLZ TT'!G6="","",'CLZ TT'!G6) -> 2012-03-01 | M6: =IFERROR(VLOOKUP(G6,'CLZ Pr'!$A$1:$X$100000,12,FALSE)*C6,"") ->  | N6: =IFERROR(VLOOKUP(G6,'CLZ Pr'!$A$1:$X$100000,24,FALSE), "") ->  | O6: =IFERROR(VLOOKUP(G6,'CLZ Pr'!$A$1:$X$100000,21,FALSE), "") -> 
A7: =T('CLZ TT'!A7) -> M-174397 | B7: =T('CLZ TT'!D7) -> Eran Fishov | C7: =IF(LEN(A7) > 0, 'CLZ TT'!E7, "") -> 1 | D7: =T('CLZ TT'!F7) -> Hours | E7: =IFERROR(VLOOKUP('CLZ TT'!A7,'CLZ WI'!$A$1:$E$100000,3,FALSE),"") -> Afinium Tier 2 QS | F7: =IFERROR(VLOOKUP('CLZ TT'!A7,'CLZ WI'!$A$1:$E$100000,4,FALSE),"") -> CS Quick Start | G7: =IFERROR(VLOOKUP('CLZ TT'!A7,'CLZ WI'!$A$1:$K$100000,5,FALSE),"") -> P-137424 | H7: =IFERROR(VLOOKUP(G7,'CLZ WI'!$A$1:$K$100000,6,FALSE),"") -> Package Medium | I7: =IFERROR(VLOOKUP(G7,'CLZ WI'!$A$1:$K$100000,7,FALSE),"") -> EMEA | J7: =T('CLZ TT'!I7) ->  | K7: =IF(IFERROR(VLOOKUP('CLZ TT'!A7,'CLZ WI'!$A$1:$L$100000,12,FALSE),"")=TRUE, "Billable", IF(IFERROR(VLOOKUP('CLZ TT'!A7,'CLZ WI'!$A$1:$L$100000,12,FALSE),"")=FALSE, "Non-Billable", "")) -> Billable | L7: =IF('CLZ TT'!G7="","",'CLZ TT'!G7) -> 2012-03-01 | M7: =IFERROR(VLOOKUP(G7,'CLZ Pr'!$A$1:$X$100000,12,FALSE)*C7,"") ->  | N7: =IFERROR(VLOOKUP(G7,'CLZ Pr'!$A$1:$X$100000,24,FALSE), "") ->  | O7: =IFERROR(VLOOKUP(G7,'CLZ Pr'!$A$1:$X$100000,21,FALSE), "") -> 
A8: =T('CLZ TT'!A8) -> P-148213 | B8: =T('CLZ TT'!D8) -> Josh Santos | C8: =IF(LEN(A8) > 0, 'CLZ TT'!E8, "") -> 4 | D8: =T('CLZ TT'!F8) -> Hours | E8: =IFERROR(VLOOKUP('CLZ TT'!A8,'CLZ WI'!$A$1:$E$100000,3,FALSE),"") -> JTS Onsite Training (in US office) | F8: =IFERROR(VLOOKUP('CLZ TT'!A8,'CLZ WI'!$A$1:$E$100000,4,FALSE),"") -> CS Project | G8: =IFERROR(VLOOKUP('CLZ TT'!A8,'CLZ WI'!$A$1:$K$100000,5,FALSE),"") -> P-148213 | H8: =IFERROR(VLOOKUP(G8,'CLZ WI'!$A$1:$K$100000,6,FALSE),"") -> Fixed Hours | I8: =IFERROR(VLOOKUP(G8,'CLZ WI'!$A$1:$K$100000,7,FALSE),"") -> USA | J8: =T('CLZ TT'!I8) ->  | K8: =IF(IFERROR(VLOOKUP('CLZ TT'!A8,'CLZ WI'!$A$1:$L$100000,12,FALSE),"")=TRUE, "Billable", IF(IFERROR(VLOOKUP('CLZ TT'!A8,'CLZ WI'!$A$1:$L$100000,12,FALSE),"")=FALSE, "Non-Billable", "")) -> Billable | L8: =IF('CLZ TT'!G8="","",'CLZ TT'!G8) -> 2012-03-02 | M8: =IFERROR(VLOOKUP(G8,'CLZ Pr'!$A$1:$X$100000,12,FALSE)*C8,"") ->  | N8: =IFERROR(VLOOKUP(G8,'CLZ Pr'!$A$1:$X$100000,24,FALSE), "") ->  | O8: =IFERROR(VLOOKUP(G8,'CLZ Pr'!$A$1:$X$100000,21,FALSE), "") -> 
A9: =T('CLZ TT'!A9) -> T-294653 | B9: =T('CLZ TT'!D9) -> Tal Noga | C9: =IF(LEN(A9) > 0, 'CLZ TT'!E9, "") -> 1.67 | D9: =T('CLZ TT'!F9) -> Hours | E9: =IFERROR(VLOOKUP('CLZ TT'!A9,'CLZ WI'!$A$1:$E$100000,3,FALSE),"") -> Qoveo - 8h 1000$ | F9: =IFERROR(VLOOKUP('CLZ TT'!A9,'CLZ WI'!$A$1:$E$100000,4,FALSE),"") -> CS Project | G9: =IFERROR(VLOOKUP('CLZ TT'!A9,'CLZ WI'!$A$1:$K$100000,5,FALSE),"") -> P-114863 | H9: =IFERROR(VLOOKUP(G9,'CLZ WI'!$A$1:$K$100000,6,FALSE),"") -> Fixed Hours | I9: =IFERROR(VLOOKUP(G9,'CLZ WI'!$A$1:$K$100000,7,FALSE),"") -> EMEA | J9: =T('CLZ TT'!I9) -> Training | K9: =IF(IFERROR(VLOOKUP('CLZ TT'!A9,'CLZ WI'!$A$1:$L$100000,12,FALSE),"")=TRUE, "Billable", IF(IFERROR(VLOOKUP('CLZ TT'!A9,'CLZ WI'!$A$1:$L$100000,12,FALSE),"")=FALSE, "Non-Billable", "")) -> Billable | L9: =IF('CLZ TT'!G9="","",'CLZ TT'!G9) -> 2012-03-05 | M9: =IFERROR(VLOOKUP(G9,'CLZ Pr'!$A$1:$X$100000,12,FALSE)*C9,"") ->  | N9: =IFERROR(VLOOKUP(G9,'CLZ Pr'!$A$1:$X$100000,24,FALSE), "") ->  | O9: =IFERROR(VLOOKUP(G9,'CLZ Pr'!$A$1:$X$100000,21,FALSE), "") -> 
A10: =T('CLZ TT'!A10) -> T-337131 | B10: =T('CLZ TT'!D10) -> Tal Noga | C10: =IF(LEN(A10) > 0, 'CLZ TT'!E10, "") -> 4 | D10: =T('CLZ TT'!F10) -> Hours | E10: =IFERROR(VLOOKUP('CLZ TT'!A10,'CLZ WI'!$A$1:$E$100000,3,FALSE),"") -> College of Management | F10: =IFERROR(VLOOKUP('CLZ TT'!A10,'CLZ WI'!$A$1:$E$100000,4,FALSE),"") -> CS Project | G10: =IFERROR(VLOOKUP('CLZ TT'!A10,'CLZ WI'!$A$1:$K$100000,5,FALSE),"") -> P-137643 | H10: =IFERROR(VLOOKUP(G10,'CLZ WI'!$A$1:$K$100000,6,FALSE),"") -> Fixed Hours | I10: =IFERROR(VLOOKUP(G10,'CLZ WI'!$A$1:$K$100000,7,FALSE),"") -> EMEA | J10: =T('CLZ TT'!I10) ->  | K10: =IF(IFERROR(VLOOKUP('CLZ TT'!A10,'CLZ WI'!$A$1:$L$100000,12,FALSE),"")=TRUE, "Billable", IF(IFERROR(VLOOKUP('CLZ TT'!A10,'CLZ WI'!$A$1:$L$100000,12,FALSE),"")=FALSE, "Non-Billable", "")) -> Billable | L10: =IF('CLZ TT'!G10="","",'CLZ TT'!G10) -> 2012-03-05 | M10: =IFERROR(VLOOKUP(G10,'CLZ Pr'!$A$1:$X$100000,12,FALSE)*C10,"") ->  | N10: =IFERROR(VLOOKUP(G10,'CLZ Pr'!$A$1:$X$100000,24,FALSE), "") ->  | O10: =IFERROR(VLOOKUP(G10,'CLZ Pr'!$A$1:$X$100000,21,FALSE), "") -> 
A11: =T('CLZ TT'!A11) -> T-337130 | B11: =T('CLZ TT'!D11) -> Tal Noga | C11: =IF(LEN(A11) > 0, 'CLZ TT'!E11, "") -> 1 | D11: =T('CLZ TT'!F11) -> Hours | E11: =IFERROR(VLOOKUP('CLZ TT'!A11,'CLZ WI'!$A$1:$E$100000,3,FALSE),"") -> College of Management | F11: =IFERROR(VLOOKUP('CLZ TT'!A11,'CLZ WI'!$A$1:$E$100000,4,FALSE),"") -> CS Project | G11: =IFERROR(VLOOKUP('CLZ TT'!A11,'CLZ WI'!$A$1:$K$100000,5,FALSE),"") -> P-137643 | H11: =IFERROR(VLOOKUP(G11,'CLZ WI'!$A$1:$K$100000,6,FALSE),"") -> Fixed Hours | I11: =IFERROR(VLOOKUP(G11,'CLZ WI'!$A$1:$K$100000,7,FALSE),"") -> EMEA | J11: =T('CLZ TT'!I11) ->  | K11: =IF(IFERROR(VLOOKUP('CLZ TT'!A11,'CLZ WI'!$A$1:$L$100000,12,FALSE),"")=TRUE, "Billable", IF(IFERROR(VLOOKUP('CLZ TT'!A11,'CLZ WI'!$A$1:$L$100000,12,FALSE),"")=FALSE, "Non-Billable", "")) -> Non-Billable | L11: =IF('CLZ TT'!G11="","",'CLZ TT'!G11) -> 2012-03-05 | M11: =IFERROR(VLOOKUP(G11,'CLZ Pr'!$A$1:$X$100000,12,FALSE)*C11,"") ->  | N11: =IFERROR(VLOOKUP(G11,'CLZ Pr'!$A$1:$X$100000,24,FALSE), "") ->  | O11: =IFERROR(VLOOKUP(G11,'CLZ Pr'!$A$1:$X$100000,21,FALSE), "") -> 
A12: =T('CLZ TT'!A12) -> P-183268 | B12: =T('CLZ TT'!D12) -> Patrick Smith | C12: =IF(LEN(A12) > 0, 'CLZ TT'!E12, "") -> 1 | D12: =T('CLZ TT'!F12) -> Hours | E12: =IFERROR(VLOOKUP('CLZ TT'!A12,'CLZ WI'!$A$1:$E$100000,3,FALSE),"") -> Wind River 5 h PS | F12: =IFERROR(VLOOKUP('CLZ TT'!A12,'CLZ WI'!$A$1:$E$100000,4,FALSE),"") -> CS Project | G12: =IFERROR(VLOOKUP('CLZ TT'!A12,'CLZ WI'!$A$1:$K$100000,5,FALSE),"") -> P-183268 | H12: =IFERROR(VLOOKUP(G12,'CLZ WI'!$A$1:$K$100000,6,FALSE),"") -> Fixed Hours | I12: =IFERROR(VLOOKUP(G12,'CLZ WI'!$A$1:$K$100000,7,FALSE),"") -> USA | J12: =T('CLZ TT'!I12) ->  | K12: =IF(IFERROR(VLOOKUP('CLZ TT'!A12,'CLZ WI'!$A$1:$L$100000,12,FALSE),"")=TRUE, "Billable", IF(IFERROR(VLOOKUP('CLZ TT'!A12,'CLZ WI'!$A$1:$L$100000,12,FALSE),"")=FALSE, "Non-Billable", "")) -> Billable | L12: =IF('CLZ TT'!G12="","",'CLZ TT'!G12) -> 2012-03-05 | M12: =IFERROR(VLOOKUP(G12,'CLZ Pr'!$A$1:$X$100000,12,FALSE)*C12,"") -> 100 | N12: =IFERROR(VLOOKUP(G12,'CLZ Pr'!$A$1:$X$100000,24,FALSE), "") -> 0 | O12: =IFERROR(VLOOKUP(G12,'CLZ Pr'!$A$1:$X$100000,21,FALSE), "") -> 0
A13: =T('CLZ TT'!A13) -> T-371470 | B13: =T('CLZ TT'!D13) -> Roni Feldsher | C13: =IF(LEN(A13) > 0, 'CLZ TT'!E13, "") -> 1 | D13: =T('CLZ TT'!F13) -> Hours | E13: =IFERROR(VLOOKUP('CLZ TT'!A13,'CLZ WI'!$A$1:$E$100000,3,FALSE),"") -> UnitedHealthcareNon-Billable Committed Hours | F13: =IFERROR(VLOOKUP('CLZ TT'!A13,'CLZ WI'!$A$1:$E$100000,4,FALSE),"") -> CS Project | G13: =IFERROR(VLOOKUP('CLZ TT'!A13,'CLZ WI'!$A$1:$K$100000,5,FALSE),"") -> P-152818 | H13: =IFERROR(VLOOKUP(G13,'CLZ WI'!$A$1:$K$100000,6,FALSE),"") -> Fixed Hours | I13: =IFERROR(VLOOKUP(G13,'CLZ WI'!$A$1:$K$100000,7,FALSE),"") -> USA | J13: =T('CLZ TT'!I13) ->  | K13: =IF(IFERROR(VLOOKUP('CLZ TT'!A13,'CLZ WI'!$A$1:$L$100000,12,FALSE),"")=TRUE, "Billable", IF(IFERROR(VLOOKUP('CLZ TT'!A13,'CLZ WI'!$A$1:$L$100000,12,FALSE),"")=FALSE, "Non-Billable", "")) -> Non-Billable | L13: =IF('CLZ TT'!G13="","",'CLZ TT'!G13) -> 2012-03-05 | M13: =IFERROR(VLOOKUP(G13,'CLZ Pr'!$A$1:$X$100000,12,FALSE)*C13,"") -> 0 | N13: =IFERROR(VLOOKUP(G13,'CLZ Pr'!$A$1:$X$100000,24,FALSE), "") -> 0 | O13: =IFERROR(VLOOKUP(G13,'CLZ Pr'!$A$1:$X$100000,21,FALSE), "") -> 6.42
A14: =T('CLZ TT'!A14) -> T-242280 | B14: =T('CLZ TT'!D14) -> Roni Feldsher | C14: =IF(LEN(A14) > 0, 'CLZ TT'!E14, "") -> 2 | D14: =T('CLZ TT'!F14) -> Hours | E14: =IFERROR(VLOOKUP('CLZ TT'!A14,'CLZ WI'!$A$1:$E$100000,3,FALSE),"") -> TechProse - 40h PS | F14: =IFERROR(VLOOKUP('CLZ TT'!A14,'CLZ WI'!$A$1:$E$100000,4,FALSE),"") -> CS Project | G14: =IFERROR(VLOOKUP('CLZ TT'!A14,'CLZ WI'!$A$1:$K$100000,5,FALSE),"") -> P-090318 | H14: =IFERROR(VLOOKUP(G14,'CLZ WI'!$A$1:$K$100000,6,FALSE),"") -> Fixed Hours | I14: =IFERROR(VLOOKUP(G14,'CLZ WI'!$A$1:$K$100000,7,FALSE),"") -> USA | J14: =T('CLZ TT'!I14) ->  | K14: =IF(IFERROR(VLOOKUP('CLZ TT'!A14,'CLZ WI'!$A$1:$L$100000,12,FALSE),"")=TRUE, "Billable", IF(IFERROR(VLOOKUP('CLZ TT'!A14,'CLZ WI'!$A$1:$L$100000,12,FALSE),"")=FALSE, "Non-Billable", "")) -> Billable | L14: =IF('CLZ TT'!G14="","",'CLZ TT'!G14) -> 2012-03-05 | M14: =IFERROR(VLOOKUP(G14,'CLZ Pr'!$A$1:$X$100000,12,FALSE)*C14,"") ->  | N14: =IFERROR(VLOOKUP(G14,'CLZ Pr'!$A$1:$X$100000,24,FALSE), "") ->  | O14: =IFERROR(VLOOKUP(G14,'CLZ Pr'!$A$1:$X$100000,21,FALSE), "") -> 
A15: =T('CLZ TT'!A15) -> T-294653 | B15: =T('CLZ TT'!D15) -> Tal Noga | C15: =IF(LEN(A15) > 0, 'CLZ TT'!E15, "") -> 2 | D15: =T('CLZ TT'!F15) -> Hours | E15: =IFERROR(VLOOKUP('CLZ TT'!A15,'CLZ WI'!$A$1:$E$100000,3,FALSE),"") -> Qoveo - 8h 1000$ | F15: =IFERROR(VLOOKUP('CLZ TT'!A15,'CLZ WI'!$A$1:$E$100000,4,FALSE),"") -> CS Project | G15: =IFERROR(VLOOKUP('CLZ TT'!A15,'CLZ WI'!$A$1:$K$100000,5,FALSE),"") -> P-114863 | H15: =IFERROR(VLOOKUP(G15,'CLZ WI'!$A$1:$K$100000,6,FALSE),"") -> Fixed Hours | I15: =IFERROR(VLOOKUP(G15,'CLZ WI'!$A$1:$K$100000,7,FALSE),"") -> EMEA | J15: =T('CLZ TT'!I15) -> Training | K15: =IF(IFERROR(VLOOKUP('CLZ TT'!A15,'CLZ WI'!$A$1:$L$100000,12,FALSE),"")=TRUE, "Billable", IF(IFERROR(VLOOKUP('CLZ TT'!A15,'CLZ WI'!$A$1:$L$100000,12,FALSE),"")=FALSE, "Non-Billable", "")) -> Billable | L15: =IF('CLZ TT'!G15="","",'CLZ TT'!G15) -> 2012-03-06 | M15: =IFERROR(VLOOKUP(G15,'CLZ Pr'!$A$1:$X$100000,12,FALSE)*C15,"") ->  | N15: =IFERROR(VLOOKUP(G15,'CLZ Pr'!$A$1:$X$100000,24,FALSE), "") ->  | O15: =IFERROR(VLOOKUP(G15,'CLZ Pr'!$A$1:$X$100000,21,FALSE), "") -> 
A16: =T('CLZ TT'!A16) -> T-207956 | B16: =T('CLZ TT'!D16) -> Roni Feldsher | C16: =IF(LEN(A16) > 0, 'CLZ TT'!E16, "") -> 1 | D16: =T('CLZ TT'!F16) -> Hours | E16: =IFERROR(VLOOKUP('CLZ TT'!A16,'CLZ WI'!$A$1:$E$100000,3,FALSE),"") -> Indiana -Department of Child Services - 6h PS | F16: =IFERROR(VLOOKUP('CLZ TT'!A16,'CLZ WI'!$A$1:$E$100000,4,FALSE),"") -> CS Project | G16: =IFERROR(VLOOKUP('CLZ TT'!A16,'CLZ WI'!$A$1:$K$100000,5,FALSE),"") -> P-70810 | H16: =IFERROR(VLOOKUP(G16,'CLZ WI'!$A$1:$K$100000,6,FALSE),"") -> Fixed Hours | I16: =IFERROR(VLOOKUP(G16,'CLZ WI'!$A$1:$K$100000,7,FALSE),"") -> USA | J16: =T('CLZ TT'!I16) ->  | K16: =IF(IFERROR(VLOOKUP('CLZ TT'!A16,'CLZ WI'!$A$1:$L$100000,12,FALSE),"")=TRUE, "Billable", IF(IFERROR(VLOOKUP('CLZ TT'!A16,'CLZ WI'!$A$1:$L$100000,12,FALSE),"")=FALSE, "Non-Billable", "")) -> Billable | L16: =IF('CLZ TT'!G16="","",'CLZ TT'!G16) -> 2012-03-06 | M16: =IFERROR(VLOOKUP(G16,'CLZ Pr'!$A$1:$X$100000,12,FALSE)*C16,"") ->  | N16: =IFERROR(VLOOKUP(G16,'CLZ Pr'!$A$1:$X$100000,24,FALSE), "") ->  | O16: =IFERROR(VLOOKUP(G16,'CLZ Pr'!$A$1:$X$100000,21,FALSE), "") -> 
A17: =T('CLZ TT'!A17) -> M-189878 | B17: =T('CLZ TT'!D17) -> Alex Gorman | C17: =IF(LEN(A17) > 0, 'CLZ TT'!E17, "") -> 1 | D17: =T('CLZ TT'!F17) -> Hours | E17: =IFERROR(VLOOKUP('CLZ TT'!A17,'CLZ WI'!$A$1:$E$100000,3,FALSE),"") -> Solazyme, Inc.Tier3 | F17: =IFERROR(VLOOKUP('CLZ TT'!A17,'CLZ WI'!$A$1:$E$100000,4,FALSE),"") -> CS Quick Start | G17: =IFERROR(VLOOKUP('CLZ TT'!A17,'CLZ WI'!$A$1:$K$100000,5,FALSE),"") -> P-150713 | H17: =IFERROR(VLOOKUP(G17,'CLZ WI'!$A$1:$K$100000,6,FALSE),"") -> Package Small | I17: =IFERROR(VLOOKUP(G17,'CLZ WI'!$A$1:$K$100000,7,FALSE),"") -> USA | J17: =T('CLZ TT'!I17) -> Kick-off | K17: =IF(IFERROR(VLOOKUP('CLZ TT'!A17,'CLZ WI'!$A$1:$L$100000,12,FALSE),"")=TRUE, "Billable", IF(IFERROR(VLOOKUP('CLZ TT'!A17,'CLZ WI'!$A$1:$L$100000,12,FALSE),"")=FALSE, "Non-Billable", "")) -> Billable | L17: =IF('CLZ TT'!G17="","",'CLZ TT'!G17) -> 2012-03-06 | M17: =IFERROR(VLOOKUP(G17,'CLZ Pr'!$A$1:$X$100000,12,FALSE)*C17,"") -> 160 | N17: =IFERROR(VLOOKUP(G17,'CLZ Pr'!$A$1:$X$100000,24,FALSE), "") -> 0 | O17: =IFERROR(VLOOKUP(G17,'CLZ Pr'!$A$1:$X$100000,21,FALSE), "") -> 4
A18: =T('CLZ TT'!A18) -> T-78151 | B18: =T('CLZ TT'!D18) -> Rami Cohen | C18: =IF(LEN(A18) > 0, 'CLZ TT'!E18, "") -> 1 | D18: =T('CLZ TT'!F18) -> Hours | E18: =IFERROR(VLOOKUP('CLZ TT'!A18,'CLZ WI'!$A$1:$E$100000,3,FALSE),"") -> Orbit.uk | F18: =IFERROR(VLOOKUP('CLZ TT'!A18,'CLZ WI'!$A$1:$E$100000,4,FALSE),"") -> CS Project | G18: =IFERROR(VLOOKUP('CLZ TT'!A18,'CLZ WI'!$A$1:$K$100000,5,FALSE),"") -> P-25770 | H18: =IFERROR(VLOOKUP(G18,'CLZ WI'!$A$1:$K$100000,6,FALSE),"") -> Fixed Hours | I18: =IFERROR(VLOOKUP(G18,'CLZ WI'!$A$1:$K$100000,7,FALSE),"") -> EMEA | J18: =T('CLZ TT'!I18) ->  | K18: =IF(IFERROR(VLOOKUP('CLZ TT'!A18,'CLZ WI'!$A$1:$L$100000,12,FALSE),"")=TRUE, "Billable", IF(IFERROR(VLOOKUP('CLZ TT'!A18,'CLZ WI'!$A$1:$L$100000,12,FALSE),"")=FALSE, "Non-Billable", "")) -> Billable | L18: =IF('CLZ TT'!G18="","",'CLZ TT'!G18) -> 2012-03-07 | M18: =IFERROR(VLOOKUP(G18,'CLZ Pr'!$A$1:$X$100000,12,FALSE)*C18,"") ->  | N18: =IFERROR(VLOOKUP(G18,'CLZ Pr'!$A$1:$X$100000,24,FALSE), "") ->  | O18: =IFERROR(VLOOKUP(G18,'CLZ Pr'!$A$1:$X$100000,21,FALSE), "") -> 
A19: =T('CLZ TT'!A19) -> P-154073 | B19: =T('CLZ TT'!D19) -> Alex Gorman | C19: =IF(LEN(A19) > 0, 'CLZ TT'!E19, "") -> 1.5 | D19: =T('CLZ TT'!F19) -> Hours | E19: =IFERROR(VLOOKUP('CLZ TT'!A19,'CLZ WI'!$A$1:$E$100000,3,FALSE),"") -> Pristine Sun LLC Fixed 1 Hour Excel Report | F19: =IFERROR(VLOOKUP('CLZ TT'!A19,'CLZ WI'!$A$1:$E$100000,4,FALSE),"") -> CS Project | G19: =IFERROR(VLOOKUP('CLZ TT'!A19,'CLZ WI'!$A$1:$K$100000,5,FALSE),"") -> P-154073 | H19: =IFERROR(VLOOKUP(G19,'CLZ WI'!$A$1:$K$100000,6,FALSE),"") -> Fixed Hours | I19: =IFERROR(VLOOKUP(G19,'CLZ WI'!$A$1:$K$100000,7,FALSE),"") -> USA | J19: =T('CLZ TT'!I19) ->  | K19: =IF(IFERROR(VLOOKUP('CLZ TT'!A19,'CLZ WI'!$A$1:$L$100000,12,FALSE),"")=TRUE, "Billable", IF(IFERROR(VLOOKUP('CLZ TT'!A19,'CLZ WI'!$A$1:$L$100000,12,FALSE),"")=FALSE, "Non-Billable", "")) -> Billable | L19: =IF('CLZ TT'!G19="","",'CLZ TT'!G19) -> 2012-03-07 | M19: =IFERROR(VLOOKUP(G19,'CLZ Pr'!$A$1:$X$100000,12,FALSE)*C19,"") -> 166.995 | N19: =IFERROR(VLOOKUP(G19,'CLZ Pr'!$A$1:$X$100000,24,FALSE), "") -> 0 | O19: =IFERROR(VLOOKUP(G19,'CLZ Pr'!$A$1:$X$100000,21,FALSE), "") -> 0
A20: =T('CLZ TT'!A20) -> P-216084 | B20: =T('CLZ TT'!D20) -> Patrick Smith | C20: =IF(LEN(A20) > 0, 'CLZ TT'!E20, "") -> 1 | D20: =T('CLZ TT'!F20) -> Hours | E20: =IFERROR(VLOOKUP('CLZ TT'!A20,'CLZ WI'!$A$1:$E$100000,3,FALSE),"") -> QUALITY HEALTH STRATEGIES - PROJECT MANAGEMENT OFFICE SYSTEM 22 h PS | F20: =IFERROR(VLOOKUP('CLZ TT'!A20,'CLZ WI'!$A$1:$E$100000,4,FALSE),"") -> CS Project | G20: =IFERROR(VLOOKUP('CLZ TT'!A20,'CLZ WI'!$A$1:$K$100000,5,FALSE),"") -> P-216084 | H20: =IFERROR(VLOOKUP(G20,'CLZ WI'!$A$1:$K$100000,6,FALSE),"") -> Fixed Hours | I20: =IFERROR(VLOOKUP(G20,'CLZ WI'!$A$1:$K$100000,7,FALSE),"") -> USA | J20: =T('CLZ TT'!I20) ->  | K20: =IF(IFERROR(VLOOKUP('CLZ TT'!A20,'CLZ WI'!$A$1:$L$100000,12,FALSE),"")=TRUE, "Billable", IF(IFERROR(VLOOKUP('CLZ TT'!A20,'CLZ WI'!$A$1:$L$100000,12,FALSE),"")=FALSE, "Non-Billable", "")) -> Billable | L20: =IF('CLZ TT'!G20="","",'CLZ TT'!G20) -> 2012-03-07 | M20: =IFERROR(VLOOKUP(G20,'CLZ Pr'!$A$1:$X$100000,12,FALSE)*C20,"") -> 222.73 | N20: =IFERROR(VLOOKUP(G20,'CLZ Pr'!$A$1:$X$100000,24,FALSE), "") -> 0 | O20: =IFERROR(VLOOKUP(G20,'CLZ Pr'!$A$1:$X$100000,21,FALSE), "") -> 14
A21: =T('CLZ TT'!A21) -> T-435762 | B21: =T('CLZ TT'!D21) -> Tal Noga | C21: =IF(LEN(A21) > 0, 'CLZ TT'!E21, "") -> 0.5 | D21: =T('CLZ TT'!F21) -> Hours | E21: =IFERROR(VLOOKUP('CLZ TT'!A21,'CLZ WI'!$A$1:$E$100000,3,FALSE),"") -> Sondrel/Tier2/10h | F21: =IFERROR(VLOOKUP('CLZ TT'!A21,'CLZ WI'!$A$1:$E$100000,4,FALSE),"") -> CS Quick Start | G21: =IFERROR(VLOOKUP('CLZ TT'!A21,'CLZ WI'!$A$1:$K$100000,5,FALSE),"") -> P-145889 | H21: =IFERROR(VLOOKUP(G21,'CLZ WI'!$A$1:$K$100000,6,FALSE),"") -> Package Medium | I21: =IFERROR(VLOOKUP(G21,'CLZ WI'!$A$1:$K$100000,7,FALSE),"") -> EMEA | J21: =T('CLZ TT'!I21) -> Training | K21: =IF(IFERROR(VLOOKUP('CLZ TT'!A21,'CLZ WI'!$A$1:$L$100000,12,FALSE),"")=TRUE, "Billable", IF(IFERROR(VLOOKUP('CLZ TT'!A21,'CLZ WI'!$A$1:$L$100000,12,FALSE),"")=FALSE, "Non-Billable", "")) -> Billable | L21: =IF('CLZ TT'!G21="","",'CLZ TT'!G21) -> 2012-03-07 | M21: =IFERROR(VLOOKUP(G21,'CLZ Pr'!$A$1:$X$100000,12,FALSE)*C21,"") ->  | N21: =IFERROR(VLOOKUP(G21,'CLZ Pr'!$A$1:$X$100000,24,FALSE), "") ->  | O21: =IFERROR(VLOOKUP(G21,'CLZ Pr'!$A$1:$X$100000,21,FALSE), "") -> 
A22: =T('CLZ TT'!A22) -> T-292050 | B22: =T('CLZ TT'!D22) -> Roni Feldsher | C22: =IF(LEN(A22) > 0, 'CLZ TT'!E22, "") -> 2 | D22: =T('CLZ TT'!F22) -> Hours | E22: =IFERROR(VLOOKUP('CLZ TT'!A22,'CLZ WI'!$A$1:$E$100000,3,FALSE),"") -> ELC Online - - 58 h PS | F22: =IFERROR(VLOOKUP('CLZ TT'!A22,'CLZ WI'!$A$1:$E$100000,4,FALSE),"") -> CS Project | G22: =IFERROR(VLOOKUP('CLZ TT'!A22,'CLZ WI'!$A$1:$K$100000,5,FALSE),"") -> P-113869 | H22: =IFERROR(VLOOKUP(G22,'CLZ WI'!$A$1:$K$100000,6,FALSE),"") -> Fixed Hours | I22: =IFERROR(VLOOKUP(G22,'CLZ WI'!$A$1:$K$100000,7,FALSE),"") -> USA | J22: =T('CLZ TT'!I22) ->  | K22: =IF(IFERROR(VLOOKUP('CLZ TT'!A22,'CLZ WI'!$A$1:$L$100000,12,FALSE),"")=TRUE, "Billable", IF(IFERROR(VLOOKUP('CLZ TT'!A22,'CLZ WI'!$A$1:$L$100000,12,FALSE),"")=FALSE, "Non-Billable", "")) -> Billable | L22: =IF('CLZ TT'!G22="","",'CLZ TT'!G22) -> 2012-03-07 | M22: =IFERROR(VLOOKUP(G22,'CLZ Pr'!$A$1:$X$100000,12,FALSE)*C22,"") ->  | N22: =IFERROR(VLOOKUP(G22,'CLZ Pr'!$A$1:$X$100000,24,FALSE), "") ->  | O22: =IFERROR(VLOOKUP(G22,'CLZ Pr'!$A$1:$X$100000,21,FALSE), "") -> 
A23: =T('CLZ TT'!A23) -> P-154073 | B23: =T('CLZ TT'!D23) -> Alex Gorman | C23: =IF(LEN(A23) > 0, 'CLZ TT'!E23, "") -> 1.5 | D23: =T('CLZ TT'!F23) -> Hours | E23: =IFERROR(VLOOKUP('CLZ TT'!A23,'CLZ WI'!$A$1:$E$100000,3,FALSE),"") -> Pristine Sun LLC Fixed 1 Hour Excel Report | F23: =IFERROR(VLOOKUP('CLZ TT'!A23,'CLZ WI'!$A$1:$E$100000,4,FALSE),"") -> CS Project | G23: =IFERROR(VLOOKUP('CLZ TT'!A23,'CLZ WI'!$A$1:$K$100000,5,FALSE),"") -> P-154073 | H23: =IFERROR(VLOOKUP(G23,'CLZ WI'!$A$1:$K$100000,6,FALSE),"") -> Fixed Hours | I23: =IFERROR(VLOOKUP(G23,'CLZ WI'!$A$1:$K$100000,7,FALSE),"") -> USA | J23: =T('CLZ TT'!I23) ->  | K23: =IF(IFERROR(VLOOKUP('CLZ TT'!A23,'CLZ WI'!$A$1:$L$100000,12,FALSE),"")=TRUE, "Billable", IF(IFERROR(VLOOKUP('CLZ TT'!A23,'CLZ WI'!$A$1:$L$100000,12,FALSE),"")=FALSE, "Non-Billable", "")) -> Billable | L23: =IF('CLZ TT'!G23="","",'CLZ TT'!G23) -> 2012-03-08 | M23: =IFERROR(VLOOKUP(G23,'CLZ Pr'!$A$1:$X$100000,12,FALSE)*C23,"") -> 166.995 | N23: =IFERROR(VLOOKUP(G23,'CLZ Pr'!$A$1:$X$100000,24,FALSE), "") -> 0 | O23: =IFERROR(VLOOKUP(G23,'CLZ Pr'!$A$1:$X$100000,21,FALSE), "") -> 0
A24: =T('CLZ TT'!A24) -> P-150697 | B24: =T('CLZ TT'!D24) -> Alex Gorman | C24: =IF(LEN(A24) > 0, 'CLZ TT'!E24, "") -> 1 | D24: =T('CLZ TT'!F24) -> Hours | E24: =IFERROR(VLOOKUP('CLZ TT'!A24,'CLZ WI'!$A$1:$E$100000,3,FALSE),"") -> Crow Wing County Fixed 3 Hours | F24: =IFERROR(VLOOKUP('CLZ TT'!A24,'CLZ WI'!$A$1:$E$100000,4,FALSE),"") -> CS Project | G24: =IFERROR(VLOOKUP('CLZ TT'!A24,'CLZ WI'!$A$1:$K$100000,5,FALSE),"") -> P-150697 | H24: =IFERROR(VLOOKUP(G24,'CLZ WI'!$A$1:$K$100000,6,FALSE),"") -> Fixed Hours | I24: =IFERROR(VLOOKUP(G24,'CLZ WI'!$A$1:$K$100000,7,FALSE),"") -> USA | J24: =T('CLZ TT'!I24) ->  | K24: =IF(IFERROR(VLOOKUP('CLZ TT'!A24,'CLZ WI'!$A$1:$L$100000,12,FALSE),"")=TRUE, "Billable", IF(IFERROR(VLOOKUP('CLZ TT'!A24,'CLZ WI'!$A$1:$L$100000,12,FALSE),"")=FALSE, "Non-Billable", "")) -> Billable | L24: =IF('CLZ TT'!G24="","",'CLZ TT'!G24) -> 2012-03-08 | M24: =IFERROR(VLOOKUP(G24,'CLZ Pr'!$A$1:$X$100000,12,FALSE)*C24,"") ->  | N24: =IFERROR(VLOOKUP(G24,'CLZ Pr'!$A$1:$X$100000,24,FALSE), "") ->  | O24: =IFERROR(VLOOKUP(G24,'CLZ Pr'!$A$1:$X$100000,21,FALSE), "") -> 
A25: =T('CLZ TT'!A25) -> P-201489 | B25: =T('CLZ TT'!D25) -> Patrick Smith | C25: =IF(LEN(A25) > 0, 'CLZ TT'!E25, "") -> 1 | D25: =T('CLZ TT'!F25) -> Hours | E25: =IFERROR(VLOOKUP('CLZ TT'!A25,'CLZ WI'!$A$1:$E$100000,3,FALSE),"") -> Pristine Sun LLC 3 h PS | F25: =IFERROR(VLOOKUP('CLZ TT'!A25,'CLZ WI'!$A$1:$E$100000,4,FALSE),"") -> CS Project | G25: =IFERROR(VLOOKUP('CLZ TT'!A25,'CLZ WI'!$A$1:$K$100000,5,FALSE),"") -> P-201489 | H25: =IFERROR(VLOOKUP(G25,'CLZ WI'!$A$1:$K$100000,6,FALSE),"") -> Fixed Hours | I25: =IFERROR(VLOOKUP(G25,'CLZ WI'!$A$1:$K$100000,7,FALSE),"") -> USA | J25: =T('CLZ TT'!I25) ->  | K25: =IF(IFERROR(VLOOKUP('CLZ TT'!A25,'CLZ WI'!$A$1:$L$100000,12,FALSE),"")=TRUE, "Billable", IF(IFERROR(VLOOKUP('CLZ TT'!A25,'CLZ WI'!$A$1:$L$100000,12,FALSE),"")=FALSE, "Non-Billable", "")) -> Billable | L25: =IF('CLZ TT'!G25="","",'CLZ TT'!G25) -> 2012-03-08 | M25: =IFERROR(VLOOKUP(G25,'CLZ Pr'!$A$1:$X$100000,12,FALSE)*C25,"") -> 166.67 | N25: =IFERROR(VLOOKUP(G25,'CLZ Pr'!$A$1:$X$100000,24,FALSE), "") -> 0 | O25: =IFERROR(VLOOKUP(G25,'CLZ Pr'!$A$1:$X$100000,21,FALSE), "") -> 0
A26: =T('CLZ TT'!A26) -> P-183269 | B26: =T('CLZ TT'!D26) -> Patrick Smith | C26: =IF(LEN(A26) > 0, 'CLZ TT'!E26, "") -> 1 | D26: =T('CLZ TT'!F26) -> Hours | E26: =IFERROR(VLOOKUP('CLZ TT'!A26,'CLZ WI'!$A$1:$E$100000,3,FALSE),"") -> Molecular Imaging, Inc 3 h PS | F26: =IFERROR(VLOOKUP('CLZ TT'!A26,'CLZ WI'!$A$1:$E$100000,4,FALSE),"") -> CS Project | G26: =IFERROR(VLOOKUP('CLZ TT'!A26,'CLZ WI'!$A$1:$K$100000,5,FALSE),"") -> P-183269 | H26: =IFERROR(VLOOKUP(G26,'CLZ WI'!$A$1:$K$100000,6,FALSE),"") -> Fixed Hours | I26: =IFERROR(VLOOKUP(G26,'CLZ WI'!$A$1:$K$100000,7,FALSE),"") -> USA | J26: =T('CLZ TT'!I26) ->  | K26: =IF(IFERROR(VLOOKUP('CLZ TT'!A26,'CLZ WI'!$A$1:$L$100000,12,FALSE),"")=TRUE, "Billable", IF(IFERROR(VLOOKUP('CLZ TT'!A26,'CLZ WI'!$A$1:$L$100000,12,FALSE),"")=FALSE, "Non-Billable", "")) -> Billable | L26: =IF('CLZ TT'!G26="","",'CLZ TT'!G26) -> 2012-03-08 | M26: =IFERROR(VLOOKUP(G26,'CLZ Pr'!$A$1:$X$100000,12,FALSE)*C26,"") -> 166.67 | N26: =IFERROR(VLOOKUP(G26,'CLZ Pr'!$A$1:$X$100000,24,FALSE), "") -> 0 | O26: =IFERROR(VLOOKUP(G26,'CLZ Pr'!$A$1:$X$100000,21,FALSE), "") -> 1
A27: =T('CLZ TT'!A27) -> T-78151 | B27: =T('CLZ TT'!D27) -> Rami Cohen | C27: =IF(LEN(A27) > 0, 'CLZ TT'!E27, "") -> 1 | D27: =T('CLZ TT'!F27) -> Hours | E27: =IFERROR(VLOOKUP('CLZ TT'!A27,'CLZ WI'!$A$1:$E$100000,3,FALSE),"") -> Orbit.uk | F27: =IFERROR(VLOOKUP('CLZ TT'!A27,'CLZ WI'!$A$1:$E$100000,4,FALSE),"") -> CS Project | G27: =IFERROR(VLOOKUP('CLZ TT'!A27,'CLZ WI'!$A$1:$K$100000,5,FALSE),"") -> P-25770 | H27: =IFERROR(VLOOKUP(G27,'CLZ WI'!$A$1:$K$100000,6,FALSE),"") -> Fixed Hours | I27: =IFERROR(VLOOKUP(G27,'CLZ WI'!$A$1:$K$100000,7,FALSE),"") -> EMEA | J27: =T('CLZ TT'!I27) ->  | K27: =IF(IFERROR(VLOOKUP('CLZ TT'!A27,'CLZ WI'!$A$1:$L$100000,12,FALSE),"")=TRUE, "Billable", IF(IFERROR(VLOOKUP('CLZ TT'!A27,'CLZ WI'!$A$1:$L$100000,12,FALSE),"")=FALSE, "Non-Billable", "")) -> Billable | L27: =IF('CLZ TT'!G27="","",'CLZ TT'!G27) -> 2012-03-09 | M27: =IFERROR(VLOOKUP(G27,'CLZ Pr'!$A$1:$X$100000,12,FALSE)*C27,"") ->  | N27: =IFERROR(VLOOKUP(G27,'CLZ Pr'!$A$1:$X$100000,24,FALSE), "") ->  | O27: =IFERROR(VLOOKUP(G27,'CLZ Pr'!$A$1:$X$100000,21,FALSE), "") -> 
A28: =T('CLZ TT'!A28) -> T-435762 | B28: =T('CLZ TT'!D28) -> Tal Noga | C28: =IF(LEN(A28) > 0, 'CLZ TT'!E28, "") -> 1.5 | D28: =T('CLZ TT'!F28) -> Hours | E28: =IFERROR(VLOOKUP('CLZ TT'!A28,'CLZ WI'!$A$1:$E$100000,3,FALSE),"") -> Sondrel/Tier2/10h | F28: =IFERROR(VLOOKUP('CLZ TT'!A28,'CLZ WI'!$A$1:$E$100000,4,FALSE),"") -> CS Quick Start | G28: =IFERROR(VLOOKUP('CLZ TT'!A28,'CLZ WI'!$A$1:$K$100000,5,FALSE),"") -> P-145889 | H28: =IFERROR(VLOOKUP(G28,'CLZ WI'!$A$1:$K$100000,6,FALSE),"") -> Package Medium | I28: =IFERROR(VLOOKUP(G28,'CLZ WI'!$A$1:$K$100000,7,FALSE),"") -> EMEA | J28: =T('CLZ TT'!I28) -> Training | K28: =IF(IFERROR(VLOOKUP('CLZ TT'!A28,'CLZ WI'!$A$1:$L$100000,12,FALSE),"")=TRUE, "Billable", IF(IFERROR(VLOOKUP('CLZ TT'!A28,'CLZ WI'!$A$1:$L$100000,12,FALSE),"")=FALSE, "Non-Billable", "")) -> Billable | L28: =IF('CLZ TT'!G28="","",'CLZ TT'!G28) -> 2012-03-09 | M28: =IFERROR(VLOOKUP(G28,'CLZ Pr'!$A$1:$X$100000,12,FALSE)*C28,"") ->  | N28: =IFERROR(VLOOKUP(G28,'CLZ Pr'!$A$1:$X$100000,24,FALSE), "") ->  | O28: =IFERROR(VLOOKUP(G28,'CLZ Pr'!$A$1:$X$100000,21,FALSE), "") -> 
A29: =T('CLZ TT'!A29) -> T-292050 | B29: =T('CLZ TT'!D29) -> Roni Feldsher | C29: =IF(LEN(A29) > 0, 'CLZ TT'!E29, "") -> 0.5 | D29: =T('CLZ TT'!F29) -> Hours | E29: =IFERROR(VLOOKUP('CLZ TT'!A29,'CLZ WI'!$A$1:$E$100000,3,FALSE),"") -> ELC Online - - 58 h PS | F29: =IFERROR(VLOOKUP('CLZ TT'!A29,'CLZ WI'!$A$1:$E$100000,4,FALSE),"") -> CS Project | G29: =IFERROR(VLOOKUP('CLZ TT'!A29,'CLZ WI'!$A$1:$K$100000,5,FALSE),"") -> P-113869 | H29: =IFERROR(VLOOKUP(G29,'CLZ WI'!$A$1:$K$100000,6,FALSE),"") -> Fixed Hours | I29: =IFERROR(VLOOKUP(G29,'CLZ WI'!$A$1:$K$100000,7,FALSE),"") -> USA | J29: =T('CLZ TT'!I29) ->  | K29: =IF(IFERROR(VLOOKUP('CLZ TT'!A29,'CLZ WI'!$A$1:$L$100000,12,FALSE),"")=TRUE, "Billable", IF(IFERROR(VLOOKUP('CLZ TT'!A29,'CLZ WI'!$A$1:$L$100000,12,FALSE),"")=FALSE, "Non-Billable", "")) -> Billable | L29: =IF('CLZ TT'!G29="","",'CLZ TT'!G29) -> 2012-03-11 | M29: =IFERROR(VLOOKUP(G29,'CLZ Pr'!$A$1:$X$100000,12,FALSE)*C29,"") ->  | N29: =IFERROR(VLOOKUP(G29,'CLZ Pr'!$A$1:$X$100000,24,FALSE), "") ->  | O29: =IFERROR(VLOOKUP(G29,'CLZ Pr'!$A$1:$X$100000,21,FALSE), "") -> 
A30: =T('CLZ TT'!A30) -> T-352770 | B30: =T('CLZ TT'!D30) -> Eran Fishov | C30: =IF(LEN(A30) > 0, 'CLZ TT'!E30, "") -> 2 | D30: =T('CLZ TT'!F30) -> Hours | E30: =IFERROR(VLOOKUP('CLZ TT'!A30,'CLZ WI'!$A$1:$E$100000,3,FALSE),"") -> Kaltura | F30: =IFERROR(VLOOKUP('CLZ TT'!A30,'CLZ WI'!$A$1:$E$100000,4,FALSE),"") -> CS Project | G30: =IFERROR(VLOOKUP('CLZ TT'!A30,'CLZ WI'!$A$1:$K$100000,5,FALSE),"") -> P-142618 | H30: =IFERROR(VLOOKUP(G30,'CLZ WI'!$A$1:$K$100000,6,FALSE),"") -> Fixed Hours | I30: =IFERROR(VLOOKUP(G30,'CLZ WI'!$A$1:$K$100000,7,FALSE),"") -> EMEA | J30: =T('CLZ TT'!I30) ->  | K30: =IF(IFERROR(VLOOKUP('CLZ TT'!A30,'CLZ WI'!$A$1:$L$100000,12,FALSE),"")=TRUE, "Billable", IF(IFERROR(VLOOKUP('CLZ TT'!A30,'CLZ WI'!$A$1:$L$100000,12,FALSE),"")=FALSE, "Non-Billable", "")) -> Billable | L30: =IF('CLZ TT'!G30="","",'CLZ TT'!G30) -> 2012-03-11 | M30: =IFERROR(VLOOKUP(G30,'CLZ Pr'!$A$1:$X$100000,12,FALSE)*C30,"") ->  | N30: =IFERROR(VLOOKUP(G30,'CLZ Pr'!$A$1:$X$100000,24,FALSE), "") ->  | O30: =IFERROR(VLOOKUP(G30,'CLZ Pr'!$A$1:$X$100000,21,FALSE), "") -> 
A31: =T('CLZ TT'!A31) -> P-156000 | B31: =T('CLZ TT'!D31) -> Alex Gorman | C31: =IF(LEN(A31) > 0, 'CLZ TT'!E31, "") -> 1 | D31: =T('CLZ TT'!F31) -> Hours | E31: =IFERROR(VLOOKUP('CLZ TT'!A31,'CLZ WI'!$A$1:$E$100000,3,FALSE),"") -> Nexenta Systems - 1 Non-Billable Committed Hour | F31: =IFERROR(VLOOKUP('CLZ TT'!A31,'CLZ WI'!$A$1:$E$100000,4,FALSE),"") -> CS Project | G31: =IFERROR(VLOOKUP('CLZ TT'!A31,'CLZ WI'!$A$1:$K$100000,5,FALSE),"") -> P-156000 | H31: =IFERROR(VLOOKUP(G31,'CLZ WI'!$A$1:$K$100000,6,FALSE),"") -> Fixed Hours | I31: =IFERROR(VLOOKUP(G31,'CLZ WI'!$A$1:$K$100000,7,FALSE),"") -> USA | J31: =T('CLZ TT'!I31) -> Training | K31: =IF(IFERROR(VLOOKUP('CLZ TT'!A31,'CLZ WI'!$A$1:$L$100000,12,FALSE),"")=TRUE, "Billable", IF(IFERROR(VLOOKUP('CLZ TT'!A31,'CLZ WI'!$A$1:$L$100000,12,FALSE),"")=FALSE, "Non-Billable", "")) -> Non-Billable | L31: =IF('CLZ TT'!G31="","",'CLZ TT'!G31) -> 2012-03-12 | M31: =IFERROR(VLOOKUP(G31,'CLZ Pr'!$A$1:$X$100000,12,FALSE)*C31,"") -> 0 | N31: =IFERROR(VLOOKUP(G31,'CLZ Pr'!$A$1:$X$100000,24,FALSE), "") -> 0 | O31: =IFERROR(VLOOKUP(G31,'CLZ Pr'!$A$1:$X$100000,21,FALSE), "") -> 0
A32: =T('CLZ TT'!A32) -> T-340110 | B32: =T('CLZ TT'!D32) -> Eran Fishov | C32: =IF(LEN(A32) > 0, 'CLZ TT'!E32, "") -> 1 | D32: =T('CLZ TT'!F32) -> Hours | E32: =IFERROR(VLOOKUP('CLZ TT'!A32,'CLZ WI'!$A$1:$E$100000,3,FALSE),"") -> Redhotminute | F32: =IFERROR(VLOOKUP('CLZ TT'!A32,'CLZ WI'!$A$1:$E$100000,4,FALSE),"") -> CS Project | G32: =IFERROR(VLOOKUP('CLZ TT'!A32,'CLZ WI'!$A$1:$K$100000,5,FALSE),"") -> P-139094 | H32: =IFERROR(VLOOKUP(G32,'CLZ WI'!$A$1:$K$100000,6,FALSE),"") -> Fixed Hours | I32: =IFERROR(VLOOKUP(G32,'CLZ WI'!$A$1:$K$100000,7,FALSE),"") -> EMEA | J32: =T('CLZ TT'!I32) ->  | K32: =IF(IFERROR(VLOOKUP('CLZ TT'!A32,'CLZ WI'!$A$1:$L$100000,12,FALSE),"")=TRUE, "Billable", IF(IFERROR(VLOOKUP('CLZ TT'!A32,'CLZ WI'!$A$1:$L$100000,12,FALSE),"")=FALSE, "Non-Billable", "")) -> Billable | L32: =IF('CLZ TT'!G32="","",'CLZ TT'!G32) -> 2012-03-12 | M32: =IFERROR(VLOOKUP(G32,'CLZ Pr'!$A$1:$X$100000,12,FALSE)*C32,"") ->  | N32: =IFERROR(VLOOKUP(G32,'CLZ Pr'!$A$1:$X$100000,24,FALSE), "") ->  | O32: =IFERROR(VLOOKUP(G32,'CLZ Pr'!$A$1:$X$100000,21,FALSE), "") -> 
A33: =T('CLZ TT'!A33) -> T-365207 | B33: =T('CLZ TT'!D33) -> Rami Cohen | C33: =IF(LEN(A33) > 0, 'CLZ TT'!E33, "") -> 8 | D33: =T('CLZ TT'!F33) -> Hours | E33: =IFERROR(VLOOKUP('CLZ TT'!A33,'CLZ WI'!$A$1:$E$100000,3,FALSE),"") -> Bazaarvoice Unlimited Hours | F33: =IFERROR(VLOOKUP('CLZ TT'!A33,'CLZ WI'!$A$1:$E$100000,4,FALSE),"") -> CS Project | G33: =IFERROR(VLOOKUP('CLZ TT'!A33,'CLZ WI'!$A$1:$K$100000,5,FALSE),"") -> P-149433 | H33: =IFERROR(VLOOKUP(G33,'CLZ WI'!$A$1:$K$100000,6,FALSE),"") -> Fixed Hours | I33: =IFERROR(VLOOKUP(G33,'CLZ WI'!$A$1:$K$100000,7,FALSE),"") -> USA | J33: =T('CLZ TT'!I33) ->  | K33: =IF(IFERROR(VLOOKUP('CLZ TT'!A33,'CLZ WI'!$A$1:$L$100000,12,FALSE),"")=TRUE, "Billable", IF(IFERROR(VLOOKUP('CLZ TT'!A33,'CLZ WI'!$A$1:$L$100000,12,FALSE),"")=FALSE, "Non-Billable", "")) -> Non-Billable | L33: =IF('CLZ TT'!G33="","",'CLZ TT'!G33) -> 2012-03-13 | M33: =IFERROR(VLOOKUP(G33,'CLZ Pr'!$A$1:$X$100000,12,FALSE)*C33,"") ->  | N33: =IFERROR(VLOOKUP(G33,'CLZ Pr'!$A$1:$X$100000,24,FALSE), "") ->  | O33: =IFERROR(VLOOKUP(G33,'CLZ Pr'!$A$1:$X$100000,21,FALSE), "") -> 
A34: =T('CLZ TT'!A34) -> M-174397 | B34: =T('CLZ TT'!D34) -> Eran Fishov | C34: =IF(LEN(A34) > 0, 'CLZ TT'!E34, "") -> 1 | D34: =T('CLZ TT'!F34) -> Hours | E34: =IFERROR(VLOOKUP('CLZ TT'!A34,'CLZ WI'!$A$1:$E$100000,3,FALSE),"") -> Afinium Tier 2 QS | F34: =IFERROR(VLOOKUP('CLZ TT'!A34,'CLZ WI'!$A$1:$E$100000,4,FALSE),"") -> CS Quick Start | G34: =IFERROR(VLOOKUP('CLZ TT'!A34,'CLZ WI'!$A$1:$K$100000,5,FALSE),"") -> P-137424 | H34: =IFERROR(VLOOKUP(G34,'CLZ WI'!$A$1:$K$100000,6,FALSE),"") -> Package Medium | I34: =IFERROR(VLOOKUP(G34,'CLZ WI'!$A$1:$K$100000,7,FALSE),"") -> EMEA | J34: =T('CLZ TT'!I34) ->  | K34: =IF(IFERROR(VLOOKUP('CLZ TT'!A34,'CLZ WI'!$A$1:$L$100000,12,FALSE),"")=TRUE, "Billable", IF(IFERROR(VLOOKUP('CLZ TT'!A34,'CLZ WI'!$A$1:$L$100000,12,FALSE),"")=FALSE, "Non-Billable", "")) -> Billable | L34: =IF('CLZ TT'!G34="","",'CLZ TT'!G34) -> 2012-03-14 | M34: =IFERROR(VLOOKUP(G34,'CLZ Pr'!$A$1:$X$100000,12,FALSE)*C34,"") ->  | N34: =IFERROR(VLOOKUP(G34,'CLZ Pr'!$A$1:$X$100000,24,FALSE), "") ->  | O34: =IFERROR(VLOOKUP(G34,'CLZ Pr'!$A$1:$X$100000,21,FALSE), "") -> 
A35: =T('CLZ TT'!A35) -> P-157498 | B35: =T('CLZ TT'!D35) -> Alex Gorman | C35: =IF(LEN(A35) > 0, 'CLZ TT'!E35, "") -> 0.25 | D35: =T('CLZ TT'!F35) -> Hours | E35: =IFERROR(VLOOKUP('CLZ TT'!A35,'CLZ WI'!$A$1:$E$100000,3,FALSE),"") -> PlatformOne - 2 Non-Billable Committed Hours | F35: =IFERROR(VLOOKUP('CLZ TT'!A35,'CLZ WI'!$A$1:$E$100000,4,FALSE),"") -> CS Project | G35: =IFERROR(VLOOKUP('CLZ TT'!A35,'CLZ WI'!$A$1:$K$100000,5,FALSE),"") -> P-157498 | H35: =IFERROR(VLOOKUP(G35,'CLZ WI'!$A$1:$K$100000,6,FALSE),"") -> Fixed Hours | I35: =IFERROR(VLOOKUP(G35,'CLZ WI'!$A$1:$K$100000,7,FALSE),"") -> USA | J35: =T('CLZ TT'!I35) ->  | K35: =IF(IFERROR(VLOOKUP('CLZ TT'!A35,'CLZ WI'!$A$1:$L$100000,12,FALSE),"")=TRUE, "Billable", IF(IFERROR(VLOOKUP('CLZ TT'!A35,'CLZ WI'!$A$1:$L$100000,12,FALSE),"")=FALSE, "Non-Billable", "")) -> Non-Billable | L35: =IF('CLZ TT'!G35="","",'CLZ TT'!G35) -> 2012-03-14 | M35: =IFERROR(VLOOKUP(G35,'CLZ Pr'!$A$1:$X$100000,12,FALSE)*C35,"") -> 0 | N35: =IFERROR(VLOOKUP(G35,'CLZ Pr'!$A$1:$X$100000,24,FALSE), "") -> 0 | O35: =IFERROR(VLOOKUP(G35,'CLZ Pr'!$A$1:$X$100000,21,FALSE), "") -> 0.58
A36: =T('CLZ TT'!A36) -> T-207956 | B36: =T('CLZ TT'!D36) -> Roni Feldsher | C36: =IF(LEN(A36) > 0, 'CLZ TT'!E36, "") -> 1.5 | D36: =T('CLZ TT'!F36) -> Hours | E36: =IFERROR(VLOOKUP('CLZ TT'!A36,'CLZ WI'!$A$1:$E$100000,3,FALSE),"") -> Indiana -Department of Child Services - 6h PS | F36: =IFERROR(VLOOKUP('CLZ TT'!A36,'CLZ WI'!$A$1:$E$100000,4,FALSE),"") -> CS Project | G36: =IFERROR(VLOOKUP('CLZ TT'!A36,'CLZ WI'!$A$1:$K$100000,5,FALSE),"") -> P-70810 | H36: =IFERROR(VLOOKUP(G36,'CLZ WI'!$A$1:$K$100000,6,FALSE),"") -> Fixed Hours | I36: =IFERROR(VLOOKUP(G36,'CLZ WI'!$A$1:$K$100000,7,FALSE),"") -> USA | J36: =T('CLZ TT'!I36) ->  | K36: =IF(IFERROR(VLOOKUP('CLZ TT'!A36,'CLZ WI'!$A$1:$L$100000,12,FALSE),"")=TRUE, "Billable", IF(IFERROR(VLOOKUP('CLZ TT'!A36,'CLZ WI'!$A$1:$L$100000,12,FALSE),"")=FALSE, "Non-Billable", "")) -> Billable | L36: =IF('CLZ TT'!G36="","",'CLZ TT'!G36) -> 2012-03-14 | M36: =IFERROR(VLOOKUP(G36,'CLZ Pr'!$A$1:$X$100000,12,FALSE)*C36,"") ->  | N36: =IFERROR(VLOOKUP(G36,'CLZ Pr'!$A$1:$X$100000,24,FALSE), "") ->  | O36: =IFERROR(VLOOKUP(G36,'CLZ Pr'!$A$1:$X$100000,21,FALSE), "") -> 
A37: =T('CLZ TT'!A37) -> P-183268 | B37: =T('CLZ TT'!D37) -> Patrick Smith | C37: =IF(LEN(A37) > 0, 'CLZ TT'!E37, "") -> 0.75 | D37: =T('CLZ TT'!F37) -> Hours | E37: =IFERROR(VLOOKUP('CLZ TT'!A37,'CLZ WI'!$A$1:$E$100000,3,FALSE),"") -> Wind River 5 h PS | F37: =IFERROR(VLOOKUP('CLZ TT'!A37,'CLZ WI'!$A$1:$E$100000,4,FALSE),"") -> CS Project | G37: =IFERROR(VLOOKUP('CLZ TT'!A37,'CLZ WI'!$A$1:$K$100000,5,FALSE),"") -> P-183268 | H37: =IFERROR(VLOOKUP(G37,'CLZ WI'!$A$1:$K$100000,6,FALSE),"") -> Fixed Hours | I37: =IFERROR(VLOOKUP(G37,'CLZ WI'!$A$1:$K$100000,7,FALSE),"") -> USA | J37: =T('CLZ TT'!I37) ->  | K37: =IF(IFERROR(VLOOKUP('CLZ TT'!A37,'CLZ WI'!$A$1:$L$100000,12,FALSE),"")=TRUE, "Billable", IF(IFERROR(VLOOKUP('CLZ TT'!A37,'CLZ WI'!$A$1:$L$100000,12,FALSE),"")=FALSE, "Non-Billable", "")) -> Billable | L37: =IF('CLZ TT'!G37="","",'CLZ TT'!G37) -> 2012-03-14 | M37: =IFERROR(VLOOKUP(G37,'CLZ Pr'!$A$1:$X$100000,12,FALSE)*C37,"") -> 75 | N37: =IFERROR(VLOOKUP(G37,'CLZ Pr'!$A$1:$X$100000,24,FALSE), "") -> 0 | O37: =IFERROR(VLOOKUP(G37,'CLZ Pr'!$A$1:$X$100000,21,FALSE), "") -> 0
A38: =T('CLZ TT'!A38) -> P-183270 | B38: =T('CLZ TT'!D38) -> Patrick Smith | C38: =IF(LEN(A38) > 0, 'CLZ TT'!E38, "") -> 1 | D38: =T('CLZ TT'!F38) -> Hours | E38: =IFERROR(VLOOKUP('CLZ TT'!A38,'CLZ WI'!$A$1:$E$100000,3,FALSE),"") -> Artemis | F38: =IFERROR(VLOOKUP('CLZ TT'!A38,'CLZ WI'!$A$1:$E$100000,4,FALSE),"") -> CS Project | G38: =IFERROR(VLOOKUP('CLZ TT'!A38,'CLZ WI'!$A$1:$K$100000,5,FALSE),"") -> P-183270 | H38: =IFERROR(VLOOKUP(G38,'CLZ WI'!$A$1:$K$100000,6,FALSE),"") -> Fixed Hours | I38: =IFERROR(VLOOKUP(G38,'CLZ WI'!$A$1:$K$100000,7,FALSE),"") -> USA | J38: =T('CLZ TT'!I38) ->  | K38: =IF(IFERROR(VLOOKUP('CLZ TT'!A38,'CLZ WI'!$A$1:$L$100000,12,FALSE),"")=TRUE, "Billable", IF(IFERROR(VLOOKUP('CLZ TT'!A38,'CLZ WI'!$A$1:$L$100000,12,FALSE),"")=FALSE, "Non-Billable", "")) -> Billable | L38: =IF('CLZ TT'!G38="","",'CLZ TT'!G38) -> 2012-03-14 | M38: =IFERROR(VLOOKUP(G38,'CLZ Pr'!$A$1:$X$100000,12,FALSE)*C38,"") -> 142.86 | N38: =IFERROR(VLOOKUP(G38,'CLZ Pr'!$A$1:$X$100000,24,FALSE), "") -> 0 | O38: =IFERROR(VLOOKUP(G38,'CLZ Pr'!$A$1:$X$100000,21,FALSE), "") -> 6
A39: =T('CLZ TT'!A39) -> T-365207 | B39: =T('CLZ TT'!D39) -> Rami Cohen | C39: =IF(LEN(A39) > 0, 'CLZ TT'!E39, "") -> 8 | D39: =T('CLZ TT'!F39) -> Hours | E39: =IFERROR(VLOOKUP('CLZ TT'!A39,'CLZ WI'!$A$1:$E$100000,3,FALSE),"") -> Bazaarvoice Unlimited Hours | F39: =IFERROR(VLOOKUP('CLZ TT'!A39,'CLZ WI'!$A$1:$E$100000,4,FALSE),"") -> CS Project | G39: =IFERROR(VLOOKUP('CLZ TT'!A39,'CLZ WI'!$A$1:$K$100000,5,FALSE),"") -> P-149433 | H39: =IFERROR(VLOOKUP(G39,'CLZ WI'!$A$1:$K$100000,6,FALSE),"") -> Fixed Hours | I39: =IFERROR(VLOOKUP(G39,'CLZ WI'!$A$1:$K$100000,7,FALSE),"") -> USA | J39: =T('CLZ TT'!I39) ->  | K39: =IF(IFERROR(VLOOKUP('CLZ TT'!A39,'CLZ WI'!$A$1:$L$100000,12,FALSE),"")=TRUE, "Billable", IF(IFERROR(VLOOKUP('CLZ TT'!A39,'CLZ WI'!$A$1:$L$100000,12,FALSE),"")=FALSE, "Non-Billable", "")) -> Non-Billable | L39: =IF('CLZ TT'!G39="","",'CLZ TT'!G39) -> 2012-03-14 | M39: =IFERROR(VLOOKUP(G39,'CLZ Pr'!$A$1:$X$100000,12,FALSE)*C39,"") ->  | N39: =IFERROR(VLOOKUP(G39,'CLZ Pr'!$A$1:$X$100000,24,FALSE), "") ->  | O39: =IFERROR(VLOOKUP(G39,'CLZ Pr'!$A$1:$X$100000,21,FALSE), "") -> 
A40: =T('CLZ TT'!A40) -> T-292050 | B40: =T('CLZ TT'!D40) -> Roni Feldsher | C40: =IF(LEN(A40) > 0, 'CLZ TT'!E40, "") -> 1 | D40: =T('CLZ TT'!F40) -> Hours | E40: =IFERROR(VLOOKUP('CLZ TT'!A40,'CLZ WI'!$A$1:$E$100000,3,FALSE),"") -> ELC Online - - 58 h PS | F40: =IFERROR(VLOOKUP('CLZ TT'!A40,'CLZ WI'!$A$1:$E$100000,4,FALSE),"") -> CS Project | G40: =IFERROR(VLOOKUP('CLZ TT'!A40,'CLZ WI'!$A$1:$K$100000,5,FALSE),"") -> P-113869 | H40: =IFERROR(VLOOKUP(G40,'CLZ WI'!$A$1:$K$100000,6,FALSE),"") -> Fixed Hours | I40: =IFERROR(VLOOKUP(G40,'CLZ WI'!$A$1:$K$100000,7,FALSE),"") -> USA | J40: =T('CLZ TT'!I40) ->  | K40: =IF(IFERROR(VLOOKUP('CLZ TT'!A40,'CLZ WI'!$A$1:$L$100000,12,FALSE),"")=TRUE, "Billable", IF(IFERROR(VLOOKUP('CLZ TT'!A40,'CLZ WI'!$A$1:$L$100000,12,FALSE),"")=FALSE, "Non-Billable", "")) -> Billable | L40: =IF('CLZ TT'!G40="","",'CLZ TT'!G40) -> 2012-03-15 | M40: =IFERROR(VLOOKUP(G40,'CLZ Pr'!$A$1:$X$100000,12,FALSE)*C40,"") ->  | N40: =IFERROR(VLOOKUP(G40,'CLZ Pr'!$A$1:$X$100000,24,FALSE), "") ->  | O40: =IFERROR(VLOOKUP(G40,'CLZ Pr'!$A$1:$X$100000,21,FALSE), "") -> 
A41: =T('CLZ TT'!A41) -> T-365207 | B41: =T('CLZ TT'!D41) -> Rami Cohen | C41: =IF(LEN(A41) > 0, 'CLZ TT'!E41, "") -> 8 | D41: =T('CLZ TT'!F41) -> Hours | E41: =IFERROR(VLOOKUP('CLZ TT'!A41,'CLZ WI'!$A$1:$E$100000,3,FALSE),"") -> Bazaarvoice Unlimited Hours | F41: =IFERROR(VLOOKUP('CLZ TT'!A41,'CLZ WI'!$A$1:$E$100000,4,FALSE),"") -> CS Project | G41: =IFERROR(VLOOKUP('CLZ TT'!A41,'CLZ WI'!$A$1:$K$100000,5,FALSE),"") -> P-149433 | H41: =IFERROR(VLOOKUP(G41,'CLZ WI'!$A$1:$K$100000,6,FALSE),"") -> Fixed Hours | I41: =IFERROR(VLOOKUP(G41,'CLZ WI'!$A$1:$K$100000,7,FALSE),"") -> USA | J41: =T('CLZ TT'!I41) -> Customization | K41: =IF(IFERROR(VLOOKUP('CLZ TT'!A41,'CLZ WI'!$A$1:$L$100000,12,FALSE),"")=TRUE, "Billable", IF(IFERROR(VLOOKUP('CLZ TT'!A41,'CLZ WI'!$A$1:$L$100000,12,FALSE),"")=FALSE, "Non-Billable", "")) -> Non-Billable | L41: =IF('CLZ TT'!G41="","",'CLZ TT'!G41) -> 2012-03-15 | M41: =IFERROR(VLOOKUP(G41,'CLZ Pr'!$A$1:$X$100000,12,FALSE)*C41,"") ->  | N41: =IFERROR(VLOOKUP(G41,'CLZ Pr'!$A$1:$X$100000,24,FALSE), "") ->  | O41: =IFERROR(VLOOKUP(G41,'CLZ Pr'!$A$1:$X$100000,21,FALSE), "") -> 
A42: =T('CLZ TT'!A42) -> T-435762 | B42: =T('CLZ TT'!D42) -> Tal Noga | C42: =IF(LEN(A42) > 0, 'CLZ TT'!E42, "") -> 1 | D42: =T('CLZ TT'!F42) -> Hours | E42: =IFERROR(VLOOKUP('CLZ TT'!A42,'CLZ WI'!$A$1:$E$100000,3,FALSE),"") -> Sondrel/Tier2/10h | F42: =IFERROR(VLOOKUP('CLZ TT'!A42,'CLZ WI'!$A$1:$E$100000,4,FALSE),"") -> CS Quick Start | G42: =IFERROR(VLOOKUP('CLZ TT'!A42,'CLZ WI'!$A$1:$K$100000,5,FALSE),"") -> P-145889 | H42: =IFERROR(VLOOKUP(G42,'CLZ WI'!$A$1:$K$100000,6,FALSE),"") -> Package Medium | I42: =IFERROR(VLOOKUP(G42,'CLZ WI'!$A$1:$K$100000,7,FALSE),"") -> EMEA | J42: =T('CLZ TT'!I42) -> Customization | K42: =IF(IFERROR(VLOOKUP('CLZ TT'!A42,'CLZ WI'!$A$1:$L$100000,12,FALSE),"")=TRUE, "Billable", IF(IFERROR(VLOOKUP('CLZ TT'!A42,'CLZ WI'!$A$1:$L$100000,12,FALSE),"")=FALSE, "Non-Billable", "")) -> Billable | L42: =IF('CLZ TT'!G42="","",'CLZ TT'!G42) -> 2012-03-15 | M42: =IFERROR(VLOOKUP(G42,'CLZ Pr'!$A$1:$X$100000,12,FALSE)*C42,"") ->  | N42: =IFERROR(VLOOKUP(G42,'CLZ Pr'!$A$1:$X$100000,24,FALSE), "") ->  | O42: =IFERROR(VLOOKUP(G42,'CLZ Pr'!$A$1:$X$100000,21,FALSE), "") -> 
A43: =T('CLZ TT'!A43) -> T-67452 | B43: =T('CLZ TT'!D43) -> Eran Fishov | C43: =IF(LEN(A43) > 0, 'CLZ TT'!E43, "") -> 1 | D43: =T('CLZ TT'!F43) -> Hours | E43: =IFERROR(VLOOKUP('CLZ TT'!A43,'CLZ WI'!$A$1:$E$100000,3,FALSE),"") -> Binding Site | F43: =IFERROR(VLOOKUP('CLZ TT'!A43,'CLZ WI'!$A$1:$E$100000,4,FALSE),"") -> CS Project | G43: =IFERROR(VLOOKUP('CLZ TT'!A43,'CLZ WI'!$A$1:$K$100000,5,FALSE),"") -> P-26970 | H43: =IFERROR(VLOOKUP(G43,'CLZ WI'!$A$1:$K$100000,6,FALSE),"") -> Fixed Hours | I43: =IFERROR(VLOOKUP(G43,'CLZ WI'!$A$1:$K$100000,7,FALSE),"") -> EMEA | J43: =T('CLZ TT'!I43) ->  | K43: =IF(IFERROR(VLOOKUP('CLZ TT'!A43,'CLZ WI'!$A$1:$L$100000,12,FALSE),"")=TRUE, "Billable", IF(IFERROR(VLOOKUP('CLZ TT'!A43,'CLZ WI'!$A$1:$L$100000,12,FALSE),"")=FALSE, "Non-Billable", "")) -> Billable | L43: =IF('CLZ TT'!G43="","",'CLZ TT'!G43) -> 2012-03-16 | M43: =IFERROR(VLOOKUP(G43,'CLZ Pr'!$A$1:$X$100000,12,FALSE)*C43,"") ->  | N43: =IFERROR(VLOOKUP(G43,'CLZ Pr'!$A$1:$X$100000,24,FALSE), "") ->  | O43: =IFERROR(VLOOKUP(G43,'CLZ Pr'!$A$1:$X$100000,21,FALSE), "") -> 
A44: =T('CLZ TT'!A44) -> M-117877 | B44: =T('CLZ TT'!D44) -> David Goulden | C44: =IF(LEN(A44) > 0, 'CLZ TT'!E44, "") -> 0.5 | D44: =T('CLZ TT'!F44) -> Hours | E44: =IFERROR(VLOOKUP('CLZ TT'!A44,'CLZ WI'!$A$1:$E$100000,3,FALSE),"") ->  | F44: =IFERROR(VLOOKUP('CLZ TT'!A44,'CLZ WI'!$A$1:$E$100000,4,FALSE),"") ->  | G44: =IFERROR(VLOOKUP('CLZ TT'!A44,'CLZ WI'!$A$1:$K$100000,5,FALSE),"") ->  | H44: =IFERROR(VLOOKUP(G44,'CLZ WI'!$A$1:$K$100000,6,FALSE),"") ->  | I44: =IFERROR(VLOOKUP(G44,'CLZ WI'!$A$1:$K$100000,7,FALSE),"") ->  | J44: =T('CLZ TT'!I44) ->  | K44: =IF(IFERROR(VLOOKUP('CLZ TT'!A44,'CLZ WI'!$A$1:$L$100000,12,FALSE),"")=TRUE, "Billable", IF(IFERROR(VLOOKUP('CLZ TT'!A44,'CLZ WI'!$A$1:$L$100000,12,FALSE),"")=FALSE, "Non-Billable", "")) ->  | L44: =IF('CLZ TT'!G44="","",'CLZ TT'!G44) -> 2012-03-18 | M44: =IFERROR(VLOOKUP(G44,'CLZ Pr'!$A$1:$X$100000,12,FALSE)*C44,"") ->  | N44: =IFERROR(VLOOKUP(G44,'CLZ Pr'!$A$1:$X$100000,24,FALSE), "") ->  | O44: =IFERROR(VLOOKUP(G44,'CLZ Pr'!$A$1:$X$100000,21,FALSE), "") -> 
A45: =T('CLZ TT'!A45) -> P-157498 | B45: =T('CLZ TT'!D45) -> Alex Gorman | C45: =IF(LEN(A45) > 0, 'CLZ TT'!E45, "") -> 0 | D45: =T('CLZ TT'!F45) -> Hours | E45: =IFERROR(VLOOKUP('CLZ TT'!A45,'CLZ WI'!$A$1:$E$100000,3,FALSE),"") -> PlatformOne - 2 Non-Billable Committed Hours | F45: =IFERROR(VLOOKUP('CLZ TT'!A45,'CLZ WI'!$A$1:$E$100000,4,FALSE),"") -> CS Project | G45: =IFERROR(VLOOKUP('CLZ TT'!A45,'CLZ WI'!$A$1:$K$100000,5,FALSE),"") -> P-157498 | H45: =IFERROR(VLOOKUP(G45,'CLZ WI'!$A$1:$K$100000,6,FALSE),"") -> Fixed Hours | I45: =IFERROR(VLOOKUP(G45,'CLZ WI'!$A$1:$K$100000,7,FALSE),"") -> USA | J45: =T('CLZ TT'!I45) ->  | K45: =IF(IFERROR(VLOOKUP('CLZ TT'!A45,'CLZ WI'!$A$1:$L$100000,12,FALSE),"")=TRUE, "Billable", IF(IFERROR(VLOOKUP('CLZ TT'!A45,'CLZ WI'!$A$1:$L$100000,12,FALSE),"")=FALSE, "Non-Billable", "")) -> Non-Billable | L45: =IF('CLZ TT'!G45="","",'CLZ TT'!G45) -> 2012-03-19 | M45: =IFERROR(VLOOKUP(G45,'CLZ Pr'!$A$1:$X$100000,12,FALSE)*C45,"") -> 0 | N45: =IFERROR(VLOOKUP(G45,'CLZ Pr'!$A$1:$X$100000,24,FALSE), "") -> 0 | O45: =IFERROR(VLOOKUP(G45,'CLZ Pr'!$A$1:$X$100000,21,FALSE), "") -> 0.58
A46: =T('CLZ TT'!A46) -> T-335885 | B46: =T('CLZ TT'!D46) -> Eran Fishov | C46: =IF(LEN(A46) > 0, 'CLZ TT'!E46, "") -> 4 | D46: =T('CLZ TT'!F46) -> Hours | E46: =IFERROR(VLOOKUP('CLZ TT'!A46,'CLZ WI'!$A$1:$E$100000,3,FALSE),"") -> Kata | F46: =IFERROR(VLOOKUP('CLZ TT'!A46,'CLZ WI'!$A$1:$E$100000,4,FALSE),"") -> CS Project | G46: =IFERROR(VLOOKUP('CLZ TT'!A46,'CLZ WI'!$A$1:$K$100000,5,FALSE),"") -> P-36869 | H46: =IFERROR(VLOOKUP(G46,'CLZ WI'!$A$1:$K$100000,6,FALSE),"") -> Fixed Hours | I46: =IFERROR(VLOOKUP(G46,'CLZ WI'!$A$1:$K$100000,7,FALSE),"") -> EMEA | J46: =T('CLZ TT'!I46) ->  | K46: =IF(IFERROR(VLOOKUP('CLZ TT'!A46,'CLZ WI'!$A$1:$L$100000,12,FALSE),"")=TRUE, "Billable", IF(IFERROR(VLOOKUP('CLZ TT'!A46,'CLZ WI'!$A$1:$L$100000,12,FALSE),"")=FALSE, "Non-Billable", "")) -> Billable | L46: =IF('CLZ TT'!G46="","",'CLZ TT'!G46) -> 2012-03-19 | M46: =IFERROR(VLOOKUP(G46,'CLZ Pr'!$A$1:$X$100000,12,FALSE)*C46,"") ->  | N46: =IFERROR(VLOOKUP(G46,'CLZ Pr'!$A$1:$X$100000,24,FALSE), "") ->  | O46: =IFERROR(VLOOKUP(G46,'CLZ Pr'!$A$1:$X$100000,21,FALSE), "") -> 
A47: =T('CLZ TT'!A47) -> P-178154 | B47: =T('CLZ TT'!D47) -> Eran Fishov | C47: =IF(LEN(A47) > 0, 'CLZ TT'!E47, "") -> 4 | D47: =T('CLZ TT'!F47) -> Hours | E47: =IFERROR(VLOOKUP('CLZ TT'!A47,'CLZ WI'!$A$1:$E$100000,3,FALSE),"") -> Kata Vitec 13 h PS | F47: =IFERROR(VLOOKUP('CLZ TT'!A47,'CLZ WI'!$A$1:$E$100000,4,FALSE),"") -> CS Project | G47: =IFERROR(VLOOKUP('CLZ TT'!A47,'CLZ WI'!$A$1:$K$100000,5,FALSE),"") -> P-178154 | H47: =IFERROR(VLOOKUP(G47,'CLZ WI'!$A$1:$K$100000,6,FALSE),"") -> Fixed Hours | I47: =IFERROR(VLOOKUP(G47,'CLZ WI'!$A$1:$K$100000,7,FALSE),"") -> EMEA | J47: =T('CLZ TT'!I47) ->  | K47: =IF(IFERROR(VLOOKUP('CLZ TT'!A47,'CLZ WI'!$A$1:$L$100000,12,FALSE),"")=TRUE, "Billable", IF(IFERROR(VLOOKUP('CLZ TT'!A47,'CLZ WI'!$A$1:$L$100000,12,FALSE),"")=FALSE, "Non-Billable", "")) -> Billable | L47: =IF('CLZ TT'!G47="","",'CLZ TT'!G47) -> 2012-03-19 | M47: =IFERROR(VLOOKUP(G47,'CLZ Pr'!$A$1:$X$100000,12,FALSE)*C47,"") -> 360 | N47: =IFERROR(VLOOKUP(G47,'CLZ Pr'!$A$1:$X$100000,24,FALSE), "") -> 0 | O47: =IFERROR(VLOOKUP(G47,'CLZ Pr'!$A$1:$X$100000,21,FALSE), "") -> 9
A48: =T('CLZ TT'!A48) -> M-117877 | B48: =T('CLZ TT'!D48) -> David Goulden | C48: =IF(LEN(A48) > 0, 'CLZ TT'!E48, "") -> 1 | D48: =T('CLZ TT'!F48) -> Hours | E48: =IFERROR(VLOOKUP('CLZ TT'!A48,'CLZ WI'!$A$1:$E$100000,3,FALSE),"") ->  | F48: =IFERROR(VLOOKUP('CLZ TT'!A48,'CLZ WI'!$A$1:$E$100000,4,FALSE),"") ->  | G48: =IFERROR(VLOOKUP('CLZ TT'!A48,'CLZ WI'!$A$1:$K$100000,5,FALSE),"") ->  | H48: =IFERROR(VLOOKUP(G48,'CLZ WI'!$A$1:$K$100000,6,FALSE),"") ->  | I48: =IFERROR(VLOOKUP(G48,'CLZ WI'!$A$1:$K$100000,7,FALSE),"") ->  | J48: =T('CLZ TT'!I48) ->  | K48: =IF(IFERROR(VLOOKUP('CLZ TT'!A48,'CLZ WI'!$A$1:$L$100000,12,FALSE),"")=TRUE, "Billable", IF(IFERROR(VLOOKUP('CLZ TT'!A48,'CLZ WI'!$A$1:$L$100000,12,FALSE),"")=FALSE, "Non-Billable", "")) ->  | L48: =IF('CLZ TT'!G48="","",'CLZ TT'!G48) -> 2012-03-19 | M48: =IFERROR(VLOOKUP(G48,'CLZ Pr'!$A$1:$X$100000,12,FALSE)*C48,"") ->  | N48: =IFERROR(VLOOKUP(G48,'CLZ Pr'!$A$1:$X$100000,24,FALSE), "") ->  | O48: =IFERROR(VLOOKUP(G48,'CLZ Pr'!$A$1:$X$100000,21,FALSE), "") -> 
A49: =T('CLZ TT'!A49) -> T-207956 | B49: =T('CLZ TT'!D49) -> Roni Feldsher | C49: =IF(LEN(A49) > 0, 'CLZ TT'!E49, "") -> 4 | D49: =T('CLZ TT'!F49) -> Hours | E49: =IFERROR(VLOOKUP('CLZ TT'!A49,'CLZ WI'!$A$1:$E$100000,3,FALSE),"") -> Indiana -Department of Child Services - 6h PS | F49: =IFERROR(VLOOKUP('CLZ TT'!A49,'CLZ WI'!$A$1:$E$100000,4,FALSE),"") -> CS Project | G49: =IFERROR(VLOOKUP('CLZ TT'!A49,'CLZ WI'!$A$1:$K$100000,5,FALSE),"") -> P-70810 | H49: =IFERROR(VLOOKUP(G49,'CLZ WI'!$A$1:$K$100000,6,FALSE),"") -> Fixed Hours | I49: =IFERROR(VLOOKUP(G49,'CLZ WI'!$A$1:$K$100000,7,FALSE),"") -> USA | J49: =T('CLZ TT'!I49) ->  | K49: =IF(IFERROR(VLOOKUP('CLZ TT'!A49,'CLZ WI'!$A$1:$L$100000,12,FALSE),"")=TRUE, "Billable", IF(IFERROR(VLOOKUP('CLZ TT'!A49,'CLZ WI'!$A$1:$L$100000,12,FALSE),"")=FALSE, "Non-Billable", "")) -> Billable | L49: =IF('CLZ TT'!G49="","",'CLZ TT'!G49) -> 2012-03-19 | M49: =IFERROR(VLOOKUP(G49,'CLZ Pr'!$A$1:$X$100000,12,FALSE)*C49,"") ->  | N49: =IFERROR(VLOOKUP(G49,'CLZ Pr'!$A$1:$X$100000,24,FALSE), "") ->  | O49: =IFERROR(VLOOKUP(G49,'CLZ Pr'!$A$1:$X$100000,21,FALSE), "") -> 
A50: =T('CLZ TT'!A50) -> T-67452 | B50: =T('CLZ TT'!D50) -> Eran Fishov | C50: =IF(LEN(A50) > 0, 'CLZ TT'!E50, "") -> 1 | D50: =T('CLZ TT'!F50) -> Hours | E50: =IFERROR(VLOOKUP('CLZ TT'!A50,'CLZ WI'!$A$1:$E$100000,3,FALSE),"") -> Binding Site | F50: =IFERROR(VLOOKUP('CLZ TT'!A50,'CLZ WI'!$A$1:$E$100000,4,FALSE),"") -> CS Project | G50: =IFERROR(VLOOKUP('CLZ TT'!A50,'CLZ WI'!$A$1:$K$100000,5,FALSE),"") -> P-26970 | H50: =IFERROR(VLOOKUP(G50,'CLZ WI'!$A$1:$K$100000,6,FALSE),"") -> Fixed Hours | I50: =IFERROR(VLOOKUP(G50,'CLZ WI'!$A$1:$K$100000,7,FALSE),"") -> EMEA | J50: =T('CLZ TT'!I50) ->  | K50: =IF(IFERROR(VLOOKUP('CLZ TT'!A50,'CLZ WI'!$A$1:$L$100000,12,FALSE),"")=TRUE, "Billable", IF(IFERROR(VLOOKUP('CLZ TT'!A50,'CLZ WI'!$A$1:$L$100000,12,FALSE),"")=FALSE, "Non-Billable", "")) -> Billable | L50: =IF('CLZ TT'!G50="","",'CLZ TT'!G50) -> 2012-03-19 | M50: =IFERROR(VLOOKUP(G50,'CLZ Pr'!$A$1:$X$100000,12,FALSE)*C50,"") ->  | N50: =IFERROR(VLOOKUP(G50,'CLZ Pr'!$A$1:$X$100000,24,FALSE), "") ->  | O50: =IFERROR(VLOOKUP(G50,'CLZ Pr'!$A$1:$X$100000,21,FALSE), "") -> 
A51: =T('CLZ TT'!A51) -> P-158424 | B51: =T('CLZ TT'!D51) -> Josh Santos | C51: =IF(LEN(A51) > 0, 'CLZ TT'!E51, "") -> 1 | D51: =T('CLZ TT'!F51) -> Hours | E51: =IFERROR(VLOOKUP('CLZ TT'!A51,'CLZ WI'!$A$1:$E$100000,3,FALSE),"") -> PureDriven Tier1 | F51: =IFERROR(VLOOKUP('CLZ TT'!A51,'CLZ WI'!$A$1:$E$100000,4,FALSE),"") -> CS Quick Start | G51: =IFERROR(VLOOKUP('CLZ TT'!A51,'CLZ WI'!$A$1:$K$100000,5,FALSE),"") -> P-158424 | H51: =IFERROR(VLOOKUP(G51,'CLZ WI'!$A$1:$K$100000,6,FALSE),"") -> Package Large | I51: =IFERROR(VLOOKUP(G51,'CLZ WI'!$A$1:$K$100000,7,FALSE),"") -> USA | J51: =T('CLZ TT'!I51) ->  | K51: =IF(IFERROR(VLOOKUP('CLZ TT'!A51,'CLZ WI'!$A$1:$L$100000,12,FALSE),"")=TRUE, "Billable", IF(IFERROR(VLOOKUP('CLZ TT'!A51,'CLZ WI'!$A$1:$L$100000,12,FALSE),"")=FALSE, "Non-Billable", "")) -> Billable | L51: =IF('CLZ TT'!G51="","",'CLZ TT'!G51) -> 2012-03-19 | M51: =IFERROR(VLOOKUP(G51,'CLZ Pr'!$A$1:$X$100000,12,FALSE)*C51,"") -> 145.83 | N51: =IFERROR(VLOOKUP(G51,'CLZ Pr'!$A$1:$X$100000,24,FALSE), "") -> 0 | O51: =IFERROR(VLOOKUP(G51,'CLZ Pr'!$A$1:$X$100000,21,FALSE), "") -> 9
A52: =T('CLZ TT'!A52) -> P-154008 | B52: =T('CLZ TT'!D52) -> Rami Cohen | C52: =IF(LEN(A52) > 0, 'CLZ TT'!E52, "") -> 8 | D52: =T('CLZ TT'!F52) -> Hours | E52: =IFERROR(VLOOKUP('CLZ TT'!A52,'CLZ WI'!$A$1:$E$100000,3,FALSE),"") -> IOMEDIA Fixed Hours | F52: =IFERROR(VLOOKUP('CLZ TT'!A52,'CLZ WI'!$A$1:$E$100000,4,FALSE),"") -> CS Project | G52: =IFERROR(VLOOKUP('CLZ TT'!A52,'CLZ WI'!$A$1:$K$100000,5,FALSE),"") -> P-154008 | H52: =IFERROR(VLOOKUP(G52,'CLZ WI'!$A$1:$K$100000,6,FALSE),"") -> Fixed Hours | I52: =IFERROR(VLOOKUP(G52,'CLZ WI'!$A$1:$K$100000,7,FALSE),"") -> USA | J52: =T('CLZ TT'!I52) -> Customization | K52: =IF(IFERROR(VLOOKUP('CLZ TT'!A52,'CLZ WI'!$A$1:$L$100000,12,FALSE),"")=TRUE, "Billable", IF(IFERROR(VLOOKUP('CLZ TT'!A52,'CLZ WI'!$A$1:$L$100000,12,FALSE),"")=FALSE, "Non-Billable", "")) -> Billable | L52: =IF('CLZ TT'!G52="","",'CLZ TT'!G52) -> 2012-03-19 | M52: =IFERROR(VLOOKUP(G52,'CLZ Pr'!$A$1:$X$100000,12,FALSE)*C52,"") -> 1000 | N52: =IFERROR(VLOOKUP(G52,'CLZ Pr'!$A$1:$X$100000,24,FALSE), "") -> 0 | O52: =IFERROR(VLOOKUP(G52,'CLZ Pr'!$A$1:$X$100000,21,FALSE), "") -> 0
A53: =T('CLZ TT'!A53) -> T-337131 | B53: =T('CLZ TT'!D53) -> Tal Noga | C53: =IF(LEN(A53) > 0, 'CLZ TT'!E53, "") -> 4 | D53: =T('CLZ TT'!F53) -> Hours | E53: =IFERROR(VLOOKUP('CLZ TT'!A53,'CLZ WI'!$A$1:$E$100000,3,FALSE),"") -> College of Management | F53: =IFERROR(VLOOKUP('CLZ TT'!A53,'CLZ WI'!$A$1:$E$100000,4,FALSE),"") -> CS Project | G53: =IFERROR(VLOOKUP('CLZ TT'!A53,'CLZ WI'!$A$1:$K$100000,5,FALSE),"") -> P-137643 | H53: =IFERROR(VLOOKUP(G53,'CLZ WI'!$A$1:$K$100000,6,FALSE),"") -> Fixed Hours | I53: =IFERROR(VLOOKUP(G53,'CLZ WI'!$A$1:$K$100000,7,FALSE),"") -> EMEA | J53: =T('CLZ TT'!I53) -> Training | K53: =IF(IFERROR(VLOOKUP('CLZ TT'!A53,'CLZ WI'!$A$1:$L$100000,12,FALSE),"")=TRUE, "Billable", IF(IFERROR(VLOOKUP('CLZ TT'!A53,'CLZ WI'!$A$1:$L$100000,12,FALSE),"")=FALSE, "Non-Billable", "")) -> Billable | L53: =IF('CLZ TT'!G53="","",'CLZ TT'!G53) -> 2012-03-19 | M53: =IFERROR(VLOOKUP(G53,'CLZ Pr'!$A$1:$X$100000,12,FALSE)*C53,"") ->  | N53: =IFERROR(VLOOKUP(G53,'CLZ Pr'!$A$1:$X$100000,24,FALSE), "") ->  | O53: =IFERROR(VLOOKUP(G53,'CLZ Pr'!$A$1:$X$100000,21,FALSE), "") -> 
A54: =T('CLZ TT'!A54) -> T-337130 | B54: =T('CLZ TT'!D54) -> Tal Noga | C54: =IF(LEN(A54) > 0, 'CLZ TT'!E54, "") -> 1 | D54: =T('CLZ TT'!F54) -> Hours | E54: =IFERROR(VLOOKUP('CLZ TT'!A54,'CLZ WI'!$A$1:$E$100000,3,FALSE),"") -> College of Management | F54: =IFERROR(VLOOKUP('CLZ TT'!A54,'CLZ WI'!$A$1:$E$100000,4,FALSE),"") -> CS Project | G54: =IFERROR(VLOOKUP('CLZ TT'!A54,'CLZ WI'!$A$1:$K$100000,5,FALSE),"") -> P-137643 | H54: =IFERROR(VLOOKUP(G54,'CLZ WI'!$A$1:$K$100000,6,FALSE),"") -> Fixed Hours | I54: =IFERROR(VLOOKUP(G54,'CLZ WI'!$A$1:$K$100000,7,FALSE),"") -> EMEA | J54: =T('CLZ TT'!I54) -> Training | K54: =IF(IFERROR(VLOOKUP('CLZ TT'!A54,'CLZ WI'!$A$1:$L$100000,12,FALSE),"")=TRUE, "Billable", IF(IFERROR(VLOOKUP('CLZ TT'!A54,'CLZ WI'!$A$1:$L$100000,12,FALSE),"")=FALSE, "Non-Billable", "")) -> Non-Billable | L54: =IF('CLZ TT'!G54="","",'CLZ TT'!G54) -> 2012-03-19 | M54: =IFERROR(VLOOKUP(G54,'CLZ Pr'!$A$1:$X$100000,12,FALSE)*C54,"") ->  | N54: =IFERROR(VLOOKUP(G54,'CLZ Pr'!$A$1:$X$100000,24,FALSE), "") ->  | O54: =IFERROR(VLOOKUP(G54,'CLZ Pr'!$A$1:$X$100000,21,FALSE), "") -> 
A55: =T('CLZ TT'!A55) -> T-242280 | B55: =T('CLZ TT'!D55) -> Roni Feldsher | C55: =IF(LEN(A55) > 0, 'CLZ TT'!E55, "") -> 1 | D55: =T('CLZ TT'!F55) -> Hours | E55: =IFERROR(VLOOKUP('CLZ TT'!A55,'CLZ WI'!$A$1:$E$100000,3,FALSE),"") -> TechProse - 40h PS | F55: =IFERROR(VLOOKUP('CLZ TT'!A55,'CLZ WI'!$A$1:$E$100000,4,FALSE),"") -> CS Project | G55: =IFERROR(VLOOKUP('CLZ TT'!A55,'CLZ WI'!$A$1:$K$100000,5,FALSE),"") -> P-090318 | H55: =IFERROR(VLOOKUP(G55,'CLZ WI'!$A$1:$K$100000,6,FALSE),"") -> Fixed Hours | I55: =IFERROR(VLOOKUP(G55,'CLZ WI'!$A$1:$K$100000,7,FALSE),"") -> USA | J55: =T('CLZ TT'!I55) ->  | K55: =IF(IFERROR(VLOOKUP('CLZ TT'!A55,'CLZ WI'!$A$1:$L$100000,12,FALSE),"")=TRUE, "Billable", IF(IFERROR(VLOOKUP('CLZ TT'!A55,'CLZ WI'!$A$1:$L$100000,12,FALSE),"")=FALSE, "Non-Billable", "")) -> Billable | L55: =IF('CLZ TT'!G55="","",'CLZ TT'!G55) -> 2012-03-20 | M55: =IFERROR(VLOOKUP(G55,'CLZ Pr'!$A$1:$X$100000,12,FALSE)*C55,"") ->  | N55: =IFERROR(VLOOKUP(G55,'CLZ Pr'!$A$1:$X$100000,24,FALSE), "") ->  | O55: =IFERROR(VLOOKUP(G55,'CLZ Pr'!$A$1:$X$100000,21,FALSE), "") -> 
A56: =T('CLZ TT'!A56) -> M-257739 | B56: =T('CLZ TT'!D56) -> Eran Fishov | C56: =IF(LEN(A56) > 0, 'CLZ TT'!E56, "") -> 1 | D56: =T('CLZ TT'!F56) -> Hours | E56: =IFERROR(VLOOKUP('CLZ TT'!A56,'CLZ WI'!$A$1:$E$100000,3,FALSE),"") -> Gard:Small Package | F56: =IFERROR(VLOOKUP('CLZ TT'!A56,'CLZ WI'!$A$1:$E$100000,4,FALSE),"") -> CS Quick Start | G56: =IFERROR(VLOOKUP('CLZ TT'!A56,'CLZ WI'!$A$1:$K$100000,5,FALSE),"") -> P-206853 | H56: =IFERROR(VLOOKUP(G56,'CLZ WI'!$A$1:$K$100000,6,FALSE),"") -> Package Small | I56: =IFERROR(VLOOKUP(G56,'CLZ WI'!$A$1:$K$100000,7,FALSE),"") -> EMEA | J56: =T('CLZ TT'!I56) ->  | K56: =IF(IFERROR(VLOOKUP('CLZ TT'!A56,'CLZ WI'!$A$1:$L$100000,12,FALSE),"")=TRUE, "Billable", IF(IFERROR(VLOOKUP('CLZ TT'!A56,'CLZ WI'!$A$1:$L$100000,12,FALSE),"")=FALSE, "Non-Billable", "")) -> Billable | L56: =IF('CLZ TT'!G56="","",'CLZ TT'!G56) -> 2012-03-20 | M56: =IFERROR(VLOOKUP(G56,'CLZ Pr'!$A$1:$X$100000,12,FALSE)*C56,"") -> 200 | N56: =IFERROR(VLOOKUP(G56,'CLZ Pr'!$A$1:$X$100000,24,FALSE), "") -> 0 | O56: =IFERROR(VLOOKUP(G56,'CLZ Pr'!$A$1:$X$100000,21,FALSE), "") -> 0
A57: =T('CLZ TT'!A57) -> T-292050 | B57: =T('CLZ TT'!D57) -> Rami Cohen | C57: =IF(LEN(A57) > 0, 'CLZ TT'!E57, "") -> 2 | D57: =T('CLZ TT'!F57) -> Hours | E57: =IFERROR(VLOOKUP('CLZ TT'!A57,'CLZ WI'!$A$1:$E$100000,3,FALSE),"") -> ELC Online - - 58 h PS | F57: =IFERROR(VLOOKUP('CLZ TT'!A57,'CLZ WI'!$A$1:$E$100000,4,FALSE),"") -> CS Project | G57: =IFERROR(VLOOKUP('CLZ TT'!A57,'CLZ WI'!$A$1:$K$100000,5,FALSE),"") -> P-113869 | H57: =IFERROR(VLOOKUP(G57,'CLZ WI'!$A$1:$K$100000,6,FALSE),"") -> Fixed Hours | I57: =IFERROR(VLOOKUP(G57,'CLZ WI'!$A$1:$K$100000,7,FALSE),"") -> USA | J57: =T('CLZ TT'!I57) -> Customization | K57: =IF(IFERROR(VLOOKUP('CLZ TT'!A57,'CLZ WI'!$A$1:$L$100000,12,FALSE),"")=TRUE, "Billable", IF(IFERROR(VLOOKUP('CLZ TT'!A57,'CLZ WI'!$A$1:$L$100000,12,FALSE),"")=FALSE, "Non-Billable", "")) -> Billable | L57: =IF('CLZ TT'!G57="","",'CLZ TT'!G57) -> 2012-03-20 | M57: =IFERROR(VLOOKUP(G57,'CLZ Pr'!$A$1:$X$100000,12,FALSE)*C57,"") ->  | N57: =IFERROR(VLOOKUP(G57,'CLZ Pr'!$A$1:$X$100000,24,FALSE), "") ->  | O57: =IFERROR(VLOOKUP(G57,'CLZ Pr'!$A$1:$X$100000,21,FALSE), "") -> 
A58: =T('CLZ TT'!A58) -> M-196151 | B58: =T('CLZ TT'!D58) -> David Goulden | C58: =IF(LEN(A58) > 0, 'CLZ TT'!E58, "") -> 0.5 | D58: =T('CLZ TT'!F58) -> Hours | E58: =IFERROR(VLOOKUP('CLZ TT'!A58,'CLZ WI'!$A$1:$E$100000,3,FALSE),"") -> The Competition Authority Tier3 | F58: =IFERROR(VLOOKUP('CLZ TT'!A58,'CLZ WI'!$A$1:$E$100000,4,FALSE),"") -> CS Quick Start | G58: =IFERROR(VLOOKUP('CLZ TT'!A58,'CLZ WI'!$A$1:$K$100000,5,FALSE),"") -> P-155289 | H58: =IFERROR(VLOOKUP(G58,'CLZ WI'!$A$1:$K$100000,6,FALSE),"") -> Package Small | I58: =IFERROR(VLOOKUP(G58,'CLZ WI'!$A$1:$K$100000,7,FALSE),"") -> EMEA | J58: =T('CLZ TT'!I58) ->  | K58: =IF(IFERROR(VLOOKUP('CLZ TT'!A58,'CLZ WI'!$A$1:$L$100000,12,FALSE),"")=TRUE, "Billable", IF(IFERROR(VLOOKUP('CLZ TT'!A58,'CLZ WI'!$A$1:$L$100000,12,FALSE),"")=FALSE, "Non-Billable", "")) -> Billable | L58: =IF('CLZ TT'!G58="","",'CLZ TT'!G58) -> 2012-03-20 | M58: =IFERROR(VLOOKUP(G58,'CLZ Pr'!$A$1:$X$100000,12,FALSE)*C58,"") -> 72.725 | N58: =IFERROR(VLOOKUP(G58,'CLZ Pr'!$A$1:$X$100000,24,FALSE), "") -> 0 | O58: =IFERROR(VLOOKUP(G58,'CLZ Pr'!$A$1:$X$100000,21,FALSE), "") -> 2.5
A59: =T('CLZ TT'!A59) -> M-196149 | B59: =T('CLZ TT'!D59) -> David Goulden | C59: =IF(LEN(A59) > 0, 'CLZ TT'!E59, "") -> 1.5 | D59: =T('CLZ TT'!F59) -> Hours | E59: =IFERROR(VLOOKUP('CLZ TT'!A59,'CLZ WI'!$A$1:$E$100000,3,FALSE),"") -> The Competition Authority Tier3 | F59: =IFERROR(VLOOKUP('CLZ TT'!A59,'CLZ WI'!$A$1:$E$100000,4,FALSE),"") -> CS Quick Start | G59: =IFERROR(VLOOKUP('CLZ TT'!A59,'CLZ WI'!$A$1:$K$100000,5,FALSE),"") -> P-155289 | H59: =IFERROR(VLOOKUP(G59,'CLZ WI'!$A$1:$K$100000,6,FALSE),"") -> Package Small | I59: =IFERROR(VLOOKUP(G59,'CLZ WI'!$A$1:$K$100000,7,FALSE),"") -> EMEA | J59: =T('CLZ TT'!I59) ->  | K59: =IF(IFERROR(VLOOKUP('CLZ TT'!A59,'CLZ WI'!$A$1:$L$100000,12,FALSE),"")=TRUE, "Billable", IF(IFERROR(VLOOKUP('CLZ TT'!A59,'CLZ WI'!$A$1:$L$100000,12,FALSE),"")=FALSE, "Non-Billable", "")) -> Billable | L59: =IF('CLZ TT'!G59="","",'CLZ TT'!G59) -> 2012-03-20 | M59: =IFERROR(VLOOKUP(G59,'CLZ Pr'!$A$1:$X$100000,12,FALSE)*C59,"") -> 218.175 | N59: =IFERROR(VLOOKUP(G59,'CLZ Pr'!$A$1:$X$100000,24,FALSE), "") -> 0 | O59: =IFERROR(VLOOKUP(G59,'CLZ Pr'!$A$1:$X$100000,21,FALSE), "") -> 2.5
A60: =T('CLZ TT'!A60) -> M-202761 | B60: =T('CLZ TT'!D60) -> Alex Gorman | C60: =IF(LEN(A60) > 0, 'CLZ TT'!E60, "") -> 1 | D60: =T('CLZ TT'!F60) -> Hours | E60: =IFERROR(VLOOKUP('CLZ TT'!A60,'CLZ WI'!$A$1:$E$100000,3,FALSE),"") -> BPL Global Medium | F60: =IFERROR(VLOOKUP('CLZ TT'!A60,'CLZ WI'!$A$1:$E$100000,4,FALSE),"") -> CS Quick Start | G60: =IFERROR(VLOOKUP('CLZ TT'!A60,'CLZ WI'!$A$1:$K$100000,5,FALSE),"") -> P-160798 | H60: =IFERROR(VLOOKUP(G60,'CLZ WI'!$A$1:$K$100000,6,FALSE),"") -> Package Medium | I60: =IFERROR(VLOOKUP(G60,'CLZ WI'!$A$1:$K$100000,7,FALSE),"") -> USA | J60: =T('CLZ TT'!I60) ->  | K60: =IF(IFERROR(VLOOKUP('CLZ TT'!A60,'CLZ WI'!$A$1:$L$100000,12,FALSE),"")=TRUE, "Billable", IF(IFERROR(VLOOKUP('CLZ TT'!A60,'CLZ WI'!$A$1:$L$100000,12,FALSE),"")=FALSE, "Non-Billable", "")) -> Billable | L60: =IF('CLZ TT'!G60="","",'CLZ TT'!G60) -> 2012-03-21 | M60: =IFERROR(VLOOKUP(G60,'CLZ Pr'!$A$1:$X$100000,12,FALSE)*C60,"") -> 100 | N60: =IFERROR(VLOOKUP(G60,'CLZ Pr'!$A$1:$X$100000,24,FALSE), "") -> 0 | O60: =IFERROR(VLOOKUP(G60,'CLZ Pr'!$A$1:$X$100000,21,FALSE), "") -> 3
A61: =T('CLZ TT'!A61) -> T-367694 | B61: =T('CLZ TT'!D61) -> G.I.Teh | C61: =IF(LEN(A61) > 0, 'CLZ TT'!E61, "") -> 1.5 | D61: =T('CLZ TT'!F61) -> Hours | E61: =IFERROR(VLOOKUP('CLZ TT'!A61,'CLZ WI'!$A$1:$E$100000,3,FALSE),"") -> Heritage ArchitectureNon-Billable Committed Hours | F61: =IFERROR(VLOOKUP('CLZ TT'!A61,'CLZ WI'!$A$1:$E$100000,4,FALSE),"") -> CS Project | G61: =IFERROR(VLOOKUP('CLZ TT'!A61,'CLZ WI'!$A$1:$K$100000,5,FALSE),"") -> P-150928 | H61: =IFERROR(VLOOKUP(G61,'CLZ WI'!$A$1:$K$100000,6,FALSE),"") -> Fixed Hours | I61: =IFERROR(VLOOKUP(G61,'CLZ WI'!$A$1:$K$100000,7,FALSE),"") -> USA | J61: =T('CLZ TT'!I61) ->  | K61: =IF(IFERROR(VLOOKUP('CLZ TT'!A61,'CLZ WI'!$A$1:$L$100000,12,FALSE),"")=TRUE, "Billable", IF(IFERROR(VLOOKUP('CLZ TT'!A61,'CLZ WI'!$A$1:$L$100000,12,FALSE),"")=FALSE, "Non-Billable", "")) -> Non-Billable | L61: =IF('CLZ TT'!G61="","",'CLZ TT'!G61) -> 2012-03-21 | M61: =IFERROR(VLOOKUP(G61,'CLZ Pr'!$A$1:$X$100000,12,FALSE)*C61,"") -> 0 | N61: =IFERROR(VLOOKUP(G61,'CLZ Pr'!$A$1:$X$100000,24,FALSE), "") -> 0 | O61: =IFERROR(VLOOKUP(G61,'CLZ Pr'!$A$1:$X$100000,21,FALSE), "") -> 0
A62: =T('CLZ TT'!A62) -> M-202761 | B62: =T('CLZ TT'!D62) -> Alex Gorman | C62: =IF(LEN(A62) > 0, 'CLZ TT'!E62, "") -> 0 | D62: =T('CLZ TT'!F62) -> Hours | E62: =IFERROR(VLOOKUP('CLZ TT'!A62,'CLZ WI'!$A$1:$E$100000,3,FALSE),"") -> BPL Global Medium | F62: =IFERROR(VLOOKUP('CLZ TT'!A62,'CLZ WI'!$A$1:$E$100000,4,FALSE),"") -> CS Quick Start | G62: =IFERROR(VLOOKUP('CLZ TT'!A62,'CLZ WI'!$A$1:$K$100000,5,FALSE),"") -> P-160798 | H62: =IFERROR(VLOOKUP(G62,'CLZ WI'!$A$1:$K$100000,6,FALSE),"") -> Package Medium | I62: =IFERROR(VLOOKUP(G62,'CLZ WI'!$A$1:$K$100000,7,FALSE),"") -> USA | J62: =T('CLZ TT'!I62) ->  | K62: =IF(IFERROR(VLOOKUP('CLZ TT'!A62,'CLZ WI'!$A$1:$L$100000,12,FALSE),"")=TRUE, "Billable", IF(IFERROR(VLOOKUP('CLZ TT'!A62,'CLZ WI'!$A$1:$L$100000,12,FALSE),"")=FALSE, "Non-Billable", "")) -> Billable | L62: =IF('CLZ TT'!G62="","",'CLZ TT'!G62) -> 2012-03-22 | M62: =IFERROR(VLOOKUP(G62,'CLZ Pr'!$A$1:$X$100000,12,FALSE)*C62,"") -> 0 | N62: =IFERROR(VLOOKUP(G62,'CLZ Pr'!$A$1:$X$100000,24,FALSE), "") -> 0 | O62: =IFERROR(VLOOKUP(G62,'CLZ Pr'!$A$1:$X$100000,21,FALSE), "") -> 3
A63: =T('CLZ TT'!A63) -> M-202762 | B63: =T('CLZ TT'!D63) -> Alex Gorman | C63: =IF(LEN(A63) > 0, 'CLZ TT'!E63, "") -> 1 | D63: =T('CLZ TT'!F63) -> Hours | E63: =IFERROR(VLOOKUP('CLZ TT'!A63,'CLZ WI'!$A$1:$E$100000,3,FALSE),"") -> BPL Global Medium | F63: =IFERROR(VLOOKUP('CLZ TT'!A63,'CLZ WI'!$A$1:$E$100000,4,FALSE),"") -> CS Quick Start | G63: =IFERROR(VLOOKUP('CLZ TT'!A63,'CLZ WI'!$A$1:$K$100000,5,FALSE),"") -> P-160798 | H63: =IFERROR(VLOOKUP(G63,'CLZ WI'!$A$1:$K$100000,6,FALSE),"") -> Package Medium | I63: =IFERROR(VLOOKUP(G63,'CLZ WI'!$A$1:$K$100000,7,FALSE),"") -> USA | J63: =T('CLZ TT'!I63) ->  | K63: =IF(IFERROR(VLOOKUP('CLZ TT'!A63,'CLZ WI'!$A$1:$L$100000,12,FALSE),"")=TRUE, "Billable", IF(IFERROR(VLOOKUP('CLZ TT'!A63,'CLZ WI'!$A$1:$L$100000,12,FALSE),"")=FALSE, "Non-Billable", "")) -> Billable | L63: =IF('CLZ TT'!G63="","",'CLZ TT'!G63) -> 2012-03-22 | M63: =IFERROR(VLOOKUP(G63,'CLZ Pr'!$A$1:$X$100000,12,FALSE)*C63,"") -> 100 | N63: =IFERROR(VLOOKUP(G63,'CLZ Pr'!$A$1:$X$100000,24,FALSE), "") -> 0 | O63: =IFERROR(VLOOKUP(G63,'CLZ Pr'!$A$1:$X$100000,21,FALSE), "") -> 3
A64: =T('CLZ TT'!A64) -> P-161511 | B64: =T('CLZ TT'!D64) -> Alex Gorman | C64: =IF(LEN(A64) > 0, 'CLZ TT'!E64, "") -> 1 | D64: =T('CLZ TT'!F64) -> Hours | E64: =IFERROR(VLOOKUP('CLZ TT'!A64,'CLZ WI'!$A$1:$E$100000,3,FALSE),"") -> Total Systems Development, Inc. Non-Billable Committed Hours | F64: =IFERROR(VLOOKUP('CLZ TT'!A64,'CLZ WI'!$A$1:$E$100000,4,FALSE),"") -> CS Project | G64: =IFERROR(VLOOKUP('CLZ TT'!A64,'CLZ WI'!$A$1:$K$100000,5,FALSE),"") -> P-161511 | H64: =IFERROR(VLOOKUP(G64,'CLZ WI'!$A$1:$K$100000,6,FALSE),"") -> Fixed Hours | I64: =IFERROR(VLOOKUP(G64,'CLZ WI'!$A$1:$K$100000,7,FALSE),"") -> USA | J64: =T('CLZ TT'!I64) ->  | K64: =IF(IFERROR(VLOOKUP('CLZ TT'!A64,'CLZ WI'!$A$1:$L$100000,12,FALSE),"")=TRUE, "Billable", IF(IFERROR(VLOOKUP('CLZ TT'!A64,'CLZ WI'!$A$1:$L$100000,12,FALSE),"")=FALSE, "Non-Billable", "")) -> Non-Billable | L64: =IF('CLZ TT'!G64="","",'CLZ TT'!G64) -> 2012-03-22 | M64: =IFERROR(VLOOKUP(G64,'CLZ Pr'!$A$1:$X$100000,12,FALSE)*C64,"") -> 0 | N64: =IFERROR(VLOOKUP(G64,'CLZ Pr'!$A$1:$X$100000,24,FALSE), "") -> 0 | O64: =IFERROR(VLOOKUP(G64,'CLZ Pr'!$A$1:$X$100000,21,FALSE), "") -> 0
A65: =T('CLZ TT'!A65) -> T-399398 | B65: =T('CLZ TT'!D65) -> G.I.Teh | C65: =IF(LEN(A65) > 0, 'CLZ TT'!E65, "") -> 2 | D65: =T('CLZ TT'!F65) -> Hours | E65: =IFERROR(VLOOKUP('CLZ TT'!A65,'CLZ WI'!$A$1:$E$100000,3,FALSE),"") -> Tessera Global Services, Inc. Tier1 | F65: =IFERROR(VLOOKUP('CLZ TT'!A65,'CLZ WI'!$A$1:$E$100000,4,FALSE),"") -> CS Quick Start | G65: =IFERROR(VLOOKUP('CLZ TT'!A65,'CLZ WI'!$A$1:$K$100000,5,FALSE),"") -> P-165488 | H65: =IFERROR(VLOOKUP(G65,'CLZ WI'!$A$1:$K$100000,6,FALSE),"") -> Package Large | I65: =IFERROR(VLOOKUP(G65,'CLZ WI'!$A$1:$K$100000,7,FALSE),"") -> USA | J65: =T('CLZ TT'!I65) ->  | K65: =IF(IFERROR(VLOOKUP('CLZ TT'!A65,'CLZ WI'!$A$1:$L$100000,12,FALSE),"")=TRUE, "Billable", IF(IFERROR(VLOOKUP('CLZ TT'!A65,'CLZ WI'!$A$1:$L$100000,12,FALSE),"")=FALSE, "Non-Billable", "")) -> Billable | L65: =IF('CLZ TT'!G65="","",'CLZ TT'!G65) -> 2012-03-26 | M65: =IFERROR(VLOOKUP(G65,'CLZ Pr'!$A$1:$X$100000,12,FALSE)*C65,"") -> 291.66 | N65: =IFERROR(VLOOKUP(G65,'CLZ Pr'!$A$1:$X$100000,24,FALSE), "") -> 0 | O65: =IFERROR(VLOOKUP(G65,'CLZ Pr'!$A$1:$X$100000,21,FALSE), "") -> 4
A66: =T('CLZ TT'!A66) -> T-399402 | B66: =T('CLZ TT'!D66) -> G.I.Teh | C66: =IF(LEN(A66) > 0, 'CLZ TT'!E66, "") -> 2 | D66: =T('CLZ TT'!F66) -> Hours | E66: =IFERROR(VLOOKUP('CLZ TT'!A66,'CLZ WI'!$A$1:$E$100000,3,FALSE),"") -> Tessera Global Services, Inc. Tier1 | F66: =IFERROR(VLOOKUP('CLZ TT'!A66,'CLZ WI'!$A$1:$E$100000,4,FALSE),"") -> CS Quick Start | G66: =IFERROR(VLOOKUP('CLZ TT'!A66,'CLZ WI'!$A$1:$K$100000,5,FALSE),"") -> P-165488 | H66: =IFERROR(VLOOKUP(G66,'CLZ WI'!$A$1:$K$100000,6,FALSE),"") -> Package Large | I66: =IFERROR(VLOOKUP(G66,'CLZ WI'!$A$1:$K$100000,7,FALSE),"") -> USA | J66: =T('CLZ TT'!I66) ->  | K66: =IF(IFERROR(VLOOKUP('CLZ TT'!A66,'CLZ WI'!$A$1:$L$100000,12,FALSE),"")=TRUE, "Billable", IF(IFERROR(VLOOKUP('CLZ TT'!A66,'CLZ WI'!$A$1:$L$100000,12,FALSE),"")=FALSE, "Non-Billable", "")) -> Billable | L66: =IF('CLZ TT'!G66="","",'CLZ TT'!G66) -> 2012-03-26 | M66: =IFERROR(VLOOKUP(G66,'CLZ Pr'!$A$1:$X$100000,12,FALSE)*C66,"") -> 291.66 | N66: =IFERROR(VLOOKUP(G66,'CLZ Pr'!$A$1:$X$100000,24,FALSE), "") -> 0 | O66: =IFERROR(VLOOKUP(G66,'CLZ Pr'!$A$1:$X$100000,21,FALSE), "") -> 4
A67: =T('CLZ TT'!A67) -> T-367694 | B67: =T('CLZ TT'!D67) -> G.I.Teh | C67: =IF(LEN(A67) > 0, 'CLZ TT'!E67, "") -> 1 | D67: =T('CLZ TT'!F67) -> Hours | E67: =IFERROR(VLOOKUP('CLZ TT'!A67,'CLZ WI'!$A$1:$E$100000,3,FALSE),"") -> Heritage ArchitectureNon-Billable Committed Hours | F67: =IFERROR(VLOOKUP('CLZ TT'!A67,'CLZ WI'!$A$1:$E$100000,4,FALSE),"") -> CS Project | G67: =IFERROR(VLOOKUP('CLZ TT'!A67,'CLZ WI'!$A$1:$K$100000,5,FALSE),"") -> P-150928 | H67: =IFERROR(VLOOKUP(G67,'CLZ WI'!$A$1:$K$100000,6,FALSE),"") -> Fixed Hours | I67: =IFERROR(VLOOKUP(G67,'CLZ WI'!$A$1:$K$100000,7,FALSE),"") -> USA | J67: =T('CLZ TT'!I67) ->  | K67: =IF(IFERROR(VLOOKUP('CLZ TT'!A67,'CLZ WI'!$A$1:$L$100000,12,FALSE),"")=TRUE, "Billable", IF(IFERROR(VLOOKUP('CLZ TT'!A67,'CLZ WI'!$A$1:$L$100000,12,FALSE),"")=FALSE, "Non-Billable", "")) -> Non-Billable | L67: =IF('CLZ TT'!G67="","",'CLZ TT'!G67) -> 2012-03-26 | M67: =IFERROR(VLOOKUP(G67,'CLZ Pr'!$A$1:$X$100000,12,FALSE)*C67,"") -> 0 | N67: =IFERROR(VLOOKUP(G67,'CLZ Pr'!$A$1:$X$100000,24,FALSE), "") -> 0 | O67: =IFERROR(VLOOKUP(G67,'CLZ Pr'!$A$1:$X$100000,21,FALSE), "") -> 0
A68: =T('CLZ TT'!A68) -> P-164707 | B68: =T('CLZ TT'!D68) -> Josh Santos | C68: =IF(LEN(A68) > 0, 'CLZ TT'!E68, "") -> 3 | D68: =T('CLZ TT'!F68) -> Hours | E68: =IFERROR(VLOOKUP('CLZ TT'!A68,'CLZ WI'!$A$1:$E$100000,3,FALSE),"") -> EMD Serono Project Management Office Fixed Hours | F68: =IFERROR(VLOOKUP('CLZ TT'!A68,'CLZ WI'!$A$1:$E$100000,4,FALSE),"") -> CS Project | G68: =IFERROR(VLOOKUP('CLZ TT'!A68,'CLZ WI'!$A$1:$K$100000,5,FALSE),"") -> P-164707 | H68: =IFERROR(VLOOKUP(G68,'CLZ WI'!$A$1:$K$100000,6,FALSE),"") -> Fixed Hours | I68: =IFERROR(VLOOKUP(G68,'CLZ WI'!$A$1:$K$100000,7,FALSE),"") -> USA | J68: =T('CLZ TT'!I68) ->  | K68: =IF(IFERROR(VLOOKUP('CLZ TT'!A68,'CLZ WI'!$A$1:$L$100000,12,FALSE),"")=TRUE, "Billable", IF(IFERROR(VLOOKUP('CLZ TT'!A68,'CLZ WI'!$A$1:$L$100000,12,FALSE),"")=FALSE, "Non-Billable", "")) -> Billable | L68: =IF('CLZ TT'!G68="","",'CLZ TT'!G68) -> 2012-03-26 | M68: =IFERROR(VLOOKUP(G68,'CLZ Pr'!$A$1:$X$100000,12,FALSE)*C68,"") -> 500.01 | N68: =IFERROR(VLOOKUP(G68,'CLZ Pr'!$A$1:$X$100000,24,FALSE), "") -> 0 | O68: =IFERROR(VLOOKUP(G68,'CLZ Pr'!$A$1:$X$100000,21,FALSE), "") -> 0
A69: =T('CLZ TT'!A69) -> P-158424 | B69: =T('CLZ TT'!D69) -> Josh Santos | C69: =IF(LEN(A69) > 0, 'CLZ TT'!E69, "") -> 1 | D69: =T('CLZ TT'!F69) -> Hours | E69: =IFERROR(VLOOKUP('CLZ TT'!A69,'CLZ WI'!$A$1:$E$100000,3,FALSE),"") -> PureDriven Tier1 | F69: =IFERROR(VLOOKUP('CLZ TT'!A69,'CLZ WI'!$A$1:$E$100000,4,FALSE),"") -> CS Quick Start | G69: =IFERROR(VLOOKUP('CLZ TT'!A69,'CLZ WI'!$A$1:$K$100000,5,FALSE),"") -> P-158424 | H69: =IFERROR(VLOOKUP(G69,'CLZ WI'!$A$1:$K$100000,6,FALSE),"") -> Package Large | I69: =IFERROR(VLOOKUP(G69,'CLZ WI'!$A$1:$K$100000,7,FALSE),"") -> USA | J69: =T('CLZ TT'!I69) ->  | K69: =IF(IFERROR(VLOOKUP('CLZ TT'!A69,'CLZ WI'!$A$1:$L$100000,12,FALSE),"")=TRUE, "Billable", IF(IFERROR(VLOOKUP('CLZ TT'!A69,'CLZ WI'!$A$1:$L$100000,12,FALSE),"")=FALSE, "Non-Billable", "")) -> Billable | L69: =IF('CLZ TT'!G69="","",'CLZ TT'!G69) -> 2012-03-26 | M69: =IFERROR(VLOOKUP(G69,'CLZ Pr'!$A$1:$X$100000,12,FALSE)*C69,"") -> 145.83 | N69: =IFERROR(VLOOKUP(G69,'CLZ Pr'!$A$1:$X$100000,24,FALSE), "") -> 0 | O69: =IFERROR(VLOOKUP(G69,'CLZ Pr'!$A$1:$X$100000,21,FALSE), "") -> 9
A70: =T('CLZ TT'!A70) -> P-157089 | B70: =T('CLZ TT'!D70) -> Alex Gorman | C70: =IF(LEN(A70) > 0, 'CLZ TT'!E70, "") -> 0.5 | D70: =T('CLZ TT'!F70) -> Hours | E70: =IFERROR(VLOOKUP('CLZ TT'!A70,'CLZ WI'!$A$1:$E$100000,3,FALSE),"") -> Edifice Information Management - 2 Non-Billable Committed Hour | F70: =IFERROR(VLOOKUP('CLZ TT'!A70,'CLZ WI'!$A$1:$E$100000,4,FALSE),"") -> CS Project | G70: =IFERROR(VLOOKUP('CLZ TT'!A70,'CLZ WI'!$A$1:$K$100000,5,FALSE),"") -> P-157089 | H70: =IFERROR(VLOOKUP(G70,'CLZ WI'!$A$1:$K$100000,6,FALSE),"") -> Fixed Hours | I70: =IFERROR(VLOOKUP(G70,'CLZ WI'!$A$1:$K$100000,7,FALSE),"") -> USA | J70: =T('CLZ TT'!I70) ->  | K70: =IF(IFERROR(VLOOKUP('CLZ TT'!A70,'CLZ WI'!$A$1:$L$100000,12,FALSE),"")=TRUE, "Billable", IF(IFERROR(VLOOKUP('CLZ TT'!A70,'CLZ WI'!$A$1:$L$100000,12,FALSE),"")=FALSE, "Non-Billable", "")) -> Non-Billable | L70: =IF('CLZ TT'!G70="","",'CLZ TT'!G70) -> 2012-03-26 | M70: =IFERROR(VLOOKUP(G70,'CLZ Pr'!$A$1:$X$100000,12,FALSE)*C70,"") -> 0 | N70: =IFERROR(VLOOKUP(G70,'CLZ Pr'!$A$1:$X$100000,24,FALSE), "") -> 0 | O70: =IFERROR(VLOOKUP(G70,'CLZ Pr'!$A$1:$X$100000,21,FALSE), "") -> 0
A71: =T('CLZ TT'!A71) -> M-202762 | B71: =T('CLZ TT'!D71) -> Alex Gorman | C71: =IF(LEN(A71) > 0, 'CLZ TT'!E71, "") -> 1 | D71: =T('CLZ TT'!F71) -> Hours | E71: =IFERROR(VLOOKUP('CLZ TT'!A71,'CLZ WI'!$A$1:$E$100000,3,FALSE),"") -> BPL Global Medium | F71: =IFERROR(VLOOKUP('CLZ TT'!A71,'CLZ WI'!$A$1:$E$100000,4,FALSE),"") -> CS Quick Start | G71: =IFERROR(VLOOKUP('CLZ TT'!A71,'CLZ WI'!$A$1:$K$100000,5,FALSE),"") -> P-160798 | H71: =IFERROR(VLOOKUP(G71,'CLZ WI'!$A$1:$K$100000,6,FALSE),"") -> Package Medium | I71: =IFERROR(VLOOKUP(G71,'CLZ WI'!$A$1:$K$100000,7,FALSE),"") -> USA | J71: =T('CLZ TT'!I71) ->  | K71: =IF(IFERROR(VLOOKUP('CLZ TT'!A71,'CLZ WI'!$A$1:$L$100000,12,FALSE),"")=TRUE, "Billable", IF(IFERROR(VLOOKUP('CLZ TT'!A71,'CLZ WI'!$A$1:$L$100000,12,FALSE),"")=FALSE, "Non-Billable", "")) -> Billable | L71: =IF('CLZ TT'!G71="","",'CLZ TT'!G71) -> 2012-03-26 | M71: =IFERROR(VLOOKUP(G71,'CLZ Pr'!$A$1:$X$100000,12,FALSE)*C71,"") -> 100 | N71: =IFERROR(VLOOKUP(G71,'CLZ Pr'!$A$1:$X$100000,24,FALSE), "") -> 0 | O71: =IFERROR(VLOOKUP(G71,'CLZ Pr'!$A$1:$X$100000,21,FALSE), "") -> 3
A72: =T('CLZ TT'!A72) -> M-198014 | B72: =T('CLZ TT'!D72) -> Alex Gorman | C72: =IF(LEN(A72) > 0, 'CLZ TT'!E72, "") -> 1 | D72: =T('CLZ TT'!F72) -> Hours | E72: =IFERROR(VLOOKUP('CLZ TT'!A72,'CLZ WI'!$A$1:$E$100000,3,FALSE),"") -> HP Training Large | F72: =IFERROR(VLOOKUP('CLZ TT'!A72,'CLZ WI'!$A$1:$E$100000,4,FALSE),"") -> CS Quick Start | G72: =IFERROR(VLOOKUP('CLZ TT'!A72,'CLZ WI'!$A$1:$K$100000,5,FALSE),"") -> P-156733 | H72: =IFERROR(VLOOKUP(G72,'CLZ WI'!$A$1:$K$100000,6,FALSE),"") -> Package Large | I72: =IFERROR(VLOOKUP(G72,'CLZ WI'!$A$1:$K$100000,7,FALSE),"") -> USA | J72: =T('CLZ TT'!I72) ->  | K72: =IF(IFERROR(VLOOKUP('CLZ TT'!A72,'CLZ WI'!$A$1:$L$100000,12,FALSE),"")=TRUE, "Billable", IF(IFERROR(VLOOKUP('CLZ TT'!A72,'CLZ WI'!$A$1:$L$100000,12,FALSE),"")=FALSE, "Non-Billable", "")) -> Billable | L72: =IF('CLZ TT'!G72="","",'CLZ TT'!G72) -> 2012-03-26 | M72: =IFERROR(VLOOKUP(G72,'CLZ Pr'!$A$1:$X$100000,12,FALSE)*C72,"") -> 145.83 | N72: =IFERROR(VLOOKUP(G72,'CLZ Pr'!$A$1:$X$100000,24,FALSE), "") -> 0 | O72: =IFERROR(VLOOKUP(G72,'CLZ Pr'!$A$1:$X$100000,21,FALSE), "") -> 9.08
A73: =T('CLZ TT'!A73) -> P-157089 | B73: =T('CLZ TT'!D73) -> Alex Gorman | C73: =IF(LEN(A73) > 0, 'CLZ TT'!E73, "") -> 0.5 | D73: =T('CLZ TT'!F73) -> Hours | E73: =IFERROR(VLOOKUP('CLZ TT'!A73,'CLZ WI'!$A$1:$E$100000,3,FALSE),"") -> Edifice Information Management - 2 Non-Billable Committed Hour | F73: =IFERROR(VLOOKUP('CLZ TT'!A73,'CLZ WI'!$A$1:$E$100000,4,FALSE),"") -> CS Project | G73: =IFERROR(VLOOKUP('CLZ TT'!A73,'CLZ WI'!$A$1:$K$100000,5,FALSE),"") -> P-157089 | H73: =IFERROR(VLOOKUP(G73,'CLZ WI'!$A$1:$K$100000,6,FALSE),"") -> Fixed Hours | I73: =IFERROR(VLOOKUP(G73,'CLZ WI'!$A$1:$K$100000,7,FALSE),"") -> USA | J73: =T('CLZ TT'!I73) ->  | K73: =IF(IFERROR(VLOOKUP('CLZ TT'!A73,'CLZ WI'!$A$1:$L$100000,12,FALSE),"")=TRUE, "Billable", IF(IFERROR(VLOOKUP('CLZ TT'!A73,'CLZ WI'!$A$1:$L$100000,12,FALSE),"")=FALSE, "Non-Billable", "")) -> Non-Billable | L73: =IF('CLZ TT'!G73="","",'CLZ TT'!G73) -> 2012-03-27 | M73: =IFERROR(VLOOKUP(G73,'CLZ Pr'!$A$1:$X$100000,12,FALSE)*C73,"") -> 0 | N73: =IFERROR(VLOOKUP(G73,'CLZ Pr'!$A$1:$X$100000,24,FALSE), "") -> 0 | O73: =IFERROR(VLOOKUP(G73,'CLZ Pr'!$A$1:$X$100000,21,FALSE), "") -> 0
A74: =T('CLZ TT'!A74) -> P-164986 | B74: =T('CLZ TT'!D74) -> David Goulden | C74: =IF(LEN(A74) > 0, 'CLZ TT'!E74, "") -> 0.92 | D74: =T('CLZ TT'!F74) -> Hours | E74: =IFERROR(VLOOKUP('CLZ TT'!A74,'CLZ WI'!$A$1:$E$100000,3,FALSE),"") -> ADAC-ICS Excel Report (3h) | F74: =IFERROR(VLOOKUP('CLZ TT'!A74,'CLZ WI'!$A$1:$E$100000,4,FALSE),"") -> CS Project | G74: =IFERROR(VLOOKUP('CLZ TT'!A74,'CLZ WI'!$A$1:$K$100000,5,FALSE),"") -> P-164986 | H74: =IFERROR(VLOOKUP(G74,'CLZ WI'!$A$1:$K$100000,6,FALSE),"") -> Fixed Hours | I74: =IFERROR(VLOOKUP(G74,'CLZ WI'!$A$1:$K$100000,7,FALSE),"") -> EMEA | J74: =T('CLZ TT'!I74) ->  | K74: =IF(IFERROR(VLOOKUP('CLZ TT'!A74,'CLZ WI'!$A$1:$L$100000,12,FALSE),"")=TRUE, "Billable", IF(IFERROR(VLOOKUP('CLZ TT'!A74,'CLZ WI'!$A$1:$L$100000,12,FALSE),"")=FALSE, "Non-Billable", "")) -> Billable | L74: =IF('CLZ TT'!G74="","",'CLZ TT'!G74) -> 2012-03-27 | M74: =IFERROR(VLOOKUP(G74,'CLZ Pr'!$A$1:$X$100000,12,FALSE)*C74,"") -> 153.3364 | N74: =IFERROR(VLOOKUP(G74,'CLZ Pr'!$A$1:$X$100000,24,FALSE), "") -> 0 | O74: =IFERROR(VLOOKUP(G74,'CLZ Pr'!$A$1:$X$100000,21,FALSE), "") -> 0
A75: =T('CLZ TT'!A75) -> M-257737 | B75: =T('CLZ TT'!D75) -> Eran Fishov | C75: =IF(LEN(A75) > 0, 'CLZ TT'!E75, "") -> 2 | D75: =T('CLZ TT'!F75) -> Hours | E75: =IFERROR(VLOOKUP('CLZ TT'!A75,'CLZ WI'!$A$1:$E$100000,3,FALSE),"") -> Gard:Small Package | F75: =IFERROR(VLOOKUP('CLZ TT'!A75,'CLZ WI'!$A$1:$E$100000,4,FALSE),"") -> CS Quick Start | G75: =IFERROR(VLOOKUP('CLZ TT'!A75,'CLZ WI'!$A$1:$K$100000,5,FALSE),"") -> P-206853 | H75: =IFERROR(VLOOKUP(G75,'CLZ WI'!$A$1:$K$100000,6,FALSE),"") -> Package Small | I75: =IFERROR(VLOOKUP(G75,'CLZ WI'!$A$1:$K$100000,7,FALSE),"") -> EMEA | J75: =T('CLZ TT'!I75) ->  | K75: =IF(IFERROR(VLOOKUP('CLZ TT'!A75,'CLZ WI'!$A$1:$L$100000,12,FALSE),"")=TRUE, "Billable", IF(IFERROR(VLOOKUP('CLZ TT'!A75,'CLZ WI'!$A$1:$L$100000,12,FALSE),"")=FALSE, "Non-Billable", "")) -> Billable | L75: =IF('CLZ TT'!G75="","",'CLZ TT'!G75) -> 2012-03-28 | M75: =IFERROR(VLOOKUP(G75,'CLZ Pr'!$A$1:$X$100000,12,FALSE)*C75,"") -> 400 | N75: =IFERROR(VLOOKUP(G75,'CLZ Pr'!$A$1:$X$100000,24,FALSE), "") -> 0 | O75: =IFERROR(VLOOKUP(G75,'CLZ Pr'!$A$1:$X$100000,21,FALSE), "") -> 0
A76: =T('CLZ TT'!A76) -> P-157089 | B76: =T('CLZ TT'!D76) -> Alex Gorman | C76: =IF(LEN(A76) > 0, 'CLZ TT'!E76, "") -> 0.5 | D76: =T('CLZ TT'!F76) -> Hours | E76: =IFERROR(VLOOKUP('CLZ TT'!A76,'CLZ WI'!$A$1:$E$100000,3,FALSE),"") -> Edifice Information Management - 2 Non-Billable Committed Hour | F76: =IFERROR(VLOOKUP('CLZ TT'!A76,'CLZ WI'!$A$1:$E$100000,4,FALSE),"") -> CS Project | G76: =IFERROR(VLOOKUP('CLZ TT'!A76,'CLZ WI'!$A$1:$K$100000,5,FALSE),"") -> P-157089 | H76: =IFERROR(VLOOKUP(G76,'CLZ WI'!$A$1:$K$100000,6,FALSE),"") -> Fixed Hours | I76: =IFERROR(VLOOKUP(G76,'CLZ WI'!$A$1:$K$100000,7,FALSE),"") -> USA | J76: =T('CLZ TT'!I76) ->  | K76: =IF(IFERROR(VLOOKUP('CLZ TT'!A76,'CLZ WI'!$A$1:$L$100000,12,FALSE),"")=TRUE, "Billable", IF(IFERROR(VLOOKUP('CLZ TT'!A76,'CLZ WI'!$A$1:$L$100000,12,FALSE),"")=FALSE, "Non-Billable", "")) -> Non-Billable | L76: =IF('CLZ TT'!G76="","",'CLZ TT'!G76) -> 2012-03-28 | M76: =IFERROR(VLOOKUP(G76,'CLZ Pr'!$A$1:$X$100000,12,FALSE)*C76,"") -> 0 | N76: =IFERROR(VLOOKUP(G76,'CLZ Pr'!$A$1:$X$100000,24,FALSE), "") -> 0 | O76: =IFERROR(VLOOKUP(G76,'CLZ Pr'!$A$1:$X$100000,21,FALSE), "") -> 0
A77: =T('CLZ TT'!A77) -> M-199881 | B77: =T('CLZ TT'!D77) -> David Goulden | C77: =IF(LEN(A77) > 0, 'CLZ TT'!E77, "") -> 2 | D77: =T('CLZ TT'!F77) -> Hours | E77: =IFERROR(VLOOKUP('CLZ TT'!A77,'CLZ WI'!$A$1:$E$100000,3,FALSE),"") -> Block Solutions Tier2 | F77: =IFERROR(VLOOKUP('CLZ TT'!A77,'CLZ WI'!$A$1:$E$100000,4,FALSE),"") -> CS Quick Start | G77: =IFERROR(VLOOKUP('CLZ TT'!A77,'CLZ WI'!$A$1:$K$100000,5,FALSE),"") -> P-158383 | H77: =IFERROR(VLOOKUP(G77,'CLZ WI'!$A$1:$K$100000,6,FALSE),"") -> Package Medium | I77: =IFERROR(VLOOKUP(G77,'CLZ WI'!$A$1:$K$100000,7,FALSE),"") -> EMEA | J77: =T('CLZ TT'!I77) ->  | K77: =IF(IFERROR(VLOOKUP('CLZ TT'!A77,'CLZ WI'!$A$1:$L$100000,12,FALSE),"")=TRUE, "Billable", IF(IFERROR(VLOOKUP('CLZ TT'!A77,'CLZ WI'!$A$1:$L$100000,12,FALSE),"")=FALSE, "Non-Billable", "")) -> Billable | L77: =IF('CLZ TT'!G77="","",'CLZ TT'!G77) -> 2012-03-28 | M77: =IFERROR(VLOOKUP(G77,'CLZ Pr'!$A$1:$X$100000,12,FALSE)*C77,"") -> 300 | N77: =IFERROR(VLOOKUP(G77,'CLZ Pr'!$A$1:$X$100000,24,FALSE), "") -> N-X-45021 | O77: =IFERROR(VLOOKUP(G77,'CLZ Pr'!$A$1:$X$100000,21,FALSE), "") -> 0
A78: =T('CLZ TT'!A78) -> P-165600 | B78: =T('CLZ TT'!D78) -> Alex Gorman | C78: =IF(LEN(A78) > 0, 'CLZ TT'!E78, "") -> 1 | D78: =T('CLZ TT'!F78) -> Hours | E78: =IFERROR(VLOOKUP('CLZ TT'!A78,'CLZ WI'!$A$1:$E$100000,3,FALSE),"") -> Aetna Non-Billable 3 Committed Hours | F78: =IFERROR(VLOOKUP('CLZ TT'!A78,'CLZ WI'!$A$1:$E$100000,4,FALSE),"") -> CS Project | G78: =IFERROR(VLOOKUP('CLZ TT'!A78,'CLZ WI'!$A$1:$K$100000,5,FALSE),"") -> P-165600 | H78: =IFERROR(VLOOKUP(G78,'CLZ WI'!$A$1:$K$100000,6,FALSE),"") -> Fixed Hours | I78: =IFERROR(VLOOKUP(G78,'CLZ WI'!$A$1:$K$100000,7,FALSE),"") -> USA | J78: =T('CLZ TT'!I78) ->  | K78: =IF(IFERROR(VLOOKUP('CLZ TT'!A78,'CLZ WI'!$A$1:$L$100000,12,FALSE),"")=TRUE, "Billable", IF(IFERROR(VLOOKUP('CLZ TT'!A78,'CLZ WI'!$A$1:$L$100000,12,FALSE),"")=FALSE, "Non-Billable", "")) -> Non-Billable | L78: =IF('CLZ TT'!G78="","",'CLZ TT'!G78) -> 2012-03-28 | M78: =IFERROR(VLOOKUP(G78,'CLZ Pr'!$A$1:$X$100000,12,FALSE)*C78,"") -> 0 | N78: =IFERROR(VLOOKUP(G78,'CLZ Pr'!$A$1:$X$100000,24,FALSE), "") -> 0 | O78: =IFERROR(VLOOKUP(G78,'CLZ Pr'!$A$1:$X$100000,21,FALSE), "") -> 2
A79: =T('CLZ TT'!A79) -> P-183271 | B79: =T('CLZ TT'!D79) -> Patrick Smith | C79: =IF(LEN(A79) > 0, 'CLZ TT'!E79, "") -> 1 | D79: =T('CLZ TT'!F79) -> Hours | E79: =IFERROR(VLOOKUP('CLZ TT'!A79,'CLZ WI'!$A$1:$E$100000,3,FALSE),"") -> LTCP 1 h PS | F79: =IFERROR(VLOOKUP('CLZ TT'!A79,'CLZ WI'!$A$1:$E$100000,4,FALSE),"") -> CS Project | G79: =IFERROR(VLOOKUP('CLZ TT'!A79,'CLZ WI'!$A$1:$K$100000,5,FALSE),"") -> P-183271 | H79: =IFERROR(VLOOKUP(G79,'CLZ WI'!$A$1:$K$100000,6,FALSE),"") -> Fixed Hours | I79: =IFERROR(VLOOKUP(G79,'CLZ WI'!$A$1:$K$100000,7,FALSE),"") -> USA | J79: =T('CLZ TT'!I79) ->  | K79: =IF(IFERROR(VLOOKUP('CLZ TT'!A79,'CLZ WI'!$A$1:$L$100000,12,FALSE),"")=TRUE, "Billable", IF(IFERROR(VLOOKUP('CLZ TT'!A79,'CLZ WI'!$A$1:$L$100000,12,FALSE),"")=FALSE, "Non-Billable", "")) -> Non-Billable | L79: =IF('CLZ TT'!G79="","",'CLZ TT'!G79) -> 2012-03-28 | M79: =IFERROR(VLOOKUP(G79,'CLZ Pr'!$A$1:$X$100000,12,FALSE)*C79,"") -> 0 | N79: =IFERROR(VLOOKUP(G79,'CLZ Pr'!$A$1:$X$100000,24,FALSE), "") -> 0 | O79: =IFERROR(VLOOKUP(G79,'CLZ Pr'!$A$1:$X$100000,21,FALSE), "") -> 0
A80: =T('CLZ TT'!A80) -> P-164986 | B80: =T('CLZ TT'!D80) -> David Goulden | C80: =IF(LEN(A80) > 0, 'CLZ TT'!E80, "") -> 1.5 | D80: =T('CLZ TT'!F80) -> Hours | E80: =IFERROR(VLOOKUP('CLZ TT'!A80,'CLZ WI'!$A$1:$E$100000,3,FALSE),"") -> ADAC-ICS Excel Report (3h) | F80: =IFERROR(VLOOKUP('CLZ TT'!A80,'CLZ WI'!$A$1:$E$100000,4,FALSE),"") -> CS Project | G80: =IFERROR(VLOOKUP('CLZ TT'!A80,'CLZ WI'!$A$1:$K$100000,5,FALSE),"") -> P-164986 | H80: =IFERROR(VLOOKUP(G80,'CLZ WI'!$A$1:$K$100000,6,FALSE),"") -> Fixed Hours | I80: =IFERROR(VLOOKUP(G80,'CLZ WI'!$A$1:$K$100000,7,FALSE),"") -> EMEA | J80: =T('CLZ TT'!I80) ->  | K80: =IF(IFERROR(VLOOKUP('CLZ TT'!A80,'CLZ WI'!$A$1:$L$100000,12,FALSE),"")=TRUE, "Billable", IF(IFERROR(VLOOKUP('CLZ TT'!A80,'CLZ WI'!$A$1:$L$100000,12,FALSE),"")=FALSE, "Non-Billable", "")) -> Billable | L80: =IF('CLZ TT'!G80="","",'CLZ TT'!G80) -> 2012-03-28 | M80: =IFERROR(VLOOKUP(G80,'CLZ Pr'!$A$1:$X$100000,12,FALSE)*C80,"") -> 250.005 | N80: =IFERROR(VLOOKUP(G80,'CLZ Pr'!$A$1:$X$100000,24,FALSE), "") -> 0 | O80: =IFERROR(VLOOKUP(G80,'CLZ Pr'!$A$1:$X$100000,21,FALSE), "") -> 0
A81: =T('CLZ TT'!A81) -> T-406012 | B81: =T('CLZ TT'!D81) -> Tal Noga | C81: =IF(LEN(A81) > 0, 'CLZ TT'!E81, "") -> 3 | D81: =T('CLZ TT'!F81) -> Hours | E81: =IFERROR(VLOOKUP('CLZ TT'!A81,'CLZ WI'!$A$1:$E$100000,3,FALSE),"") -> Net Translators Implementation Program | F81: =IFERROR(VLOOKUP('CLZ TT'!A81,'CLZ WI'!$A$1:$E$100000,4,FALSE),"") -> CS Project | G81: =IFERROR(VLOOKUP('CLZ TT'!A81,'CLZ WI'!$A$1:$K$100000,5,FALSE),"") -> P-168678 | H81: =IFERROR(VLOOKUP(G81,'CLZ WI'!$A$1:$K$100000,6,FALSE),"") -> Fixed Hours | I81: =IFERROR(VLOOKUP(G81,'CLZ WI'!$A$1:$K$100000,7,FALSE),"") -> EMEA | J81: =T('CLZ TT'!I81) -> Kick-off | K81: =IF(IFERROR(VLOOKUP('CLZ TT'!A81,'CLZ WI'!$A$1:$L$100000,12,FALSE),"")=TRUE, "Billable", IF(IFERROR(VLOOKUP('CLZ TT'!A81,'CLZ WI'!$A$1:$L$100000,12,FALSE),"")=FALSE, "Non-Billable", "")) -> Billable | L81: =IF('CLZ TT'!G81="","",'CLZ TT'!G81) -> 2012-03-29 | M81: =IFERROR(VLOOKUP(G81,'CLZ Pr'!$A$1:$X$100000,12,FALSE)*C81,"") -> 212.49 | N81: =IFERROR(VLOOKUP(G81,'CLZ Pr'!$A$1:$X$100000,24,FALSE), "") -> 0 | O81: =IFERROR(VLOOKUP(G81,'CLZ Pr'!$A$1:$X$100000,21,FALSE), "") -> 59.58
A82: =T('CLZ TT'!A82) -> P-182883 | B82: =T('CLZ TT'!D82) -> Patrick Smith | C82: =IF(LEN(A82) > 0, 'CLZ TT'!E82, "") -> 0.5 | D82: =T('CLZ TT'!F82) -> Hours | E82: =IFERROR(VLOOKUP('CLZ TT'!A82,'CLZ WI'!$A$1:$E$100000,3,FALSE),"") -> Brisbane Marketing Pty Ltd 6 h PS | F82: =IFERROR(VLOOKUP('CLZ TT'!A82,'CLZ WI'!$A$1:$E$100000,4,FALSE),"") -> CS Project | G82: =IFERROR(VLOOKUP('CLZ TT'!A82,'CLZ WI'!$A$1:$K$100000,5,FALSE),"") -> P-182883 | H82: =IFERROR(VLOOKUP(G82,'CLZ WI'!$A$1:$K$100000,6,FALSE),"") -> Fixed Hours | I82: =IFERROR(VLOOKUP(G82,'CLZ WI'!$A$1:$K$100000,7,FALSE),"") -> USA | J82: =T('CLZ TT'!I82) ->  | K82: =IF(IFERROR(VLOOKUP('CLZ TT'!A82,'CLZ WI'!$A$1:$L$100000,12,FALSE),"")=TRUE, "Billable", IF(IFERROR(VLOOKUP('CLZ TT'!A82,'CLZ WI'!$A$1:$L$100000,12,FALSE),"")=FALSE, "Non-Billable", "")) -> Billable | L82: =IF('CLZ TT'!G82="","",'CLZ TT'!G82) -> 2012-03-29 | M82: =IFERROR(VLOOKUP(G82,'CLZ Pr'!$A$1:$X$100000,12,FALSE)*C82,"") -> 83.335 | N82: =IFERROR(VLOOKUP(G82,'CLZ Pr'!$A$1:$X$100000,24,FALSE), "") -> 0 | O82: =IFERROR(VLOOKUP(G82,'CLZ Pr'!$A$1:$X$100000,21,FALSE), "") -> 2
A83: =T('CLZ TT'!A83) -> P-157498 | B83: =T('CLZ TT'!D83) -> Alex Gorman | C83: =IF(LEN(A83) > 0, 'CLZ TT'!E83, "") -> 1.17 | D83: =T('CLZ TT'!F83) -> Hours | E83: =IFERROR(VLOOKUP('CLZ TT'!A83,'CLZ WI'!$A$1:$E$100000,3,FALSE),"") -> PlatformOne - 2 Non-Billable Committed Hours | F83: =IFERROR(VLOOKUP('CLZ TT'!A83,'CLZ WI'!$A$1:$E$100000,4,FALSE),"") -> CS Project | G83: =IFERROR(VLOOKUP('CLZ TT'!A83,'CLZ WI'!$A$1:$K$100000,5,FALSE),"") -> P-157498 | H83: =IFERROR(VLOOKUP(G83,'CLZ WI'!$A$1:$K$100000,6,FALSE),"") -> Fixed Hours | I83: =IFERROR(VLOOKUP(G83,'CLZ WI'!$A$1:$K$100000,7,FALSE),"") -> USA | J83: =T('CLZ TT'!I83) ->  | K83: =IF(IFERROR(VLOOKUP('CLZ TT'!A83,'CLZ WI'!$A$1:$L$100000,12,FALSE),"")=TRUE, "Billable", IF(IFERROR(VLOOKUP('CLZ TT'!A83,'CLZ WI'!$A$1:$L$100000,12,FALSE),"")=FALSE, "Non-Billable", "")) -> Non-Billable | L83: =IF('CLZ TT'!G83="","",'CLZ TT'!G83) -> 2012-03-29 | M83: =IFERROR(VLOOKUP(G83,'CLZ Pr'!$A$1:$X$100000,12,FALSE)*C83,"") -> 0 | N83: =IFERROR(VLOOKUP(G83,'CLZ Pr'!$A$1:$X$100000,24,FALSE), "") -> 0 | O83: =IFERROR(VLOOKUP(G83,'CLZ Pr'!$A$1:$X$100000,21,FALSE), "") -> 0.58
A84: =T('CLZ TT'!A84) -> P-164986 | B84: =T('CLZ TT'!D84) -> David Goulden | C84: =IF(LEN(A84) > 0, 'CLZ TT'!E84, "") -> 0.5 | D84: =T('CLZ TT'!F84) -> Hours | E84: =IFERROR(VLOOKUP('CLZ TT'!A84,'CLZ WI'!$A$1:$E$100000,3,FALSE),"") -> ADAC-ICS Excel Report (3h) | F84: =IFERROR(VLOOKUP('CLZ TT'!A84,'CLZ WI'!$A$1:$E$100000,4,FALSE),"") -> CS Project | G84: =IFERROR(VLOOKUP('CLZ TT'!A84,'CLZ WI'!$A$1:$K$100000,5,FALSE),"") -> P-164986 | H84: =IFERROR(VLOOKUP(G84,'CLZ WI'!$A$1:$K$100000,6,FALSE),"") -> Fixed Hours | I84: =IFERROR(VLOOKUP(G84,'CLZ WI'!$A$1:$K$100000,7,FALSE),"") -> EMEA | J84: =T('CLZ TT'!I84) ->  | K84: =IF(IFERROR(VLOOKUP('CLZ TT'!A84,'CLZ WI'!$A$1:$L$100000,12,FALSE),"")=TRUE, "Billable", IF(IFERROR(VLOOKUP('CLZ TT'!A84,'CLZ WI'!$A$1:$L$100000,12,FALSE),"")=FALSE, "Non-Billable", "")) -> Billable | L84: =IF('CLZ TT'!G84="","",'CLZ TT'!G84) -> 2012-03-29 | M84: =IFERROR(VLOOKUP(G84,'CLZ Pr'!$A$1:$X$100000,12,FALSE)*C84,"") -> 83.335 | N84: =IFERROR(VLOOKUP(G84,'CLZ Pr'!$A$1:$X$100000,24,FALSE), "") -> 0 | O84: =IFERROR(VLOOKUP(G84,'CLZ Pr'!$A$1:$X$100000,21,FALSE), "") -> 0
A85: =T('CLZ TT'!A85) -> T-406014 | B85: =T('CLZ TT'!D85) -> Tal Noga | C85: =IF(LEN(A85) > 0, 'CLZ TT'!E85, "") -> 2.3 | D85: =T('CLZ TT'!F85) -> Hours | E85: =IFERROR(VLOOKUP('CLZ TT'!A85,'CLZ WI'!$A$1:$E$100000,3,FALSE),"") -> Net Translators Implementation Program | F85: =IFERROR(VLOOKUP('CLZ TT'!A85,'CLZ WI'!$A$1:$E$100000,4,FALSE),"") -> CS Project | G85: =IFERROR(VLOOKUP('CLZ TT'!A85,'CLZ WI'!$A$1:$K$100000,5,FALSE),"") -> P-168678 | H85: =IFERROR(VLOOKUP(G85,'CLZ WI'!$A$1:$K$100000,6,FALSE),"") -> Fixed Hours | I85: =IFERROR(VLOOKUP(G85,'CLZ WI'!$A$1:$K$100000,7,FALSE),"") -> EMEA | J85: =T('CLZ TT'!I85) -> Customization | K85: =IF(IFERROR(VLOOKUP('CLZ TT'!A85,'CLZ WI'!$A$1:$L$100000,12,FALSE),"")=TRUE, "Billable", IF(IFERROR(VLOOKUP('CLZ TT'!A85,'CLZ WI'!$A$1:$L$100000,12,FALSE),"")=FALSE, "Non-Billable", "")) -> Billable | L85: =IF('CLZ TT'!G85="","",'CLZ TT'!G85) -> 2012-04-02 | M85: =IFERROR(VLOOKUP(G85,'CLZ Pr'!$A$1:$X$100000,12,FALSE)*C85,"") -> 162.909 | N85: =IFERROR(VLOOKUP(G85,'CLZ Pr'!$A$1:$X$100000,24,FALSE), "") -> 0 | O85: =IFERROR(VLOOKUP(G85,'CLZ Pr'!$A$1:$X$100000,21,FALSE), "") -> 59.58
A86: =T('CLZ TT'!A86) -> T-399411 | B86: =T('CLZ TT'!D86) -> G.I.Teh | C86: =IF(LEN(A86) > 0, 'CLZ TT'!E86, "") -> 2 | D86: =T('CLZ TT'!F86) -> Hours | E86: =IFERROR(VLOOKUP('CLZ TT'!A86,'CLZ WI'!$A$1:$E$100000,3,FALSE),"") -> Tessera Global Services, Inc. Tier1 | F86: =IFERROR(VLOOKUP('CLZ TT'!A86,'CLZ WI'!$A$1:$E$100000,4,FALSE),"") -> CS Quick Start | G86: =IFERROR(VLOOKUP('CLZ TT'!A86,'CLZ WI'!$A$1:$K$100000,5,FALSE),"") -> P-165488 | H86: =IFERROR(VLOOKUP(G86,'CLZ WI'!$A$1:$K$100000,6,FALSE),"") -> Package Large | I86: =IFERROR(VLOOKUP(G86,'CLZ WI'!$A$1:$K$100000,7,FALSE),"") -> USA | J86: =T('CLZ TT'!I86) ->  | K86: =IF(IFERROR(VLOOKUP('CLZ TT'!A86,'CLZ WI'!$A$1:$L$100000,12,FALSE),"")=TRUE, "Billable", IF(IFERROR(VLOOKUP('CLZ TT'!A86,'CLZ WI'!$A$1:$L$100000,12,FALSE),"")=FALSE, "Non-Billable", "")) -> Billable | L86: =IF('CLZ TT'!G86="","",'CLZ TT'!G86) -> 2012-04-02 | M86: =IFERROR(VLOOKUP(G86,'CLZ Pr'!$A$1:$X$100000,12,FALSE)*C86,"") -> 291.66 | N86: =IFERROR(VLOOKUP(G86,'CLZ Pr'!$A$1:$X$100000,24,FALSE), "") -> 0 | O86: =IFERROR(VLOOKUP(G86,'CLZ Pr'!$A$1:$X$100000,21,FALSE), "") -> 4
A87: =T('CLZ TT'!A87) -> T-399401 | B87: =T('CLZ TT'!D87) -> G.I.Teh | C87: =IF(LEN(A87) > 0, 'CLZ TT'!E87, "") -> 1 | D87: =T('CLZ TT'!F87) -> Hours | E87: =IFERROR(VLOOKUP('CLZ TT'!A87,'CLZ WI'!$A$1:$E$100000,3,FALSE),"") -> Tessera Global Services, Inc. Tier1 | F87: =IFERROR(VLOOKUP('CLZ TT'!A87,'CLZ WI'!$A$1:$E$100000,4,FALSE),"") -> CS Quick Start | G87: =IFERROR(VLOOKUP('CLZ TT'!A87,'CLZ WI'!$A$1:$K$100000,5,FALSE),"") -> P-165488 | H87: =IFERROR(VLOOKUP(G87,'CLZ WI'!$A$1:$K$100000,6,FALSE),"") -> Package Large | I87: =IFERROR(VLOOKUP(G87,'CLZ WI'!$A$1:$K$100000,7,FALSE),"") -> USA | J87: =T('CLZ TT'!I87) ->  | K87: =IF(IFERROR(VLOOKUP('CLZ TT'!A87,'CLZ WI'!$A$1:$L$100000,12,FALSE),"")=TRUE, "Billable", IF(IFERROR(VLOOKUP('CLZ TT'!A87,'CLZ WI'!$A$1:$L$100000,12,FALSE),"")=FALSE, "Non-Billable", "")) -> Billable | L87: =IF('CLZ TT'!G87="","",'CLZ TT'!G87) -> 2012-04-02 | M87: =IFERROR(VLOOKUP(G87,'CLZ Pr'!$A$1:$X$100000,12,FALSE)*C87,"") -> 145.83 | N87: =IFERROR(VLOOKUP(G87,'CLZ Pr'!$A$1:$X$100000,24,FALSE), "") -> 0 | O87: =IFERROR(VLOOKUP(G87,'CLZ Pr'!$A$1:$X$100000,21,FALSE), "") -> 4
A88: =T('CLZ TT'!A88) -> M-202762 | B88: =T('CLZ TT'!D88) -> Alex Gorman | C88: =IF(LEN(A88) > 0, 'CLZ TT'!E88, "") -> 1 | D88: =T('CLZ TT'!F88) -> Hours | E88: =IFERROR(VLOOKUP('CLZ TT'!A88,'CLZ WI'!$A$1:$E$100000,3,FALSE),"") -> BPL Global Medium | F88: =IFERROR(VLOOKUP('CLZ TT'!A88,'CLZ WI'!$A$1:$E$100000,4,FALSE),"") -> CS Quick Start | G88: =IFERROR(VLOOKUP('CLZ TT'!A88,'CLZ WI'!$A$1:$K$100000,5,FALSE),"") -> P-160798 | H88: =IFERROR(VLOOKUP(G88,'CLZ WI'!$A$1:$K$100000,6,FALSE),"") -> Package Medium | I88: =IFERROR(VLOOKUP(G88,'CLZ WI'!$A$1:$K$100000,7,FALSE),"") -> USA | J88: =T('CLZ TT'!I88) ->  | K88: =IF(IFERROR(VLOOKUP('CLZ TT'!A88,'CLZ WI'!$A$1:$L$100000,12,FALSE),"")=TRUE, "Billable", IF(IFERROR(VLOOKUP('CLZ TT'!A88,'CLZ WI'!$A$1:$L$100000,12,FALSE),"")=FALSE, "Non-Billable", "")) -> Billable | L88: =IF('CLZ TT'!G88="","",'CLZ TT'!G88) -> 2012-04-02 | M88: =IFERROR(VLOOKUP(G88,'CLZ Pr'!$A$1:$X$100000,12,FALSE)*C88,"") -> 100 | N88: =IFERROR(VLOOKUP(G88,'CLZ Pr'!$A$1:$X$100000,24,FALSE), "") -> 0 | O88: =IFERROR(VLOOKUP(G88,'CLZ Pr'!$A$1:$X$100000,21,FALSE), "") -> 3
A89: =T('CLZ TT'!A89) -> T-399398 | B89: =T('CLZ TT'!D89) -> G.I.Teh | C89: =IF(LEN(A89) > 0, 'CLZ TT'!E89, "") -> 1 | D89: =T('CLZ TT'!F89) -> Hours | E89: =IFERROR(VLOOKUP('CLZ TT'!A89,'CLZ WI'!$A$1:$E$100000,3,FALSE),"") -> Tessera Global Services, Inc. Tier1 | F89: =IFERROR(VLOOKUP('CLZ TT'!A89,'CLZ WI'!$A$1:$E$100000,4,FALSE),"") -> CS Quick Start | G89: =IFERROR(VLOOKUP('CLZ TT'!A89,'CLZ WI'!$A$1:$K$100000,5,FALSE),"") -> P-165488 | H89: =IFERROR(VLOOKUP(G89,'CLZ WI'!$A$1:$K$100000,6,FALSE),"") -> Package Large | I89: =IFERROR(VLOOKUP(G89,'CLZ WI'!$A$1:$K$100000,7,FALSE),"") -> USA | J89: =T('CLZ TT'!I89) ->  | K89: =IF(IFERROR(VLOOKUP('CLZ TT'!A89,'CLZ WI'!$A$1:$L$100000,12,FALSE),"")=TRUE, "Billable", IF(IFERROR(VLOOKUP('CLZ TT'!A89,'CLZ WI'!$A$1:$L$100000,12,FALSE),"")=FALSE, "Non-Billable", "")) -> Billable | L89: =IF('CLZ TT'!G89="","",'CLZ TT'!G89) -> 2012-04-02 | M89: =IFERROR(VLOOKUP(G89,'CLZ Pr'!$A$1:$X$100000,12,FALSE)*C89,"") -> 145.83 | N89: =IFERROR(VLOOKUP(G89,'CLZ Pr'!$A$1:$X$100000,24,FALSE), "") -> 0 | O89: =IFERROR(VLOOKUP(G89,'CLZ Pr'!$A$1:$X$100000,21,FALSE), "") -> 4
A90: =T('CLZ TT'!A90) -> P-158424 | B90: =T('CLZ TT'!D90) -> Josh Santos | C90: =IF(LEN(A90) > 0, 'CLZ TT'!E90, "") -> 1 | D90: =T('CLZ TT'!F90) -> Hours | E90: =IFERROR(VLOOKUP('CLZ TT'!A90,'CLZ WI'!$A$1:$E$100000,3,FALSE),"") -> PureDriven Tier1 | F90: =IFERROR(VLOOKUP('CLZ TT'!A90,'CLZ WI'!$A$1:$E$100000,4,FALSE),"") -> CS Quick Start | G90: =IFERROR(VLOOKUP('CLZ TT'!A90,'CLZ WI'!$A$1:$K$100000,5,FALSE),"") -> P-158424 | H90: =IFERROR(VLOOKUP(G90,'CLZ WI'!$A$1:$K$100000,6,FALSE),"") -> Package Large | I90: =IFERROR(VLOOKUP(G90,'CLZ WI'!$A$1:$K$100000,7,FALSE),"") -> USA | J90: =T('CLZ TT'!I90) ->  | K90: =IF(IFERROR(VLOOKUP('CLZ TT'!A90,'CLZ WI'!$A$1:$L$100000,12,FALSE),"")=TRUE, "Billable", IF(IFERROR(VLOOKUP('CLZ TT'!A90,'CLZ WI'!$A$1:$L$100000,12,FALSE),"")=FALSE, "Non-Billable", "")) -> Billable | L90: =IF('CLZ TT'!G90="","",'CLZ TT'!G90) -> 2012-04-02 | M90: =IFERROR(VLOOKUP(G90,'CLZ Pr'!$A$1:$X$100000,12,FALSE)*C90,"") -> 145.83 | N90: =IFERROR(VLOOKUP(G90,'CLZ Pr'!$A$1:$X$100000,24,FALSE), "") -> 0 | O90: =IFERROR(VLOOKUP(G90,'CLZ Pr'!$A$1:$X$100000,21,FALSE), "") -> 9
A91: =T('CLZ TT'!A91) -> T-399402 | B91: =T('CLZ TT'!D91) -> G.I.Teh | C91: =IF(LEN(A91) > 0, 'CLZ TT'!E91, "") -> 2 | D91: =T('CLZ TT'!F91) -> Hours | E91: =IFERROR(VLOOKUP('CLZ TT'!A91,'CLZ WI'!$A$1:$E$100000,3,FALSE),"") -> Tessera Global Services, Inc. Tier1 | F91: =IFERROR(VLOOKUP('CLZ TT'!A91,'CLZ WI'!$A$1:$E$100000,4,FALSE),"") -> CS Quick Start | G91: =IFERROR(VLOOKUP('CLZ TT'!A91,'CLZ WI'!$A$1:$K$100000,5,FALSE),"") -> P-165488 | H91: =IFERROR(VLOOKUP(G91,'CLZ WI'!$A$1:$K$100000,6,FALSE),"") -> Package Large | I91: =IFERROR(VLOOKUP(G91,'CLZ WI'!$A$1:$K$100000,7,FALSE),"") -> USA | J91: =T('CLZ TT'!I91) ->  | K91: =IF(IFERROR(VLOOKUP('CLZ TT'!A91,'CLZ WI'!$A$1:$L$100000,12,FALSE),"")=TRUE, "Billable", IF(IFERROR(VLOOKUP('CLZ TT'!A91,'CLZ WI'!$A$1:$L$100000,12,FALSE),"")=FALSE, "Non-Billable", "")) -> Billable | L91: =IF('CLZ TT'!G91="","",'CLZ TT'!G91) -> 2012-04-02 | M91: =IFERROR(VLOOKUP(G91,'CLZ Pr'!$A$1:$X$100000,12,FALSE)*C91,"") -> 291.66 | N91: =IFERROR(VLOOKUP(G91,'CLZ Pr'!$A$1:$X$100000,24,FALSE), "") -> 0 | O91: =IFERROR(VLOOKUP(G91,'CLZ Pr'!$A$1:$X$100000,21,FALSE), "") -> 4
A92: =T('CLZ TT'!A92) -> T-435762 | B92: =T('CLZ TT'!D92) -> Tal Noga | C92: =IF(LEN(A92) > 0, 'CLZ TT'!E92, "") -> 0.75 | D92: =T('CLZ TT'!F92) -> Hours | E92: =IFERROR(VLOOKUP('CLZ TT'!A92,'CLZ WI'!$A$1:$E$100000,3,FALSE),"") -> Sondrel/Tier2/10h | F92: =IFERROR(VLOOKUP('CLZ TT'!A92,'CLZ WI'!$A$1:$E$100000,4,FALSE),"") -> CS Quick Start | G92: =IFERROR(VLOOKUP('CLZ TT'!A92,'CLZ WI'!$A$1:$K$100000,5,FALSE),"") -> P-145889 | H92: =IFERROR(VLOOKUP(G92,'CLZ WI'!$A$1:$K$100000,6,FALSE),"") -> Package Medium | I92: =IFERROR(VLOOKUP(G92,'CLZ WI'!$A$1:$K$100000,7,FALSE),"") -> EMEA | J92: =T('CLZ TT'!I92) -> Customization | K92: =IF(IFERROR(VLOOKUP('CLZ TT'!A92,'CLZ WI'!$A$1:$L$100000,12,FALSE),"")=TRUE, "Billable", IF(IFERROR(VLOOKUP('CLZ TT'!A92,'CLZ WI'!$A$1:$L$100000,12,FALSE),"")=FALSE, "Non-Billable", "")) -> Billable | L92: =IF('CLZ TT'!G92="","",'CLZ TT'!G92) -> 2012-04-03 | M92: =IFERROR(VLOOKUP(G92,'CLZ Pr'!$A$1:$X$100000,12,FALSE)*C92,"") ->  | N92: =IFERROR(VLOOKUP(G92,'CLZ Pr'!$A$1:$X$100000,24,FALSE), "") ->  | O92: =IFERROR(VLOOKUP(G92,'CLZ Pr'!$A$1:$X$100000,21,FALSE), "") -> 
A93: =T('CLZ TT'!A93) -> T-406013 | B93: =T('CLZ TT'!D93) -> Tal Noga | C93: =IF(LEN(A93) > 0, 'CLZ TT'!E93, "") -> 2 | D93: =T('CLZ TT'!F93) -> Hours | E93: =IFERROR(VLOOKUP('CLZ TT'!A93,'CLZ WI'!$A$1:$E$100000,3,FALSE),"") -> Net Translators Implementation Program | F93: =IFERROR(VLOOKUP('CLZ TT'!A93,'CLZ WI'!$A$1:$E$100000,4,FALSE),"") -> CS Project | G93: =IFERROR(VLOOKUP('CLZ TT'!A93,'CLZ WI'!$A$1:$K$100000,5,FALSE),"") -> P-168678 | H93: =IFERROR(VLOOKUP(G93,'CLZ WI'!$A$1:$K$100000,6,FALSE),"") -> Fixed Hours | I93: =IFERROR(VLOOKUP(G93,'CLZ WI'!$A$1:$K$100000,7,FALSE),"") -> EMEA | J93: =T('CLZ TT'!I93) -> Customization | K93: =IF(IFERROR(VLOOKUP('CLZ TT'!A93,'CLZ WI'!$A$1:$L$100000,12,FALSE),"")=TRUE, "Billable", IF(IFERROR(VLOOKUP('CLZ TT'!A93,'CLZ WI'!$A$1:$L$100000,12,FALSE),"")=FALSE, "Non-Billable", "")) -> Billable | L93: =IF('CLZ TT'!G93="","",'CLZ TT'!G93) -> 2012-04-03 | M93: =IFERROR(VLOOKUP(G93,'CLZ Pr'!$A$1:$X$100000,12,FALSE)*C93,"") -> 141.66 | N93: =IFERROR(VLOOKUP(G93,'CLZ Pr'!$A$1:$X$100000,24,FALSE), "") -> 0 | O93: =IFERROR(VLOOKUP(G93,'CLZ Pr'!$A$1:$X$100000,21,FALSE), "") -> 59.58
A94: =T('CLZ TT'!A94) -> M-208086 | B94: =T('CLZ TT'!D94) -> Alex Gorman | C94: =IF(LEN(A94) > 0, 'CLZ TT'!E94, "") -> 1 | D94: =T('CLZ TT'!F94) -> Hours | E94: =IFERROR(VLOOKUP('CLZ TT'!A94,'CLZ WI'!$A$1:$E$100000,3,FALSE),"") -> Memorial Family of Services Large | F94: =IFERROR(VLOOKUP('CLZ TT'!A94,'CLZ WI'!$A$1:$E$100000,4,FALSE),"") -> CS Quick Start | G94: =IFERROR(VLOOKUP('CLZ TT'!A94,'CLZ WI'!$A$1:$K$100000,5,FALSE),"") -> P-165213 | H94: =IFERROR(VLOOKUP(G94,'CLZ WI'!$A$1:$K$100000,6,FALSE),"") -> Package Large | I94: =IFERROR(VLOOKUP(G94,'CLZ WI'!$A$1:$K$100000,7,FALSE),"") -> USA | J94: =T('CLZ TT'!I94) ->  | K94: =IF(IFERROR(VLOOKUP('CLZ TT'!A94,'CLZ WI'!$A$1:$L$100000,12,FALSE),"")=TRUE, "Billable", IF(IFERROR(VLOOKUP('CLZ TT'!A94,'CLZ WI'!$A$1:$L$100000,12,FALSE),"")=FALSE, "Non-Billable", "")) -> Billable | L94: =IF('CLZ TT'!G94="","",'CLZ TT'!G94) -> 2012-04-03 | M94: =IFERROR(VLOOKUP(G94,'CLZ Pr'!$A$1:$X$100000,12,FALSE)*C94,"") -> 145.83 | N94: =IFERROR(VLOOKUP(G94,'CLZ Pr'!$A$1:$X$100000,24,FALSE), "") -> 0 | O94: =IFERROR(VLOOKUP(G94,'CLZ Pr'!$A$1:$X$100000,21,FALSE), "") -> 21
A95: =T('CLZ TT'!A95) -> T-78151 | B95: =T('CLZ TT'!D95) -> Rami Cohen | C95: =IF(LEN(A95) > 0, 'CLZ TT'!E95, "") -> 1 | D95: =T('CLZ TT'!F95) -> Hours | E95: =IFERROR(VLOOKUP('CLZ TT'!A95,'CLZ WI'!$A$1:$E$100000,3,FALSE),"") -> Orbit.uk | F95: =IFERROR(VLOOKUP('CLZ TT'!A95,'CLZ WI'!$A$1:$E$100000,4,FALSE),"") -> CS Project | G95: =IFERROR(VLOOKUP('CLZ TT'!A95,'CLZ WI'!$A$1:$K$100000,5,FALSE),"") -> P-25770 | H95: =IFERROR(VLOOKUP(G95,'CLZ WI'!$A$1:$K$100000,6,FALSE),"") -> Fixed Hours | I95: =IFERROR(VLOOKUP(G95,'CLZ WI'!$A$1:$K$100000,7,FALSE),"") -> EMEA | J95: =T('CLZ TT'!I95) -> Training | K95: =IF(IFERROR(VLOOKUP('CLZ TT'!A95,'CLZ WI'!$A$1:$L$100000,12,FALSE),"")=TRUE, "Billable", IF(IFERROR(VLOOKUP('CLZ TT'!A95,'CLZ WI'!$A$1:$L$100000,12,FALSE),"")=FALSE, "Non-Billable", "")) -> Billable | L95: =IF('CLZ TT'!G95="","",'CLZ TT'!G95) -> 2012-04-03 | M95: =IFERROR(VLOOKUP(G95,'CLZ Pr'!$A$1:$X$100000,12,FALSE)*C95,"") ->  | N95: =IFERROR(VLOOKUP(G95,'CLZ Pr'!$A$1:$X$100000,24,FALSE), "") ->  | O95: =IFERROR(VLOOKUP(G95,'CLZ Pr'!$A$1:$X$100000,21,FALSE), "") -> 
A96: =T('CLZ TT'!A96) -> M-213329 | B96: =T('CLZ TT'!D96) -> Alex Gorman | C96: =IF(LEN(A96) > 0, 'CLZ TT'!E96, "") -> 0.5 | D96: =T('CLZ TT'!F96) -> Hours | E96: =IFERROR(VLOOKUP('CLZ TT'!A96,'CLZ WI'!$A$1:$E$100000,3,FALSE),"") ->  | F96: =IFERROR(VLOOKUP('CLZ TT'!A96,'CLZ WI'!$A$1:$E$100000,4,FALSE),"") ->  | G96: =IFERROR(VLOOKUP('CLZ TT'!A96,'CLZ WI'!$A$1:$K$100000,5,FALSE),"") ->  | H96: =IFERROR(VLOOKUP(G96,'CLZ WI'!$A$1:$K$100000,6,FALSE),"") ->  | I96: =IFERROR(VLOOKUP(G96,'CLZ WI'!$A$1:$K$100000,7,FALSE),"") ->  | J96: =T('CLZ TT'!I96) ->  | K96: =IF(IFERROR(VLOOKUP('CLZ TT'!A96,'CLZ WI'!$A$1:$L$100000,12,FALSE),"")=TRUE, "Billable", IF(IFERROR(VLOOKUP('CLZ TT'!A96,'CLZ WI'!$A$1:$L$100000,12,FALSE),"")=FALSE, "Non-Billable", "")) ->  | L96: =IF('CLZ TT'!G96="","",'CLZ TT'!G96) -> 2012-04-03 | M96: =IFERROR(VLOOKUP(G96,'CLZ Pr'!$A$1:$X$100000,12,FALSE)*C96,"") ->  | N96: =IFERROR(VLOOKUP(G96,'CLZ Pr'!$A$1:$X$100000,24,FALSE), "") ->  | O96: =IFERROR(VLOOKUP(G96,'CLZ Pr'!$A$1:$X$100000,21,FALSE), "") -> 
A97: =T('CLZ TT'!A97) -> M-174397 | B97: =T('CLZ TT'!D97) -> Eran Fishov | C97: =IF(LEN(A97) > 0, 'CLZ TT'!E97, "") -> 1 | D97: =T('CLZ TT'!F97) -> Hours | E97: =IFERROR(VLOOKUP('CLZ TT'!A97,'CLZ WI'!$A$1:$E$100000,3,FALSE),"") -> Afinium Tier 2 QS | F97: =IFERROR(VLOOKUP('CLZ TT'!A97,'CLZ WI'!$A$1:$E$100000,4,FALSE),"") -> CS Quick Start | G97: =IFERROR(VLOOKUP('CLZ TT'!A97,'CLZ WI'!$A$1:$K$100000,5,FALSE),"") -> P-137424 | H97: =IFERROR(VLOOKUP(G97,'CLZ WI'!$A$1:$K$100000,6,FALSE),"") -> Package Medium | I97: =IFERROR(VLOOKUP(G97,'CLZ WI'!$A$1:$K$100000,7,FALSE),"") -> EMEA | J97: =T('CLZ TT'!I97) ->  | K97: =IF(IFERROR(VLOOKUP('CLZ TT'!A97,'CLZ WI'!$A$1:$L$100000,12,FALSE),"")=TRUE, "Billable", IF(IFERROR(VLOOKUP('CLZ TT'!A97,'CLZ WI'!$A$1:$L$100000,12,FALSE),"")=FALSE, "Non-Billable", "")) -> Billable | L97: =IF('CLZ TT'!G97="","",'CLZ TT'!G97) -> 2012-04-03 | M97: =IFERROR(VLOOKUP(G97,'CLZ Pr'!$A$1:$X$100000,12,FALSE)*C97,"") ->  | N97: =IFERROR(VLOOKUP(G97,'CLZ Pr'!$A$1:$X$100000,24,FALSE), "") ->  | O97: =IFERROR(VLOOKUP(G97,'CLZ Pr'!$A$1:$X$100000,21,FALSE), "") -> 
A98: =T('CLZ TT'!A98) -> T-337131 | B98: =T('CLZ TT'!D98) -> Tal Noga | C98: =IF(LEN(A98) > 0, 'CLZ TT'!E98, "") -> 5 | D98: =T('CLZ TT'!F98) -> Hours | E98: =IFERROR(VLOOKUP('CLZ TT'!A98,'CLZ WI'!$A$1:$E$100000,3,FALSE),"") -> College of Management | F98: =IFERROR(VLOOKUP('CLZ TT'!A98,'CLZ WI'!$A$1:$E$100000,4,FALSE),"") -> CS Project | G98: =IFERROR(VLOOKUP('CLZ TT'!A98,'CLZ WI'!$A$1:$K$100000,5,FALSE),"") -> P-137643 | H98: =IFERROR(VLOOKUP(G98,'CLZ WI'!$A$1:$K$100000,6,FALSE),"") -> Fixed Hours | I98: =IFERROR(VLOOKUP(G98,'CLZ WI'!$A$1:$K$100000,7,FALSE),"") -> EMEA | J98: =T('CLZ TT'!I98) -> Customization | K98: =IF(IFERROR(VLOOKUP('CLZ TT'!A98,'CLZ WI'!$A$1:$L$100000,12,FALSE),"")=TRUE, "Billable", IF(IFERROR(VLOOKUP('CLZ TT'!A98,'CLZ WI'!$A$1:$L$100000,12,FALSE),"")=FALSE, "Non-Billable", "")) -> Billable | L98: =IF('CLZ TT'!G98="","",'CLZ TT'!G98) -> 2012-04-04 | M98: =IFERROR(VLOOKUP(G98,'CLZ Pr'!$A$1:$X$100000,12,FALSE)*C98,"") ->  | N98: =IFERROR(VLOOKUP(G98,'CLZ Pr'!$A$1:$X$100000,24,FALSE), "") ->  | O98: =IFERROR(VLOOKUP(G98,'CLZ Pr'!$A$1:$X$100000,21,FALSE), "") -> 
A99: =T('CLZ TT'!A99) -> M-174397 | B99: =T('CLZ TT'!D99) -> Eran Fishov | C99: =IF(LEN(A99) > 0, 'CLZ TT'!E99, "") -> 1 | D99: =T('CLZ TT'!F99) -> Hours | E99: =IFERROR(VLOOKUP('CLZ TT'!A99,'CLZ WI'!$A$1:$E$100000,3,FALSE),"") -> Afinium Tier 2 QS | F99: =IFERROR(VLOOKUP('CLZ TT'!A99,'CLZ WI'!$A$1:$E$100000,4,FALSE),"") -> CS Quick Start | G99: =IFERROR(VLOOKUP('CLZ TT'!A99,'CLZ WI'!$A$1:$K$100000,5,FALSE),"") -> P-137424 | H99: =IFERROR(VLOOKUP(G99,'CLZ WI'!$A$1:$K$100000,6,FALSE),"") -> Package Medium | I99: =IFERROR(VLOOKUP(G99,'CLZ WI'!$A$1:$K$100000,7,FALSE),"") -> EMEA | J99: =T('CLZ TT'!I99) ->  | K99: =IF(IFERROR(VLOOKUP('CLZ TT'!A99,'CLZ WI'!$A$1:$L$100000,12,FALSE),"")=TRUE, "Billable", IF(IFERROR(VLOOKUP('CLZ TT'!A99,'CLZ WI'!$A$1:$L$100000,12,FALSE),"")=FALSE, "Non-Billable", "")) -> Billable | L99: =IF('CLZ TT'!G99="","",'CLZ TT'!G99) -> 2012-04-04 | M99: =IFERROR(VLOOKUP(G99,'CLZ Pr'!$A$1:$X$100000,12,FALSE)*C99,"") ->  | N99: =IFERROR(VLOOKUP(G99,'CLZ Pr'!$A$1:$X$100000,24,FALSE), "") ->  | O99: =IFERROR(VLOOKUP(G99,'CLZ Pr'!$A$1:$X$100000,21,FALSE), "") -> 
A100: =T('CLZ TT'!A100) -> M-257737 | B100: =T('CLZ TT'!D100) -> Eran Fishov | C100: =IF(LEN(A100) > 0, 'CLZ TT'!E100, "") -> 1 | D100: =T('CLZ TT'!F100) -> Hours | E100: =IFERROR(VLOOKUP('CLZ TT'!A100,'CLZ WI'!$A$1:$E$100000,3,FALSE),"") -> Gard:Small Package | F100: =IFERROR(VLOOKUP('CLZ TT'!A100,'CLZ WI'!$A$1:$E$100000,4,FALSE),"") -> CS Quick Start | G100: =IFERROR(VLOOKUP('CLZ TT'!A100,'CLZ WI'!$A$1:$K$100000,5,FALSE),"") -> P-206853 | H100: =IFERROR(VLOOKUP(G100,'CLZ WI'!$A$1:$K$100000,6,FALSE),"") -> Package Small | I100: =IFERROR(VLOOKUP(G100,'CLZ WI'!$A$1:$K$100000,7,FALSE),"") -> EMEA | J100: =T('CLZ TT'!I100) ->  | K100: =IF(IFERROR(VLOOKUP('CLZ TT'!A100,'CLZ WI'!$A$1:$L$100000,12,FALSE),"")=TRUE, "Billable", IF(IFERROR(VLOOKUP('CLZ TT'!A100,'CLZ WI'!$A$1:$L$100000,12,FALSE),"")=FALSE, "Non-Billable", "")) -> Billable | L100: =IF('CLZ TT'!G100="","",'CLZ TT'!G100) -> 2012-04-04 | M100: =IFERROR(VLOOKUP(G100,'CLZ Pr'!$A$1:$X$100000,12,FALSE)*C100,"") -> 200 | N100: =IFERROR(VLOOKUP(G100,'CLZ Pr'!$A$1:$X$100000,24,FALSE), "") -> 0 | O100: =IFERROR(VLOOKUP(G100,'CLZ Pr'!$A$1:$X$100000,21,FALSE), "") -> 0
A101: =T('CLZ TT'!A101) -> P-157089 | B101: =T('CLZ TT'!D101) -> Alex Gorman | C101: =IF(LEN(A101) > 0, 'CLZ TT'!E101, "") -> 1 | D101: =T('CLZ TT'!F101) -> Hours | E101: =IFERROR(VLOOKUP('CLZ TT'!A101,'CLZ WI'!$A$1:$E$100000,3,FALSE),"") -> Edifice Information Management - 2 Non-Billable Committed Hour | F101: =IFERROR(VLOOKUP('CLZ TT'!A101,'CLZ WI'!$A$1:$E$100000,4,FALSE),"") -> CS Project | G101: =IFERROR(VLOOKUP('CLZ TT'!A101,'CLZ WI'!$A$1:$K$100000,5,FALSE),"") -> P-157089 | H101: =IFERROR(VLOOKUP(G101,'CLZ WI'!$A$1:$K$100000,6,FALSE),"") -> Fixed Hours | I101: =IFERROR(VLOOKUP(G101,'CLZ WI'!$A$1:$K$100000,7,FALSE),"") -> USA | J101: =T('CLZ TT'!I101) ->  | K101: =IF(IFERROR(VLOOKUP('CLZ TT'!A101,'CLZ WI'!$A$1:$L$100000,12,FALSE),"")=TRUE, "Billable", IF(IFERROR(VLOOKUP('CLZ TT'!A101,'CLZ WI'!$A$1:$L$100000,12,FALSE),"")=FALSE, "Non-Billable", "")) -> Non-Billable | L101: =IF('CLZ TT'!G101="","",'CLZ TT'!G101) -> 2012-04-04 | M101: =IFERROR(VLOOKUP(G101,'CLZ Pr'!$A$1:$X$100000,12,FALSE)*C101,"") -> 0 | N101: =IFERROR(VLOOKUP(G101,'CLZ Pr'!$A$1:$X$100000,24,FALSE), "") -> 0 | O101: =IFERROR(VLOOKUP(G101,'CLZ Pr'!$A$1:$X$100000,21,FALSE), "") -> 0
A102: =T('CLZ TT'!A102) -> P-171083 | B102: =T('CLZ TT'!D102) -> Roni Feldsher | C102: =IF(LEN(A102) > 0, 'CLZ TT'!E102, "") -> 1 | D102: =T('CLZ TT'!F102) -> Hours | E102: =IFERROR(VLOOKUP('CLZ TT'!A102,'CLZ WI'!$A$1:$E$100000,3,FALSE),"") -> Sony PlayStation PDIT:Large Package | F102: =IFERROR(VLOOKUP('CLZ TT'!A102,'CLZ WI'!$A$1:$E$100000,4,FALSE),"") -> CS Quick Start | G102: =IFERROR(VLOOKUP('CLZ TT'!A102,'CLZ WI'!$A$1:$K$100000,5,FALSE),"") -> P-171083 | H102: =IFERROR(VLOOKUP(G102,'CLZ WI'!$A$1:$K$100000,6,FALSE),"") -> Package Large | I102: =IFERROR(VLOOKUP(G102,'CLZ WI'!$A$1:$K$100000,7,FALSE),"") -> USA | J102: =T('CLZ TT'!I102) ->  | K102: =IF(IFERROR(VLOOKUP('CLZ TT'!A102,'CLZ WI'!$A$1:$L$100000,12,FALSE),"")=TRUE, "Billable", IF(IFERROR(VLOOKUP('CLZ TT'!A102,'CLZ WI'!$A$1:$L$100000,12,FALSE),"")=FALSE, "Non-Billable", "")) -> Billable | L102: =IF('CLZ TT'!G102="","",'CLZ TT'!G102) -> 2012-04-04 | M102: =IFERROR(VLOOKUP(G102,'CLZ Pr'!$A$1:$X$100000,12,FALSE)*C102,"") -> 145.83 | N102: =IFERROR(VLOOKUP(G102,'CLZ Pr'!$A$1:$X$100000,24,FALSE), "") -> 0 | O102: =IFERROR(VLOOKUP(G102,'CLZ Pr'!$A$1:$X$100000,21,FALSE), "") -> 5
A103: =T('CLZ TT'!A103) -> M-198016 | B103: =T('CLZ TT'!D103) -> Alex Gorman | C103: =IF(LEN(A103) > 0, 'CLZ TT'!E103, "") -> 0.5 | D103: =T('CLZ TT'!F103) -> Hours | E103: =IFERROR(VLOOKUP('CLZ TT'!A103,'CLZ WI'!$A$1:$E$100000,3,FALSE),"") -> HP Training Large | F103: =IFERROR(VLOOKUP('CLZ TT'!A103,'CLZ WI'!$A$1:$E$100000,4,FALSE),"") -> CS Quick Start | G103: =IFERROR(VLOOKUP('CLZ TT'!A103,'CLZ WI'!$A$1:$K$100000,5,FALSE),"") -> P-156733 | H103: =IFERROR(VLOOKUP(G103,'CLZ WI'!$A$1:$K$100000,6,FALSE),"") -> Package Large | I103: =IFERROR(VLOOKUP(G103,'CLZ WI'!$A$1:$K$100000,7,FALSE),"") -> USA | J103: =T('CLZ TT'!I103) ->  | K103: =IF(IFERROR(VLOOKUP('CLZ TT'!A103,'CLZ WI'!$A$1:$L$100000,12,FALSE),"")=TRUE, "Billable", IF(IFERROR(VLOOKUP('CLZ TT'!A103,'CLZ WI'!$A$1:$L$100000,12,FALSE),"")=FALSE, "Non-Billable", "")) -> Billable | L103: =IF('CLZ TT'!G103="","",'CLZ TT'!G103) -> 2012-04-04 | M103: =IFERROR(VLOOKUP(G103,'CLZ Pr'!$A$1:$X$100000,12,FALSE)*C103,"") -> 72.915 | N103: =IFERROR(VLOOKUP(G103,'CLZ Pr'!$A$1:$X$100000,24,FALSE), "") -> 0 | O103: =IFERROR(VLOOKUP(G103,'CLZ Pr'!$A$1:$X$100000,21,FALSE), "") -> 9.08
A104: =T('CLZ TT'!A104) -> M-199881 | B104: =T('CLZ TT'!D104) -> David Goulden | C104: =IF(LEN(A104) > 0, 'CLZ TT'!E104, "") -> 2 | D104: =T('CLZ TT'!F104) -> Hours | E104: =IFERROR(VLOOKUP('CLZ TT'!A104,'CLZ WI'!$A$1:$E$100000,3,FALSE),"") -> Block Solutions Tier2 | F104: =IFERROR(VLOOKUP('CLZ TT'!A104,'CLZ WI'!$A$1:$E$100000,4,FALSE),"") -> CS Quick Start | G104: =IFERROR(VLOOKUP('CLZ TT'!A104,'CLZ WI'!$A$1:$K$100000,5,FALSE),"") -> P-158383 | H104: =IFERROR(VLOOKUP(G104,'CLZ WI'!$A$1:$K$100000,6,FALSE),"") -> Package Medium | I104: =IFERROR(VLOOKUP(G104,'CLZ WI'!$A$1:$K$100000,7,FALSE),"") -> EMEA | J104: =T('CLZ TT'!I104) ->  | K104: =IF(IFERROR(VLOOKUP('CLZ TT'!A104,'CLZ WI'!$A$1:$L$100000,12,FALSE),"")=TRUE, "Billable", IF(IFERROR(VLOOKUP('CLZ TT'!A104,'CLZ WI'!$A$1:$L$100000,12,FALSE),"")=FALSE, "Non-Billable", "")) -> Billable | L104: =IF('CLZ TT'!G104="","",'CLZ TT'!G104) -> 2012-04-04 | M104: =IFERROR(VLOOKUP(G104,'CLZ Pr'!$A$1:$X$100000,12,FALSE)*C104,"") -> 300 | N104: =IFERROR(VLOOKUP(G104,'CLZ Pr'!$A$1:$X$100000,24,FALSE), "") -> N-X-45021 | O104: =IFERROR(VLOOKUP(G104,'CLZ Pr'!$A$1:$X$100000,21,FALSE), "") -> 0
A105: =T('CLZ TT'!A105) -> T-406013 | B105: =T('CLZ TT'!D105) -> Tal Noga | C105: =IF(LEN(A105) > 0, 'CLZ TT'!E105, "") -> 0.25 | D105: =T('CLZ TT'!F105) -> Hours | E105: =IFERROR(VLOOKUP('CLZ TT'!A105,'CLZ WI'!$A$1:$E$100000,3,FALSE),"") -> Net Translators Implementation Program | F105: =IFERROR(VLOOKUP('CLZ TT'!A105,'CLZ WI'!$A$1:$E$100000,4,FALSE),"") -> CS Project | G105: =IFERROR(VLOOKUP('CLZ TT'!A105,'CLZ WI'!$A$1:$K$100000,5,FALSE),"") -> P-168678 | H105: =IFERROR(VLOOKUP(G105,'CLZ WI'!$A$1:$K$100000,6,FALSE),"") -> Fixed Hours | I105: =IFERROR(VLOOKUP(G105,'CLZ WI'!$A$1:$K$100000,7,FALSE),"") -> EMEA | J105: =T('CLZ TT'!I105) ->  | K105: =IF(IFERROR(VLOOKUP('CLZ TT'!A105,'CLZ WI'!$A$1:$L$100000,12,FALSE),"")=TRUE, "Billable", IF(IFERROR(VLOOKUP('CLZ TT'!A105,'CLZ WI'!$A$1:$L$100000,12,FALSE),"")=FALSE, "Non-Billable", "")) -> Billable | L105: =IF('CLZ TT'!G105="","",'CLZ TT'!G105) -> 2012-04-05 | M105: =IFERROR(VLOOKUP(G105,'CLZ Pr'!$A$1:$X$100000,12,FALSE)*C105,"") -> 17.7075 | N105: =IFERROR(VLOOKUP(G105,'CLZ Pr'!$A$1:$X$100000,24,FALSE), "") -> 0 | O105: =IFERROR(VLOOKUP(G105,'CLZ Pr'!$A$1:$X$100000,21,FALSE), "") -> 59.58
A106: =T('CLZ TT'!A106) -> T-435762 | B106: =T('CLZ TT'!D106) -> Tal Noga | C106: =IF(LEN(A106) > 0, 'CLZ TT'!E106, "") -> 3 | D106: =T('CLZ TT'!F106) -> Hours | E106: =IFERROR(VLOOKUP('CLZ TT'!A106,'CLZ WI'!$A$1:$E$100000,3,FALSE),"") -> Sondrel/Tier2/10h | F106: =IFERROR(VLOOKUP('CLZ TT'!A106,'CLZ WI'!$A$1:$E$100000,4,FALSE),"") -> CS Quick Start | G106: =IFERROR(VLOOKUP('CLZ TT'!A106,'CLZ WI'!$A$1:$K$100000,5,FALSE),"") -> P-145889 | H106: =IFERROR(VLOOKUP(G106,'CLZ WI'!$A$1:$K$100000,6,FALSE),"") -> Package Medium | I106: =IFERROR(VLOOKUP(G106,'CLZ WI'!$A$1:$K$100000,7,FALSE),"") -> EMEA | J106: =T('CLZ TT'!I106) -> Customization | K106: =IF(IFERROR(VLOOKUP('CLZ TT'!A106,'CLZ WI'!$A$1:$L$100000,12,FALSE),"")=TRUE, "Billable", IF(IFERROR(VLOOKUP('CLZ TT'!A106,'CLZ WI'!$A$1:$L$100000,12,FALSE),"")=FALSE, "Non-Billable", "")) -> Billable | L106: =IF('CLZ TT'!G106="","",'CLZ TT'!G106) -> 2012-04-05 | M106: =IFERROR(VLOOKUP(G106,'CLZ Pr'!$A$1:$X$100000,12,FALSE)*C106,"") ->  | N106: =IFERROR(VLOOKUP(G106,'CLZ Pr'!$A$1:$X$100000,24,FALSE), "") ->  | O106: =IFERROR(VLOOKUP(G106,'CLZ Pr'!$A$1:$X$100000,21,FALSE), "") -> 
A107: =T('CLZ TT'!A107) -> T-292050 | B107: =T('CLZ TT'!D107) -> Roni Feldsher | C107: =IF(LEN(A107) > 0, 'CLZ TT'!E107, "") -> 1 | D107: =T('CLZ TT'!F107) -> Hours | E107: =IFERROR(VLOOKUP('CLZ TT'!A107,'CLZ WI'!$A$1:$E$100000,3,FALSE),"") -> ELC Online - - 58 h PS | F107: =IFERROR(VLOOKUP('CLZ TT'!A107,'CLZ WI'!$A$1:$E$100000,4,FALSE),"") -> CS Project | G107: =IFERROR(VLOOKUP('CLZ TT'!A107,'CLZ WI'!$A$1:$K$100000,5,FALSE),"") -> P-113869 | H107: =IFERROR(VLOOKUP(G107,'CLZ WI'!$A$1:$K$100000,6,FALSE),"") -> Fixed Hours | I107: =IFERROR(VLOOKUP(G107,'CLZ WI'!$A$1:$K$100000,7,FALSE),"") -> USA | J107: =T('CLZ TT'!I107) ->  | K107: =IF(IFERROR(VLOOKUP('CLZ TT'!A107,'CLZ WI'!$A$1:$L$100000,12,FALSE),"")=TRUE, "Billable", IF(IFERROR(VLOOKUP('CLZ TT'!A107,'CLZ WI'!$A$1:$L$100000,12,FALSE),"")=FALSE, "Non-Billable", "")) -> Billable | L107: =IF('CLZ TT'!G107="","",'CLZ TT'!G107) -> 2012-04-05 | M107: =IFERROR(VLOOKUP(G107,'CLZ Pr'!$A$1:$X$100000,12,FALSE)*C107,"") ->  | N107: =IFERROR(VLOOKUP(G107,'CLZ Pr'!$A$1:$X$100000,24,FALSE), "") ->  | O107: =IFERROR(VLOOKUP(G107,'CLZ Pr'!$A$1:$X$100000,21,FALSE), "") -> 
A108: =T('CLZ TT'!A108) -> M-202762 | B108: =T('CLZ TT'!D108) -> Alex Gorman | C108: =IF(LEN(A108) > 0, 'CLZ TT'!E108, "") -> 1 | D108: =T('CLZ TT'!F108) -> Hours | E108: =IFERROR(VLOOKUP('CLZ TT'!A108,'CLZ WI'!$A$1:$E$100000,3,FALSE),"") -> BPL Global Medium | F108: =IFERROR(VLOOKUP('CLZ TT'!A108,'CLZ WI'!$A$1:$E$100000,4,FALSE),"") -> CS Quick Start | G108: =IFERROR(VLOOKUP('CLZ TT'!A108,'CLZ WI'!$A$1:$K$100000,5,FALSE),"") -> P-160798 | H108: =IFERROR(VLOOKUP(G108,'CLZ WI'!$A$1:$K$100000,6,FALSE),"") -> Package Medium | I108: =IFERROR(VLOOKUP(G108,'CLZ WI'!$A$1:$K$100000,7,FALSE),"") -> USA | J108: =T('CLZ TT'!I108) ->  | K108: =IF(IFERROR(VLOOKUP('CLZ TT'!A108,'CLZ WI'!$A$1:$L$100000,12,FALSE),"")=TRUE, "Billable", IF(IFERROR(VLOOKUP('CLZ TT'!A108,'CLZ WI'!$A$1:$L$100000,12,FALSE),"")=FALSE, "Non-Billable", "")) -> Billable | L108: =IF('CLZ TT'!G108="","",'CLZ TT'!G108) -> 2012-04-05 | M108: =IFERROR(VLOOKUP(G108,'CLZ Pr'!$A$1:$X$100000,12,FALSE)*C108,"") -> 100 | N108: =IFERROR(VLOOKUP(G108,'CLZ Pr'!$A$1:$X$100000,24,FALSE), "") -> 0 | O108: =IFERROR(VLOOKUP(G108,'CLZ Pr'!$A$1:$X$100000,21,FALSE), "") -> 3
A109: =T('CLZ TT'!A109) -> M-213329 | B109: =T('CLZ TT'!D109) -> Alex Gorman | C109: =IF(LEN(A109) > 0, 'CLZ TT'!E109, "") -> 1 | D109: =T('CLZ TT'!F109) -> Hours | E109: =IFERROR(VLOOKUP('CLZ TT'!A109,'CLZ WI'!$A$1:$E$100000,3,FALSE),"") ->  | F109: =IFERROR(VLOOKUP('CLZ TT'!A109,'CLZ WI'!$A$1:$E$100000,4,FALSE),"") ->  | G109: =IFERROR(VLOOKUP('CLZ TT'!A109,'CLZ WI'!$A$1:$K$100000,5,FALSE),"") ->  | H109: =IFERROR(VLOOKUP(G109,'CLZ WI'!$A$1:$K$100000,6,FALSE),"") ->  | I109: =IFERROR(VLOOKUP(G109,'CLZ WI'!$A$1:$K$100000,7,FALSE),"") ->  | J109: =T('CLZ TT'!I109) ->  | K109: =IF(IFERROR(VLOOKUP('CLZ TT'!A109,'CLZ WI'!$A$1:$L$100000,12,FALSE),"")=TRUE, "Billable", IF(IFERROR(VLOOKUP('CLZ TT'!A109,'CLZ WI'!$A$1:$L$100000,12,FALSE),"")=FALSE, "Non-Billable", "")) ->  | L109: =IF('CLZ TT'!G109="","",'CLZ TT'!G109) -> 2012-04-05 | M109: =IFERROR(VLOOKUP(G109,'CLZ Pr'!$A$1:$X$100000,12,FALSE)*C109,"") ->  | N109: =IFERROR(VLOOKUP(G109,'CLZ Pr'!$A$1:$X$100000,24,FALSE), "") ->  | O109: =IFERROR(VLOOKUP(G109,'CLZ Pr'!$A$1:$X$100000,21,FALSE), "") -> 
A110: =T('CLZ TT'!A110) -> M-212761 | B110: =T('CLZ TT'!D110) -> Alex Gorman | C110: =IF(LEN(A110) > 0, 'CLZ TT'!E110, "") -> 1 | D110: =T('CLZ TT'!F110) -> Hours | E110: =IFERROR(VLOOKUP('CLZ TT'!A110,'CLZ WI'!$A$1:$E$100000,3,FALSE),"") -> Aetna Consulting Small | F110: =IFERROR(VLOOKUP('CLZ TT'!A110,'CLZ WI'!$A$1:$E$100000,4,FALSE),"") -> CS Quick Start | G110: =IFERROR(VLOOKUP('CLZ TT'!A110,'CLZ WI'!$A$1:$K$100000,5,FALSE),"") -> P-169298 | H110: =IFERROR(VLOOKUP(G110,'CLZ WI'!$A$1:$K$100000,6,FALSE),"") -> Package Small | I110: =IFERROR(VLOOKUP(G110,'CLZ WI'!$A$1:$K$100000,7,FALSE),"") -> USA | J110: =T('CLZ TT'!I110) ->  | K110: =IF(IFERROR(VLOOKUP('CLZ TT'!A110,'CLZ WI'!$A$1:$L$100000,12,FALSE),"")=TRUE, "Billable", IF(IFERROR(VLOOKUP('CLZ TT'!A110,'CLZ WI'!$A$1:$L$100000,12,FALSE),"")=FALSE, "Non-Billable", "")) -> Billable | L110: =IF('CLZ TT'!G110="","",'CLZ TT'!G110) -> 2012-04-05 | M110: =IFERROR(VLOOKUP(G110,'CLZ Pr'!$A$1:$X$100000,12,FALSE)*C110,"") -> 160 | N110: =IFERROR(VLOOKUP(G110,'CLZ Pr'!$A$1:$X$100000,24,FALSE), "") -> 0 | O110: =IFERROR(VLOOKUP(G110,'CLZ Pr'!$A$1:$X$100000,21,FALSE), "") -> 2
A111: =T('CLZ TT'!A111) -> M-198016 | B111: =T('CLZ TT'!D111) -> Alex Gorman | C111: =IF(LEN(A111) > 0, 'CLZ TT'!E111, "") -> 0.75 | D111: =T('CLZ TT'!F111) -> Hours | E111: =IFERROR(VLOOKUP('CLZ TT'!A111,'CLZ WI'!$A$1:$E$100000,3,FALSE),"") -> HP Training Large | F111: =IFERROR(VLOOKUP('CLZ TT'!A111,'CLZ WI'!$A$1:$E$100000,4,FALSE),"") -> CS Quick Start | G111: =IFERROR(VLOOKUP('CLZ TT'!A111,'CLZ WI'!$A$1:$K$100000,5,FALSE),"") -> P-156733 | H111: =IFERROR(VLOOKUP(G111,'CLZ WI'!$A$1:$K$100000,6,FALSE),"") -> Package Large | I111: =IFERROR(VLOOKUP(G111,'CLZ WI'!$A$1:$K$100000,7,FALSE),"") -> USA | J111: =T('CLZ TT'!I111) ->  | K111: =IF(IFERROR(VLOOKUP('CLZ TT'!A111,'CLZ WI'!$A$1:$L$100000,12,FALSE),"")=TRUE, "Billable", IF(IFERROR(VLOOKUP('CLZ TT'!A111,'CLZ WI'!$A$1:$L$100000,12,FALSE),"")=FALSE, "Non-Billable", "")) -> Billable | L111: =IF('CLZ TT'!G111="","",'CLZ TT'!G111) -> 2012-04-05 | M111: =IFERROR(VLOOKUP(G111,'CLZ Pr'!$A$1:$X$100000,12,FALSE)*C111,"") -> 109.3725 | N111: =IFERROR(VLOOKUP(G111,'CLZ Pr'!$A$1:$X$100000,24,FALSE), "") -> 0 | O111: =IFERROR(VLOOKUP(G111,'CLZ Pr'!$A$1:$X$100000,21,FALSE), "") -> 9.08
A112: =T('CLZ TT'!A112) -> T-435762 | B112: =T('CLZ TT'!D112) -> Tal Noga | C112: =IF(LEN(A112) > 0, 'CLZ TT'!E112, "") -> 1 | D112: =T('CLZ TT'!F112) -> Hours | E112: =IFERROR(VLOOKUP('CLZ TT'!A112,'CLZ WI'!$A$1:$E$100000,3,FALSE),"") -> Sondrel/Tier2/10h | F112: =IFERROR(VLOOKUP('CLZ TT'!A112,'CLZ WI'!$A$1:$E$100000,4,FALSE),"") -> CS Quick Start | G112: =IFERROR(VLOOKUP('CLZ TT'!A112,'CLZ WI'!$A$1:$K$100000,5,FALSE),"") -> P-145889 | H112: =IFERROR(VLOOKUP(G112,'CLZ WI'!$A$1:$K$100000,6,FALSE),"") -> Package Medium | I112: =IFERROR(VLOOKUP(G112,'CLZ WI'!$A$1:$K$100000,7,FALSE),"") -> EMEA | J112: =T('CLZ TT'!I112) -> Customization | K112: =IF(IFERROR(VLOOKUP('CLZ TT'!A112,'CLZ WI'!$A$1:$L$100000,12,FALSE),"")=TRUE, "Billable", IF(IFERROR(VLOOKUP('CLZ TT'!A112,'CLZ WI'!$A$1:$L$100000,12,FALSE),"")=FALSE, "Non-Billable", "")) -> Billable | L112: =IF('CLZ TT'!G112="","",'CLZ TT'!G112) -> 2012-04-06 | M112: =IFERROR(VLOOKUP(G112,'CLZ Pr'!$A$1:$X$100000,12,FALSE)*C112,"") ->  | N112: =IFERROR(VLOOKUP(G112,'CLZ Pr'!$A$1:$X$100000,24,FALSE), "") ->  | O112: =IFERROR(VLOOKUP(G112,'CLZ Pr'!$A$1:$X$100000,21,FALSE), "") -> 
A113: =T('CLZ TT'!A113) -> T-406014 | B113: =T('CLZ TT'!D113) -> Tal Noga | C113: =IF(LEN(A113) > 0, 'CLZ TT'!E113, "") -> 3 | D113: =T('CLZ TT'!F113) -> Hours | E113: =IFERROR(VLOOKUP('CLZ TT'!A113,'CLZ WI'!$A$1:$E$100000,3,FALSE),"") -> Net Translators Implementation Program | F113: =IFERROR(VLOOKUP('CLZ TT'!A113,'CLZ WI'!$A$1:$E$100000,4,FALSE),"") -> CS Project | G113: =IFERROR(VLOOKUP('CLZ TT'!A113,'CLZ WI'!$A$1:$K$100000,5,FALSE),"") -> P-168678 | H113: =IFERROR(VLOOKUP(G113,'CLZ WI'!$A$1:$K$100000,6,FALSE),"") -> Fixed Hours | I113: =IFERROR(VLOOKUP(G113,'CLZ WI'!$A$1:$K$100000,7,FALSE),"") -> EMEA | J113: =T('CLZ TT'!I113) -> Customization | K113: =IF(IFERROR(VLOOKUP('CLZ TT'!A113,'CLZ WI'!$A$1:$L$100000,12,FALSE),"")=TRUE, "Billable", IF(IFERROR(VLOOKUP('CLZ TT'!A113,'CLZ WI'!$A$1:$L$100000,12,FALSE),"")=FALSE, "Non-Billable", "")) -> Billable | L113: =IF('CLZ TT'!G113="","",'CLZ TT'!G113) -> 2012-04-10 | M113: =IFERROR(VLOOKUP(G113,'CLZ Pr'!$A$1:$X$100000,12,FALSE)*C113,"") -> 212.49 | N113: =IFERROR(VLOOKUP(G113,'CLZ Pr'!$A$1:$X$100000,24,FALSE), "") -> 0 | O113: =IFERROR(VLOOKUP(G113,'CLZ Pr'!$A$1:$X$100000,21,FALSE), "") -> 59.58
A114: =T('CLZ TT'!A114) -> M-228971 | B114: =T('CLZ TT'!D114) -> Tal Noga | C114: =IF(LEN(A114) > 0, 'CLZ TT'!E114, "") -> 1 | D114: =T('CLZ TT'!F114) -> Hours | E114: =IFERROR(VLOOKUP('CLZ TT'!A114,'CLZ WI'!$A$1:$E$100000,3,FALSE),"") -> Strauss Water | F114: =IFERROR(VLOOKUP('CLZ TT'!A114,'CLZ WI'!$A$1:$E$100000,4,FALSE),"") -> CS Project | G114: =IFERROR(VLOOKUP('CLZ TT'!A114,'CLZ WI'!$A$1:$K$100000,5,FALSE),"") -> P-39369 | H114: =IFERROR(VLOOKUP(G114,'CLZ WI'!$A$1:$K$100000,6,FALSE),"") -> Fixed Hours | I114: =IFERROR(VLOOKUP(G114,'CLZ WI'!$A$1:$K$100000,7,FALSE),"") -> EMEA | J114: =T('CLZ TT'!I114) -> Customization | K114: =IF(IFERROR(VLOOKUP('CLZ TT'!A114,'CLZ WI'!$A$1:$L$100000,12,FALSE),"")=TRUE, "Billable", IF(IFERROR(VLOOKUP('CLZ TT'!A114,'CLZ WI'!$A$1:$L$100000,12,FALSE),"")=FALSE, "Non-Billable", "")) -> Non-Billable | L114: =IF('CLZ TT'!G114="","",'CLZ TT'!G114) -> 2012-04-10 | M114: =IFERROR(VLOOKUP(G114,'CLZ Pr'!$A$1:$X$100000,12,FALSE)*C114,"") ->  | N114: =IFERROR(VLOOKUP(G114,'CLZ Pr'!$A$1:$X$100000,24,FALSE), "") ->  | O114: =IFERROR(VLOOKUP(G114,'CLZ Pr'!$A$1:$X$100000,21,FALSE), "") -> 
A115: =T('CLZ TT'!A115) -> T-399409 | B115: =T('CLZ TT'!D115) -> G.I.Teh | C115: =IF(LEN(A115) > 0, 'CLZ TT'!E115, "") -> 0 | D115: =T('CLZ TT'!F115) -> Hours | E115: =IFERROR(VLOOKUP('CLZ TT'!A115,'CLZ WI'!$A$1:$E$100000,3,FALSE),"") ->  | F115: =IFERROR(VLOOKUP('CLZ TT'!A115,'CLZ WI'!$A$1:$E$100000,4,FALSE),"") ->  | G115: =IFERROR(VLOOKUP('CLZ TT'!A115,'CLZ WI'!$A$1:$K$100000,5,FALSE),"") ->  | H115: =IFERROR(VLOOKUP(G115,'CLZ WI'!$A$1:$K$100000,6,FALSE),"") ->  | I115: =IFERROR(VLOOKUP(G115,'CLZ WI'!$A$1:$K$100000,7,FALSE),"") ->  | J115: =T('CLZ TT'!I115) ->  | K115: =IF(IFERROR(VLOOKUP('CLZ TT'!A115,'CLZ WI'!$A$1:$L$100000,12,FALSE),"")=TRUE, "Billable", IF(IFERROR(VLOOKUP('CLZ TT'!A115,'CLZ WI'!$A$1:$L$100000,12,FALSE),"")=FALSE, "Non-Billable", "")) ->  | L115: =IF('CLZ TT'!G115="","",'CLZ TT'!G115) -> 2012-04-10 | M115: =IFERROR(VLOOKUP(G115,'CLZ Pr'!$A$1:$X$100000,12,FALSE)*C115,"") ->  | N115: =IFERROR(VLOOKUP(G115,'CLZ Pr'!$A$1:$X$100000,24,FALSE), "") ->  | O115: =IFERROR(VLOOKUP(G115,'CLZ Pr'!$A$1:$X$100000,21,FALSE), "") -> 
A116: =T('CLZ TT'!A116) -> T-293949 | B116: =T('CLZ TT'!D116) -> Roni Feldsher | C116: =IF(LEN(A116) > 0, 'CLZ TT'!E116, "") -> 1 | D116: =T('CLZ TT'!F116) -> Hours | E116: =IFERROR(VLOOKUP('CLZ TT'!A116,'CLZ WI'!$A$1:$E$100000,3,FALSE),"") -> Lincoln Financial Group - 18h PS | F116: =IFERROR(VLOOKUP('CLZ TT'!A116,'CLZ WI'!$A$1:$E$100000,4,FALSE),"") -> CS Project | G116: =IFERROR(VLOOKUP('CLZ TT'!A116,'CLZ WI'!$A$1:$K$100000,5,FALSE),"") -> P-114894 | H116: =IFERROR(VLOOKUP(G116,'CLZ WI'!$A$1:$K$100000,6,FALSE),"") -> Fixed Hours | I116: =IFERROR(VLOOKUP(G116,'CLZ WI'!$A$1:$K$100000,7,FALSE),"") -> USA | J116: =T('CLZ TT'!I116) ->  | K116: =IF(IFERROR(VLOOKUP('CLZ TT'!A116,'CLZ WI'!$A$1:$L$100000,12,FALSE),"")=TRUE, "Billable", IF(IFERROR(VLOOKUP('CLZ TT'!A116,'CLZ WI'!$A$1:$L$100000,12,FALSE),"")=FALSE, "Non-Billable", "")) -> Billable | L116: =IF('CLZ TT'!G116="","",'CLZ TT'!G116) -> 2012-04-10 | M116: =IFERROR(VLOOKUP(G116,'CLZ Pr'!$A$1:$X$100000,12,FALSE)*C116,"") ->  | N116: =IFERROR(VLOOKUP(G116,'CLZ Pr'!$A$1:$X$100000,24,FALSE), "") ->  | O116: =IFERROR(VLOOKUP(G116,'CLZ Pr'!$A$1:$X$100000,21,FALSE), "") -> 
A117: =T('CLZ TT'!A117) -> T-399412 | B117: =T('CLZ TT'!D117) -> G.I.Teh | C117: =IF(LEN(A117) > 0, 'CLZ TT'!E117, "") -> 1 | D117: =T('CLZ TT'!F117) -> Hours | E117: =IFERROR(VLOOKUP('CLZ TT'!A117,'CLZ WI'!$A$1:$E$100000,3,FALSE),"") -> Tessera Global Services, Inc. Tier1 | F117: =IFERROR(VLOOKUP('CLZ TT'!A117,'CLZ WI'!$A$1:$E$100000,4,FALSE),"") -> CS Quick Start | G117: =IFERROR(VLOOKUP('CLZ TT'!A117,'CLZ WI'!$A$1:$K$100000,5,FALSE),"") -> P-165488 | H117: =IFERROR(VLOOKUP(G117,'CLZ WI'!$A$1:$K$100000,6,FALSE),"") -> Package Large | I117: =IFERROR(VLOOKUP(G117,'CLZ WI'!$A$1:$K$100000,7,FALSE),"") -> USA | J117: =T('CLZ TT'!I117) ->  | K117: =IF(IFERROR(VLOOKUP('CLZ TT'!A117,'CLZ WI'!$A$1:$L$100000,12,FALSE),"")=TRUE, "Billable", IF(IFERROR(VLOOKUP('CLZ TT'!A117,'CLZ WI'!$A$1:$L$100000,12,FALSE),"")=FALSE, "Non-Billable", "")) -> Billable | L117: =IF('CLZ TT'!G117="","",'CLZ TT'!G117) -> 2012-04-10 | M117: =IFERROR(VLOOKUP(G117,'CLZ Pr'!$A$1:$X$100000,12,FALSE)*C117,"") -> 145.83 | N117: =IFERROR(VLOOKUP(G117,'CLZ Pr'!$A$1:$X$100000,24,FALSE), "") -> 0 | O117: =IFERROR(VLOOKUP(G117,'CLZ Pr'!$A$1:$X$100000,21,FALSE), "") -> 4
A118: =T('CLZ TT'!A118) -> P-158424 | B118: =T('CLZ TT'!D118) -> Josh Santos | C118: =IF(LEN(A118) > 0, 'CLZ TT'!E118, "") -> 1.5 | D118: =T('CLZ TT'!F118) -> Hours | E118: =IFERROR(VLOOKUP('CLZ TT'!A118,'CLZ WI'!$A$1:$E$100000,3,FALSE),"") -> PureDriven Tier1 | F118: =IFERROR(VLOOKUP('CLZ TT'!A118,'CLZ WI'!$A$1:$E$100000,4,FALSE),"") -> CS Quick Start | G118: =IFERROR(VLOOKUP('CLZ TT'!A118,'CLZ WI'!$A$1:$K$100000,5,FALSE),"") -> P-158424 | H118: =IFERROR(VLOOKUP(G118,'CLZ WI'!$A$1:$K$100000,6,FALSE),"") -> Package Large | I118: =IFERROR(VLOOKUP(G118,'CLZ WI'!$A$1:$K$100000,7,FALSE),"") -> USA | J118: =T('CLZ TT'!I118) ->  | K118: =IF(IFERROR(VLOOKUP('CLZ TT'!A118,'CLZ WI'!$A$1:$L$100000,12,FALSE),"")=TRUE, "Billable", IF(IFERROR(VLOOKUP('CLZ TT'!A118,'CLZ WI'!$A$1:$L$100000,12,FALSE),"")=FALSE, "Non-Billable", "")) -> Billable | L118: =IF('CLZ TT'!G118="","",'CLZ TT'!G118) -> 2012-04-10 | M118: =IFERROR(VLOOKUP(G118,'CLZ Pr'!$A$1:$X$100000,12,FALSE)*C118,"") -> 218.745 | N118: =IFERROR(VLOOKUP(G118,'CLZ Pr'!$A$1:$X$100000,24,FALSE), "") -> 0 | O118: =IFERROR(VLOOKUP(G118,'CLZ Pr'!$A$1:$X$100000,21,FALSE), "") -> 9
A119: =T('CLZ TT'!A119) -> M-215142 | B119: =T('CLZ TT'!D119) -> G.I.Teh | C119: =IF(LEN(A119) > 0, 'CLZ TT'!E119, "") -> 1 | D119: =T('CLZ TT'!F119) -> Hours | E119: =IFERROR(VLOOKUP('CLZ TT'!A119,'CLZ WI'!$A$1:$E$100000,3,FALSE),"") -> Neenah Paper QS | F119: =IFERROR(VLOOKUP('CLZ TT'!A119,'CLZ WI'!$A$1:$E$100000,4,FALSE),"") -> CS Quick Start | G119: =IFERROR(VLOOKUP('CLZ TT'!A119,'CLZ WI'!$A$1:$K$100000,5,FALSE),"") -> P-171784 | H119: =IFERROR(VLOOKUP(G119,'CLZ WI'!$A$1:$K$100000,6,FALSE),"") -> Package Small | I119: =IFERROR(VLOOKUP(G119,'CLZ WI'!$A$1:$K$100000,7,FALSE),"") -> USA | J119: =T('CLZ TT'!I119) ->  | K119: =IF(IFERROR(VLOOKUP('CLZ TT'!A119,'CLZ WI'!$A$1:$L$100000,12,FALSE),"")=TRUE, "Billable", IF(IFERROR(VLOOKUP('CLZ TT'!A119,'CLZ WI'!$A$1:$L$100000,12,FALSE),"")=FALSE, "Non-Billable", "")) -> Billable | L119: =IF('CLZ TT'!G119="","",'CLZ TT'!G119) -> 2012-04-10 | M119: =IFERROR(VLOOKUP(G119,'CLZ Pr'!$A$1:$X$100000,12,FALSE)*C119,"") -> 160 | N119: =IFERROR(VLOOKUP(G119,'CLZ Pr'!$A$1:$X$100000,24,FALSE), "") -> 0 | O119: =IFERROR(VLOOKUP(G119,'CLZ Pr'!$A$1:$X$100000,21,FALSE), "") -> 3
A120: =T('CLZ TT'!A120) -> T-292050 | B120: =T('CLZ TT'!D120) -> Roni Feldsher | C120: =IF(LEN(A120) > 0, 'CLZ TT'!E120, "") -> 1 | D120: =T('CLZ TT'!F120) -> Hours | E120: =IFERROR(VLOOKUP('CLZ TT'!A120,'CLZ WI'!$A$1:$E$100000,3,FALSE),"") -> ELC Online - - 58 h PS | F120: =IFERROR(VLOOKUP('CLZ TT'!A120,'CLZ WI'!$A$1:$E$100000,4,FALSE),"") -> CS Project | G120: =IFERROR(VLOOKUP('CLZ TT'!A120,'CLZ WI'!$A$1:$K$100000,5,FALSE),"") -> P-113869 | H120: =IFERROR(VLOOKUP(G120,'CLZ WI'!$A$1:$K$100000,6,FALSE),"") -> Fixed Hours | I120: =IFERROR(VLOOKUP(G120,'CLZ WI'!$A$1:$K$100000,7,FALSE),"") -> USA | J120: =T('CLZ TT'!I120) ->  | K120: =IF(IFERROR(VLOOKUP('CLZ TT'!A120,'CLZ WI'!$A$1:$L$100000,12,FALSE),"")=TRUE, "Billable", IF(IFERROR(VLOOKUP('CLZ TT'!A120,'CLZ WI'!$A$1:$L$100000,12,FALSE),"")=FALSE, "Non-Billable", "")) -> Billable | L120: =IF('CLZ TT'!G120="","",'CLZ TT'!G120) -> 2012-04-11 | M120: =IFERROR(VLOOKUP(G120,'CLZ Pr'!$A$1:$X$100000,12,FALSE)*C120,"") ->  | N120: =IFERROR(VLOOKUP(G120,'CLZ Pr'!$A$1:$X$100000,24,FALSE), "") ->  | O120: =IFERROR(VLOOKUP(G120,'CLZ Pr'!$A$1:$X$100000,21,FALSE), "") -> 
A121: =T('CLZ TT'!A121) -> T-412496 | B121: =T('CLZ TT'!D121) -> G.I.Teh | C121: =IF(LEN(A121) > 0, 'CLZ TT'!E121, "") -> 1 | D121: =T('CLZ TT'!F121) -> Hours | E121: =IFERROR(VLOOKUP('CLZ TT'!A121,'CLZ WI'!$A$1:$E$100000,3,FALSE),"") -> Simthetiq | F121: =IFERROR(VLOOKUP('CLZ TT'!A121,'CLZ WI'!$A$1:$E$100000,4,FALSE),"") -> CS Project | G121: =IFERROR(VLOOKUP('CLZ TT'!A121,'CLZ WI'!$A$1:$K$100000,5,FALSE),"") -> P-171785 | H121: =IFERROR(VLOOKUP(G121,'CLZ WI'!$A$1:$K$100000,6,FALSE),"") -> Fixed Hours | I121: =IFERROR(VLOOKUP(G121,'CLZ WI'!$A$1:$K$100000,7,FALSE),"") -> USA | J121: =T('CLZ TT'!I121) ->  | K121: =IF(IFERROR(VLOOKUP('CLZ TT'!A121,'CLZ WI'!$A$1:$L$100000,12,FALSE),"")=TRUE, "Billable", IF(IFERROR(VLOOKUP('CLZ TT'!A121,'CLZ WI'!$A$1:$L$100000,12,FALSE),"")=FALSE, "Non-Billable", "")) -> Billable | L121: =IF('CLZ TT'!G121="","",'CLZ TT'!G121) -> 2012-04-11 | M121: =IFERROR(VLOOKUP(G121,'CLZ Pr'!$A$1:$X$100000,12,FALSE)*C121,"") -> 0 | N121: =IFERROR(VLOOKUP(G121,'CLZ Pr'!$A$1:$X$100000,24,FALSE), "") -> 0 | O121: =IFERROR(VLOOKUP(G121,'CLZ Pr'!$A$1:$X$100000,21,FALSE), "") -> 0
A122: =T('CLZ TT'!A122) -> T-421382 | B122: =T('CLZ TT'!D122) -> Roni Feldsher | C122: =IF(LEN(A122) > 0, 'CLZ TT'!E122, "") -> 1 | D122: =T('CLZ TT'!F122) -> Hours | E122: =IFERROR(VLOOKUP('CLZ TT'!A122,'CLZ WI'!$A$1:$E$100000,3,FALSE),"") -> IO Media 10 h PS | F122: =IFERROR(VLOOKUP('CLZ TT'!A122,'CLZ WI'!$A$1:$E$100000,4,FALSE),"") -> CS Project | G122: =IFERROR(VLOOKUP('CLZ TT'!A122,'CLZ WI'!$A$1:$K$100000,5,FALSE),"") -> P-175923 | H122: =IFERROR(VLOOKUP(G122,'CLZ WI'!$A$1:$K$100000,6,FALSE),"") -> Fixed Hours | I122: =IFERROR(VLOOKUP(G122,'CLZ WI'!$A$1:$K$100000,7,FALSE),"") -> USA | J122: =T('CLZ TT'!I122) ->  | K122: =IF(IFERROR(VLOOKUP('CLZ TT'!A122,'CLZ WI'!$A$1:$L$100000,12,FALSE),"")=TRUE, "Billable", IF(IFERROR(VLOOKUP('CLZ TT'!A122,'CLZ WI'!$A$1:$L$100000,12,FALSE),"")=FALSE, "Non-Billable", "")) -> Billable | L122: =IF('CLZ TT'!G122="","",'CLZ TT'!G122) -> 2012-04-12 | M122: =IFERROR(VLOOKUP(G122,'CLZ Pr'!$A$1:$X$100000,12,FALSE)*C122,"") -> 150 | N122: =IFERROR(VLOOKUP(G122,'CLZ Pr'!$A$1:$X$100000,24,FALSE), "") -> 0 | O122: =IFERROR(VLOOKUP(G122,'CLZ Pr'!$A$1:$X$100000,21,FALSE), "") -> 0
A123: =T('CLZ TT'!A123) -> M-198014 | B123: =T('CLZ TT'!D123) -> Alex Gorman | C123: =IF(LEN(A123) > 0, 'CLZ TT'!E123, "") -> 1 | D123: =T('CLZ TT'!F123) -> Hours | E123: =IFERROR(VLOOKUP('CLZ TT'!A123,'CLZ WI'!$A$1:$E$100000,3,FALSE),"") -> HP Training Large | F123: =IFERROR(VLOOKUP('CLZ TT'!A123,'CLZ WI'!$A$1:$E$100000,4,FALSE),"") -> CS Quick Start | G123: =IFERROR(VLOOKUP('CLZ TT'!A123,'CLZ WI'!$A$1:$K$100000,5,FALSE),"") -> P-156733 | H123: =IFERROR(VLOOKUP(G123,'CLZ WI'!$A$1:$K$100000,6,FALSE),"") -> Package Large | I123: =IFERROR(VLOOKUP(G123,'CLZ WI'!$A$1:$K$100000,7,FALSE),"") -> USA | J123: =T('CLZ TT'!I123) ->  | K123: =IF(IFERROR(VLOOKUP('CLZ TT'!A123,'CLZ WI'!$A$1:$L$100000,12,FALSE),"")=TRUE, "Billable", IF(IFERROR(VLOOKUP('CLZ TT'!A123,'CLZ WI'!$A$1:$L$100000,12,FALSE),"")=FALSE, "Non-Billable", "")) -> Billable | L123: =IF('CLZ TT'!G123="","",'CLZ TT'!G123) -> 2012-04-12 | M123: =IFERROR(VLOOKUP(G123,'CLZ Pr'!$A$1:$X$100000,12,FALSE)*C123,"") -> 145.83 | N123: =IFERROR(VLOOKUP(G123,'CLZ Pr'!$A$1:$X$100000,24,FALSE), "") -> 0 | O123: =IFERROR(VLOOKUP(G123,'CLZ Pr'!$A$1:$X$100000,21,FALSE), "") -> 9.08
A124: =T('CLZ TT'!A124) -> T-421382 | B124: =T('CLZ TT'!D124) -> Roni Feldsher | C124: =IF(LEN(A124) > 0, 'CLZ TT'!E124, "") -> 1 | D124: =T('CLZ TT'!F124) -> Hours | E124: =IFERROR(VLOOKUP('CLZ TT'!A124,'CLZ WI'!$A$1:$E$100000,3,FALSE),"") -> IO Media 10 h PS | F124: =IFERROR(VLOOKUP('CLZ TT'!A124,'CLZ WI'!$A$1:$E$100000,4,FALSE),"") -> CS Project | G124: =IFERROR(VLOOKUP('CLZ TT'!A124,'CLZ WI'!$A$1:$K$100000,5,FALSE),"") -> P-175923 | H124: =IFERROR(VLOOKUP(G124,'CLZ WI'!$A$1:$K$100000,6,FALSE),"") -> Fixed Hours | I124: =IFERROR(VLOOKUP(G124,'CLZ WI'!$A$1:$K$100000,7,FALSE),"") -> USA | J124: =T('CLZ TT'!I124) ->  | K124: =IF(IFERROR(VLOOKUP('CLZ TT'!A124,'CLZ WI'!$A$1:$L$100000,12,FALSE),"")=TRUE, "Billable", IF(IFERROR(VLOOKUP('CLZ TT'!A124,'CLZ WI'!$A$1:$L$100000,12,FALSE),"")=FALSE, "Non-Billable", "")) -> Billable | L124: =IF('CLZ TT'!G124="","",'CLZ TT'!G124) -> 2012-04-12 | M124: =IFERROR(VLOOKUP(G124,'CLZ Pr'!$A$1:$X$100000,12,FALSE)*C124,"") -> 150 | N124: =IFERROR(VLOOKUP(G124,'CLZ Pr'!$A$1:$X$100000,24,FALSE), "") -> 0 | O124: =IFERROR(VLOOKUP(G124,'CLZ Pr'!$A$1:$X$100000,21,FALSE), "") -> 0
A125: =T('CLZ TT'!A125) -> M-198014 | B125: =T('CLZ TT'!D125) -> Alex Gorman | C125: =IF(LEN(A125) > 0, 'CLZ TT'!E125, "") -> 0.5 | D125: =T('CLZ TT'!F125) -> Hours | E125: =IFERROR(VLOOKUP('CLZ TT'!A125,'CLZ WI'!$A$1:$E$100000,3,FALSE),"") -> HP Training Large | F125: =IFERROR(VLOOKUP('CLZ TT'!A125,'CLZ WI'!$A$1:$E$100000,4,FALSE),"") -> CS Quick Start | G125: =IFERROR(VLOOKUP('CLZ TT'!A125,'CLZ WI'!$A$1:$K$100000,5,FALSE),"") -> P-156733 | H125: =IFERROR(VLOOKUP(G125,'CLZ WI'!$A$1:$K$100000,6,FALSE),"") -> Package Large | I125: =IFERROR(VLOOKUP(G125,'CLZ WI'!$A$1:$K$100000,7,FALSE),"") -> USA | J125: =T('CLZ TT'!I125) ->  | K125: =IF(IFERROR(VLOOKUP('CLZ TT'!A125,'CLZ WI'!$A$1:$L$100000,12,FALSE),"")=TRUE, "Billable", IF(IFERROR(VLOOKUP('CLZ TT'!A125,'CLZ WI'!$A$1:$L$100000,12,FALSE),"")=FALSE, "Non-Billable", "")) -> Billable | L125: =IF('CLZ TT'!G125="","",'CLZ TT'!G125) -> 2012-04-13 | M125: =IFERROR(VLOOKUP(G125,'CLZ Pr'!$A$1:$X$100000,12,FALSE)*C125,"") -> 72.915 | N125: =IFERROR(VLOOKUP(G125,'CLZ Pr'!$A$1:$X$100000,24,FALSE), "") -> 0 | O125: =IFERROR(VLOOKUP(G125,'CLZ Pr'!$A$1:$X$100000,21,FALSE), "") -> 9.08
A126: =T('CLZ TT'!A126) -> T-337131 | B126: =T('CLZ TT'!D126) -> Tal Noga | C126: =IF(LEN(A126) > 0, 'CLZ TT'!E126, "") -> 5 | D126: =T('CLZ TT'!F126) -> Hours | E126: =IFERROR(VLOOKUP('CLZ TT'!A126,'CLZ WI'!$A$1:$E$100000,3,FALSE),"") -> College of Management | F126: =IFERROR(VLOOKUP('CLZ TT'!A126,'CLZ WI'!$A$1:$E$100000,4,FALSE),"") -> CS Project | G126: =IFERROR(VLOOKUP('CLZ TT'!A126,'CLZ WI'!$A$1:$K$100000,5,FALSE),"") -> P-137643 | H126: =IFERROR(VLOOKUP(G126,'CLZ WI'!$A$1:$K$100000,6,FALSE),"") -> Fixed Hours | I126: =IFERROR(VLOOKUP(G126,'CLZ WI'!$A$1:$K$100000,7,FALSE),"") -> EMEA | J126: =T('CLZ TT'!I126) -> Customization | K126: =IF(IFERROR(VLOOKUP('CLZ TT'!A126,'CLZ WI'!$A$1:$L$100000,12,FALSE),"")=TRUE, "Billable", IF(IFERROR(VLOOKUP('CLZ TT'!A126,'CLZ WI'!$A$1:$L$100000,12,FALSE),"")=FALSE, "Non-Billable", "")) -> Billable | L126: =IF('CLZ TT'!G126="","",'CLZ TT'!G126) -> 2012-04-16 | M126: =IFERROR(VLOOKUP(G126,'CLZ Pr'!$A$1:$X$100000,12,FALSE)*C126,"") ->  | N126: =IFERROR(VLOOKUP(G126,'CLZ Pr'!$A$1:$X$100000,24,FALSE), "") ->  | O126: =IFERROR(VLOOKUP(G126,'CLZ Pr'!$A$1:$X$100000,21,FALSE), "") -> 
A127: =T('CLZ TT'!A127) -> P-157078 | B127: =T('CLZ TT'!D127) -> Rob Sidhu | C127: =IF(LEN(A127) > 0, 'CLZ TT'!E127, "") -> 1 | D127: =T('CLZ TT'!F127) -> Hours | E127: =IFERROR(VLOOKUP('CLZ TT'!A127,'CLZ WI'!$A$1:$E$100000,3,FALSE),"") -> _ Fixed Hours (Arbor) | F127: =IFERROR(VLOOKUP('CLZ TT'!A127,'CLZ WI'!$A$1:$E$100000,4,FALSE),"") -> CS Project | G127: =IFERROR(VLOOKUP('CLZ TT'!A127,'CLZ WI'!$A$1:$K$100000,5,FALSE),"") -> P-157078 | H127: =IFERROR(VLOOKUP(G127,'CLZ WI'!$A$1:$K$100000,6,FALSE),"") -> Fixed Hours | I127: =IFERROR(VLOOKUP(G127,'CLZ WI'!$A$1:$K$100000,7,FALSE),"") -> USA | J127: =T('CLZ TT'!I127) ->  | K127: =IF(IFERROR(VLOOKUP('CLZ TT'!A127,'CLZ WI'!$A$1:$L$100000,12,FALSE),"")=TRUE, "Billable", IF(IFERROR(VLOOKUP('CLZ TT'!A127,'CLZ WI'!$A$1:$L$100000,12,FALSE),"")=FALSE, "Non-Billable", "")) -> Billable | L127: =IF('CLZ TT'!G127="","",'CLZ TT'!G127) -> 2012-04-16 | M127: =IFERROR(VLOOKUP(G127,'CLZ Pr'!$A$1:$X$100000,12,FALSE)*C127,"") -> 167 | N127: =IFERROR(VLOOKUP(G127,'CLZ Pr'!$A$1:$X$100000,24,FALSE), "") -> 0 | O127: =IFERROR(VLOOKUP(G127,'CLZ Pr'!$A$1:$X$100000,21,FALSE), "") -> 0
A128: =T('CLZ TT'!A128) -> M-223338 | B128: =T('CLZ TT'!D128) -> Eran Fishov | C128: =IF(LEN(A128) > 0, 'CLZ TT'!E128, "") -> 1.3 | D128: =T('CLZ TT'!F128) -> Hours | E128: =IFERROR(VLOOKUP('CLZ TT'!A128,'CLZ WI'!$A$1:$E$100000,3,FALSE),"") -> movento Schweiz AG:Medium Package | F128: =IFERROR(VLOOKUP('CLZ TT'!A128,'CLZ WI'!$A$1:$E$100000,4,FALSE),"") -> CS Quick Start | G128: =IFERROR(VLOOKUP('CLZ TT'!A128,'CLZ WI'!$A$1:$K$100000,5,FALSE),"") -> P-178153 | H128: =IFERROR(VLOOKUP(G128,'CLZ WI'!$A$1:$K$100000,6,FALSE),"") -> Package Medium | I128: =IFERROR(VLOOKUP(G128,'CLZ WI'!$A$1:$K$100000,7,FALSE),"") -> EMEA | J128: =T('CLZ TT'!I128) -> Kick-off | K128: =IF(IFERROR(VLOOKUP('CLZ TT'!A128,'CLZ WI'!$A$1:$L$100000,12,FALSE),"")=TRUE, "Billable", IF(IFERROR(VLOOKUP('CLZ TT'!A128,'CLZ WI'!$A$1:$L$100000,12,FALSE),"")=FALSE, "Non-Billable", "")) -> Billable | L128: =IF('CLZ TT'!G128="","",'CLZ TT'!G128) -> 2012-04-16 | M128: =IFERROR(VLOOKUP(G128,'CLZ Pr'!$A$1:$X$100000,12,FALSE)*C128,"") -> 195 | N128: =IFERROR(VLOOKUP(G128,'CLZ Pr'!$A$1:$X$100000,24,FALSE), "") -> 0 | O128: =IFERROR(VLOOKUP(G128,'CLZ Pr'!$A$1:$X$100000,21,FALSE), "") -> 4.7
A129: =T('CLZ TT'!A129) -> P-178064 | B129: =T('CLZ TT'!D129) -> Rob Sidhu | C129: =IF(LEN(A129) > 0, 'CLZ TT'!E129, "") -> 1 | D129: =T('CLZ TT'!F129) -> Hours | E129: =IFERROR(VLOOKUP('CLZ TT'!A129,'CLZ WI'!$A$1:$E$100000,3,FALSE),"") -> Envisiontel 3 h PS | F129: =IFERROR(VLOOKUP('CLZ TT'!A129,'CLZ WI'!$A$1:$E$100000,4,FALSE),"") -> CS Project | G129: =IFERROR(VLOOKUP('CLZ TT'!A129,'CLZ WI'!$A$1:$K$100000,5,FALSE),"") -> P-178064 | H129: =IFERROR(VLOOKUP(G129,'CLZ WI'!$A$1:$K$100000,6,FALSE),"") -> Fixed Hours | I129: =IFERROR(VLOOKUP(G129,'CLZ WI'!$A$1:$K$100000,7,FALSE),"") -> USA | J129: =T('CLZ TT'!I129) ->  | K129: =IF(IFERROR(VLOOKUP('CLZ TT'!A129,'CLZ WI'!$A$1:$L$100000,12,FALSE),"")=TRUE, "Billable", IF(IFERROR(VLOOKUP('CLZ TT'!A129,'CLZ WI'!$A$1:$L$100000,12,FALSE),"")=FALSE, "Non-Billable", "")) -> Billable | L129: =IF('CLZ TT'!G129="","",'CLZ TT'!G129) -> 2012-04-17 | M129: =IFERROR(VLOOKUP(G129,'CLZ Pr'!$A$1:$X$100000,12,FALSE)*C129,"") -> 166.67 | N129: =IFERROR(VLOOKUP(G129,'CLZ Pr'!$A$1:$X$100000,24,FALSE), "") -> 0 | O129: =IFERROR(VLOOKUP(G129,'CLZ Pr'!$A$1:$X$100000,21,FALSE), "") -> 2
A130: =T('CLZ TT'!A130) -> T-427079 | B130: =T('CLZ TT'!D130) -> Rob Sidhu | C130: =IF(LEN(A130) > 0, 'CLZ TT'!E130, "") -> 0 | D130: =T('CLZ TT'!F130) -> Hours | E130: =IFERROR(VLOOKUP('CLZ TT'!A130,'CLZ WI'!$A$1:$E$100000,3,FALSE),"") ->  | F130: =IFERROR(VLOOKUP('CLZ TT'!A130,'CLZ WI'!$A$1:$E$100000,4,FALSE),"") ->  | G130: =IFERROR(VLOOKUP('CLZ TT'!A130,'CLZ WI'!$A$1:$K$100000,5,FALSE),"") ->  | H130: =IFERROR(VLOOKUP(G130,'CLZ WI'!$A$1:$K$100000,6,FALSE),"") ->  | I130: =IFERROR(VLOOKUP(G130,'CLZ WI'!$A$1:$K$100000,7,FALSE),"") ->  | J130: =T('CLZ TT'!I130) ->  | K130: =IF(IFERROR(VLOOKUP('CLZ TT'!A130,'CLZ WI'!$A$1:$L$100000,12,FALSE),"")=TRUE, "Billable", IF(IFERROR(VLOOKUP('CLZ TT'!A130,'CLZ WI'!$A$1:$L$100000,12,FALSE),"")=FALSE, "Non-Billable", "")) ->  | L130: =IF('CLZ TT'!G130="","",'CLZ TT'!G130) -> 2012-04-17 | M130: =IFERROR(VLOOKUP(G130,'CLZ Pr'!$A$1:$X$100000,12,FALSE)*C130,"") ->  | N130: =IFERROR(VLOOKUP(G130,'CLZ Pr'!$A$1:$X$100000,24,FALSE), "") ->  | O130: =IFERROR(VLOOKUP(G130,'CLZ Pr'!$A$1:$X$100000,21,FALSE), "") -> 
A131: =T('CLZ TT'!A131) -> M-228971 | B131: =T('CLZ TT'!D131) -> Tal Noga | C131: =IF(LEN(A131) > 0, 'CLZ TT'!E131, "") -> 2.5 | D131: =T('CLZ TT'!F131) -> Hours | E131: =IFERROR(VLOOKUP('CLZ TT'!A131,'CLZ WI'!$A$1:$E$100000,3,FALSE),"") -> Strauss Water | F131: =IFERROR(VLOOKUP('CLZ TT'!A131,'CLZ WI'!$A$1:$E$100000,4,FALSE),"") -> CS Project | G131: =IFERROR(VLOOKUP('CLZ TT'!A131,'CLZ WI'!$A$1:$K$100000,5,FALSE),"") -> P-39369 | H131: =IFERROR(VLOOKUP(G131,'CLZ WI'!$A$1:$K$100000,6,FALSE),"") -> Fixed Hours | I131: =IFERROR(VLOOKUP(G131,'CLZ WI'!$A$1:$K$100000,7,FALSE),"") -> EMEA | J131: =T('CLZ TT'!I131) -> Training | K131: =IF(IFERROR(VLOOKUP('CLZ TT'!A131,'CLZ WI'!$A$1:$L$100000,12,FALSE),"")=TRUE, "Billable", IF(IFERROR(VLOOKUP('CLZ TT'!A131,'CLZ WI'!$A$1:$L$100000,12,FALSE),"")=FALSE, "Non-Billable", "")) -> Non-Billable | L131: =IF('CLZ TT'!G131="","",'CLZ TT'!G131) -> 2012-04-17 | M131: =IFERROR(VLOOKUP(G131,'CLZ Pr'!$A$1:$X$100000,12,FALSE)*C131,"") ->  | N131: =IFERROR(VLOOKUP(G131,'CLZ Pr'!$A$1:$X$100000,24,FALSE), "") ->  | O131: =IFERROR(VLOOKUP(G131,'CLZ Pr'!$A$1:$X$100000,21,FALSE), "") -> 
A132: =T('CLZ TT'!A132) -> T-292050 | B132: =T('CLZ TT'!D132) -> G.I.Teh | C132: =IF(LEN(A132) > 0, 'CLZ TT'!E132, "") -> 4 | D132: =T('CLZ TT'!F132) -> Hours | E132: =IFERROR(VLOOKUP('CLZ TT'!A132,'CLZ WI'!$A$1:$E$100000,3,FALSE),"") -> ELC Online - - 58 h PS | F132: =IFERROR(VLOOKUP('CLZ TT'!A132,'CLZ WI'!$A$1:$E$100000,4,FALSE),"") -> CS Project | G132: =IFERROR(VLOOKUP('CLZ TT'!A132,'CLZ WI'!$A$1:$K$100000,5,FALSE),"") -> P-113869 | H132: =IFERROR(VLOOKUP(G132,'CLZ WI'!$A$1:$K$100000,6,FALSE),"") -> Fixed Hours | I132: =IFERROR(VLOOKUP(G132,'CLZ WI'!$A$1:$K$100000,7,FALSE),"") -> USA | J132: =T('CLZ TT'!I132) ->  | K132: =IF(IFERROR(VLOOKUP('CLZ TT'!A132,'CLZ WI'!$A$1:$L$100000,12,FALSE),"")=TRUE, "Billable", IF(IFERROR(VLOOKUP('CLZ TT'!A132,'CLZ WI'!$A$1:$L$100000,12,FALSE),"")=FALSE, "Non-Billable", "")) -> Billable | L132: =IF('CLZ TT'!G132="","",'CLZ TT'!G132) -> 2012-04-17 | M132: =IFERROR(VLOOKUP(G132,'CLZ Pr'!$A$1:$X$100000,12,FALSE)*C132,"") ->  | N132: =IFERROR(VLOOKUP(G132,'CLZ Pr'!$A$1:$X$100000,24,FALSE), "") ->  | O132: =IFERROR(VLOOKUP(G132,'CLZ Pr'!$A$1:$X$100000,21,FALSE), "") -> 
A133: =T('CLZ TT'!A133) -> M-212762 | B133: =T('CLZ TT'!D133) -> Alex Gorman | C133: =IF(LEN(A133) > 0, 'CLZ TT'!E133, "") -> 1 | D133: =T('CLZ TT'!F133) -> Hours | E133: =IFERROR(VLOOKUP('CLZ TT'!A133,'CLZ WI'!$A$1:$E$100000,3,FALSE),"") -> Aetna Consulting Small | F133: =IFERROR(VLOOKUP('CLZ TT'!A133,'CLZ WI'!$A$1:$E$100000,4,FALSE),"") -> CS Quick Start | G133: =IFERROR(VLOOKUP('CLZ TT'!A133,'CLZ WI'!$A$1:$K$100000,5,FALSE),"") -> P-169298 | H133: =IFERROR(VLOOKUP(G133,'CLZ WI'!$A$1:$K$100000,6,FALSE),"") -> Package Small | I133: =IFERROR(VLOOKUP(G133,'CLZ WI'!$A$1:$K$100000,7,FALSE),"") -> USA | J133: =T('CLZ TT'!I133) ->  | K133: =IF(IFERROR(VLOOKUP('CLZ TT'!A133,'CLZ WI'!$A$1:$L$100000,12,FALSE),"")=TRUE, "Billable", IF(IFERROR(VLOOKUP('CLZ TT'!A133,'CLZ WI'!$A$1:$L$100000,12,FALSE),"")=FALSE, "Non-Billable", "")) -> Billable | L133: =IF('CLZ TT'!G133="","",'CLZ TT'!G133) -> 2012-04-17 | M133: =IFERROR(VLOOKUP(G133,'CLZ Pr'!$A$1:$X$100000,12,FALSE)*C133,"") -> 160 | N133: =IFERROR(VLOOKUP(G133,'CLZ Pr'!$A$1:$X$100000,24,FALSE), "") -> 0 | O133: =IFERROR(VLOOKUP(G133,'CLZ Pr'!$A$1:$X$100000,21,FALSE), "") -> 2
A134: =T('CLZ TT'!A134) -> M-174398 | B134: =T('CLZ TT'!D134) -> Eran Fishov | C134: =IF(LEN(A134) > 0, 'CLZ TT'!E134, "") -> 1 | D134: =T('CLZ TT'!F134) -> Hours | E134: =IFERROR(VLOOKUP('CLZ TT'!A134,'CLZ WI'!$A$1:$E$100000,3,FALSE),"") -> Afinium Tier 2 QS | F134: =IFERROR(VLOOKUP('CLZ TT'!A134,'CLZ WI'!$A$1:$E$100000,4,FALSE),"") -> CS Quick Start | G134: =IFERROR(VLOOKUP('CLZ TT'!A134,'CLZ WI'!$A$1:$K$100000,5,FALSE),"") -> P-137424 | H134: =IFERROR(VLOOKUP(G134,'CLZ WI'!$A$1:$K$100000,6,FALSE),"") -> Package Medium | I134: =IFERROR(VLOOKUP(G134,'CLZ WI'!$A$1:$K$100000,7,FALSE),"") -> EMEA | J134: =T('CLZ TT'!I134) ->  | K134: =IF(IFERROR(VLOOKUP('CLZ TT'!A134,'CLZ WI'!$A$1:$L$100000,12,FALSE),"")=TRUE, "Billable", IF(IFERROR(VLOOKUP('CLZ TT'!A134,'CLZ WI'!$A$1:$L$100000,12,FALSE),"")=FALSE, "Non-Billable", "")) -> Billable | L134: =IF('CLZ TT'!G134="","",'CLZ TT'!G134) -> 2012-04-17 | M134: =IFERROR(VLOOKUP(G134,'CLZ Pr'!$A$1:$X$100000,12,FALSE)*C134,"") ->  | N134: =IFERROR(VLOOKUP(G134,'CLZ Pr'!$A$1:$X$100000,24,FALSE), "") ->  | O134: =IFERROR(VLOOKUP(G134,'CLZ Pr'!$A$1:$X$100000,21,FALSE), "") -> 
A135: =T('CLZ TT'!A135) -> P-184733 | B135: =T('CLZ TT'!D135) -> Patrick Smith | C135: =IF(LEN(A135) > 0, 'CLZ TT'!E135, "") -> 1 | D135: =T('CLZ TT'!F135) -> Hours | E135: =IFERROR(VLOOKUP('CLZ TT'!A135,'CLZ WI'!$A$1:$E$100000,3,FALSE),"") -> HealthTrust Purchasing Group:Large Package | F135: =IFERROR(VLOOKUP('CLZ TT'!A135,'CLZ WI'!$A$1:$E$100000,4,FALSE),"") -> CS Quick Start | G135: =IFERROR(VLOOKUP('CLZ TT'!A135,'CLZ WI'!$A$1:$K$100000,5,FALSE),"") -> P-184733 | H135: =IFERROR(VLOOKUP(G135,'CLZ WI'!$A$1:$K$100000,6,FALSE),"") -> Package Large | I135: =IFERROR(VLOOKUP(G135,'CLZ WI'!$A$1:$K$100000,7,FALSE),"") -> USA | J135: =T('CLZ TT'!I135) ->  | K135: =IF(IFERROR(VLOOKUP('CLZ TT'!A135,'CLZ WI'!$A$1:$L$100000,12,FALSE),"")=TRUE, "Billable", IF(IFERROR(VLOOKUP('CLZ TT'!A135,'CLZ WI'!$A$1:$L$100000,12,FALSE),"")=FALSE, "Non-Billable", "")) -> Billable | L135: =IF('CLZ TT'!G135="","",'CLZ TT'!G135) -> 2012-04-17 | M135: =IFERROR(VLOOKUP(G135,'CLZ Pr'!$A$1:$X$100000,12,FALSE)*C135,"") -> 125 | N135: =IFERROR(VLOOKUP(G135,'CLZ Pr'!$A$1:$X$100000,24,FALSE), "") -> 0 | O135: =IFERROR(VLOOKUP(G135,'CLZ Pr'!$A$1:$X$100000,21,FALSE), "") -> 22.17
A136: =T('CLZ TT'!A136) -> M-198014 | B136: =T('CLZ TT'!D136) -> Alex Gorman | C136: =IF(LEN(A136) > 0, 'CLZ TT'!E136, "") -> 0.33 | D136: =T('CLZ TT'!F136) -> Hours | E136: =IFERROR(VLOOKUP('CLZ TT'!A136,'CLZ WI'!$A$1:$E$100000,3,FALSE),"") -> HP Training Large | F136: =IFERROR(VLOOKUP('CLZ TT'!A136,'CLZ WI'!$A$1:$E$100000,4,FALSE),"") -> CS Quick Start | G136: =IFERROR(VLOOKUP('CLZ TT'!A136,'CLZ WI'!$A$1:$K$100000,5,FALSE),"") -> P-156733 | H136: =IFERROR(VLOOKUP(G136,'CLZ WI'!$A$1:$K$100000,6,FALSE),"") -> Package Large | I136: =IFERROR(VLOOKUP(G136,'CLZ WI'!$A$1:$K$100000,7,FALSE),"") -> USA | J136: =T('CLZ TT'!I136) ->  | K136: =IF(IFERROR(VLOOKUP('CLZ TT'!A136,'CLZ WI'!$A$1:$L$100000,12,FALSE),"")=TRUE, "Billable", IF(IFERROR(VLOOKUP('CLZ TT'!A136,'CLZ WI'!$A$1:$L$100000,12,FALSE),"")=FALSE, "Non-Billable", "")) -> Billable | L136: =IF('CLZ TT'!G136="","",'CLZ TT'!G136) -> 2012-04-17 | M136: =IFERROR(VLOOKUP(G136,'CLZ Pr'!$A$1:$X$100000,12,FALSE)*C136,"") -> 48.1239 | N136: =IFERROR(VLOOKUP(G136,'CLZ Pr'!$A$1:$X$100000,24,FALSE), "") -> 0 | O136: =IFERROR(VLOOKUP(G136,'CLZ Pr'!$A$1:$X$100000,21,FALSE), "") -> 9.08
A137: =T('CLZ TT'!A137) -> P-171083 | B137: =T('CLZ TT'!D137) -> G.I.Teh | C137: =IF(LEN(A137) > 0, 'CLZ TT'!E137, "") -> 0.5 | D137: =T('CLZ TT'!F137) -> Hours | E137: =IFERROR(VLOOKUP('CLZ TT'!A137,'CLZ WI'!$A$1:$E$100000,3,FALSE),"") -> Sony PlayStation PDIT:Large Package | F137: =IFERROR(VLOOKUP('CLZ TT'!A137,'CLZ WI'!$A$1:$E$100000,4,FALSE),"") -> CS Quick Start | G137: =IFERROR(VLOOKUP('CLZ TT'!A137,'CLZ WI'!$A$1:$K$100000,5,FALSE),"") -> P-171083 | H137: =IFERROR(VLOOKUP(G137,'CLZ WI'!$A$1:$K$100000,6,FALSE),"") -> Package Large | I137: =IFERROR(VLOOKUP(G137,'CLZ WI'!$A$1:$K$100000,7,FALSE),"") -> USA | J137: =T('CLZ TT'!I137) ->  | K137: =IF(IFERROR(VLOOKUP('CLZ TT'!A137,'CLZ WI'!$A$1:$L$100000,12,FALSE),"")=TRUE, "Billable", IF(IFERROR(VLOOKUP('CLZ TT'!A137,'CLZ WI'!$A$1:$L$100000,12,FALSE),"")=FALSE, "Non-Billable", "")) -> Billable | L137: =IF('CLZ TT'!G137="","",'CLZ TT'!G137) -> 2012-04-17 | M137: =IFERROR(VLOOKUP(G137,'CLZ Pr'!$A$1:$X$100000,12,FALSE)*C137,"") -> 72.915 | N137: =IFERROR(VLOOKUP(G137,'CLZ Pr'!$A$1:$X$100000,24,FALSE), "") -> 0 | O137: =IFERROR(VLOOKUP(G137,'CLZ Pr'!$A$1:$X$100000,21,FALSE), "") -> 5
A138: =T('CLZ TT'!A138) -> P-179364 | B138: =T('CLZ TT'!D138) -> Rob Sidhu | C138: =IF(LEN(A138) > 0, 'CLZ TT'!E138, "") -> 0.5 | D138: =T('CLZ TT'!F138) -> Hours | E138: =IFERROR(VLOOKUP('CLZ TT'!A138,'CLZ WI'!$A$1:$E$100000,3,FALSE),"") -> Capture Studio 2 h PS | F138: =IFERROR(VLOOKUP('CLZ TT'!A138,'CLZ WI'!$A$1:$E$100000,4,FALSE),"") -> CS Project | G138: =IFERROR(VLOOKUP('CLZ TT'!A138,'CLZ WI'!$A$1:$K$100000,5,FALSE),"") -> P-179364 | H138: =IFERROR(VLOOKUP(G138,'CLZ WI'!$A$1:$K$100000,6,FALSE),"") -> Fixed Hours | I138: =IFERROR(VLOOKUP(G138,'CLZ WI'!$A$1:$K$100000,7,FALSE),"") -> USA | J138: =T('CLZ TT'!I138) ->  | K138: =IF(IFERROR(VLOOKUP('CLZ TT'!A138,'CLZ WI'!$A$1:$L$100000,12,FALSE),"")=TRUE, "Billable", IF(IFERROR(VLOOKUP('CLZ TT'!A138,'CLZ WI'!$A$1:$L$100000,12,FALSE),"")=FALSE, "Non-Billable", "")) -> Billable | L138: =IF('CLZ TT'!G138="","",'CLZ TT'!G138) -> 2012-04-18 | M138: =IFERROR(VLOOKUP(G138,'CLZ Pr'!$A$1:$X$100000,12,FALSE)*C138,"") -> 83.5 | N138: =IFERROR(VLOOKUP(G138,'CLZ Pr'!$A$1:$X$100000,24,FALSE), "") -> 0 | O138: =IFERROR(VLOOKUP(G138,'CLZ Pr'!$A$1:$X$100000,21,FALSE), "") -> 0
A139: =T('CLZ TT'!A139) -> T-406014 | B139: =T('CLZ TT'!D139) -> Tal Noga | C139: =IF(LEN(A139) > 0, 'CLZ TT'!E139, "") -> 1.5 | D139: =T('CLZ TT'!F139) -> Hours | E139: =IFERROR(VLOOKUP('CLZ TT'!A139,'CLZ WI'!$A$1:$E$100000,3,FALSE),"") -> Net Translators Implementation Program | F139: =IFERROR(VLOOKUP('CLZ TT'!A139,'CLZ WI'!$A$1:$E$100000,4,FALSE),"") -> CS Project | G139: =IFERROR(VLOOKUP('CLZ TT'!A139,'CLZ WI'!$A$1:$K$100000,5,FALSE),"") -> P-168678 | H139: =IFERROR(VLOOKUP(G139,'CLZ WI'!$A$1:$K$100000,6,FALSE),"") -> Fixed Hours | I139: =IFERROR(VLOOKUP(G139,'CLZ WI'!$A$1:$K$100000,7,FALSE),"") -> EMEA | J139: =T('CLZ TT'!I139) -> Customization | K139: =IF(IFERROR(VLOOKUP('CLZ TT'!A139,'CLZ WI'!$A$1:$L$100000,12,FALSE),"")=TRUE, "Billable", IF(IFERROR(VLOOKUP('CLZ TT'!A139,'CLZ WI'!$A$1:$L$100000,12,FALSE),"")=FALSE, "Non-Billable", "")) -> Billable | L139: =IF('CLZ TT'!G139="","",'CLZ TT'!G139) -> 2012-04-18 | M139: =IFERROR(VLOOKUP(G139,'CLZ Pr'!$A$1:$X$100000,12,FALSE)*C139,"") -> 106.245 | N139: =IFERROR(VLOOKUP(G139,'CLZ Pr'!$A$1:$X$100000,24,FALSE), "") -> 0 | O139: =IFERROR(VLOOKUP(G139,'CLZ Pr'!$A$1:$X$100000,21,FALSE), "") -> 59.58
A140: =T('CLZ TT'!A140) -> T-292050 | B140: =T('CLZ TT'!D140) -> G.I.Teh | C140: =IF(LEN(A140) > 0, 'CLZ TT'!E140, "") -> 1 | D140: =T('CLZ TT'!F140) -> Hours | E140: =IFERROR(VLOOKUP('CLZ TT'!A140,'CLZ WI'!$A$1:$E$100000,3,FALSE),"") -> ELC Online - - 58 h PS | F140: =IFERROR(VLOOKUP('CLZ TT'!A140,'CLZ WI'!$A$1:$E$100000,4,FALSE),"") -> CS Project | G140: =IFERROR(VLOOKUP('CLZ TT'!A140,'CLZ WI'!$A$1:$K$100000,5,FALSE),"") -> P-113869 | H140: =IFERROR(VLOOKUP(G140,'CLZ WI'!$A$1:$K$100000,6,FALSE),"") -> Fixed Hours | I140: =IFERROR(VLOOKUP(G140,'CLZ WI'!$A$1:$K$100000,7,FALSE),"") -> USA | J140: =T('CLZ TT'!I140) ->  | K140: =IF(IFERROR(VLOOKUP('CLZ TT'!A140,'CLZ WI'!$A$1:$L$100000,12,FALSE),"")=TRUE, "Billable", IF(IFERROR(VLOOKUP('CLZ TT'!A140,'CLZ WI'!$A$1:$L$100000,12,FALSE),"")=FALSE, "Non-Billable", "")) -> Billable | L140: =IF('CLZ TT'!G140="","",'CLZ TT'!G140) -> 2012-04-18 | M140: =IFERROR(VLOOKUP(G140,'CLZ Pr'!$A$1:$X$100000,12,FALSE)*C140,"") ->  | N140: =IFERROR(VLOOKUP(G140,'CLZ Pr'!$A$1:$X$100000,24,FALSE), "") ->  | O140: =IFERROR(VLOOKUP(G140,'CLZ Pr'!$A$1:$X$100000,21,FALSE), "") -> 
A141: =T('CLZ TT'!A141) -> P-171083 | B141: =T('CLZ TT'!D141) -> G.I.Teh | C141: =IF(LEN(A141) > 0, 'CLZ TT'!E141, "") -> 0.5 | D141: =T('CLZ TT'!F141) -> Hours | E141: =IFERROR(VLOOKUP('CLZ TT'!A141,'CLZ WI'!$A$1:$E$100000,3,FALSE),"") -> Sony PlayStation PDIT:Large Package | F141: =IFERROR(VLOOKUP('CLZ TT'!A141,'CLZ WI'!$A$1:$E$100000,4,FALSE),"") -> CS Quick Start | G141: =IFERROR(VLOOKUP('CLZ TT'!A141,'CLZ WI'!$A$1:$K$100000,5,FALSE),"") -> P-171083 | H141: =IFERROR(VLOOKUP(G141,'CLZ WI'!$A$1:$K$100000,6,FALSE),"") -> Package Large | I141: =IFERROR(VLOOKUP(G141,'CLZ WI'!$A$1:$K$100000,7,FALSE),"") -> USA | J141: =T('CLZ TT'!I141) ->  | K141: =IF(IFERROR(VLOOKUP('CLZ TT'!A141,'CLZ WI'!$A$1:$L$100000,12,FALSE),"")=TRUE, "Billable", IF(IFERROR(VLOOKUP('CLZ TT'!A141,'CLZ WI'!$A$1:$L$100000,12,FALSE),"")=FALSE, "Non-Billable", "")) -> Billable | L141: =IF('CLZ TT'!G141="","",'CLZ TT'!G141) -> 2012-04-18 | M141: =IFERROR(VLOOKUP(G141,'CLZ Pr'!$A$1:$X$100000,12,FALSE)*C141,"") -> 72.915 | N141: =IFERROR(VLOOKUP(G141,'CLZ Pr'!$A$1:$X$100000,24,FALSE), "") -> 0 | O141: =IFERROR(VLOOKUP(G141,'CLZ Pr'!$A$1:$X$100000,21,FALSE), "") -> 5
A142: =T('CLZ TT'!A142) -> P-180213 | B142: =T('CLZ TT'!D142) -> Alex Gorman | C142: =IF(LEN(A142) > 0, 'CLZ TT'!E142, "") -> 1 | D142: =T('CLZ TT'!F142) -> Hours | E142: =IFERROR(VLOOKUP('CLZ TT'!A142,'CLZ WI'!$A$1:$E$100000,3,FALSE),"") -> Brainshark 1 h PS | F142: =IFERROR(VLOOKUP('CLZ TT'!A142,'CLZ WI'!$A$1:$E$100000,4,FALSE),"") -> CS Project | G142: =IFERROR(VLOOKUP('CLZ TT'!A142,'CLZ WI'!$A$1:$K$100000,5,FALSE),"") -> P-180213 | H142: =IFERROR(VLOOKUP(G142,'CLZ WI'!$A$1:$K$100000,6,FALSE),"") -> Fixed Hours | I142: =IFERROR(VLOOKUP(G142,'CLZ WI'!$A$1:$K$100000,7,FALSE),"") -> USA | J142: =T('CLZ TT'!I142) ->  | K142: =IF(IFERROR(VLOOKUP('CLZ TT'!A142,'CLZ WI'!$A$1:$L$100000,12,FALSE),"")=TRUE, "Billable", IF(IFERROR(VLOOKUP('CLZ TT'!A142,'CLZ WI'!$A$1:$L$100000,12,FALSE),"")=FALSE, "Non-Billable", "")) -> Non-Billable | L142: =IF('CLZ TT'!G142="","",'CLZ TT'!G142) -> 2012-04-18 | M142: =IFERROR(VLOOKUP(G142,'CLZ Pr'!$A$1:$X$100000,12,FALSE)*C142,"") -> 0 | N142: =IFERROR(VLOOKUP(G142,'CLZ Pr'!$A$1:$X$100000,24,FALSE), "") -> 0 | O142: =IFERROR(VLOOKUP(G142,'CLZ Pr'!$A$1:$X$100000,21,FALSE), "") -> 0
A143: =T('CLZ TT'!A143) -> T-399403 | B143: =T('CLZ TT'!D143) -> G.I.Teh | C143: =IF(LEN(A143) > 0, 'CLZ TT'!E143, "") -> 1 | D143: =T('CLZ TT'!F143) -> Hours | E143: =IFERROR(VLOOKUP('CLZ TT'!A143,'CLZ WI'!$A$1:$E$100000,3,FALSE),"") -> Tessera Global Services, Inc. Tier1 | F143: =IFERROR(VLOOKUP('CLZ TT'!A143,'CLZ WI'!$A$1:$E$100000,4,FALSE),"") -> CS Quick Start | G143: =IFERROR(VLOOKUP('CLZ TT'!A143,'CLZ WI'!$A$1:$K$100000,5,FALSE),"") -> P-165488 | H143: =IFERROR(VLOOKUP(G143,'CLZ WI'!$A$1:$K$100000,6,FALSE),"") -> Package Large | I143: =IFERROR(VLOOKUP(G143,'CLZ WI'!$A$1:$K$100000,7,FALSE),"") -> USA | J143: =T('CLZ TT'!I143) ->  | K143: =IF(IFERROR(VLOOKUP('CLZ TT'!A143,'CLZ WI'!$A$1:$L$100000,12,FALSE),"")=TRUE, "Billable", IF(IFERROR(VLOOKUP('CLZ TT'!A143,'CLZ WI'!$A$1:$L$100000,12,FALSE),"")=FALSE, "Non-Billable", "")) -> Billable | L143: =IF('CLZ TT'!G143="","",'CLZ TT'!G143) -> 2012-04-18 | M143: =IFERROR(VLOOKUP(G143,'CLZ Pr'!$A$1:$X$100000,12,FALSE)*C143,"") -> 145.83 | N143: =IFERROR(VLOOKUP(G143,'CLZ Pr'!$A$1:$X$100000,24,FALSE), "") -> 0 | O143: =IFERROR(VLOOKUP(G143,'CLZ Pr'!$A$1:$X$100000,21,FALSE), "") -> 4
A144: =T('CLZ TT'!A144) -> P-180236 | B144: =T('CLZ TT'!D144) -> Patrick Smith | C144: =IF(LEN(A144) > 0, 'CLZ TT'!E144, "") -> 1 | D144: =T('CLZ TT'!F144) -> Hours | E144: =IFERROR(VLOOKUP('CLZ TT'!A144,'CLZ WI'!$A$1:$E$100000,3,FALSE),"") -> Medium QuickStart Professional Services -- Trinet | F144: =IFERROR(VLOOKUP('CLZ TT'!A144,'CLZ WI'!$A$1:$E$100000,4,FALSE),"") -> CS Quick Start | G144: =IFERROR(VLOOKUP('CLZ TT'!A144,'CLZ WI'!$A$1:$K$100000,5,FALSE),"") -> P-180236 | H144: =IFERROR(VLOOKUP(G144,'CLZ WI'!$A$1:$K$100000,6,FALSE),"") -> Fixed Hours | I144: =IFERROR(VLOOKUP(G144,'CLZ WI'!$A$1:$K$100000,7,FALSE),"") -> USA | J144: =T('CLZ TT'!I144) ->  | K144: =IF(IFERROR(VLOOKUP('CLZ TT'!A144,'CLZ WI'!$A$1:$L$100000,12,FALSE),"")=TRUE, "Billable", IF(IFERROR(VLOOKUP('CLZ TT'!A144,'CLZ WI'!$A$1:$L$100000,12,FALSE),"")=FALSE, "Non-Billable", "")) -> Non-Billable | L144: =IF('CLZ TT'!G144="","",'CLZ TT'!G144) -> 2012-04-18 | M144: =IFERROR(VLOOKUP(G144,'CLZ Pr'!$A$1:$X$100000,12,FALSE)*C144,"") -> 0 | N144: =IFERROR(VLOOKUP(G144,'CLZ Pr'!$A$1:$X$100000,24,FALSE), "") -> 0 | O144: =IFERROR(VLOOKUP(G144,'CLZ Pr'!$A$1:$X$100000,21,FALSE), "") -> 3
A145: =T('CLZ TT'!A145) -> P-182865 | B145: =T('CLZ TT'!D145) -> Patrick Smith | C145: =IF(LEN(A145) > 0, 'CLZ TT'!E145, "") -> 1 | D145: =T('CLZ TT'!F145) -> Hours | E145: =IFERROR(VLOOKUP('CLZ TT'!A145,'CLZ WI'!$A$1:$E$100000,3,FALSE),"") -> Musician Institute 6 h PS | F145: =IFERROR(VLOOKUP('CLZ TT'!A145,'CLZ WI'!$A$1:$E$100000,4,FALSE),"") -> CS Project | G145: =IFERROR(VLOOKUP('CLZ TT'!A145,'CLZ WI'!$A$1:$K$100000,5,FALSE),"") -> P-182865 | H145: =IFERROR(VLOOKUP(G145,'CLZ WI'!$A$1:$K$100000,6,FALSE),"") -> Fixed Hours | I145: =IFERROR(VLOOKUP(G145,'CLZ WI'!$A$1:$K$100000,7,FALSE),"") -> USA | J145: =T('CLZ TT'!I145) ->  | K145: =IF(IFERROR(VLOOKUP('CLZ TT'!A145,'CLZ WI'!$A$1:$L$100000,12,FALSE),"")=TRUE, "Billable", IF(IFERROR(VLOOKUP('CLZ TT'!A145,'CLZ WI'!$A$1:$L$100000,12,FALSE),"")=FALSE, "Non-Billable", "")) -> Non-Billable | L145: =IF('CLZ TT'!G145="","",'CLZ TT'!G145) -> 2012-04-18 | M145: =IFERROR(VLOOKUP(G145,'CLZ Pr'!$A$1:$X$100000,12,FALSE)*C145,"") -> 0 | N145: =IFERROR(VLOOKUP(G145,'CLZ Pr'!$A$1:$X$100000,24,FALSE), "") -> 0 | O145: =IFERROR(VLOOKUP(G145,'CLZ Pr'!$A$1:$X$100000,21,FALSE), "") -> 3.5
A146: =T('CLZ TT'!A146) -> P-179122 | B146: =T('CLZ TT'!D146) -> Roni Feldsher | C146: =IF(LEN(A146) > 0, 'CLZ TT'!E146, "") -> 8 | D146: =T('CLZ TT'!F146) -> Hours | E146: =IFERROR(VLOOKUP('CLZ TT'!A146,'CLZ WI'!$A$1:$E$100000,3,FALSE),"") -> Lattice Engines 1 day on site workshop | F146: =IFERROR(VLOOKUP('CLZ TT'!A146,'CLZ WI'!$A$1:$E$100000,4,FALSE),"") -> CS Project | G146: =IFERROR(VLOOKUP('CLZ TT'!A146,'CLZ WI'!$A$1:$K$100000,5,FALSE),"") -> P-179122 | H146: =IFERROR(VLOOKUP(G146,'CLZ WI'!$A$1:$K$100000,6,FALSE),"") -> Fixed Hours | I146: =IFERROR(VLOOKUP(G146,'CLZ WI'!$A$1:$K$100000,7,FALSE),"") -> USA | J146: =T('CLZ TT'!I146) ->  | K146: =IF(IFERROR(VLOOKUP('CLZ TT'!A146,'CLZ WI'!$A$1:$L$100000,12,FALSE),"")=TRUE, "Billable", IF(IFERROR(VLOOKUP('CLZ TT'!A146,'CLZ WI'!$A$1:$L$100000,12,FALSE),"")=FALSE, "Non-Billable", "")) -> Billable | L146: =IF('CLZ TT'!G146="","",'CLZ TT'!G146) -> 2012-04-18 | M146: =IFERROR(VLOOKUP(G146,'CLZ Pr'!$A$1:$X$100000,12,FALSE)*C146,"") -> 1000 | N146: =IFERROR(VLOOKUP(G146,'CLZ Pr'!$A$1:$X$100000,24,FALSE), "") -> 0 | O146: =IFERROR(VLOOKUP(G146,'CLZ Pr'!$A$1:$X$100000,21,FALSE), "") -> 0
A147: =T('CLZ TT'!A147) -> T-399400 | B147: =T('CLZ TT'!D147) -> G.I.Teh | C147: =IF(LEN(A147) > 0, 'CLZ TT'!E147, "") -> 1 | D147: =T('CLZ TT'!F147) -> Hours | E147: =IFERROR(VLOOKUP('CLZ TT'!A147,'CLZ WI'!$A$1:$E$100000,3,FALSE),"") -> Tessera Global Services, Inc. Tier1 | F147: =IFERROR(VLOOKUP('CLZ TT'!A147,'CLZ WI'!$A$1:$E$100000,4,FALSE),"") -> CS Quick Start | G147: =IFERROR(VLOOKUP('CLZ TT'!A147,'CLZ WI'!$A$1:$K$100000,5,FALSE),"") -> P-165488 | H147: =IFERROR(VLOOKUP(G147,'CLZ WI'!$A$1:$K$100000,6,FALSE),"") -> Package Large | I147: =IFERROR(VLOOKUP(G147,'CLZ WI'!$A$1:$K$100000,7,FALSE),"") -> USA | J147: =T('CLZ TT'!I147) ->  | K147: =IF(IFERROR(VLOOKUP('CLZ TT'!A147,'CLZ WI'!$A$1:$L$100000,12,FALSE),"")=TRUE, "Billable", IF(IFERROR(VLOOKUP('CLZ TT'!A147,'CLZ WI'!$A$1:$L$100000,12,FALSE),"")=FALSE, "Non-Billable", "")) -> Billable | L147: =IF('CLZ TT'!G147="","",'CLZ TT'!G147) -> 2012-04-18 | M147: =IFERROR(VLOOKUP(G147,'CLZ Pr'!$A$1:$X$100000,12,FALSE)*C147,"") -> 145.83 | N147: =IFERROR(VLOOKUP(G147,'CLZ Pr'!$A$1:$X$100000,24,FALSE), "") -> 0 | O147: =IFERROR(VLOOKUP(G147,'CLZ Pr'!$A$1:$X$100000,21,FALSE), "") -> 4
A148: =T('CLZ TT'!A148) -> T-435762 | B148: =T('CLZ TT'!D148) -> Tal Noga | C148: =IF(LEN(A148) > 0, 'CLZ TT'!E148, "") -> 1.33 | D148: =T('CLZ TT'!F148) -> Hours | E148: =IFERROR(VLOOKUP('CLZ TT'!A148,'CLZ WI'!$A$1:$E$100000,3,FALSE),"") -> Sondrel/Tier2/10h | F148: =IFERROR(VLOOKUP('CLZ TT'!A148,'CLZ WI'!$A$1:$E$100000,4,FALSE),"") -> CS Quick Start | G148: =IFERROR(VLOOKUP('CLZ TT'!A148,'CLZ WI'!$A$1:$K$100000,5,FALSE),"") -> P-145889 | H148: =IFERROR(VLOOKUP(G148,'CLZ WI'!$A$1:$K$100000,6,FALSE),"") -> Package Medium | I148: =IFERROR(VLOOKUP(G148,'CLZ WI'!$A$1:$K$100000,7,FALSE),"") -> EMEA | J148: =T('CLZ TT'!I148) -> Customization | K148: =IF(IFERROR(VLOOKUP('CLZ TT'!A148,'CLZ WI'!$A$1:$L$100000,12,FALSE),"")=TRUE, "Billable", IF(IFERROR(VLOOKUP('CLZ TT'!A148,'CLZ WI'!$A$1:$L$100000,12,FALSE),"")=FALSE, "Non-Billable", "")) -> Billable | L148: =IF('CLZ TT'!G148="","",'CLZ TT'!G148) -> 2012-04-19 | M148: =IFERROR(VLOOKUP(G148,'CLZ Pr'!$A$1:$X$100000,12,FALSE)*C148,"") ->  | N148: =IFERROR(VLOOKUP(G148,'CLZ Pr'!$A$1:$X$100000,24,FALSE), "") ->  | O148: =IFERROR(VLOOKUP(G148,'CLZ Pr'!$A$1:$X$100000,21,FALSE), "") -> 
A149: =T('CLZ TT'!A149) -> T-406014 | B149: =T('CLZ TT'!D149) -> Tal Noga | C149: =IF(LEN(A149) > 0, 'CLZ TT'!E149, "") -> 1.64 | D149: =T('CLZ TT'!F149) -> Hours | E149: =IFERROR(VLOOKUP('CLZ TT'!A149,'CLZ WI'!$A$1:$E$100000,3,FALSE),"") -> Net Translators Implementation Program | F149: =IFERROR(VLOOKUP('CLZ TT'!A149,'CLZ WI'!$A$1:$E$100000,4,FALSE),"") -> CS Project | G149: =IFERROR(VLOOKUP('CLZ TT'!A149,'CLZ WI'!$A$1:$K$100000,5,FALSE),"") -> P-168678 | H149: =IFERROR(VLOOKUP(G149,'CLZ WI'!$A$1:$K$100000,6,FALSE),"") -> Fixed Hours | I149: =IFERROR(VLOOKUP(G149,'CLZ WI'!$A$1:$K$100000,7,FALSE),"") -> EMEA | J149: =T('CLZ TT'!I149) ->  | K149: =IF(IFERROR(VLOOKUP('CLZ TT'!A149,'CLZ WI'!$A$1:$L$100000,12,FALSE),"")=TRUE, "Billable", IF(IFERROR(VLOOKUP('CLZ TT'!A149,'CLZ WI'!$A$1:$L$100000,12,FALSE),"")=FALSE, "Non-Billable", "")) -> Billable | L149: =IF('CLZ TT'!G149="","",'CLZ TT'!G149) -> 2012-04-19 | M149: =IFERROR(VLOOKUP(G149,'CLZ Pr'!$A$1:$X$100000,12,FALSE)*C149,"") -> 116.1612 | N149: =IFERROR(VLOOKUP(G149,'CLZ Pr'!$A$1:$X$100000,24,FALSE), "") -> 0 | O149: =IFERROR(VLOOKUP(G149,'CLZ Pr'!$A$1:$X$100000,21,FALSE), "") -> 59.58
A150: =T('CLZ TT'!A150) -> T-294653 | B150: =T('CLZ TT'!D150) -> Tal Noga | C150: =IF(LEN(A150) > 0, 'CLZ TT'!E150, "") -> 1 | D150: =T('CLZ TT'!F150) -> Hours | E150: =IFERROR(VLOOKUP('CLZ TT'!A150,'CLZ WI'!$A$1:$E$100000,3,FALSE),"") -> Qoveo - 8h 1000$ | F150: =IFERROR(VLOOKUP('CLZ TT'!A150,'CLZ WI'!$A$1:$E$100000,4,FALSE),"") -> CS Project | G150: =IFERROR(VLOOKUP('CLZ TT'!A150,'CLZ WI'!$A$1:$K$100000,5,FALSE),"") -> P-114863 | H150: =IFERROR(VLOOKUP(G150,'CLZ WI'!$A$1:$K$100000,6,FALSE),"") -> Fixed Hours | I150: =IFERROR(VLOOKUP(G150,'CLZ WI'!$A$1:$K$100000,7,FALSE),"") -> EMEA | J150: =T('CLZ TT'!I150) -> Customization | K150: =IF(IFERROR(VLOOKUP('CLZ TT'!A150,'CLZ WI'!$A$1:$L$100000,12,FALSE),"")=TRUE, "Billable", IF(IFERROR(VLOOKUP('CLZ TT'!A150,'CLZ WI'!$A$1:$L$100000,12,FALSE),"")=FALSE, "Non-Billable", "")) -> Billable | L150: =IF('CLZ TT'!G150="","",'CLZ TT'!G150) -> 2012-04-19 | M150: =IFERROR(VLOOKUP(G150,'CLZ Pr'!$A$1:$X$100000,12,FALSE)*C150,"") ->  | N150: =IFERROR(VLOOKUP(G150,'CLZ Pr'!$A$1:$X$100000,24,FALSE), "") ->  | O150: =IFERROR(VLOOKUP(G150,'CLZ Pr'!$A$1:$X$100000,21,FALSE), "") -> 
A151: =T('CLZ TT'!A151) -> P-171083 | B151: =T('CLZ TT'!D151) -> G.I.Teh | C151: =IF(LEN(A151) > 0, 'CLZ TT'!E151, "") -> 0.5 | D151: =T('CLZ TT'!F151) -> Hours | E151: =IFERROR(VLOOKUP('CLZ TT'!A151,'CLZ WI'!$A$1:$E$100000,3,FALSE),"") -> Sony PlayStation PDIT:Large Package | F151: =IFERROR(VLOOKUP('CLZ TT'!A151,'CLZ WI'!$A$1:$E$100000,4,FALSE),"") -> CS Quick Start | G151: =IFERROR(VLOOKUP('CLZ TT'!A151,'CLZ WI'!$A$1:$K$100000,5,FALSE),"") -> P-171083 | H151: =IFERROR(VLOOKUP(G151,'CLZ WI'!$A$1:$K$100000,6,FALSE),"") -> Package Large | I151: =IFERROR(VLOOKUP(G151,'CLZ WI'!$A$1:$K$100000,7,FALSE),"") -> USA | J151: =T('CLZ TT'!I151) ->  | K151: =IF(IFERROR(VLOOKUP('CLZ TT'!A151,'CLZ WI'!$A$1:$L$100000,12,FALSE),"")=TRUE, "Billable", IF(IFERROR(VLOOKUP('CLZ TT'!A151,'CLZ WI'!$A$1:$L$100000,12,FALSE),"")=FALSE, "Non-Billable", "")) -> Billable | L151: =IF('CLZ TT'!G151="","",'CLZ TT'!G151) -> 2012-04-19 | M151: =IFERROR(VLOOKUP(G151,'CLZ Pr'!$A$1:$X$100000,12,FALSE)*C151,"") -> 72.915 | N151: =IFERROR(VLOOKUP(G151,'CLZ Pr'!$A$1:$X$100000,24,FALSE), "") -> 0 | O151: =IFERROR(VLOOKUP(G151,'CLZ Pr'!$A$1:$X$100000,21,FALSE), "") -> 5
A152: =T('CLZ TT'!A152) -> T-292050 | B152: =T('CLZ TT'!D152) -> G.I.Teh | C152: =IF(LEN(A152) > 0, 'CLZ TT'!E152, "") -> 2 | D152: =T('CLZ TT'!F152) -> Hours | E152: =IFERROR(VLOOKUP('CLZ TT'!A152,'CLZ WI'!$A$1:$E$100000,3,FALSE),"") -> ELC Online - - 58 h PS | F152: =IFERROR(VLOOKUP('CLZ TT'!A152,'CLZ WI'!$A$1:$E$100000,4,FALSE),"") -> CS Project | G152: =IFERROR(VLOOKUP('CLZ TT'!A152,'CLZ WI'!$A$1:$K$100000,5,FALSE),"") -> P-113869 | H152: =IFERROR(VLOOKUP(G152,'CLZ WI'!$A$1:$K$100000,6,FALSE),"") -> Fixed Hours | I152: =IFERROR(VLOOKUP(G152,'CLZ WI'!$A$1:$K$100000,7,FALSE),"") -> USA | J152: =T('CLZ TT'!I152) ->  | K152: =IF(IFERROR(VLOOKUP('CLZ TT'!A152,'CLZ WI'!$A$1:$L$100000,12,FALSE),"")=TRUE, "Billable", IF(IFERROR(VLOOKUP('CLZ TT'!A152,'CLZ WI'!$A$1:$L$100000,12,FALSE),"")=FALSE, "Non-Billable", "")) -> Billable | L152: =IF('CLZ TT'!G152="","",'CLZ TT'!G152) -> 2012-04-19 | M152: =IFERROR(VLOOKUP(G152,'CLZ Pr'!$A$1:$X$100000,12,FALSE)*C152,"") ->  | N152: =IFERROR(VLOOKUP(G152,'CLZ Pr'!$A$1:$X$100000,24,FALSE), "") ->  | O152: =IFERROR(VLOOKUP(G152,'CLZ Pr'!$A$1:$X$100000,21,FALSE), "") -> 
A153: =T('CLZ TT'!A153) -> M-224427 | B153: =T('CLZ TT'!D153) -> Alex Gorman | C153: =IF(LEN(A153) > 0, 'CLZ TT'!E153, "") -> 1 | D153: =T('CLZ TT'!F153) -> Hours | E153: =IFERROR(VLOOKUP('CLZ TT'!A153,'CLZ WI'!$A$1:$E$100000,3,FALSE),"") -> 511IT-Tactical:Small Package | F153: =IFERROR(VLOOKUP('CLZ TT'!A153,'CLZ WI'!$A$1:$E$100000,4,FALSE),"") -> CS Quick Start | G153: =IFERROR(VLOOKUP('CLZ TT'!A153,'CLZ WI'!$A$1:$K$100000,5,FALSE),"") -> P-179143 | H153: =IFERROR(VLOOKUP(G153,'CLZ WI'!$A$1:$K$100000,6,FALSE),"") -> Package Small | I153: =IFERROR(VLOOKUP(G153,'CLZ WI'!$A$1:$K$100000,7,FALSE),"") -> USA | J153: =T('CLZ TT'!I153) ->  | K153: =IF(IFERROR(VLOOKUP('CLZ TT'!A153,'CLZ WI'!$A$1:$L$100000,12,FALSE),"")=TRUE, "Billable", IF(IFERROR(VLOOKUP('CLZ TT'!A153,'CLZ WI'!$A$1:$L$100000,12,FALSE),"")=FALSE, "Non-Billable", "")) -> Billable | L153: =IF('CLZ TT'!G153="","",'CLZ TT'!G153) -> 2012-04-19 | M153: =IFERROR(VLOOKUP(G153,'CLZ Pr'!$A$1:$X$100000,12,FALSE)*C153,"") -> 160 | N153: =IFERROR(VLOOKUP(G153,'CLZ Pr'!$A$1:$X$100000,24,FALSE), "") -> 0 | O153: =IFERROR(VLOOKUP(G153,'CLZ Pr'!$A$1:$X$100000,21,FALSE), "") -> 1
A154: =T('CLZ TT'!A154) -> P-178685 | B154: =T('CLZ TT'!D154) -> Josh Santos | C154: =IF(LEN(A154) > 0, 'CLZ TT'!E154, "") -> 1.5 | D154: =T('CLZ TT'!F154) -> Hours | E154: =IFERROR(VLOOKUP('CLZ TT'!A154,'CLZ WI'!$A$1:$E$100000,3,FALSE),"") -> OnStar EPM 2 h PS | F154: =IFERROR(VLOOKUP('CLZ TT'!A154,'CLZ WI'!$A$1:$E$100000,4,FALSE),"") -> CS Project | G154: =IFERROR(VLOOKUP('CLZ TT'!A154,'CLZ WI'!$A$1:$K$100000,5,FALSE),"") -> P-178685 | H154: =IFERROR(VLOOKUP(G154,'CLZ WI'!$A$1:$K$100000,6,FALSE),"") -> Fixed Hours | I154: =IFERROR(VLOOKUP(G154,'CLZ WI'!$A$1:$K$100000,7,FALSE),"") -> USA | J154: =T('CLZ TT'!I154) ->  | K154: =IF(IFERROR(VLOOKUP('CLZ TT'!A154,'CLZ WI'!$A$1:$L$100000,12,FALSE),"")=TRUE, "Billable", IF(IFERROR(VLOOKUP('CLZ TT'!A154,'CLZ WI'!$A$1:$L$100000,12,FALSE),"")=FALSE, "Non-Billable", "")) -> Non-Billable | L154: =IF('CLZ TT'!G154="","",'CLZ TT'!G154) -> 2012-04-19 | M154: =IFERROR(VLOOKUP(G154,'CLZ Pr'!$A$1:$X$100000,12,FALSE)*C154,"") -> 0 | N154: =IFERROR(VLOOKUP(G154,'CLZ Pr'!$A$1:$X$100000,24,FALSE), "") -> 0 | O154: =IFERROR(VLOOKUP(G154,'CLZ Pr'!$A$1:$X$100000,21,FALSE), "") -> 0.5
A155: =T('CLZ TT'!A155) -> P-158424 | B155: =T('CLZ TT'!D155) -> Josh Santos | C155: =IF(LEN(A155) > 0, 'CLZ TT'!E155, "") -> 1 | D155: =T('CLZ TT'!F155) -> Hours | E155: =IFERROR(VLOOKUP('CLZ TT'!A155,'CLZ WI'!$A$1:$E$100000,3,FALSE),"") -> PureDriven Tier1 | F155: =IFERROR(VLOOKUP('CLZ TT'!A155,'CLZ WI'!$A$1:$E$100000,4,FALSE),"") -> CS Quick Start | G155: =IFERROR(VLOOKUP('CLZ TT'!A155,'CLZ WI'!$A$1:$K$100000,5,FALSE),"") -> P-158424 | H155: =IFERROR(VLOOKUP(G155,'CLZ WI'!$A$1:$K$100000,6,FALSE),"") -> Package Large | I155: =IFERROR(VLOOKUP(G155,'CLZ WI'!$A$1:$K$100000,7,FALSE),"") -> USA | J155: =T('CLZ TT'!I155) ->  | K155: =IF(IFERROR(VLOOKUP('CLZ TT'!A155,'CLZ WI'!$A$1:$L$100000,12,FALSE),"")=TRUE, "Billable", IF(IFERROR(VLOOKUP('CLZ TT'!A155,'CLZ WI'!$A$1:$L$100000,12,FALSE),"")=FALSE, "Non-Billable", "")) -> Billable | L155: =IF('CLZ TT'!G155="","",'CLZ TT'!G155) -> 2012-04-19 | M155: =IFERROR(VLOOKUP(G155,'CLZ Pr'!$A$1:$X$100000,12,FALSE)*C155,"") -> 145.83 | N155: =IFERROR(VLOOKUP(G155,'CLZ Pr'!$A$1:$X$100000,24,FALSE), "") -> 0 | O155: =IFERROR(VLOOKUP(G155,'CLZ Pr'!$A$1:$X$100000,21,FALSE), "") -> 9
A156: =T('CLZ TT'!A156) -> P-184073 | B156: =T('CLZ TT'!D156) -> Patrick Smith | C156: =IF(LEN(A156) > 0, 'CLZ TT'!E156, "") -> 1.5 | D156: =T('CLZ TT'!F156) -> Hours | E156: =IFERROR(VLOOKUP('CLZ TT'!A156,'CLZ WI'!$A$1:$E$100000,3,FALSE),"") -> Unleashed Online Marketing 3 h PS | F156: =IFERROR(VLOOKUP('CLZ TT'!A156,'CLZ WI'!$A$1:$E$100000,4,FALSE),"") -> CS Project | G156: =IFERROR(VLOOKUP('CLZ TT'!A156,'CLZ WI'!$A$1:$K$100000,5,FALSE),"") -> P-184073 | H156: =IFERROR(VLOOKUP(G156,'CLZ WI'!$A$1:$K$100000,6,FALSE),"") -> Fixed Hours | I156: =IFERROR(VLOOKUP(G156,'CLZ WI'!$A$1:$K$100000,7,FALSE),"") -> USA | J156: =T('CLZ TT'!I156) ->  | K156: =IF(IFERROR(VLOOKUP('CLZ TT'!A156,'CLZ WI'!$A$1:$L$100000,12,FALSE),"")=TRUE, "Billable", IF(IFERROR(VLOOKUP('CLZ TT'!A156,'CLZ WI'!$A$1:$L$100000,12,FALSE),"")=FALSE, "Non-Billable", "")) -> Billable | L156: =IF('CLZ TT'!G156="","",'CLZ TT'!G156) -> 2012-04-19 | M156: =IFERROR(VLOOKUP(G156,'CLZ Pr'!$A$1:$X$100000,12,FALSE)*C156,"") -> 250.005 | N156: =IFERROR(VLOOKUP(G156,'CLZ Pr'!$A$1:$X$100000,24,FALSE), "") -> 0 | O156: =IFERROR(VLOOKUP(G156,'CLZ Pr'!$A$1:$X$100000,21,FALSE), "") -> 0.5
A157: =T('CLZ TT'!A157) -> P-181008 | B157: =T('CLZ TT'!D157) -> Alex Gorman | C157: =IF(LEN(A157) > 0, 'CLZ TT'!E157, "") -> 1 | D157: =T('CLZ TT'!F157) -> Hours | E157: =IFERROR(VLOOKUP('CLZ TT'!A157,'CLZ WI'!$A$1:$E$100000,3,FALSE),"") -> Gems Sensors and Controls 1 h PS | F157: =IFERROR(VLOOKUP('CLZ TT'!A157,'CLZ WI'!$A$1:$E$100000,4,FALSE),"") -> CS Project | G157: =IFERROR(VLOOKUP('CLZ TT'!A157,'CLZ WI'!$A$1:$K$100000,5,FALSE),"") -> P-181008 | H157: =IFERROR(VLOOKUP(G157,'CLZ WI'!$A$1:$K$100000,6,FALSE),"") -> Fixed Hours | I157: =IFERROR(VLOOKUP(G157,'CLZ WI'!$A$1:$K$100000,7,FALSE),"") -> USA | J157: =T('CLZ TT'!I157) ->  | K157: =IF(IFERROR(VLOOKUP('CLZ TT'!A157,'CLZ WI'!$A$1:$L$100000,12,FALSE),"")=TRUE, "Billable", IF(IFERROR(VLOOKUP('CLZ TT'!A157,'CLZ WI'!$A$1:$L$100000,12,FALSE),"")=FALSE, "Non-Billable", "")) -> Non-Billable | L157: =IF('CLZ TT'!G157="","",'CLZ TT'!G157) -> 2012-04-19 | M157: =IFERROR(VLOOKUP(G157,'CLZ Pr'!$A$1:$X$100000,12,FALSE)*C157,"") -> 0 | N157: =IFERROR(VLOOKUP(G157,'CLZ Pr'!$A$1:$X$100000,24,FALSE), "") -> 0 | O157: =IFERROR(VLOOKUP(G157,'CLZ Pr'!$A$1:$X$100000,21,FALSE), "") -> 0
A158: =T('CLZ TT'!A158) -> P-181673 | B158: =T('CLZ TT'!D158) -> Alex Gorman | C158: =IF(LEN(A158) > 0, 'CLZ TT'!E158, "") -> 0.5 | D158: =T('CLZ TT'!F158) -> Hours | E158: =IFERROR(VLOOKUP('CLZ TT'!A158,'CLZ WI'!$A$1:$E$100000,3,FALSE),"") -> TOR Excel Add-in Issue-Customer-Contact Report | F158: =IFERROR(VLOOKUP('CLZ TT'!A158,'CLZ WI'!$A$1:$E$100000,4,FALSE),"") -> CS Project | G158: =IFERROR(VLOOKUP('CLZ TT'!A158,'CLZ WI'!$A$1:$K$100000,5,FALSE),"") -> P-181673 | H158: =IFERROR(VLOOKUP(G158,'CLZ WI'!$A$1:$K$100000,6,FALSE),"") -> Fixed Hours | I158: =IFERROR(VLOOKUP(G158,'CLZ WI'!$A$1:$K$100000,7,FALSE),"") -> USA | J158: =T('CLZ TT'!I158) ->  | K158: =IF(IFERROR(VLOOKUP('CLZ TT'!A158,'CLZ WI'!$A$1:$L$100000,12,FALSE),"")=TRUE, "Billable", IF(IFERROR(VLOOKUP('CLZ TT'!A158,'CLZ WI'!$A$1:$L$100000,12,FALSE),"")=FALSE, "Non-Billable", "")) -> Non-Billable | L158: =IF('CLZ TT'!G158="","",'CLZ TT'!G158) -> 2012-04-19 | M158: =IFERROR(VLOOKUP(G158,'CLZ Pr'!$A$1:$X$100000,12,FALSE)*C158,"") -> 0 | N158: =IFERROR(VLOOKUP(G158,'CLZ Pr'!$A$1:$X$100000,24,FALSE), "") -> 0 | O158: =IFERROR(VLOOKUP(G158,'CLZ Pr'!$A$1:$X$100000,21,FALSE), "") -> 0
A159: =T('CLZ TT'!A159) -> M-257737 | B159: =T('CLZ TT'!D159) -> Eran Fishov | C159: =IF(LEN(A159) > 0, 'CLZ TT'!E159, "") -> 2 | D159: =T('CLZ TT'!F159) -> Hours | E159: =IFERROR(VLOOKUP('CLZ TT'!A159,'CLZ WI'!$A$1:$E$100000,3,FALSE),"") -> Gard:Small Package | F159: =IFERROR(VLOOKUP('CLZ TT'!A159,'CLZ WI'!$A$1:$E$100000,4,FALSE),"") -> CS Quick Start | G159: =IFERROR(VLOOKUP('CLZ TT'!A159,'CLZ WI'!$A$1:$K$100000,5,FALSE),"") -> P-206853 | H159: =IFERROR(VLOOKUP(G159,'CLZ WI'!$A$1:$K$100000,6,FALSE),"") -> Package Small | I159: =IFERROR(VLOOKUP(G159,'CLZ WI'!$A$1:$K$100000,7,FALSE),"") -> EMEA | J159: =T('CLZ TT'!I159) ->  | K159: =IF(IFERROR(VLOOKUP('CLZ TT'!A159,'CLZ WI'!$A$1:$L$100000,12,FALSE),"")=TRUE, "Billable", IF(IFERROR(VLOOKUP('CLZ TT'!A159,'CLZ WI'!$A$1:$L$100000,12,FALSE),"")=FALSE, "Non-Billable", "")) -> Billable | L159: =IF('CLZ TT'!G159="","",'CLZ TT'!G159) -> 2012-04-19 | M159: =IFERROR(VLOOKUP(G159,'CLZ Pr'!$A$1:$X$100000,12,FALSE)*C159,"") -> 400 | N159: =IFERROR(VLOOKUP(G159,'CLZ Pr'!$A$1:$X$100000,24,FALSE), "") -> 0 | O159: =IFERROR(VLOOKUP(G159,'CLZ Pr'!$A$1:$X$100000,21,FALSE), "") -> 0
A160: =T('CLZ TT'!A160) -> T-406014 | B160: =T('CLZ TT'!D160) -> Tal Noga | C160: =IF(LEN(A160) > 0, 'CLZ TT'!E160, "") -> 1.5 | D160: =T('CLZ TT'!F160) -> Hours | E160: =IFERROR(VLOOKUP('CLZ TT'!A160,'CLZ WI'!$A$1:$E$100000,3,FALSE),"") -> Net Translators Implementation Program | F160: =IFERROR(VLOOKUP('CLZ TT'!A160,'CLZ WI'!$A$1:$E$100000,4,FALSE),"") -> CS Project | G160: =IFERROR(VLOOKUP('CLZ TT'!A160,'CLZ WI'!$A$1:$K$100000,5,FALSE),"") -> P-168678 | H160: =IFERROR(VLOOKUP(G160,'CLZ WI'!$A$1:$K$100000,6,FALSE),"") -> Fixed Hours | I160: =IFERROR(VLOOKUP(G160,'CLZ WI'!$A$1:$K$100000,7,FALSE),"") -> EMEA | J160: =T('CLZ TT'!I160) -> Customization | K160: =IF(IFERROR(VLOOKUP('CLZ TT'!A160,'CLZ WI'!$A$1:$L$100000,12,FALSE),"")=TRUE, "Billable", IF(IFERROR(VLOOKUP('CLZ TT'!A160,'CLZ WI'!$A$1:$L$100000,12,FALSE),"")=FALSE, "Non-Billable", "")) -> Billable | L160: =IF('CLZ TT'!G160="","",'CLZ TT'!G160) -> 2012-04-20 | M160: =IFERROR(VLOOKUP(G160,'CLZ Pr'!$A$1:$X$100000,12,FALSE)*C160,"") -> 106.245 | N160: =IFERROR(VLOOKUP(G160,'CLZ Pr'!$A$1:$X$100000,24,FALSE), "") -> 0 | O160: =IFERROR(VLOOKUP(G160,'CLZ Pr'!$A$1:$X$100000,21,FALSE), "") -> 59.58
A161: =T('CLZ TT'!A161) -> P-181673 | B161: =T('CLZ TT'!D161) -> Alex Gorman | C161: =IF(LEN(A161) > 0, 'CLZ TT'!E161, "") -> 0.5 | D161: =T('CLZ TT'!F161) -> Hours | E161: =IFERROR(VLOOKUP('CLZ TT'!A161,'CLZ WI'!$A$1:$E$100000,3,FALSE),"") -> TOR Excel Add-in Issue-Customer-Contact Report | F161: =IFERROR(VLOOKUP('CLZ TT'!A161,'CLZ WI'!$A$1:$E$100000,4,FALSE),"") -> CS Project | G161: =IFERROR(VLOOKUP('CLZ TT'!A161,'CLZ WI'!$A$1:$K$100000,5,FALSE),"") -> P-181673 | H161: =IFERROR(VLOOKUP(G161,'CLZ WI'!$A$1:$K$100000,6,FALSE),"") -> Fixed Hours | I161: =IFERROR(VLOOKUP(G161,'CLZ WI'!$A$1:$K$100000,7,FALSE),"") -> USA | J161: =T('CLZ TT'!I161) ->  | K161: =IF(IFERROR(VLOOKUP('CLZ TT'!A161,'CLZ WI'!$A$1:$L$100000,12,FALSE),"")=TRUE, "Billable", IF(IFERROR(VLOOKUP('CLZ TT'!A161,'CLZ WI'!$A$1:$L$100000,12,FALSE),"")=FALSE, "Non-Billable", "")) -> Non-Billable | L161: =IF('CLZ TT'!G161="","",'CLZ TT'!G161) -> 2012-04-20 | M161: =IFERROR(VLOOKUP(G161,'CLZ Pr'!$A$1:$X$100000,12,FALSE)*C161,"") -> 0 | N161: =IFERROR(VLOOKUP(G161,'CLZ Pr'!$A$1:$X$100000,24,FALSE), "") -> 0 | O161: =IFERROR(VLOOKUP(G161,'CLZ Pr'!$A$1:$X$100000,21,FALSE), "") -> 0
A162: =T('CLZ TT'!A162) -> P-180236 | B162: =T('CLZ TT'!D162) -> Patrick Smith | C162: =IF(LEN(A162) > 0, 'CLZ TT'!E162, "") -> 6 | D162: =T('CLZ TT'!F162) -> Hours | E162: =IFERROR(VLOOKUP('CLZ TT'!A162,'CLZ WI'!$A$1:$E$100000,3,FALSE),"") -> Medium QuickStart Professional Services -- Trinet | F162: =IFERROR(VLOOKUP('CLZ TT'!A162,'CLZ WI'!$A$1:$E$100000,4,FALSE),"") -> CS Quick Start | G162: =IFERROR(VLOOKUP('CLZ TT'!A162,'CLZ WI'!$A$1:$K$100000,5,FALSE),"") -> P-180236 | H162: =IFERROR(VLOOKUP(G162,'CLZ WI'!$A$1:$K$100000,6,FALSE),"") -> Fixed Hours | I162: =IFERROR(VLOOKUP(G162,'CLZ WI'!$A$1:$K$100000,7,FALSE),"") -> USA | J162: =T('CLZ TT'!I162) ->  | K162: =IF(IFERROR(VLOOKUP('CLZ TT'!A162,'CLZ WI'!$A$1:$L$100000,12,FALSE),"")=TRUE, "Billable", IF(IFERROR(VLOOKUP('CLZ TT'!A162,'CLZ WI'!$A$1:$L$100000,12,FALSE),"")=FALSE, "Non-Billable", "")) -> Non-Billable | L162: =IF('CLZ TT'!G162="","",'CLZ TT'!G162) -> 2012-04-20 | M162: =IFERROR(VLOOKUP(G162,'CLZ Pr'!$A$1:$X$100000,12,FALSE)*C162,"") -> 0 | N162: =IFERROR(VLOOKUP(G162,'CLZ Pr'!$A$1:$X$100000,24,FALSE), "") -> 0 | O162: =IFERROR(VLOOKUP(G162,'CLZ Pr'!$A$1:$X$100000,21,FALSE), "") -> 3
A163: =T('CLZ TT'!A163) -> T-292050 | B163: =T('CLZ TT'!D163) -> G.I.Teh | C163: =IF(LEN(A163) > 0, 'CLZ TT'!E163, "") -> 4 | D163: =T('CLZ TT'!F163) -> Hours | E163: =IFERROR(VLOOKUP('CLZ TT'!A163,'CLZ WI'!$A$1:$E$100000,3,FALSE),"") -> ELC Online - - 58 h PS | F163: =IFERROR(VLOOKUP('CLZ TT'!A163,'CLZ WI'!$A$1:$E$100000,4,FALSE),"") -> CS Project | G163: =IFERROR(VLOOKUP('CLZ TT'!A163,'CLZ WI'!$A$1:$K$100000,5,FALSE),"") -> P-113869 | H163: =IFERROR(VLOOKUP(G163,'CLZ WI'!$A$1:$K$100000,6,FALSE),"") -> Fixed Hours | I163: =IFERROR(VLOOKUP(G163,'CLZ WI'!$A$1:$K$100000,7,FALSE),"") -> USA | J163: =T('CLZ TT'!I163) ->  | K163: =IF(IFERROR(VLOOKUP('CLZ TT'!A163,'CLZ WI'!$A$1:$L$100000,12,FALSE),"")=TRUE, "Billable", IF(IFERROR(VLOOKUP('CLZ TT'!A163,'CLZ WI'!$A$1:$L$100000,12,FALSE),"")=FALSE, "Non-Billable", "")) -> Billable | L163: =IF('CLZ TT'!G163="","",'CLZ TT'!G163) -> 2012-04-20 | M163: =IFERROR(VLOOKUP(G163,'CLZ Pr'!$A$1:$X$100000,12,FALSE)*C163,"") ->  | N163: =IFERROR(VLOOKUP(G163,'CLZ Pr'!$A$1:$X$100000,24,FALSE), "") ->  | O163: =IFERROR(VLOOKUP(G163,'CLZ Pr'!$A$1:$X$100000,21,FALSE), "") -> 
A164: =T('CLZ TT'!A164) -> T-294653 | B164: =T('CLZ TT'!D164) -> Tal Noga | C164: =IF(LEN(A164) > 0, 'CLZ TT'!E164, "") -> 1.5 | D164: =T('CLZ TT'!F164) -> Hours | E164: =IFERROR(VLOOKUP('CLZ TT'!A164,'CLZ WI'!$A$1:$E$100000,3,FALSE),"") -> Qoveo - 8h 1000$ | F164: =IFERROR(VLOOKUP('CLZ TT'!A164,'CLZ WI'!$A$1:$E$100000,4,FALSE),"") -> CS Project | G164: =IFERROR(VLOOKUP('CLZ TT'!A164,'CLZ WI'!$A$1:$K$100000,5,FALSE),"") -> P-114863 | H164: =IFERROR(VLOOKUP(G164,'CLZ WI'!$A$1:$K$100000,6,FALSE),"") -> Fixed Hours | I164: =IFERROR(VLOOKUP(G164,'CLZ WI'!$A$1:$K$100000,7,FALSE),"") -> EMEA | J164: =T('CLZ TT'!I164) -> Customization | K164: =IF(IFERROR(VLOOKUP('CLZ TT'!A164,'CLZ WI'!$A$1:$L$100000,12,FALSE),"")=TRUE, "Billable", IF(IFERROR(VLOOKUP('CLZ TT'!A164,'CLZ WI'!$A$1:$L$100000,12,FALSE),"")=FALSE, "Non-Billable", "")) -> Billable | L164: =IF('CLZ TT'!G164="","",'CLZ TT'!G164) -> 2012-04-23 | M164: =IFERROR(VLOOKUP(G164,'CLZ Pr'!$A$1:$X$100000,12,FALSE)*C164,"") ->  | N164: =IFERROR(VLOOKUP(G164,'CLZ Pr'!$A$1:$X$100000,24,FALSE), "") ->  | O164: =IFERROR(VLOOKUP(G164,'CLZ Pr'!$A$1:$X$100000,21,FALSE), "") -> 
A165: =T('CLZ TT'!A165) -> T-292050 | B165: =T('CLZ TT'!D165) -> G.I.Teh | C165: =IF(LEN(A165) > 0, 'CLZ TT'!E165, "") -> 3 | D165: =T('CLZ TT'!F165) -> Hours | E165: =IFERROR(VLOOKUP('CLZ TT'!A165,'CLZ WI'!$A$1:$E$100000,3,FALSE),"") -> ELC Online - - 58 h PS | F165: =IFERROR(VLOOKUP('CLZ TT'!A165,'CLZ WI'!$A$1:$E$100000,4,FALSE),"") -> CS Project | G165: =IFERROR(VLOOKUP('CLZ TT'!A165,'CLZ WI'!$A$1:$K$100000,5,FALSE),"") -> P-113869 | H165: =IFERROR(VLOOKUP(G165,'CLZ WI'!$A$1:$K$100000,6,FALSE),"") -> Fixed Hours | I165: =IFERROR(VLOOKUP(G165,'CLZ WI'!$A$1:$K$100000,7,FALSE),"") -> USA | J165: =T('CLZ TT'!I165) ->  | K165: =IF(IFERROR(VLOOKUP('CLZ TT'!A165,'CLZ WI'!$A$1:$L$100000,12,FALSE),"")=TRUE, "Billable", IF(IFERROR(VLOOKUP('CLZ TT'!A165,'CLZ WI'!$A$1:$L$100000,12,FALSE),"")=FALSE, "Non-Billable", "")) -> Billable | L165: =IF('CLZ TT'!G165="","",'CLZ TT'!G165) -> 2012-04-23 | M165: =IFERROR(VLOOKUP(G165,'CLZ Pr'!$A$1:$X$100000,12,FALSE)*C165,"") ->  | N165: =IFERROR(VLOOKUP(G165,'CLZ Pr'!$A$1:$X$100000,24,FALSE), "") ->  | O165: =IFERROR(VLOOKUP(G165,'CLZ Pr'!$A$1:$X$100000,21,FALSE), "") -> 
A166: =T('CLZ TT'!A166) -> T-421382 | B166: =T('CLZ TT'!D166) -> Roni Feldsher | C166: =IF(LEN(A166) > 0, 'CLZ TT'!E166, "") -> 0.75 | D166: =T('CLZ TT'!F166) -> Hours | E166: =IFERROR(VLOOKUP('CLZ TT'!A166,'CLZ WI'!$A$1:$E$100000,3,FALSE),"") -> IO Media 10 h PS | F166: =IFERROR(VLOOKUP('CLZ TT'!A166,'CLZ WI'!$A$1:$E$100000,4,FALSE),"") -> CS Project | G166: =IFERROR(VLOOKUP('CLZ TT'!A166,'CLZ WI'!$A$1:$K$100000,5,FALSE),"") -> P-175923 | H166: =IFERROR(VLOOKUP(G166,'CLZ WI'!$A$1:$K$100000,6,FALSE),"") -> Fixed Hours | I166: =IFERROR(VLOOKUP(G166,'CLZ WI'!$A$1:$K$100000,7,FALSE),"") -> USA | J166: =T('CLZ TT'!I166) ->  | K166: =IF(IFERROR(VLOOKUP('CLZ TT'!A166,'CLZ WI'!$A$1:$L$100000,12,FALSE),"")=TRUE, "Billable", IF(IFERROR(VLOOKUP('CLZ TT'!A166,'CLZ WI'!$A$1:$L$100000,12,FALSE),"")=FALSE, "Non-Billable", "")) -> Billable | L166: =IF('CLZ TT'!G166="","",'CLZ TT'!G166) -> 2012-04-23 | M166: =IFERROR(VLOOKUP(G166,'CLZ Pr'!$A$1:$X$100000,12,FALSE)*C166,"") -> 112.5 | N166: =IFERROR(VLOOKUP(G166,'CLZ Pr'!$A$1:$X$100000,24,FALSE), "") -> 0 | O166: =IFERROR(VLOOKUP(G166,'CLZ Pr'!$A$1:$X$100000,21,FALSE), "") -> 0
A167: =T('CLZ TT'!A167) -> P-182865 | B167: =T('CLZ TT'!D167) -> Patrick Smith | C167: =IF(LEN(A167) > 0, 'CLZ TT'!E167, "") -> 1.5 | D167: =T('CLZ TT'!F167) -> Hours | E167: =IFERROR(VLOOKUP('CLZ TT'!A167,'CLZ WI'!$A$1:$E$100000,3,FALSE),"") -> Musician Institute 6 h PS | F167: =IFERROR(VLOOKUP('CLZ TT'!A167,'CLZ WI'!$A$1:$E$100000,4,FALSE),"") -> CS Project | G167: =IFERROR(VLOOKUP('CLZ TT'!A167,'CLZ WI'!$A$1:$K$100000,5,FALSE),"") -> P-182865 | H167: =IFERROR(VLOOKUP(G167,'CLZ WI'!$A$1:$K$100000,6,FALSE),"") -> Fixed Hours | I167: =IFERROR(VLOOKUP(G167,'CLZ WI'!$A$1:$K$100000,7,FALSE),"") -> USA | J167: =T('CLZ TT'!I167) ->  | K167: =IF(IFERROR(VLOOKUP('CLZ TT'!A167,'CLZ WI'!$A$1:$L$100000,12,FALSE),"")=TRUE, "Billable", IF(IFERROR(VLOOKUP('CLZ TT'!A167,'CLZ WI'!$A$1:$L$100000,12,FALSE),"")=FALSE, "Non-Billable", "")) -> Non-Billable | L167: =IF('CLZ TT'!G167="","",'CLZ TT'!G167) -> 2012-04-23 | M167: =IFERROR(VLOOKUP(G167,'CLZ Pr'!$A$1:$X$100000,12,FALSE)*C167,"") -> 0 | N167: =IFERROR(VLOOKUP(G167,'CLZ Pr'!$A$1:$X$100000,24,FALSE), "") -> 0 | O167: =IFERROR(VLOOKUP(G167,'CLZ Pr'!$A$1:$X$100000,21,FALSE), "") -> 3.5
A168: =T('CLZ TT'!A168) -> P-178691 | B168: =T('CLZ TT'!D168) -> Josh Santos | C168: =IF(LEN(A168) > 0, 'CLZ TT'!E168, "") -> 1 | D168: =T('CLZ TT'!F168) -> Hours | E168: =IFERROR(VLOOKUP('CLZ TT'!A168,'CLZ WI'!$A$1:$E$100000,3,FALSE),"") -> Frito-Lay 3 h PS | F168: =IFERROR(VLOOKUP('CLZ TT'!A168,'CLZ WI'!$A$1:$E$100000,4,FALSE),"") -> CS Project | G168: =IFERROR(VLOOKUP('CLZ TT'!A168,'CLZ WI'!$A$1:$K$100000,5,FALSE),"") -> P-178691 | H168: =IFERROR(VLOOKUP(G168,'CLZ WI'!$A$1:$K$100000,6,FALSE),"") -> Fixed Hours | I168: =IFERROR(VLOOKUP(G168,'CLZ WI'!$A$1:$K$100000,7,FALSE),"") -> USA | J168: =T('CLZ TT'!I168) ->  | K168: =IF(IFERROR(VLOOKUP('CLZ TT'!A168,'CLZ WI'!$A$1:$L$100000,12,FALSE),"")=TRUE, "Billable", IF(IFERROR(VLOOKUP('CLZ TT'!A168,'CLZ WI'!$A$1:$L$100000,12,FALSE),"")=FALSE, "Non-Billable", "")) -> Billable | L168: =IF('CLZ TT'!G168="","",'CLZ TT'!G168) -> 2012-04-23 | M168: =IFERROR(VLOOKUP(G168,'CLZ Pr'!$A$1:$X$100000,12,FALSE)*C168,"") -> 166.67 | N168: =IFERROR(VLOOKUP(G168,'CLZ Pr'!$A$1:$X$100000,24,FALSE), "") -> 0 | O168: =IFERROR(VLOOKUP(G168,'CLZ Pr'!$A$1:$X$100000,21,FALSE), "") -> 2
A169: =T('CLZ TT'!A169) -> P-179348 | B169: =T('CLZ TT'!D169) -> Rob Sidhu | C169: =IF(LEN(A169) > 0, 'CLZ TT'!E169, "") -> 0.5 | D169: =T('CLZ TT'!F169) -> Hours | E169: =IFERROR(VLOOKUP('CLZ TT'!A169,'CLZ WI'!$A$1:$E$100000,3,FALSE),"") -> Joan Mitchell FoundationTP:Small Package | F169: =IFERROR(VLOOKUP('CLZ TT'!A169,'CLZ WI'!$A$1:$E$100000,4,FALSE),"") -> CS Quick Start | G169: =IFERROR(VLOOKUP('CLZ TT'!A169,'CLZ WI'!$A$1:$K$100000,5,FALSE),"") -> P-179348 | H169: =IFERROR(VLOOKUP(G169,'CLZ WI'!$A$1:$K$100000,6,FALSE),"") -> Package Small | I169: =IFERROR(VLOOKUP(G169,'CLZ WI'!$A$1:$K$100000,7,FALSE),"") -> USA | J169: =T('CLZ TT'!I169) ->  | K169: =IF(IFERROR(VLOOKUP('CLZ TT'!A169,'CLZ WI'!$A$1:$L$100000,12,FALSE),"")=TRUE, "Billable", IF(IFERROR(VLOOKUP('CLZ TT'!A169,'CLZ WI'!$A$1:$L$100000,12,FALSE),"")=FALSE, "Non-Billable", "")) -> Billable | L169: =IF('CLZ TT'!G169="","",'CLZ TT'!G169) -> 2012-04-24 | M169: =IFERROR(VLOOKUP(G169,'CLZ Pr'!$A$1:$X$100000,12,FALSE)*C169,"") -> 80 | N169: =IFERROR(VLOOKUP(G169,'CLZ Pr'!$A$1:$X$100000,24,FALSE), "") -> 0 | O169: =IFERROR(VLOOKUP(G169,'CLZ Pr'!$A$1:$X$100000,21,FALSE), "") -> 2.5
A170: =T('CLZ TT'!A170) -> T-406014 | B170: =T('CLZ TT'!D170) -> Tal Noga | C170: =IF(LEN(A170) > 0, 'CLZ TT'!E170, "") -> 1.4 | D170: =T('CLZ TT'!F170) -> Hours | E170: =IFERROR(VLOOKUP('CLZ TT'!A170,'CLZ WI'!$A$1:$E$100000,3,FALSE),"") -> Net Translators Implementation Program | F170: =IFERROR(VLOOKUP('CLZ TT'!A170,'CLZ WI'!$A$1:$E$100000,4,FALSE),"") -> CS Project | G170: =IFERROR(VLOOKUP('CLZ TT'!A170,'CLZ WI'!$A$1:$K$100000,5,FALSE),"") -> P-168678 | H170: =IFERROR(VLOOKUP(G170,'CLZ WI'!$A$1:$K$100000,6,FALSE),"") -> Fixed Hours | I170: =IFERROR(VLOOKUP(G170,'CLZ WI'!$A$1:$K$100000,7,FALSE),"") -> EMEA | J170: =T('CLZ TT'!I170) -> Offline development | K170: =IF(IFERROR(VLOOKUP('CLZ TT'!A170,'CLZ WI'!$A$1:$L$100000,12,FALSE),"")=TRUE, "Billable", IF(IFERROR(VLOOKUP('CLZ TT'!A170,'CLZ WI'!$A$1:$L$100000,12,FALSE),"")=FALSE, "Non-Billable", "")) -> Billable | L170: =IF('CLZ TT'!G170="","",'CLZ TT'!G170) -> 2012-04-24 | M170: =IFERROR(VLOOKUP(G170,'CLZ Pr'!$A$1:$X$100000,12,FALSE)*C170,"") -> 99.162 | N170: =IFERROR(VLOOKUP(G170,'CLZ Pr'!$A$1:$X$100000,24,FALSE), "") -> 0 | O170: =IFERROR(VLOOKUP(G170,'CLZ Pr'!$A$1:$X$100000,21,FALSE), "") -> 59.58
A171: =T('CLZ TT'!A171) -> P-158424 | B171: =T('CLZ TT'!D171) -> Josh Santos | C171: =IF(LEN(A171) > 0, 'CLZ TT'!E171, "") -> 1 | D171: =T('CLZ TT'!F171) -> Hours | E171: =IFERROR(VLOOKUP('CLZ TT'!A171,'CLZ WI'!$A$1:$E$100000,3,FALSE),"") -> PureDriven Tier1 | F171: =IFERROR(VLOOKUP('CLZ TT'!A171,'CLZ WI'!$A$1:$E$100000,4,FALSE),"") -> CS Quick Start | G171: =IFERROR(VLOOKUP('CLZ TT'!A171,'CLZ WI'!$A$1:$K$100000,5,FALSE),"") -> P-158424 | H171: =IFERROR(VLOOKUP(G171,'CLZ WI'!$A$1:$K$100000,6,FALSE),"") -> Package Large | I171: =IFERROR(VLOOKUP(G171,'CLZ WI'!$A$1:$K$100000,7,FALSE),"") -> USA | J171: =T('CLZ TT'!I171) ->  | K171: =IF(IFERROR(VLOOKUP('CLZ TT'!A171,'CLZ WI'!$A$1:$L$100000,12,FALSE),"")=TRUE, "Billable", IF(IFERROR(VLOOKUP('CLZ TT'!A171,'CLZ WI'!$A$1:$L$100000,12,FALSE),"")=FALSE, "Non-Billable", "")) -> Billable | L171: =IF('CLZ TT'!G171="","",'CLZ TT'!G171) -> 2012-04-24 | M171: =IFERROR(VLOOKUP(G171,'CLZ Pr'!$A$1:$X$100000,12,FALSE)*C171,"") -> 145.83 | N171: =IFERROR(VLOOKUP(G171,'CLZ Pr'!$A$1:$X$100000,24,FALSE), "") -> 0 | O171: =IFERROR(VLOOKUP(G171,'CLZ Pr'!$A$1:$X$100000,21,FALSE), "") -> 9
A172: =T('CLZ TT'!A172) -> M-224428 | B172: =T('CLZ TT'!D172) -> Alex Gorman | C172: =IF(LEN(A172) > 0, 'CLZ TT'!E172, "") -> 1 | D172: =T('CLZ TT'!F172) -> Hours | E172: =IFERROR(VLOOKUP('CLZ TT'!A172,'CLZ WI'!$A$1:$E$100000,3,FALSE),"") -> 511IT-Tactical:Small Package | F172: =IFERROR(VLOOKUP('CLZ TT'!A172,'CLZ WI'!$A$1:$E$100000,4,FALSE),"") -> CS Quick Start | G172: =IFERROR(VLOOKUP('CLZ TT'!A172,'CLZ WI'!$A$1:$K$100000,5,FALSE),"") -> P-179143 | H172: =IFERROR(VLOOKUP(G172,'CLZ WI'!$A$1:$K$100000,6,FALSE),"") -> Package Small | I172: =IFERROR(VLOOKUP(G172,'CLZ WI'!$A$1:$K$100000,7,FALSE),"") -> USA | J172: =T('CLZ TT'!I172) ->  | K172: =IF(IFERROR(VLOOKUP('CLZ TT'!A172,'CLZ WI'!$A$1:$L$100000,12,FALSE),"")=TRUE, "Billable", IF(IFERROR(VLOOKUP('CLZ TT'!A172,'CLZ WI'!$A$1:$L$100000,12,FALSE),"")=FALSE, "Non-Billable", "")) -> Billable | L172: =IF('CLZ TT'!G172="","",'CLZ TT'!G172) -> 2012-04-24 | M172: =IFERROR(VLOOKUP(G172,'CLZ Pr'!$A$1:$X$100000,12,FALSE)*C172,"") -> 160 | N172: =IFERROR(VLOOKUP(G172,'CLZ Pr'!$A$1:$X$100000,24,FALSE), "") -> 0 | O172: =IFERROR(VLOOKUP(G172,'CLZ Pr'!$A$1:$X$100000,21,FALSE), "") -> 1
A173: =T('CLZ TT'!A173) -> P-184094 | B173: =T('CLZ TT'!D173) -> Patrick Smith | C173: =IF(LEN(A173) > 0, 'CLZ TT'!E173, "") -> 1 | D173: =T('CLZ TT'!F173) -> Hours | E173: =IFERROR(VLOOKUP('CLZ TT'!A173,'CLZ WI'!$A$1:$E$100000,3,FALSE),"") -> FireRocket Concepts:Small Package | F173: =IFERROR(VLOOKUP('CLZ TT'!A173,'CLZ WI'!$A$1:$E$100000,4,FALSE),"") -> CS Quick Start | G173: =IFERROR(VLOOKUP('CLZ TT'!A173,'CLZ WI'!$A$1:$K$100000,5,FALSE),"") -> P-184094 | H173: =IFERROR(VLOOKUP(G173,'CLZ WI'!$A$1:$K$100000,6,FALSE),"") -> Package Small | I173: =IFERROR(VLOOKUP(G173,'CLZ WI'!$A$1:$K$100000,7,FALSE),"") -> USA | J173: =T('CLZ TT'!I173) ->  | K173: =IF(IFERROR(VLOOKUP('CLZ TT'!A173,'CLZ WI'!$A$1:$L$100000,12,FALSE),"")=TRUE, "Billable", IF(IFERROR(VLOOKUP('CLZ TT'!A173,'CLZ WI'!$A$1:$L$100000,12,FALSE),"")=FALSE, "Non-Billable", "")) -> Billable | L173: =IF('CLZ TT'!G173="","",'CLZ TT'!G173) -> 2012-04-24 | M173: =IFERROR(VLOOKUP(G173,'CLZ Pr'!$A$1:$X$100000,12,FALSE)*C173,"") -> 160 | N173: =IFERROR(VLOOKUP(G173,'CLZ Pr'!$A$1:$X$100000,24,FALSE), "") -> 0 | O173: =IFERROR(VLOOKUP(G173,'CLZ Pr'!$A$1:$X$100000,21,FALSE), "") -> 0
A174: =T('CLZ TT'!A174) -> P-205893 | B174: =T('CLZ TT'!D174) -> Patrick Smith | C174: =IF(LEN(A174) > 0, 'CLZ TT'!E174, "") -> 1 | D174: =T('CLZ TT'!F174) -> Hours | E174: =IFERROR(VLOOKUP('CLZ TT'!A174,'CLZ WI'!$A$1:$E$100000,3,FALSE),"") -> Certain Software, Inc. 3 h PS | F174: =IFERROR(VLOOKUP('CLZ TT'!A174,'CLZ WI'!$A$1:$E$100000,4,FALSE),"") -> CS Project | G174: =IFERROR(VLOOKUP('CLZ TT'!A174,'CLZ WI'!$A$1:$K$100000,5,FALSE),"") -> P-205893 | H174: =IFERROR(VLOOKUP(G174,'CLZ WI'!$A$1:$K$100000,6,FALSE),"") -> Fixed Hours | I174: =IFERROR(VLOOKUP(G174,'CLZ WI'!$A$1:$K$100000,7,FALSE),"") -> USA | J174: =T('CLZ TT'!I174) ->  | K174: =IF(IFERROR(VLOOKUP('CLZ TT'!A174,'CLZ WI'!$A$1:$L$100000,12,FALSE),"")=TRUE, "Billable", IF(IFERROR(VLOOKUP('CLZ TT'!A174,'CLZ WI'!$A$1:$L$100000,12,FALSE),"")=FALSE, "Non-Billable", "")) -> Billable | L174: =IF('CLZ TT'!G174="","",'CLZ TT'!G174) -> 2012-04-24 | M174: =IFERROR(VLOOKUP(G174,'CLZ Pr'!$A$1:$X$100000,12,FALSE)*C174,"") -> 166.67 | N174: =IFERROR(VLOOKUP(G174,'CLZ Pr'!$A$1:$X$100000,24,FALSE), "") -> 0 | O174: =IFERROR(VLOOKUP(G174,'CLZ Pr'!$A$1:$X$100000,21,FALSE), "") -> 1
A175: =T('CLZ TT'!A175) -> M-202762 | B175: =T('CLZ TT'!D175) -> Alex Gorman | C175: =IF(LEN(A175) > 0, 'CLZ TT'!E175, "") -> 1 | D175: =T('CLZ TT'!F175) -> Hours | E175: =IFERROR(VLOOKUP('CLZ TT'!A175,'CLZ WI'!$A$1:$E$100000,3,FALSE),"") -> BPL Global Medium | F175: =IFERROR(VLOOKUP('CLZ TT'!A175,'CLZ WI'!$A$1:$E$100000,4,FALSE),"") -> CS Quick Start | G175: =IFERROR(VLOOKUP('CLZ TT'!A175,'CLZ WI'!$A$1:$K$100000,5,FALSE),"") -> P-160798 | H175: =IFERROR(VLOOKUP(G175,'CLZ WI'!$A$1:$K$100000,6,FALSE),"") -> Package Medium | I175: =IFERROR(VLOOKUP(G175,'CLZ WI'!$A$1:$K$100000,7,FALSE),"") -> USA | J175: =T('CLZ TT'!I175) ->  | K175: =IF(IFERROR(VLOOKUP('CLZ TT'!A175,'CLZ WI'!$A$1:$L$100000,12,FALSE),"")=TRUE, "Billable", IF(IFERROR(VLOOKUP('CLZ TT'!A175,'CLZ WI'!$A$1:$L$100000,12,FALSE),"")=FALSE, "Non-Billable", "")) -> Billable | L175: =IF('CLZ TT'!G175="","",'CLZ TT'!G175) -> 2012-04-24 | M175: =IFERROR(VLOOKUP(G175,'CLZ Pr'!$A$1:$X$100000,12,FALSE)*C175,"") -> 100 | N175: =IFERROR(VLOOKUP(G175,'CLZ Pr'!$A$1:$X$100000,24,FALSE), "") -> 0 | O175: =IFERROR(VLOOKUP(G175,'CLZ Pr'!$A$1:$X$100000,21,FALSE), "") -> 3
A176: =T('CLZ TT'!A176) -> P-184073 | B176: =T('CLZ TT'!D176) -> Patrick Smith | C176: =IF(LEN(A176) > 0, 'CLZ TT'!E176, "") -> 1 | D176: =T('CLZ TT'!F176) -> Hours | E176: =IFERROR(VLOOKUP('CLZ TT'!A176,'CLZ WI'!$A$1:$E$100000,3,FALSE),"") -> Unleashed Online Marketing 3 h PS | F176: =IFERROR(VLOOKUP('CLZ TT'!A176,'CLZ WI'!$A$1:$E$100000,4,FALSE),"") -> CS Project | G176: =IFERROR(VLOOKUP('CLZ TT'!A176,'CLZ WI'!$A$1:$K$100000,5,FALSE),"") -> P-184073 | H176: =IFERROR(VLOOKUP(G176,'CLZ WI'!$A$1:$K$100000,6,FALSE),"") -> Fixed Hours | I176: =IFERROR(VLOOKUP(G176,'CLZ WI'!$A$1:$K$100000,7,FALSE),"") -> USA | J176: =T('CLZ TT'!I176) ->  | K176: =IF(IFERROR(VLOOKUP('CLZ TT'!A176,'CLZ WI'!$A$1:$L$100000,12,FALSE),"")=TRUE, "Billable", IF(IFERROR(VLOOKUP('CLZ TT'!A176,'CLZ WI'!$A$1:$L$100000,12,FALSE),"")=FALSE, "Non-Billable", "")) -> Billable | L176: =IF('CLZ TT'!G176="","",'CLZ TT'!G176) -> 2012-04-24 | M176: =IFERROR(VLOOKUP(G176,'CLZ Pr'!$A$1:$X$100000,12,FALSE)*C176,"") -> 166.67 | N176: =IFERROR(VLOOKUP(G176,'CLZ Pr'!$A$1:$X$100000,24,FALSE), "") -> 0 | O176: =IFERROR(VLOOKUP(G176,'CLZ Pr'!$A$1:$X$100000,21,FALSE), "") -> 0.5
A177: =T('CLZ TT'!A177) -> P-156868 | B177: =T('CLZ TT'!D177) -> Josh Santos | C177: =IF(LEN(A177) > 0, 'CLZ TT'!E177, "") -> 1 | D177: =T('CLZ TT'!F177) -> Hours | E177: =IFERROR(VLOOKUP('CLZ TT'!A177,'CLZ WI'!$A$1:$E$100000,3,FALSE),"") -> Marketo - Professional Services Hours | F177: =IFERROR(VLOOKUP('CLZ TT'!A177,'CLZ WI'!$A$1:$E$100000,4,FALSE),"") -> CS Project | G177: =IFERROR(VLOOKUP('CLZ TT'!A177,'CLZ WI'!$A$1:$K$100000,5,FALSE),"") -> P-156868 | H177: =IFERROR(VLOOKUP(G177,'CLZ WI'!$A$1:$K$100000,6,FALSE),"") -> Fixed Hours | I177: =IFERROR(VLOOKUP(G177,'CLZ WI'!$A$1:$K$100000,7,FALSE),"") -> USA | J177: =T('CLZ TT'!I177) ->  | K177: =IF(IFERROR(VLOOKUP('CLZ TT'!A177,'CLZ WI'!$A$1:$L$100000,12,FALSE),"")=TRUE, "Billable", IF(IFERROR(VLOOKUP('CLZ TT'!A177,'CLZ WI'!$A$1:$L$100000,12,FALSE),"")=FALSE, "Non-Billable", "")) -> Non-Billable | L177: =IF('CLZ TT'!G177="","",'CLZ TT'!G177) -> 2012-04-25 | M177: =IFERROR(VLOOKUP(G177,'CLZ Pr'!$A$1:$X$100000,12,FALSE)*C177,"") -> 0 | N177: =IFERROR(VLOOKUP(G177,'CLZ Pr'!$A$1:$X$100000,24,FALSE), "") -> 0 | O177: =IFERROR(VLOOKUP(G177,'CLZ Pr'!$A$1:$X$100000,21,FALSE), "") -> 8
A178: =T('CLZ TT'!A178) -> P-184094 | B178: =T('CLZ TT'!D178) -> Patrick Smith | C178: =IF(LEN(A178) > 0, 'CLZ TT'!E178, "") -> 1.5 | D178: =T('CLZ TT'!F178) -> Hours | E178: =IFERROR(VLOOKUP('CLZ TT'!A178,'CLZ WI'!$A$1:$E$100000,3,FALSE),"") -> FireRocket Concepts:Small Package | F178: =IFERROR(VLOOKUP('CLZ TT'!A178,'CLZ WI'!$A$1:$E$100000,4,FALSE),"") -> CS Quick Start | G178: =IFERROR(VLOOKUP('CLZ TT'!A178,'CLZ WI'!$A$1:$K$100000,5,FALSE),"") -> P-184094 | H178: =IFERROR(VLOOKUP(G178,'CLZ WI'!$A$1:$K$100000,6,FALSE),"") -> Package Small | I178: =IFERROR(VLOOKUP(G178,'CLZ WI'!$A$1:$K$100000,7,FALSE),"") -> USA | J178: =T('CLZ TT'!I178) ->  | K178: =IF(IFERROR(VLOOKUP('CLZ TT'!A178,'CLZ WI'!$A$1:$L$100000,12,FALSE),"")=TRUE, "Billable", IF(IFERROR(VLOOKUP('CLZ TT'!A178,'CLZ WI'!$A$1:$L$100000,12,FALSE),"")=FALSE, "Non-Billable", "")) -> Billable | L178: =IF('CLZ TT'!G178="","",'CLZ TT'!G178) -> 2012-04-25 | M178: =IFERROR(VLOOKUP(G178,'CLZ Pr'!$A$1:$X$100000,12,FALSE)*C178,"") -> 240 | N178: =IFERROR(VLOOKUP(G178,'CLZ Pr'!$A$1:$X$100000,24,FALSE), "") -> 0 | O178: =IFERROR(VLOOKUP(G178,'CLZ Pr'!$A$1:$X$100000,21,FALSE), "") -> 0
A179: =T('CLZ TT'!A179) -> P-184803 | B179: =T('CLZ TT'!D179) -> Rob Sidhu | C179: =IF(LEN(A179) > 0, 'CLZ TT'!E179, "") -> 1 | D179: =T('CLZ TT'!F179) -> Hours | E179: =IFERROR(VLOOKUP('CLZ TT'!A179,'CLZ WI'!$A$1:$E$100000,3,FALSE),"") -> Affero 3 h PS | F179: =IFERROR(VLOOKUP('CLZ TT'!A179,'CLZ WI'!$A$1:$E$100000,4,FALSE),"") -> CS Project | G179: =IFERROR(VLOOKUP('CLZ TT'!A179,'CLZ WI'!$A$1:$K$100000,5,FALSE),"") -> P-184803 | H179: =IFERROR(VLOOKUP(G179,'CLZ WI'!$A$1:$K$100000,6,FALSE),"") -> Fixed Hours | I179: =IFERROR(VLOOKUP(G179,'CLZ WI'!$A$1:$K$100000,7,FALSE),"") -> USA | J179: =T('CLZ TT'!I179) ->  | K179: =IF(IFERROR(VLOOKUP('CLZ TT'!A179,'CLZ WI'!$A$1:$L$100000,12,FALSE),"")=TRUE, "Billable", IF(IFERROR(VLOOKUP('CLZ TT'!A179,'CLZ WI'!$A$1:$L$100000,12,FALSE),"")=FALSE, "Non-Billable", "")) -> Billable | L179: =IF('CLZ TT'!G179="","",'CLZ TT'!G179) -> 2012-04-25 | M179: =IFERROR(VLOOKUP(G179,'CLZ Pr'!$A$1:$X$100000,12,FALSE)*C179,"") -> 166.67 | N179: =IFERROR(VLOOKUP(G179,'CLZ Pr'!$A$1:$X$100000,24,FALSE), "") -> 0 | O179: =IFERROR(VLOOKUP(G179,'CLZ Pr'!$A$1:$X$100000,21,FALSE), "") -> 1
A180: =T('CLZ TT'!A180) -> M-224428 | B180: =T('CLZ TT'!D180) -> Alex Gorman | C180: =IF(LEN(A180) > 0, 'CLZ TT'!E180, "") -> 1 | D180: =T('CLZ TT'!F180) -> Hours | E180: =IFERROR(VLOOKUP('CLZ TT'!A180,'CLZ WI'!$A$1:$E$100000,3,FALSE),"") -> 511IT-Tactical:Small Package | F180: =IFERROR(VLOOKUP('CLZ TT'!A180,'CLZ WI'!$A$1:$E$100000,4,FALSE),"") -> CS Quick Start | G180: =IFERROR(VLOOKUP('CLZ TT'!A180,'CLZ WI'!$A$1:$K$100000,5,FALSE),"") -> P-179143 | H180: =IFERROR(VLOOKUP(G180,'CLZ WI'!$A$1:$K$100000,6,FALSE),"") -> Package Small | I180: =IFERROR(VLOOKUP(G180,'CLZ WI'!$A$1:$K$100000,7,FALSE),"") -> USA | J180: =T('CLZ TT'!I180) ->  | K180: =IF(IFERROR(VLOOKUP('CLZ TT'!A180,'CLZ WI'!$A$1:$L$100000,12,FALSE),"")=TRUE, "Billable", IF(IFERROR(VLOOKUP('CLZ TT'!A180,'CLZ WI'!$A$1:$L$100000,12,FALSE),"")=FALSE, "Non-Billable", "")) -> Billable | L180: =IF('CLZ TT'!G180="","",'CLZ TT'!G180) -> 2012-04-26 | M180: =IFERROR(VLOOKUP(G180,'CLZ Pr'!$A$1:$X$100000,12,FALSE)*C180,"") -> 160 | N180: =IFERROR(VLOOKUP(G180,'CLZ Pr'!$A$1:$X$100000,24,FALSE), "") -> 0 | O180: =IFERROR(VLOOKUP(G180,'CLZ Pr'!$A$1:$X$100000,21,FALSE), "") -> 1
A181: =T('CLZ TT'!A181) -> P-179348 | B181: =T('CLZ TT'!D181) -> Rob Sidhu | C181: =IF(LEN(A181) > 0, 'CLZ TT'!E181, "") -> 1 | D181: =T('CLZ TT'!F181) -> Hours | E181: =IFERROR(VLOOKUP('CLZ TT'!A181,'CLZ WI'!$A$1:$E$100000,3,FALSE),"") -> Joan Mitchell FoundationTP:Small Package | F181: =IFERROR(VLOOKUP('CLZ TT'!A181,'CLZ WI'!$A$1:$E$100000,4,FALSE),"") -> CS Quick Start | G181: =IFERROR(VLOOKUP('CLZ TT'!A181,'CLZ WI'!$A$1:$K$100000,5,FALSE),"") -> P-179348 | H181: =IFERROR(VLOOKUP(G181,'CLZ WI'!$A$1:$K$100000,6,FALSE),"") -> Package Small | I181: =IFERROR(VLOOKUP(G181,'CLZ WI'!$A$1:$K$100000,7,FALSE),"") -> USA | J181: =T('CLZ TT'!I181) ->  | K181: =IF(IFERROR(VLOOKUP('CLZ TT'!A181,'CLZ WI'!$A$1:$L$100000,12,FALSE),"")=TRUE, "Billable", IF(IFERROR(VLOOKUP('CLZ TT'!A181,'CLZ WI'!$A$1:$L$100000,12,FALSE),"")=FALSE, "Non-Billable", "")) -> Billable | L181: =IF('CLZ TT'!G181="","",'CLZ TT'!G181) -> 2012-04-26 | M181: =IFERROR(VLOOKUP(G181,'CLZ Pr'!$A$1:$X$100000,12,FALSE)*C181,"") -> 160 | N181: =IFERROR(VLOOKUP(G181,'CLZ Pr'!$A$1:$X$100000,24,FALSE), "") -> 0 | O181: =IFERROR(VLOOKUP(G181,'CLZ Pr'!$A$1:$X$100000,21,FALSE), "") -> 2.5
A182: =T('CLZ TT'!A182) -> T-292050 | B182: =T('CLZ TT'!D182) -> Roni Feldsher | C182: =IF(LEN(A182) > 0, 'CLZ TT'!E182, "") -> 0.5 | D182: =T('CLZ TT'!F182) -> Hours | E182: =IFERROR(VLOOKUP('CLZ TT'!A182,'CLZ WI'!$A$1:$E$100000,3,FALSE),"") -> ELC Online - - 58 h PS | F182: =IFERROR(VLOOKUP('CLZ TT'!A182,'CLZ WI'!$A$1:$E$100000,4,FALSE),"") -> CS Project | G182: =IFERROR(VLOOKUP('CLZ TT'!A182,'CLZ WI'!$A$1:$K$100000,5,FALSE),"") -> P-113869 | H182: =IFERROR(VLOOKUP(G182,'CLZ WI'!$A$1:$K$100000,6,FALSE),"") -> Fixed Hours | I182: =IFERROR(VLOOKUP(G182,'CLZ WI'!$A$1:$K$100000,7,FALSE),"") -> USA | J182: =T('CLZ TT'!I182) ->  | K182: =IF(IFERROR(VLOOKUP('CLZ TT'!A182,'CLZ WI'!$A$1:$L$100000,12,FALSE),"")=TRUE, "Billable", IF(IFERROR(VLOOKUP('CLZ TT'!A182,'CLZ WI'!$A$1:$L$100000,12,FALSE),"")=FALSE, "Non-Billable", "")) -> Billable | L182: =IF('CLZ TT'!G182="","",'CLZ TT'!G182) -> 2012-04-26 | M182: =IFERROR(VLOOKUP(G182,'CLZ Pr'!$A$1:$X$100000,12,FALSE)*C182,"") ->  | N182: =IFERROR(VLOOKUP(G182,'CLZ Pr'!$A$1:$X$100000,24,FALSE), "") ->  | O182: =IFERROR(VLOOKUP(G182,'CLZ Pr'!$A$1:$X$100000,21,FALSE), "") -> 
A183: =T('CLZ TT'!A183) -> P-158424 | B183: =T('CLZ TT'!D183) -> Josh Santos | C183: =IF(LEN(A183) > 0, 'CLZ TT'!E183, "") -> 1 | D183: =T('CLZ TT'!F183) -> Hours | E183: =IFERROR(VLOOKUP('CLZ TT'!A183,'CLZ WI'!$A$1:$E$100000,3,FALSE),"") -> PureDriven Tier1 | F183: =IFERROR(VLOOKUP('CLZ TT'!A183,'CLZ WI'!$A$1:$E$100000,4,FALSE),"") -> CS Quick Start | G183: =IFERROR(VLOOKUP('CLZ TT'!A183,'CLZ WI'!$A$1:$K$100000,5,FALSE),"") -> P-158424 | H183: =IFERROR(VLOOKUP(G183,'CLZ WI'!$A$1:$K$100000,6,FALSE),"") -> Package Large | I183: =IFERROR(VLOOKUP(G183,'CLZ WI'!$A$1:$K$100000,7,FALSE),"") -> USA | J183: =T('CLZ TT'!I183) ->  | K183: =IF(IFERROR(VLOOKUP('CLZ TT'!A183,'CLZ WI'!$A$1:$L$100000,12,FALSE),"")=TRUE, "Billable", IF(IFERROR(VLOOKUP('CLZ TT'!A183,'CLZ WI'!$A$1:$L$100000,12,FALSE),"")=FALSE, "Non-Billable", "")) -> Billable | L183: =IF('CLZ TT'!G183="","",'CLZ TT'!G183) -> 2012-04-27 | M183: =IFERROR(VLOOKUP(G183,'CLZ Pr'!$A$1:$X$100000,12,FALSE)*C183,"") -> 145.83 | N183: =IFERROR(VLOOKUP(G183,'CLZ Pr'!$A$1:$X$100000,24,FALSE), "") -> 0 | O183: =IFERROR(VLOOKUP(G183,'CLZ Pr'!$A$1:$X$100000,21,FALSE), "") -> 9
A184: =T('CLZ TT'!A184) -> P-184803 | B184: =T('CLZ TT'!D184) -> Rob Sidhu | C184: =IF(LEN(A184) > 0, 'CLZ TT'!E184, "") -> 1 | D184: =T('CLZ TT'!F184) -> Hours | E184: =IFERROR(VLOOKUP('CLZ TT'!A184,'CLZ WI'!$A$1:$E$100000,3,FALSE),"") -> Affero 3 h PS | F184: =IFERROR(VLOOKUP('CLZ TT'!A184,'CLZ WI'!$A$1:$E$100000,4,FALSE),"") -> CS Project | G184: =IFERROR(VLOOKUP('CLZ TT'!A184,'CLZ WI'!$A$1:$K$100000,5,FALSE),"") -> P-184803 | H184: =IFERROR(VLOOKUP(G184,'CLZ WI'!$A$1:$K$100000,6,FALSE),"") -> Fixed Hours | I184: =IFERROR(VLOOKUP(G184,'CLZ WI'!$A$1:$K$100000,7,FALSE),"") -> USA | J184: =T('CLZ TT'!I184) ->  | K184: =IF(IFERROR(VLOOKUP('CLZ TT'!A184,'CLZ WI'!$A$1:$L$100000,12,FALSE),"")=TRUE, "Billable", IF(IFERROR(VLOOKUP('CLZ TT'!A184,'CLZ WI'!$A$1:$L$100000,12,FALSE),"")=FALSE, "Non-Billable", "")) -> Billable | L184: =IF('CLZ TT'!G184="","",'CLZ TT'!G184) -> 2012-04-27 | M184: =IFERROR(VLOOKUP(G184,'CLZ Pr'!$A$1:$X$100000,12,FALSE)*C184,"") -> 166.67 | N184: =IFERROR(VLOOKUP(G184,'CLZ Pr'!$A$1:$X$100000,24,FALSE), "") -> 0 | O184: =IFERROR(VLOOKUP(G184,'CLZ Pr'!$A$1:$X$100000,21,FALSE), "") -> 1
A185: =T('CLZ TT'!A185) -> P-184094 | B185: =T('CLZ TT'!D185) -> Patrick Smith | C185: =IF(LEN(A185) > 0, 'CLZ TT'!E185, "") -> 1.5 | D185: =T('CLZ TT'!F185) -> Hours | E185: =IFERROR(VLOOKUP('CLZ TT'!A185,'CLZ WI'!$A$1:$E$100000,3,FALSE),"") -> FireRocket Concepts:Small Package | F185: =IFERROR(VLOOKUP('CLZ TT'!A185,'CLZ WI'!$A$1:$E$100000,4,FALSE),"") -> CS Quick Start | G185: =IFERROR(VLOOKUP('CLZ TT'!A185,'CLZ WI'!$A$1:$K$100000,5,FALSE),"") -> P-184094 | H185: =IFERROR(VLOOKUP(G185,'CLZ WI'!$A$1:$K$100000,6,FALSE),"") -> Package Small | I185: =IFERROR(VLOOKUP(G185,'CLZ WI'!$A$1:$K$100000,7,FALSE),"") -> USA | J185: =T('CLZ TT'!I185) ->  | K185: =IF(IFERROR(VLOOKUP('CLZ TT'!A185,'CLZ WI'!$A$1:$L$100000,12,FALSE),"")=TRUE, "Billable", IF(IFERROR(VLOOKUP('CLZ TT'!A185,'CLZ WI'!$A$1:$L$100000,12,FALSE),"")=FALSE, "Non-Billable", "")) -> Billable | L185: =IF('CLZ TT'!G185="","",'CLZ TT'!G185) -> 2012-04-27 | M185: =IFERROR(VLOOKUP(G185,'CLZ Pr'!$A$1:$X$100000,12,FALSE)*C185,"") -> 240 | N185: =IFERROR(VLOOKUP(G185,'CLZ Pr'!$A$1:$X$100000,24,FALSE), "") -> 0 | O185: =IFERROR(VLOOKUP(G185,'CLZ Pr'!$A$1:$X$100000,21,FALSE), "") -> 0
A186: =T('CLZ TT'!A186) -> T-406014 | B186: =T('CLZ TT'!D186) -> Tal Noga | C186: =IF(LEN(A186) > 0, 'CLZ TT'!E186, "") -> 1.6 | D186: =T('CLZ TT'!F186) -> Hours | E186: =IFERROR(VLOOKUP('CLZ TT'!A186,'CLZ WI'!$A$1:$E$100000,3,FALSE),"") -> Net Translators Implementation Program | F186: =IFERROR(VLOOKUP('CLZ TT'!A186,'CLZ WI'!$A$1:$E$100000,4,FALSE),"") -> CS Project | G186: =IFERROR(VLOOKUP('CLZ TT'!A186,'CLZ WI'!$A$1:$K$100000,5,FALSE),"") -> P-168678 | H186: =IFERROR(VLOOKUP(G186,'CLZ WI'!$A$1:$K$100000,6,FALSE),"") -> Fixed Hours | I186: =IFERROR(VLOOKUP(G186,'CLZ WI'!$A$1:$K$100000,7,FALSE),"") -> EMEA | J186: =T('CLZ TT'!I186) -> Customization | K186: =IF(IFERROR(VLOOKUP('CLZ TT'!A186,'CLZ WI'!$A$1:$L$100000,12,FALSE),"")=TRUE, "Billable", IF(IFERROR(VLOOKUP('CLZ TT'!A186,'CLZ WI'!$A$1:$L$100000,12,FALSE),"")=FALSE, "Non-Billable", "")) -> Billable | L186: =IF('CLZ TT'!G186="","",'CLZ TT'!G186) -> 2012-04-27 | M186: =IFERROR(VLOOKUP(G186,'CLZ Pr'!$A$1:$X$100000,12,FALSE)*C186,"") -> 113.328 | N186: =IFERROR(VLOOKUP(G186,'CLZ Pr'!$A$1:$X$100000,24,FALSE), "") -> 0 | O186: =IFERROR(VLOOKUP(G186,'CLZ Pr'!$A$1:$X$100000,21,FALSE), "") -> 59.58
A187: =T('CLZ TT'!A187) -> M-208087 | B187: =T('CLZ TT'!D187) -> Alex Gorman | C187: =IF(LEN(A187) > 0, 'CLZ TT'!E187, "") -> 1 | D187: =T('CLZ TT'!F187) -> Hours | E187: =IFERROR(VLOOKUP('CLZ TT'!A187,'CLZ WI'!$A$1:$E$100000,3,FALSE),"") ->  | F187: =IFERROR(VLOOKUP('CLZ TT'!A187,'CLZ WI'!$A$1:$E$100000,4,FALSE),"") ->  | G187: =IFERROR(VLOOKUP('CLZ TT'!A187,'CLZ WI'!$A$1:$K$100000,5,FALSE),"") ->  | H187: =IFERROR(VLOOKUP(G187,'CLZ WI'!$A$1:$K$100000,6,FALSE),"") ->  | I187: =IFERROR(VLOOKUP(G187,'CLZ WI'!$A$1:$K$100000,7,FALSE),"") ->  | J187: =T('CLZ TT'!I187) ->  | K187: =IF(IFERROR(VLOOKUP('CLZ TT'!A187,'CLZ WI'!$A$1:$L$100000,12,FALSE),"")=TRUE, "Billable", IF(IFERROR(VLOOKUP('CLZ TT'!A187,'CLZ WI'!$A$1:$L$100000,12,FALSE),"")=FALSE, "Non-Billable", "")) ->  | L187: =IF('CLZ TT'!G187="","",'CLZ TT'!G187) -> 2012-04-30 | M187: =IFERROR(VLOOKUP(G187,'CLZ Pr'!$A$1:$X$100000,12,FALSE)*C187,"") ->  | N187: =IFERROR(VLOOKUP(G187,'CLZ Pr'!$A$1:$X$100000,24,FALSE), "") ->  | O187: =IFERROR(VLOOKUP(G187,'CLZ Pr'!$A$1:$X$100000,21,FALSE), "") -> 
A188: =T('CLZ TT'!A188) -> T-421382 | B188: =T('CLZ TT'!D188) -> Roni Feldsher | C188: =IF(LEN(A188) > 0, 'CLZ TT'!E188, "") -> 2.5 | D188: =T('CLZ TT'!F188) -> Hours | E188: =IFERROR(VLOOKUP('CLZ TT'!A188,'CLZ WI'!$A$1:$E$100000,3,FALSE),"") -> IO Media 10 h PS | F188: =IFERROR(VLOOKUP('CLZ TT'!A188,'CLZ WI'!$A$1:$E$100000,4,FALSE),"") -> CS Project | G188: =IFERROR(VLOOKUP('CLZ TT'!A188,'CLZ WI'!$A$1:$K$100000,5,FALSE),"") -> P-175923 | H188: =IFERROR(VLOOKUP(G188,'CLZ WI'!$A$1:$K$100000,6,FALSE),"") -> Fixed Hours | I188: =IFERROR(VLOOKUP(G188,'CLZ WI'!$A$1:$K$100000,7,FALSE),"") -> USA | J188: =T('CLZ TT'!I188) ->  | K188: =IF(IFERROR(VLOOKUP('CLZ TT'!A188,'CLZ WI'!$A$1:$L$100000,12,FALSE),"")=TRUE, "Billable", IF(IFERROR(VLOOKUP('CLZ TT'!A188,'CLZ WI'!$A$1:$L$100000,12,FALSE),"")=FALSE, "Non-Billable", "")) -> Billable | L188: =IF('CLZ TT'!G188="","",'CLZ TT'!G188) -> 2012-04-30 | M188: =IFERROR(VLOOKUP(G188,'CLZ Pr'!$A$1:$X$100000,12,FALSE)*C188,"") -> 375 | N188: =IFERROR(VLOOKUP(G188,'CLZ Pr'!$A$1:$X$100000,24,FALSE), "") -> 0 | O188: =IFERROR(VLOOKUP(G188,'CLZ Pr'!$A$1:$X$100000,21,FALSE), "") -> 0
